Workbook

Sheet Contents
A8: Greater Manchester Forecasting Model Dataset
I10: Contact:
A12: Select the required page: | I12: Anthony Light | Director of City Services and Consultancy
A13: Guidance notes/definitions | I13: alight@oxfordeconomics.com
A14: Area profile sheet
A15: Comparison sheet | I15: Kerry Houston | Head of Regional Model Development
A16: Area output sheet | I16: khouston@oxfordeconomics.com
A17: Key variables sheet
I18: Jonathan Stewart | Economist
I19: jstewart@oxfordeconomics.com
I21: Oxford Economics Ltd
I22: Broadwall House
I23: 21 Broadwall
I24: London, SE1 9PL, UK
I25: Tel : 00 44 207 803 1400 (Switchboard)
I26: Registered Number: 1557776
A28: Copyright © Oxford Economics Ltd - All rights reserved | I28: June 2018
A31: All information in this file is copyright © Oxford Economics Ltd and may not be published or distributed without our prior written permission.
A32: Because of the uncertainty of future events and circumstances and because the contents are based on data and information provided by third parties upon which Oxford Economics
A33: has relied in producing its reports and forecasts in good faith, Oxford Economics does not warrant that its forecasts, projections, advice, recommendations or the contents of any report,
A34: presentation or other document will be accurate or achievable and Oxford Economics will not be liable for the contents any of the foregoing or for the reliance by the Customer
A35: on any of the foregoing.
A37: The forecasts set out in this file are produced within a fully integrated modelling system which brings together changes in employment and assumptions about migration,
A38: commuting and activity rates. If adjustments are made to these assumptions, the resulting outputs should not be sourced to Oxford Economics.

Sheet Guidance notes
A1: Back to Contents
A2: Guidance notes/definitions
A4: Data and forecasts are taken from the Oxford Economics Greater Manchester Forecating Model, June 2018
A6: Definitions/sources used
A7: Variable | B7: Units | C7: Source | D7: Definition/Notes
A8: Demography
A9: Total population | B9: Thousands | C9: ONS mid-year population estimates | D9: Total population, male and female, all ages
A10: Net Migration | B10: Thousands | C10: ONS mid-year population estimates | D10: Net migration, all ages
A11: Population aged 0-15 | B11: Thousands | C11: ONS mid-year population estimates | D11: Population aged between 0 and 15
A12: Population aged 16-64 | B12: Thousands | C12: ONS mid-year population estimates | D12: Population aged between 16 and 64
A13: Population aged 65+ | B13: Thousands | C13: ONS mid-year population estimates | D13: Population aged between 65 and over
A14: Population 15-74 | B14: Thousands | C14: ONS mid-year population estimates | D14: Population aged between 15 and 74
A16: Labour market
A17: Employees in employment | B17: Thousands | C17: BRES, ONS workforce jobs | D17: Workplace based Jobs; annual average
A18: Self employment | B18: Thousands | C18: Census of Population, ONS Workforce jobs | D18: Workplace based Jobs; annual average
A19: Total employment | B19: Thousands | C19: BRES, ONS workforce jobs | D19: Workplace based Jobs; annual average. Includes employees in employment, self employment, employees in Her Majesty's Forces & government supported trainees
A20: Total employees by key sector | B20: Thousands | C20: BRES, ONS workforce jobs | D20: Workplace based; key sector definitions provided by New Economy
A21: Total employment by broad sector | B21: Thousands | C21: BRES, ONS workforce jobs | D21: Workplace based Jobs; annual average, by broad SIC2007 sectors
A22: Total employment by detailed sector | B22: Thousands | C22: BRES, ONS workforce jobs | D22: Workplace based Jobs; annual average, by detailed sector
A23: Total employment by key sector | B23: Thousands | C23: BRES, ONS workforce jobs | D23: Workplace based; key sector definitions provided by New Economy
A24: People based employment | B24: Thousands | C24: Census of Population, Oxford Economics | D24: Workplace based people
A25: Unemployment | B25: Thousands | C25: Claimant Count | D25: Residence based
A26: Unemployment rate | B26: % of working age population | C26: Claimant Count | D26: Residence based
A27: Net commuting | B27: Thousands | C27: Census of Population | D27: People in employment less residence based employment
A28: Resident employment | B28: Thousands | C28: Annual Population Survey (APS), Census of Population | D28: Residence based people
A29: APS resident employment rate | B29: % of population aged 16-64 | C29: Annual Population Survey (APS) | D29: Residence based
A30: Occupations | B30: Thousands | C30: Census of Population, Labour Force Survey, Oxford Economics | D30: Workplace based people in employment by minor occupation group, consistent with Census results
A31: Employment by occupation and qualification | B31: Thousands | C31: Annual Population Survey (APS), Oxford Economics | D31: Workplace based people in employment by major occupation group and NVQ level
A33: Output
A34: GVA | B34: £ millions, 2015 prices | C34: ONS Regional Accounts, Oxford Economics | D34: Workplace based
A35: GVA by broad sector | B35: £ millions, 2015 prices | C35: ONS Regional Accounts, Oxford Economics | D35: Workplace based by broad SIC2007 sectors
A36: GVA by detailed sectors | B36: £ millions, 2015 prices | C36: ONS Regional Accounts, Oxford Economics | D36: Workplace based by detailed sector
A37: GVA by key sector | B37: £ millions, 2015 prices | C37: ONS Regional Accounts, Oxford Economics | D37: Workplace based; key sector definitions provided by New Economy
A39: Productivity
A40: Productivity | B40: £ millions, 2015 prices | C40: ONS Regional Accounts, Oxford Economics | D40: GVA per job
A41: Productivity by broad sector | B41: £ millions, 2015 prices | C41: ONS Regional Accounts, Oxford Economics | D41: GVA per job, broad SIC2007 sector
A42: Productivity by detailed sector | B42: £ millions, 2015 prices | C42: ONS Regional Accounts, Oxford Economics | D42: GVA per job, detailed sectors
A43: Productivity by key sector | B43: £ millions, 2015 prices | C43: ONS Regional Accounts, Oxford Economics | D43: GVA per job by New Economy defined key sectors
A45: Replacement demand (results are presented on both an occupation and key sector basis)
A46: Replacement demand by occupation
A47: Expansion demand by occupation | B47: Thousands | C47: 2011 Census, Oxford Economics | D47: Change in occupation employment by minor occupation group
A48: Replacement demand by occupation | B48: Thousands | C48: Labour Force Survey, Oxford Economics | D48: The number of people leaving an occupation due to unemployment, inactivity, retirement, migration, death or to move to another job in a different occupational group.
A49: Total requirement by occupation | B49: Thousands | C49: Oxford Economics | D49: Expansion demand plus replacement demand (all leavers)
A50: Total requirement from outside the labour market by occupation | B50: Thousands | C50: Labour Force Survey, Oxford Economics | D50: Expansion demand plus replacement demand less joiners from other occupation groups. This is the number of people required from education, inactivity, migration, retirement or commuting.
A52: Replacement demand by key sector
A53: Expansion demand by key sector | B53: Thousands | C53: 2011 Census, Oxford Economics | D53: Change in employment by key sector
A54: Replacement demand by key sector | B54: Thousands | C54: Labour Force Survey, Oxford Economics | D54: The number of people leaving each sector due to unemployment, inactivity, retirement, migration, death or to move to another job in a different sector.
A55: Total requirement by key sector | B55: Thousands | C55: Oxford Economics | D55: Expansion demand plus replacement demand (all leavers)
A56: Total requirement from outside the labour market by key sector | B56: Thousands | C56: Labour Force Survey, Oxford Economics | D56: Expansion demand plus replacement demand less joiners who move from other sectors. This is the number of people required from education, inactivity, migration, retirement or commuting.
A61: All information in this file is copyright © Oxford Economics Ltd and may not be published or distributed without our prior written permission.
A62: Because of the uncertainty of future events and circumstances and because the contents are based on data and information provided by third parties upon which Oxford Economics
A63: has relied in producing its reports and forecasts in good faith, Oxford Economics does not warrant that its forecasts, projections, advice, recommendations or the contents of any report,
A64: presentation or other document will be accurate or achievable and Oxford Economics will not be liable for the contents any of the foregoing or for the reliance by the Customer
A65: on any of the foregoing.
A67: The forecasts set out in this file are produced within a fully integrated modelling system which brings together changes in employment and assumptions about migration,
A68: commuting and activity rates. If adjustments are made to these assumptions, the resulting outputs should not be sourced to Oxford Economics.

Sheet Area output
A1: Data by Area | B1: Back to contents
BC2: FORECAST YEARS
BC4: START YEAR | BD4: 2016
BC5: END YEAR | BD5: 2036
A7: =IF(ISNA(reg_out&" ["&reg&"]")=TRUE,"",reg_out) -> Greater Manchester | E7: 1991 | F7: 1992 | G7: 1993 | H7: 1994 | I7: 1995 | J7: 1996 | K7: 1997 | L7: 1998 | M7: 1999 | N7: 2000 | O7: 2001 | P7: 2002 | Q7: 2003 | R7: 2004 | S7: 2005 | T7: 2006 | U7: 2007 | V7: 2008 | W7: 2009 | X7: 2010 | Y7: 2011 | Z7: 2012 | AA7: 2013 | AB7: 2014 | AC7: 2015 | AD7: 2016 | AE7: 2017 | AF7: 2018 | AG7: 2019 | AH7: 2020 | AI7: 2021 | AJ7: 2022 | AK7: 2023 | AL7: 2024 | AM7: 2025 | AN7: 2026 | AO7: 2027 | AP7: 2028 | AQ7: 2029 | AR7: 2030 | AS7: 2031 | AT7: 2032 | AU7: 2033 | AV7: 2034 | AW7: 2035 | AX7: 2036 | AY7: 2037 | AZ7: 2038 | BC7: =BD4 -> 2016 | BD7: =BD5 -> 2036 | BE7: Change | BF7: Growth (%/year)
C8: Column letter | E8: c | F8: d | G8: e | H8: f | I8: g | J8: h | K8: i | L8: j | M8: k | N8: l | O8: m | P8: n | Q8: o | R8: p | S8: q | T8: r | U8: s | V8: t | W8: u | X8: v | Y8: w | Z8: x | AA8: y | AB8: z | AC8: aa | AD8: ab | AE8: ac | AF8: ad | AG8: ae | AH8: af | AI8: ag | AJ8: ah | AK8: ai | AL8: aj | AM8: ak | AN8: al | AO8: am | AP8: an | AQ8: ao | AR8: ap | AS8: aq | AT8: ar | AU8: as | AV8: at | AW8: au | AX8: av | AY8: aw | AZ8: ax
A9: Summary statistics | C9: Row number | D9: Row for changes/growth
A10: Total population | B10: Thousands | C10: 3 | D10: 4 | E10: =IF(E$8="","",IF(ISNA(INDIRECT("'"&reg&"'!"&E$8&$C10))=TRUE,"",INDIRECT("'"&reg&"'!"&E$8&$C10))) -> 2553.552 | F10: 2551.167 | G10: 2551.003 | H10: 2545.644 | I10: 2540.172 | J10: 2531.343 | K10: 2521.911 | L10: 2521.903 | M10: 2515.476 | N10: 2516.327 | O10: =IF(O$8="","",IF(ISNA(INDIRECT("'"&reg&"'!"&O$8&$C10))=TRUE,"",INDIRECT("'"&reg&"'!"&O$8&$C10))) -> 2516.084 | P10: 2523.345 | Q10: 2538.775 | R10: 2550.053 | S10: 2564.397 | T10: 2582.684 | U10: 2599.081 | V10: 2620.407 | W10: 2640.11 | X10: 2662.073 | Y10: =IF(Y$8="","",IF(ISNA(INDIRECT("'"&reg&"'!"&Y$8&$C10))=TRUE,"",INDIRECT("'"&reg&"'!"&Y$8&$C10))) -> 2685.588 | Z10: 2701.579 | AA10: 2713.774 | AB10: 2730.325 | AC10: 2754.219 | AD10: 2781.046 | AE10: 2795.491 | AF10: 2809.994 | AG10: 2824.02 | AH10: 2836.559 | AI10: =IF(AI$8="","",IF(ISNA(INDIRECT("'"&reg&"'!"&AI$8&$C10))=TRUE,"",INDIRECT("'"&reg&"'!"&AI$8&$C10))) -> 2847.778 | AJ10: 2858.561 | AK10: 2869.318 | AL10: 2880.058 | AM10: 2890.34 | AN10: 2900.1 | AO10: 2909.076 | AP10: 2917.465 | AQ10: 2925.312 | AR10: 2932.548 | AS10: =IF(AS$8="","",IF(ISNA(INDIRECT("'"&reg&"'!"&AS$8&$C10))=TRUE,"",INDIRECT("'"&reg&"'!"&AS$8&$C10))) -> 2939.493 | AT10: 2946.241 | AU10: 2952.627 | AV10: 2958.773 | AW10: 2964.903 | AX10: 2970.83 | AY10: 2976.751 | AZ10: 2982.553 | BC10: =IF($BD$4>$BD$5,"Invalid dates",IFERROR(HLOOKUP(BC$7,$E$7:$AZ$804,$D10,FALSE),"-")) -> 2781.046 | BD10: 2970.83 | BE10: =IFERROR(BD10-BC10,"-") -> 189.784 | BF10: =IFERROR(((BD10/BC10)^(1/($BD$7-$BC$7))-1)*100,"-") -> 0.3306166308
A11: Net Migration | B11: Thousands | C11: 8 | D11: 5 | E11: - | F11: -10.29425 | G11: -6.686037 | H11: -10.14652 | I11: -9.798145 | J11: -11.33462 | K11: -13.86129 | L11: -3.670264 | M11: -8.130278 | N11: -2.010614 | O11: -2.142993 | P11: 4.124 | Q11: 11.402 | R11: 5.7 | S11: 7.049 | T11: 9.147 | U11: 6.593 | V11: 9.033999 | W11: 7.771 | X11: 8.02 | Y11: 9.142 | Z11: 2.342 | AA11: -0.956 | AB11: 2.824 | AC11: 12.229 | AD11: 13.89 | AE11: 3.324517 | AF11: 2.040695 | AG11: 1.513883 | AH11: 0.1296623 | AI11: -1.03967 | AJ11: -1.148186 | AK11: -1.000146 | AL11: -1.055518 | AM11: -1.246224 | AN11: -1.482095 | AO11: -1.741085 | AP11: -1.961335 | AQ11: -2.228937 | AR11: -2.558731 | AS11: -2.591399 | AT11: -2.626814 | AU11: -2.685895 | AV11: -2.762244 | AW11: -2.83603 | AX11: -2.913278 | AY11: -2.993964 | AZ11: -3.064615 | BC11: 13.89 | BD11: -2.913278 | BE11: =IFERROR(BD11-BC11,"-") -> -16.803278 | BF11: =IFERROR(((BD11/BC11)^(1/($BD$7-$BC$7))-1)*100,"-") -> -
A12: Employees in employment: total | B12: Thousands | C12: 14 | D12: 6 | E12: =IF(E$8="","",IF(ISNA(INDIRECT("'"&reg&"'!"&E$8&$C12))=TRUE,"",INDIRECT("'"&reg&"'!"&E$8&$C12))) -> 1118.838 | F12: 1100.322 | G12: 1089.91 | H12: 1090.016 | I12: 1094.262 | J12: 1109.803 | K12: 1124.946 | L12: 1089.068 | M12: 1136.132 | N12: 1154.66 | O12: 1153.894 | P12: 1154.484 | Q12: 1183.469 | R12: 1202.149 | S12: 1193.708 | T12: 1186.144 | U12: 1201.312 | V12: 1194.908 | W12: 1182.228 | X12: 1162.551 | Y12: 1158.913 | Z12: 1168.213 | AA12: 1184.331 | AB12: 1199.74 | AC12: 1228.66 | AD12: 1267.755 | AE12: 1292.823 | AF12: 1311.812 | AG12: 1314.813 | AH12: 1322.272 | AI12: 1332.614 | AJ12: 1344.084 | AK12: 1354.2 | AL12: 1362.573 | AM12: 1369.529 | AN12: 1374.659 | AO12: 1379.005 | AP12: 1383.236 | AQ12: 1387.426 | AR12: 1391.576 | AS12: 1394.836 | AT12: 1397.641 | AU12: 1400.495 | AV12: 1403.339 | AW12: 1406.233 | AX12: 1409.181 | AY12: 1412.169 | AZ12: 1415.158 | BC12: 1267.755 | BD12: 1409.181 | BE12: 141.426 | BF12: 0.5302059676
A13: Self-employment: total | B13: Thousands | C13: 15 | D13: 7 | E13: 119.9861 | F13: =IF(F$8="","",IF(ISNA(INDIRECT("'"&reg&"'!"&F$8&$C13))=TRUE,"",INDIRECT("'"&reg&"'!"&F$8&$C13))) -> 120.2625 | G13: 124.8863 | H13: 115.9798 | I13: 117.9039 | J13: 124.2646 | K13: 117.8013 | L13: 110.1587 | M13: 114.219 | N13: 105.8011 | O13: 108.9625 | P13: 112.0876 | Q13: 120.8224 | R13: 129.3121 | S13: 123.9561 | T13: 127.0572 | U13: 129.8144 | V13: 134.3138 | W13: 135.4094 | X13: 142.0397 | Y13: 136.3681 | Z13: 146.1382 | AA13: 152.2101 | AB13: 165.1485 | AC13: 154.6804 | AD13: 153.7949 | AE13: 150.0444 | AF13: 143.7765 | AG13: 143.4049 | AH13: 143.6271 | AI13: 144.5193 | AJ13: 145.6152 | AK13: 146.6455 | AL13: 147.4877 | AM13: 148.2042 | AN13: 148.7147 | AO13: 149.1262 | AP13: 149.5246 | AQ13: 149.9135 | AR13: 150.2919 | AS13: 150.6805 | AT13: 151.0262 | AU13: 151.3774 | AV13: 151.7303 | AW13: 152.088 | AX13: 152.4492 | AY13: 152.8219 | AZ13: 153.1935 | BC13: 153.7949 | BD13: 152.4492 | BE13: -1.3457 | BF13: -0.04393270064
A14: Total employment | B14: Thousands | C14: 16 | D14: 8 | E14: 1239.173 | F14: =IF(F$8="","",IF(ISNA(INDIRECT("'"&reg&"'!"&F$8&$C14))=TRUE,"",INDIRECT("'"&reg&"'!"&F$8&$C14))) -> 1220.935 | G14: 1215.133 | H14: 1206.323 | I14: 1212.464 | J14: 1234.365 | K14: 1243.035 | L14: 1199.512 | M14: 1250.634 | N14: 1260.743 | O14: 1263.135 | P14: 1266.851 | Q14: 1304.579 | R14: 1331.744 | S14: 1317.75 | T14: 1313.286 | U14: 1331.238 | V14: 1329.359 | W14: 1317.754 | X14: 1304.694 | Y14: 1295.392 | Z14: 1314.442 | AA14: 1336.602 | AB14: 1364.957 | AC14: 1383.402 | AD14: 1421.636 | AE14: 1442.954 | AF14: 1455.674 | AG14: 1458.304 | AH14: 1465.985 | AI14: 1477.219 | AJ14: 1489.786 | AK14: 1500.932 | AL14: 1510.146 | AM14: 1517.82 | AN14: 1523.46 | AO14: 1528.217 | AP14: 1532.847 | AQ14: 1537.426 | AR14: 1541.953 | AS14: 1545.603 | AT14: 1548.753 | AU14: 1551.958 | AV14: 1555.155 | AW14: 1558.406 | AX14: 1561.716 | AY14: 1565.077 | AZ14: 1568.437 | BC14: 1421.636 | BD14: 1561.716 | BE14: 140.08 | BF14: 0.4709901662
A15: People based employment | B15: Thousands | C15: 218 | D15: 9 | E15: 1100.09 | F15: 1086.344 | G15: 1080.333 | H15: 1071.392 | I15: 1070.712 | J15: 1082.55 | K15: 1093.777 | L15: 1058.962 | M15: 1104.246 | N15: 1114.172 | O15: 1115.451 | P15: 1122.919 | Q15: 1164.781 | R15: 1205.412 | S15: 1200.189 | T15: 1209.784 | U15: 1240.303 | V15: 1249.581 | W15: 1250.369 | X15: 1246.013 | Y15: 1242.918 | Z15: 1261.226 | AA15: 1282.089 | AB15: 1307.628 | AC15: 1328.86 | AD15: 1366.792 | AE15: 1386.687 | AF15: 1403.198 | AG15: 1406.715 | AH15: 1414.816 | AI15: 1425.774 | AJ15: 1437.789 | AK15: 1448.224 | AL15: 1456.775 | AM15: 1463.781 | AN15: 1468.802 | AO15: 1472.965 | AP15: 1476.999 | AQ15: 1481.39 | AR15: 1485.712 | AS15: 1489.181 | AT15: 1492.178 | AU15: 1495.225 | AV15: 1498.266 | AW15: 1501.363 | AX15: 1504.513 | AY15: 1507.715 | AZ15: 1510.919 | BC15: 1366.792 | BD15: 1504.513 | BE15: 137.721 | BF15: 0.4811682627
A16: Unemployment | B16: Thousands | C16: 18 | D16: 10 | E16: 115.6255 | F16: 131.0589 | G16: 131.4825 | H16: 117.0251 | I16: 100.9839 | J16: 91.65699 | K16: 69.06193 | L16: 58.42957 | M16: 55.16289 | N16: 48.43779 | O16: 44.34622 | P16: 44.03561 | Q16: 43.12868 | R16: 37.67222 | S16: 38.29175 | T16: 43.59454 | U16: 42.5418 | V16: 46.64032 | W16: 77.56647 | X16: 76.6637 | Y16: 78.6497 | Z16: 84.81293 | AA16: 77.88223 | AB16: 54.8781 | AC16: 44.47566 | AD16: 46.13013 | AE16: 48.25979 | AF16: 52.97137 | AG16: 53.26945 | AH16: 51.43454 | AI16: 49.35381 | AJ16: 47.46165 | AK16: 46.42989 | AL16: 46.21264 | AM16: 46.01648 | AN16: 45.72837 | AO16: 45.41154 | AP16: 45.10599 | AQ16: 44.81037 | AR16: 44.57372 | AS16: 44.36232 | AT16: 44.08358 | AU16: 43.7781 | AV16: 43.4742 | AW16: 43.1727 | AX16: 42.86162 | AY16: 42.53999 | AZ16: 42.21306 | BC16: 46.13013 | BD16: 42.86162 | BE16: -3.26851 | BF16: -0.3667733816
A17: Unemployment rate | B17: (% of population 16-64) | C17: 19 | D17: 11 | E17: =IF(E$8="","",IF(ISNA(INDIRECT("'"&reg&"'!"&E$8&$C17))=TRUE,"",INDIRECT("'"&reg&"'!"&E$8&$C17))) -> 7.136927181 | F17: 8.120155267 | G17: 8.167081597 | H17: 7.296188528 | I17: 6.307776104 | J17: 5.735552079 | K17: 4.335435704 | L17: 3.658421852 | M17: 3.449832458 | N17: 3.016859433 | O17: 2.750110541 | P17: 2.709927051 | Q17: 2.625993073 | R17: 2.273761124 | S17: 2.290643606 | T17: 2.578252672 | U17: 2.493074597 | V17: 2.709266453 | W17: 4.475653116 | X17: 4.392295692 | Y17: 4.471761557 | Z17: 4.830275859 | AA17: 4.441340119 | AB17: 3.125347399 | AC17: 2.517627946 | AD17: 2.592241504 | AE17: 2.707407929 | AF17: 2.968829498 | AG17: 2.98227969 | AH17: 2.876118081 | AI17: 2.75779695 | AJ17: 2.649702128 | AK17: 2.58965452 | AL17: 2.573939585 | AM17: 2.56092855 | AN17: 2.543623332 | AO17: 2.525973087 | AP17: 2.508381386 | AQ17: 2.494230366 | AR17: 2.484645481 | AS17: 2.475842543 | AT17: 2.463466209 | AU17: 2.450624326 | AV17: 2.437691241 | AW17: 2.423361835 | AX17: 2.409893572 | AY17: 2.394441899 | AZ17: 2.376262069 | BC17: 2.592241504 | BD17: 2.409893572 | BE17: -0.1823479326 | BF17: -0.3640375791
A18: Resident employment | B18: Thousands | C18: 20 | D18: 12 | E18: - | F18: - | G18: - | H18: - | I18: 1002.922 | J18: 1018.297 | K18: 1036.728 | L18: 1047.6 | M18: 1072.311 | N18: 1088.428 | O18: 1086.762 | P18: 1092.389 | Q18: 1123.447 | R18: 1146.86 | S18: 1167.526 | T18: 1186.889 | U18: 1195.755 | V18: 1195.631 | W18: 1191.73 | X18: 1212.876 | Y18: 1218.907 | Z18: 1231.741 | AA18: 1237.267 | AB18: 1270.399 | AC18: 1307.898 | AD18: 1321.727 | AE18: 1357.479 | AF18: 1365.013 | AG18: 1368.735 | AH18: 1378.981 | AI18: 1392.02 | AJ18: 1404.936 | AK18: 1415.951 | AL18: 1425.042 | AM18: 1431.657 | AN18: 1436.962 | AO18: 1441.989 | AP18: 1446.914 | AQ18: 1452.036 | AR18: 1457.114 | AS18: 1462.072 | AT18: 1466.999 | AU18: 1471.977 | AV18: 1476.968 | AW18: 1482.013 | AX18: 1487.106 | AY18: 1492.254 | AZ18: 1497.417 | BC18: 1321.727 | BD18: 1487.106 | BE18: 165.379 | BF18: 0.5912044288
A19: Resident employment rate | B19: (% of population aged 16-64) | C19: 221 | D19: 13 | E19: - | F19: - | G19: - | H19: - | I19: - | J19: - | K19: - | L19: - | M19: - | N19: - | O19: - | P19: - | Q19: - | R19: 70.3 | S19: 70 | T19: 70.7 | U19: 69.7 | V19: 68.5 | W19: 67 | X19: 67 | Y19: 66.3 | Z19: 66.9 | AA19: 67.5 | AB19: 69 | AC19: 70.2 | AD19: 70.5 | AE19: 72 | AF19: 72.37376 | AG19: 72.5729 | AH19: 73.08651 | AI19: 73.63817 | AJ19: 74.41041 | AK19: 74.89023 | AL19: 75.17304 | AM19: 75.21416 | AN19: 75.17837 | AO19: =IF(AO$8="","",IF(ISNA(INDIRECT("'"&reg&"'!"&AO$8&$C19))=TRUE,"",INDIRECT("'"&reg&"'!"&AO$8&$C19))) -> 75.04606 | AP19: 74.90624 | AQ19: 74.72142 | AR19: 74.58485 | AS19: 74.39415 | AT19: 74.32314 | AU19: 74.36912 | AV19: 74.58259 | AW19: 74.88519 | AX19: 75.25725 | AY19: 75.71149 | AZ19: =IF(AZ$8="","",IF(ISNA(INDIRECT("'"&reg&"'!"&AZ$8&$C19))=TRUE,"",INDIRECT("'"&reg&"'!"&AZ$8&$C19))) -> 76.14534 | BC19: 70.5 | BD19: 75.25725 | BE19: 4.75725 | BF19: 0.3270312576
A20: Net commuting | B20: Thousands | C20: 22 | D20: 14 | E20: - | F20: - | G20: - | H20: - | I20: 67.78955 | J20: 64.25256 | K20: 57.04919 | L20: 11.36218 | M20: 31.93494 | N20: 25.74402 | O20: 28.68896 | P20: 30.53088 | Q20: 41.33423 | R20: 58.55249 | S20: 32.66357 | T20: 22.8949 | U20: 44.54797 | V20: 53.9502 | W20: 58.63892 | X20: 33.13672 | Y20: 24.01147 | Z20: 29.48499 | AA20: 44.82202 | AB20: 37.229 | AC20: 20.96252 | AD20: =IF(AD$8="","",IF(ISNA(INDIRECT("'"&reg&"'!"&AD$8&$C20))=TRUE,"",INDIRECT("'"&reg&"'!"&AD$8&$C20))) -> 45.06567 | AE20: 29.20801 | AF20: 38.18542 | AG20: 37.97986 | AH20: 35.83557 | AI20: 33.75415 | AJ20: 32.85303 | AK20: 32.2738 | AL20: 31.7334 | AM20: 32.12402 | AN20: =IF(AN$8="","",IF(ISNA(INDIRECT("'"&reg&"'!"&AN$8&$C20))=TRUE,"",INDIRECT("'"&reg&"'!"&AN$8&$C20))) -> 31.84058 | AO20: 30.97607 | AP20: 30.08484 | AQ20: 29.35352 | AR20: 28.59766 | AS20: 27.10962 | AT20: 25.17896 | AU20: 23.2478 | AV20: 21.29761 | AW20: 19.35034 | AX20: 17.4071 | AY20: 15.46094 | AZ20: 13.50269 | BC20: 45.06567 | BD20: 17.4071 | BE20: -27.65857 | BF20: -4.644877239
A21: GVA | B21: £ 2015m | C21: 90 | D21: 15 | E21: =IF(E$8="","",IF(ISNA(INDIRECT("'"&reg&"'!"&E$8&$C21))=TRUE,"",INDIRECT("'"&reg&"'!"&E$8&$C21))) -> 39806.34 | F21: 40082.43 | G21: 41301.02 | H21: 42498.28 | I21: 43115.07 | J21: 43500.38 | K21: 44550.98 | L21: 44929.5 | M21: 46472.41 | N21: 47140.83 | O21: 48882.62 | P21: 50340.52 | Q21: 51536.79 | R21: 53058.32 | S21: 55207.18 | T21: 57202.71 | U21: 58644.52 | V21: 58310.81 | W21: 56795.55 | X21: 57430.17 | Y21: 56660.16 | Z21: 57761.4 | AA21: 59169.98 | AB21: 58935.54 | AC21: 61107.17 | AD21: 62654.55 | AE21: 64183.38 | AF21: 65248.74 | AG21: 66272.95 | AH21: 67585.21 | AI21: 69065.62 | AJ21: 70621.58 | AK21: 72131.26 | AL21: 73565 | AM21: 74929.38 | AN21: 76229.04 | AO21: 77497.2 | AP21: 78755 | AQ21: 80016.63 | AR21: 81272.69 | AS21: 82492.67 | AT21: 83689.37 | AU21: 84883.23 | AV21: 86072.48 | AW21: 87259.12 | AX21: 88444.47 | AY21: 89630.12 | AZ21: 90815.44 | BC21: 62654.55 | BD21: 88444.47 | BE21: 25789.92 | BF21: 1.738634276
A22: Productivity (GVA per employment) | B22: £ 2015 thousands | E22: =E21/E14 -> 32.12331127 | F22: =F21/F14 -> 32.82929067 | G22: 33.98888846 | H22: 35.22960269 | I22: 35.55987642 | J22: 35.24109967 | K22: 35.84048719 | L22: 37.4564823 | M22: 37.15908091 | N22: 37.39130814 | O22: 38.69944226 | P22: 39.73673305 | Q22: 39.50453748 | R22: 39.84123075 | S22: 41.8950332 | T22: 43.55693276 | U22: 44.05261869 | V22: 43.86385468 | W22: 43.10026758 | X22: 44.01811459 | Y22: 43.73977916 | Z22: 43.94366583 | AA22: 44.26895965 | AB22: 43.17757995 | AC22: 44.17166521 | AD22: 44.07214646 | AE22: 44.48054477 | AF22: 44.82373114 | AG22: 45.44522267 | AH22: 46.10225207 | AI22: 46.7538124 | AJ22: 47.40384189 | AK22: 48.05764685 | AL22: 48.71383297 | AM22: 49.36644661 | AN22: 50.03678469 | AO22: 50.71086109 | AP22: 51.37825236 | AQ22: 52.04584156 | AR22: 52.70763117 | AS22: 53.3724831 | AT22: 54.03661526 | AU22: 54.69428296 | AV22: 55.34656031 | AW22: 55.99254623 | AX22: 56.63287691 | AY22: 57.26882447 | AZ22: 57.90187301 | BC22: =BC21/BC14 -> 44.07214646 | BD22: =BD21/BD14 -> 56.63287691 | BE22: =IFERROR(BD22-BC22,"-") -> 12.56073046 | BF22: =IFERROR(((BD22/BC22)^(1/($BD$7-$BC$7))-1)*100,"-") -> 1.26170162
A25: Population by age band
A26: Total Population | B26: Thousands | C26: 3 | D26: 20 | E26: =IF(E$8="","",IF(ISNA(INDIRECT("'"&reg&"'!"&E$8&$C26))=TRUE,"",INDIRECT("'"&reg&"'!"&E$8&$C26))) -> 2553.552 | F26: =IF(F$8="","",IF(ISNA(INDIRECT("'"&reg&"'!"&F$8&$C26))=TRUE,"",INDIRECT("'"&reg&"'!"&F$8&$C26))) -> 2551.167 | G26: 2551.003 | H26: 2545.644 | I26: 2540.172 | J26: 2531.343 | K26: 2521.911 | L26: 2521.903 | M26: 2515.476 | N26: 2516.327 | O26: 2516.084 | P26: 2523.345 | Q26: 2538.775 | R26: 2550.053 | S26: 2564.397 | T26: 2582.684 | U26: =IF(U$8="","",IF(ISNA(INDIRECT("'"&reg&"'!"&U$8&$C26))=TRUE,"",INDIRECT("'"&reg&"'!"&U$8&$C26))) -> 2599.081 | V26: 2620.407 | W26: 2640.11 | X26: 2662.073 | Y26: 2685.588 | Z26: 2701.579 | AA26: 2713.774 | AB26: 2730.325 | AC26: 2754.219 | AD26: 2781.046 | AE26: 2795.491 | AF26: 2809.994 | AG26: 2824.02 | AH26: 2836.559 | AI26: 2847.778 | AJ26: 2858.561 | AK26: =IF(AK$8="","",IF(ISNA(INDIRECT("'"&reg&"'!"&AK$8&$C26))=TRUE,"",INDIRECT("'"&reg&"'!"&AK$8&$C26))) -> 2869.318 | AL26: 2880.058 | AM26: 2890.34 | AN26: 2900.1 | AO26: 2909.076 | AP26: 2917.465 | AQ26: 2925.312 | AR26: 2932.548 | AS26: 2939.493 | AT26: 2946.241 | AU26: 2952.627 | AV26: 2958.773 | AW26: 2964.903 | AX26: 2970.83 | AY26: 2976.751 | AZ26: 2982.553 | BC26: =IF($BD$4>$BD$5,"Invalid dates",IFERROR(HLOOKUP(BC$7,$E$7:$AZ$804,$D26,FALSE),"-")) -> 2781.046 | BD26: 2970.83 | BE26: =IFERROR(BD26-BC26,"-") -> 189.784 | BF26: =IFERROR(((BD26/BC26)^(1/($BD$7-$BC$7))-1)*100,"-") -> 0.3306166308
A27: Population aged 0-15 | B27: Thousands | C27: 5 | D27: 21 | E27: 550.9436 | F27: 550.425 | G27: 555.733 | H27: 558.5211 | I27: 557.0641 | J27: 553.06 | K27: 550.567 | L27: 547.9181 | M27: 542.7318 | N27: 537.7426 | O27: 530.2975 | P27: 525.7002 | Q27: 523.1185 | R27: 519.7048 | S27: 518.5692 | T27: 518.0898 | U27: 518.1899 | V27: 520.8335 | W27: 524.6274 | X27: 529.1185 | Y27: 534.4063 | Z27: 539.5967 | AA27: 543.9316 | AB27: 549.5126 | AC27: 556.424 | AD27: 564.7825 | AE27: 571.5228 | AF27: 578.6824 | AG27: 585.3811 | AH27: 590.8144 | AI27: 594.9186 | AJ27: 596.8563 | AK27: 598.3237 | AL27: 598.3461 | AM27: 598.6196 | AN27: 597.8501 | AO27: 596.2053 | AP27: 593.7207 | AQ27: 591.8626 | AR27: 590.1028 | AS27: 588.6111 | AT27: 586.7992 | AU27: 586.5551 | AV27: 585.6738 | AW27: 585.102 | AX27: 584.7892 | AY27: 584.8026 | AZ27: 587.9612 | BC27: 564.7825 | BD27: 584.7892 | BE27: 20.0067 | BF27: 0.174205257
A28: Population aged 16-64 | B28: Thousands | C28: 4 | D28: 22 | E28: 1620.102 | F28: 1613.995 | G28: 1609.908 | H28: 1603.921 | I28: 1600.943 | J28: 1598.05 | K28: 1592.964 | L28: 1597.125 | M28: 1599.002 | N28: 1605.57 | O28: 1612.525 | P28: 1624.974 | Q28: 1642.376 | R28: 1656.824 | S28: 1671.659 | T28: 1690.856 | U28: 1706.399 | V28: 1721.511 | W28: 1733.076 | X28: 1745.413 | Y28: 1758.808 | Z28: 1755.861 | AA28: 1753.575 | AB28: 1755.904 | AC28: 1766.57 | AD28: 1779.546 | AE28: 1782.509 | AF28: 1784.251 | AG28: 1786.199 | AH28: 1788.332 | AI28: 1789.61 | AJ28: 1791.207 | AK28: 1792.899 | AL28: 1795.405 | AM28: 1796.867 | AN28: 1797.765 | AO28: 1797.784 | AP28: 1798.211 | AQ28: 1796.561 | AR28: 1793.967 | AS28: 1791.807 | AT28: 1789.494 | AU28: 1786.406 | AV28: 1783.417 | AW28: 1781.521 | AX28: 1778.569 | AY28: 1776.614 | AZ28: 1776.448 | BC28: 1779.546 | BD28: 1778.569 | BE28: -0.977 | BF28: -0.002745798298
A29: Population aged 65+ | B29: Thousands | C29: 6 | D29: 23 | E29: 382.5068 | F29: 386.747 | G29: 385.3622 | H29: 383.2019 | I29: 382.1646 | J29: 380.2325 | K29: 378.3799 | L29: 376.8601 | M29: 373.7418 | N29: 373.0146 | O29: 373.2613 | P29: 372.6706 | Q29: 373.2801 | R29: 373.5236 | S29: 374.169 | T29: 373.738 | U29: 374.4919 | V29: 378.0625 | W29: 382.407 | X29: 387.5413 | Y29: 392.3736 | Z29: 406.1214 | AA29: 416.2672 | AB29: 424.9082 | AC29: 431.2251 | AD29: 436.7174 | AE29: 441.459 | AF29: 447.0605 | AG29: 452.4396 | AH29: 457.4127 | AI29: 463.2495 | AJ29: 470.4977 | AK29: 478.0956 | AL29: 486.3072 | AM29: 494.8533 | AN29: 504.4854 | AO29: 515.0866 | AP29: 525.5338 | AQ29: 536.8876 | AR29: 548.478 | AS29: 559.0754 | AT29: 569.9475 | AU29: 579.6663 | AV29: 589.6814 | AW29: 598.2799 | AX29: 607.4715 | AY29: 615.3345 | AZ29: 618.1432 | BC29: 436.7174 | BD29: 607.4715 | BE29: 170.7541 | BF29: 1.663784038
A30: Population 15-74 | B30: Thousands | C30: 7 | D30: 24 | E30: 1870.444 | F30: 1863.108 | G30: 1861.112 | H30: 1858.022 | I30: 1850.568 | J30: 1841.674 | K30: 1832.392 | L30: 1833.492 | M30: 1831.393 | N30: 1838.429 | O30: 1845.099 | P30: 1856.794 | Q30: 1876.316 | R30: 1890.726 | S30: 1906.206 | T30: 1925.456 | U30: 1940.607 | V30: 1957.911 | W30: 1973.093 | X30: 1988.103 | Y30: 2004.841 | Z30: 2013.348 | AA30: 2017.437 | AB30: 2024.865 | AC30: 2039.033 | AD30: 2055.418 | AE30: 2057.249 | AF30: 2057.983 | AG30: 2057.932 | AH30: 2058.767 | AI30: 2062.664 | AJ30: 2060.198 | AK30: 2063.047 | AL30: 2068.482 | AM30: 2076.947 | AN30: 2085.635 | AO30: 2096.623 | AP30: 2107.709 | AQ30: 2120.403 | AR30: 2131.714 | AS30: 2144.45 | AT30: 2153.733 | AU30: 2159.706 | AV30: 2160.826 | AW30: 2159.445 | AX30: 2156.153 | AY30: 2150.636 | AZ30: 2145.781 | BC30: 2055.418 | BD30: 2156.153 | BE30: 100.735 | BF30: 0.2395182963
A32: Employees in employment by GMCA sectors
A33: Total primary industries and utilities | B33: Thousands | D33: 27 | E33: =SUM(E34:E36) -> 15.47704547 | F33: =SUM(F34:F36) -> 12.88695565 | G33: 10.19154365 | H33: 9.788518079 | I33: 9.508842119 | J33: 9.615841904 | K33: 9.921690922 | L33: 9.168053333 | M33: 9.861417819 | N33: 10.22849321 | O33: 12.15657713 | P33: 8.496091944 | Q33: 7.724038694 | R33: 8.031820298 | S33: 7.328305818 | T33: 8.437919215 | U33: =SUM(U34:U36) -> 8.382229862 | V33: =SUM(V34:V36) -> 9.069800156 | W33: 13.20451109 | X33: 15.28214801 | Y33: 14.8338571 | Z33: 14.78159852 | AA33: 16.57031897 | AB33: 14.40951646 | AC33: 15.87922729 | AD33: 17.71207037 | AE33: 18.08637963 | AF33: 18.13002719 | AG33: 17.91118512 | AH33: 17.73452082 | AI33: 17.6039941 | AJ33: 17.50085867 | AK33: 17.38200669 | AL33: 17.24137818 | AM33: 17.08534365 | AN33: 16.90860295 | AO33: 16.72569912 | AP33: 16.50797367 | AQ33: 16.32717575 | AR33: 16.14870538 | AS33: 15.9615795 | AT33: 15.76993471 | AU33: 15.58049673 | AV33: 15.39263141 | AW33: 15.20639501 | AX33: 15.02170697 | AY33: =SUM(AY34:AY36) -> 14.83776818 | AZ33: 14.6556736 | BC33: =IF($BD$4>$BD$5,"Invalid dates",IFERROR(HLOOKUP(BC$7,$E$7:$AZ$804,$D33,FALSE),"-")) -> 17.71207037 | BD33: 15.02170697 | BE33: =IFERROR(BD33-BC33,"-") -> -2.690363393 | BF33: =IFERROR(((BD33/BC33)^(1/($BD$7-$BC$7))-1)*100,"-") -> -0.820366785
A34: Agriculture, forestry and fishing | B34: Thousands | C34: 226 | D34: 28 | E34: =IF(E$8="","",IF(ISNA(INDIRECT("'"&reg&"'!"&E$8&$C34))=TRUE,"",INDIRECT("'"&reg&"'!"&E$8&$C34))) -> 2.37055963 | F34: 2.35524993 | G34: 2.392981348 | H34: 2.233196615 | I34: 2.193541778 | J34: 2.245602844 | K34: 2.306766201 | L34: 2.277032041 | M34: 2.099615894 | N34: 1.877938727 | O34: 1.683949148 | P34: 1.58869489 | Q34: 1.830294524 | R34: 1.789245359 | S34: 1.713362906 | T34: 2.331246223 | U34: 2.693190724 | V34: 2.92646866 | W34: 2.774880804 | X34: 3.02602863 | Y34: 2.929352104 | Z34: 2.694798453 | AA34: 2.707543675 | AB34: 2.975223809 | AC34: 2.925376488 | AD34: 2.961107779 | AE34: 2.97595734 | AF34: 2.93152978 | AG34: 2.901837137 | AH34: 2.879052719 | AI34: 2.863020976 | AJ34: 2.853876163 | AK34: 2.843042663 | AL34: 2.828315354 | AM34: 2.812680467 | AN34: 2.793543663 | AO34: 2.774407229 | AP34: 2.75775424 | AQ34: 2.742298514 | AR34: 2.728558691 | AS34: 2.709567193 | AT34: 2.686187513 | AU34: 2.662332093 | AV34: 2.638103356 | AW34: 2.613473909 | AX34: 2.588389978 | AY34: =IF(AY$8="","",IF(ISNA(INDIRECT("'"&reg&"'!"&AY$8&$C34))=TRUE,"",INDIRECT("'"&reg&"'!"&AY$8&$C34))) -> 2.563012226 | AZ34: 2.537372421 | BC34: 2.961107779 | BD34: 2.588389978 | BE34: =IFERROR(BD34-BC34,"-") -> -0.3727178009 | BF34: =IFERROR(((BD34/BC34)^(1/($BD$7-$BC$7))-1)*100,"-") -> -0.6703798393
A35: Mining and quarrying | B35: Thousands | C35: 227 | D35: 29 | E35: 1.850641859 | F35: 1.193208074 | G35: 0.2160823126 | H35: 0.2391912061 | I35: 0.2839783161 | J35: 0.2634570571 | K35: 0.1407431729 | L35: 0.130322249 | M35: 0.1410889047 | N35: 0.2078075077 | O35: 0.1904047748 | P35: 0.2104954285 | Q35: 0.1315753299 | R35: 0.1985685893 | S35: 0.1535730795 | T35: 0.2150411921 | U35: 0.2343851573 | V35: 0.1677951914 | W35: 0.1678097835 | X35: 0.1479492588 | Y35: 0.1609714193 | Z35: 0.1736219786 | AA35: 0.16057002 | AB35: 0.2477806729 | AC35: 0.255968988 | AD35: 0.1813098481 | AE35: 0.1681689828 | AF35: 0.1723699626 | AG35: 0.1716253215 | AH35: 0.1654095725 | AI35: 0.1573504574 | AJ35: 0.1497204853 | AK35: 0.1422300404 | AL35: 0.1349517512 | AM35: 0.1293693076 | AN35: 0.1238819464 | AO35: 0.1185762411 | AP35: 0.1134839202 | AQ35: 0.1086044237 | AR35: 0.1039389041 | AS35: 0.0994045144 | AT35: 0.09506846095 | AU35: 0.09093254189 | AV35: 0.08698142594 | AW35: 0.08320215644 | AX35: 0.0795897061 | AY35: 0.07613633165 | AZ35: 0.07283570068 | BC35: 0.1813098481 | BD35: 0.0795897061 | BE35: -0.101720142 | BF35: -4.033031666
A36: Utilities | B36: Thousands | C36: 228 | D36: 30 | E36: 11.25584398 | F36: 9.338497642 | G36: 7.58247999 | H36: 7.316130258 | I36: 7.031322025 | J36: 7.106782003 | K36: 7.474181549 | L36: 6.760699044 | M36: 7.62071302 | N36: 8.142746975 | O36: 10.28222321 | P36: 6.696901626 | Q36: 5.76216884 | R36: 6.044006349 | S36: 5.461369833 | T36: 5.8916318 | U36: 5.45465398 | V36: 5.975536305 | W36: 10.2618205 | X36: 12.10817012 | Y36: 11.74353358 | Z36: 11.91317809 | AA36: 13.70220527 | AB36: 11.18651198 | AC36: 12.69788181 | AD36: 14.56965274 | AE36: 14.9422533 | AF36: 15.02612745 | AG36: 14.83772266 | AH36: 14.69005853 | AI36: 14.58362266 | AJ36: 14.49726202 | AK36: 14.39673399 | AL36: 14.27811108 | AM36: 14.14329387 | AN36: 13.99117734 | AO36: 13.83271565 | AP36: 13.63673551 | AQ36: 13.47627281 | AR36: 13.31620778 | AS36: 13.1526078 | AT36: 12.98867873 | AU36: 12.82723209 | AV36: 12.66754662 | AW36: 12.50971894 | AX36: 12.35372729 | AY36: 12.19861962 | AZ36: 12.04546548 | BC36: 14.56965274 | BD36: 12.35372729 | BE36: -2.21592545 | BF36: -0.8215217322
A37: Construction | B37: Thousands | C37: 229 | D37: 31 | E37: 84.45205719 | F37: 81.14332999 | G37: 80.0637478 | H37: 73.6137128 | I37: 68.14919148 | J37: 69.70029889 | K37: 66.84415839 | L37: 74.34685637 | M37: 71.39423586 | N37: 63.53913884 | O37: 73.6564806 | P37: 75.77556661 | Q37: 79.31601698 | R37: 88.77246131 | S37: 89.50394798 | T37: 89.07816229 | U37: 93.92111556 | V37: 96.24678049 | W37: 86.27609613 | X37: 77.51816051 | Y37: 72.88737477 | Z37: 73.51708522 | AA37: 72.01675516 | AB37: 70.29944859 | AC37: 69.67241433 | AD37: 70.6999491 | AE37: 72.15973659 | AF37: 73.38461522 | AG37: 74.2819158 | AH37: 75.72447946 | AI37: 77.11280549 | AJ37: 78.32489184 | AK37: 79.37665942 | AL37: 80.19453208 | AM37: 80.8798227 | AN37: 81.45420499 | AO37: 81.97563704 | AP37: 82.4808438 | AQ37: 82.97546009 | AR37: 83.46196587 | AS37: 83.93859645 | AT37: 84.39971595 | AU37: 84.86708256 | AV37: 85.33594165 | AW37: 85.80226154 | AX37: 86.27153375 | AY37: 86.74268178 | AZ37: 87.21803176 | BC37: 70.6999491 | BD37: 86.27153375 | BE37: 15.57158464 | BF37: 1.000243518
A38: Total manufacturing | B38: Thousands | D38: 32 | E38: =SUM(E39:E42) -> 206.7267055 | F38: =SUM(F39:F42) -> 195.9687293 | G38: 189.8970511 | H38: 192.0046313 | I38: 192.3854942 | J38: 194.2080201 | K38: 192.3099034 | L38: 181.6889638 | M38: 176.7357646 | N38: 177.5217847 | O38: 161.0106403 | P38: 148.8300562 | Q38: 140.7550402 | R38: 136.5006891 | S38: 122.3492116 | T38: 123.4008157 | U38: 121.5435602 | V38: 113.0100767 | W38: 113.2910554 | X38: 104.180199 | Y38: 110.1645033 | Z38: 99.11451249 | AA38: 106.2455859 | AB38: 105.8724178 | AC38: 103.7007847 | AD38: 108.8522929 | AE38: 111.2716067 | AF38: 112.6672199 | AG38: 111.3430552 | AH38: 110.2023497 | AI38: 109.4424498 | AJ38: 108.6814161 | AK38: 107.7645741 | AL38: 106.6493499 | AM38: 105.4202758 | AN38: 104.0458485 | AO38: 102.6305178 | AP38: 101.2239796 | AQ38: 99.83644335 | AR38: 98.53637648 | AS38: 97.25550778 | AT38: 95.98054828 | AU38: 94.7275596 | AV38: 93.49656529 | AW38: 92.28580588 | AX38: 91.11404219 | AY38: =SUM(AY39:AY42) -> 89.94688454 | AZ38: 88.80175105 | BC38: 108.8522929 | BD38: 91.11404219 | BE38: =IFERROR(BD38-BC38,"-") -> -17.73825069 | BF38: =IFERROR(((BD38/BC38)^(1/($BD$7-$BC$7))-1)*100,"-") -> -0.8854561378
A39: Advanced manufacturing | B39: Thousands | C39: 230 | D39: 33 | E39: 85.96774792 | F39: 82.93878285 | G39: 81.40443947 | H39: 80.16277622 | I39: 78.50838572 | J39: 82.65468868 | K39: 79.34330474 | L39: 76.82785087 | M39: 73.02251486 | N39: 74.47483746 | O39: 69.40040903 | P39: 60.75762074 | Q39: 58.43530113 | R39: 56.34431578 | S39: 50.54091561 | T39: 49.2756743 | U39: 51.77239176 | V39: 47.95814161 | W39: 48.12673166 | X39: 44.20667811 | Y39: 49.06482355 | Z39: 40.3706805 | AA39: 46.29336118 | AB39: 44.18040445 | AC39: 45.61121112 | AD39: 47.13666602 | AE39: 48.77583593 | AF39: 49.35758817 | AG39: 49.00513963 | AH39: 48.74995732 | AI39: 48.68150494 | AJ39: 48.59932852 | AK39: 48.42975973 | AL39: 48.17350629 | AM39: 47.85922056 | AN39: 47.48539352 | AO39: 47.09270256 | AP39: 46.702901 | AQ39: 46.3198832 | AR39: 45.98671028 | AS39: 45.66875552 | AT39: 45.353532 | AU39: 45.04530206 | AV39: 44.74570303 | AW39: 44.45306943 | AX39: 44.16737929 | AY39: 43.88832314 | AZ39: 43.61635654 | BC39: 47.13666602 | BD39: 44.16737929 | BE39: -2.969286733 | BF39: -0.3247947893
A40: Food and drink manufacturing | B40: Thousands | C40: 231 | D40: 34 | E40: 24.95617937 | F40: 23.55935792 | G40: 22.87435835 | H40: 22.50873293 | I40: 21.88332585 | J40: 21.97536822 | K40: 22.50509509 | L40: 22.99929443 | M40: 24.4321451 | N40: 26.11444074 | O40: 24.70096897 | P40: 24.20864987 | Q40: 23.04252887 | R40: 22.87159986 | S40: 20.55893229 | T40: 21.21050848 | U40: 19.38495603 | V40: 18.31201655 | W40: 17.96228008 | X40: 18.25129821 | Y40: 18.54261761 | Z40: 17.02251785 | AA40: 17.95430359 | AB40: 17.5722572 | AC40: 19.22622623 | AD40: =IF(AD$8="","",IF(ISNA(INDIRECT("'"&reg&"'!"&AD$8&$C40))=TRUE,"",INDIRECT("'"&reg&"'!"&AD$8&$C40))) -> 20.24565527 | AE40: 20.34783233 | AF40: 20.7215966 | AG40: 20.52948544 | AH40: 20.36086648 | AI40: 20.24937264 | AJ40: 20.13874149 | AK40: 20.00179365 | AL40: 19.82315745 | AM40: 19.61517677 | AN40: 19.37791284 | AO40: 19.12923294 | AP40: 18.87789028 | AQ40: 18.62605551 | AR40: 18.38272695 | AS40: 18.13548302 | AT40: =IF(AT$8="","",IF(ISNA(INDIRECT("'"&reg&"'!"&AT$8&$C40))=TRUE,"",INDIRECT("'"&reg&"'!"&AT$8&$C40))) -> 17.88567888 | AU40: 17.63688548 | AV40: 17.38899086 | AW40: 17.14199088 | AX40: 16.91427681 | AY40: 16.67048433 | AZ40: 16.4287563 | BC40: 20.24565527 | BD40: 16.91427681 | BE40: -3.331378462 | BF40: -0.894882721
A41: Textile manufacturing | B41: Thousands | C41: 232 | D41: 35 | E41: =IF(E$8="","",IF(ISNA(INDIRECT("'"&reg&"'!"&E$8&$C41))=TRUE,"",INDIRECT("'"&reg&"'!"&E$8&$C41))) -> 28.91582738 | F41: 27.20546622 | G41: 26.29301176 | H41: 27.27058459 | I41: 28.03888045 | J41: 26.94242998 | K41: 26.47899921 | L41: 23.48216783 | M41: 21.36534867 | N41: 21.10188555 | O41: 17.07810764 | P41: 14.90759157 | Q41: 12.52763444 | R41: 12.00328932 | S41: 10.53432125 | T41: 11.07111815 | U41: =IF(U$8="","",IF(ISNA(INDIRECT("'"&reg&"'!"&U$8&$C41))=TRUE,"",INDIRECT("'"&reg&"'!"&U$8&$C41))) -> 9.723302349 | V41: 8.483070926 | W41: 8.170569783 | X41: 7.836903611 | Y41: 8.065536193 | Z41: 7.593898171 | AA41: 11.37336998 | AB41: 8.500942818 | AC41: 8.05709222 | AD41: 7.502416392 | AE41: 7.217998727 | AF41: 7.283885133 | AG41: 7.130816931 | AH41: 6.988926706 | AI41: 6.870220596 | AJ41: 6.753624444 | AK41: 6.63029273 | AL41: 6.495607504 | AM41: 6.35808036 | AN41: 6.213901624 | AO41: 6.06857524 | AP41: 5.925294629 | AQ41: 5.785372942 | AR41: 5.650800545 | AS41: 5.518048411 | AT41: 5.386788884 | AU41: 5.258484376 | AV41: 5.132945625 | AW41: 5.009955263 | AX41: 4.88957217 | AY41: 4.771885751 | AZ41: 4.656818177 | BC41: 7.502416392 | BD41: 4.88957217 | BE41: -2.612844223 | BF41: -2.117853454
A42: Other manufacturing | B42: Thousands | C42: 233 | D42: 36 | E42: 66.88695081 | F42: 62.26512233 | G42: 59.32524152 | H42: 62.06253754 | I42: 63.95490217 | J42: 62.63553321 | K42: 63.98250433 | L42: 58.37965068 | M42: 57.91575594 | N42: 55.83062094 | O42: 49.83115467 | P42: 48.95619402 | Q42: 46.74957576 | R42: 45.28148412 | S42: 40.7150424 | T42: 41.84351476 | U42: 40.66291002 | V42: 38.2568476 | W42: 39.03147385 | X42: 33.88531906 | Y42: 34.49152593 | Z42: 34.12741597 | AA42: 30.62455112 | AB42: 35.61881334 | AC42: 30.80625516 | AD42: 33.96755519 | AE42: 34.92993974 | AF42: 35.30415005 | AG42: 34.6776132 | AH42: 34.10259918 | AI42: 33.64135166 | AJ42: 33.18972163 | AK42: 32.70272802 | AL42: 32.15707869 | AM42: 31.58779814 | AN42: 30.9686405 | AO42: 30.34000709 | AP42: 29.71789371 | AQ42: 29.10513171 | AR42: 28.51613871 | AS42: 27.93322084 | AT42: 27.35454851 | AU42: 26.78688769 | AV42: 26.22892577 | AW42: 25.6807903 | AX42: 25.14281392 | AY42: 24.61619132 | AZ42: 24.09982003 | BC42: 33.96755519 | BD42: 25.14281392 | BE42: -8.824741272 | BF42: -1.49291231
A43: Logistics (transport and storage) | B43: Thousands | C43: 234 | D43: 37 | E43: 57.06623835 | F43: 56.01364992 | G43: 55.43174483 | H43: 55.77742273 | I43: 55.97899053 | J43: 56.8415649 | K43: 54.24110591 | L43: 52.6139279 | M43: 58.55962904 | N43: 59.83237641 | O43: 61.13167784 | P43: 66.18156339 | Q43: 64.91208237 | R43: 63.62013926 | S43: 64.01540792 | T43: 63.52043244 | U43: 63.99270864 | V43: 67.04366806 | W43: 59.92692759 | X43: 60.43505624 | Y43: 57.59875303 | Z43: 60.65290574 | AA43: 63.82776097 | AB43: 60.63532023 | AC43: 63.65923754 | AD43: 70.19766952 | AE43: 75.86452776 | AF43: 76.60854567 | AG43: 76.37377442 | AH43: 76.46896084 | AI43: 76.82795689 | AJ43: 77.21571439 | AK43: 77.51621985 | AL43: 77.67976246 | AM43: 77.73514907 | AN43: 77.6703817 | AO43: 77.54643148 | AP43: 77.40295445 | AQ43: 77.24841279 | AR43: 77.08030638 | AS43: 76.86826086 | AT43: 76.63694667 | AU43: 76.40440311 | AV43: 76.16720409 | AW43: 75.92471835 | AX43: 75.68353683 | AY43: 75.46944321 | AZ43: 75.22472507 | BC43: 70.19766952 | BD43: 75.68353683 | BE43: 5.485867308 | BF43: 0.3769363493
A44: Total wholesale and retail | B44: Thousands | D44: 38 | E44: =SUM(E45:E47) -> 192.1637071 | F44: =SUM(F45:F47) -> 194.0390957 | G44: 196.9673374 | H44: 195.9064048 | I44: 192.1057166 | J44: 199.1826168 | K44: 202.767382 | L44: 200.2798118 | M44: 203.0169159 | N44: 205.4386564 | O44: 198.302134 | P44: 196.9169537 | Q44: 200.7184955 | R44: 202.6978324 | S44: 207.2379392 | T44: 197.3874024 | U44: 199.6521781 | V44: 193.3867242 | W44: 188.2452213 | X44: 185.7665456 | Y44: 182.161164 | Z44: 188.3268494 | AA44: 189.3672444 | AB44: 181.2202709 | AC44: 192.8436583 | AD44: 191.4075239 | AE44: 190.5963593 | AF44: 194.015545 | AG44: 194.6102673 | AH44: 196.274644 | AI44: 198.0826653 | AJ44: 200.1816611 | AK44: 202.1201449 | AL44: 203.8079453 | AM44: 205.4246143 | AN44: 206.6461752 | AO44: 207.6948286 | AP44: 208.742497 | AQ44: 209.748892 | AR44: 210.3096299 | AS44: 210.410702 | AT44: 210.4916413 | AU44: 210.5693392 | AV44: 210.6370035 | AW44: 210.7062028 | AX44: 210.7932262 | AY44: =SUM(AY45:AY47) -> 210.8798342 | AZ44: 210.9964473 | BC44: 191.4075239 | BD44: 210.7932262 | BE44: =IFERROR(BD44-BC44,"-") -> 19.38570228 | BF44: =IFERROR(((BD44/BC44)^(1/($BD$7-$BC$7))-1)*100,"-") -> 0.4835297213
A45: Motor trades | B45: Thousands | C45: 235 | D45: 39 | E45: 19.74839697 | F45: 20.10803823 | G45: 20.5844535 | H45: 20.32857866 | I45: 19.80978277 | J45: 20.83293244 | K45: 21.3553018 | L45: 21.90293783 | M45: 21.97305447 | N45: 22.01402939 | O45: 21.21898501 | P45: 20.74162806 | Q45: 19.68384915 | R45: 20.00560785 | S45: 20.72482871 | T45: 19.55584925 | U45: 20.07805761 | V45: 18.56860378 | W45: 17.53213876 | X45: 17.90180944 | Y45: 15.21265289 | Z45: 17.58535754 | AA45: 15.58276817 | AB45: 16.83312822 | AC45: 14.00366677 | AD45: 14.33665663 | AE45: 14.16196662 | AF45: 14.33133208 | AG45: 14.28586343 | AH45: 14.31942203 | AI45: 14.36126641 | AJ45: 14.42276139 | AK45: 14.47178059 | AL45: 14.50249403 | AM45: 14.53383125 | AN45: 14.53718518 | AO45: 14.52711901 | AP45: 14.51689552 | AQ45: 14.50170657 | AR45: 14.45658817 | AS45: 14.38075084 | AT45: 14.30415179 | AU45: 14.22670993 | AV45: 14.14888082 | AW45: 14.07200009 | AX45: 13.99539026 | AY45: 13.91943753 | AZ45: 13.8484669 | BC45: 14.33665663 | BD45: 13.99539026 | BE45: -0.3412663712 | BF45: -0.1203857276
A46: Wholesale | B46: Thousands | C46: 236 | D46: 40 | E46: 61.14372776 | F46: 61.05200691 | G46: 61.30807831 | H46: 61.38181082 | I46: 60.61856956 | J46: 62.05357756 | K46: 65.58073742 | L46: 66.10154473 | M46: 65.44180446 | N46: 66.1410253 | O46: 64.41707048 | P46: 62.58426674 | Q46: 61.99718861 | R46: 61.64824261 | S46: 63.61436763 | T46: 58.85126922 | U46: 60.30221887 | V46: 55.27560914 | W46: 52.76379767 | X46: 50.80871535 | Y46: 54.87005372 | Z46: 55.61564644 | AA46: 56.00636818 | AB46: 48.99336818 | AC46: 55.04246564 | AD46: 48.24165166 | AE46: 48.00133366 | AF46: 48.91940405 | AG46: 49.11327129 | AH46: 49.58407732 | AI46: 50.08974708 | AJ46: 50.66771554 | AK46: 51.20784222 | AL46: 51.68777987 | AM46: 52.1737431 | AN46: 52.56233327 | AO46: 52.90632073 | AP46: 53.25152899 | AQ46: 53.58188369 | AR46: 53.80116812 | AS46: 53.90791235 | AT46: 54.00990342 | AU46: 54.10929721 | AV46: 54.2063488 | AW46: 54.30687642 | AX46: 54.4091629 | AY46: 54.51349557 | AZ46: 54.6360844 | BC46: 48.24165166 | BD46: 54.4091629 | BE46: 6.167511243 | BF46: 0.6033618648
A47: Retail | B47: Thousands | C47: 237 | D47: 41 | E47: 111.2715824 | F47: 112.8790506 | G47: 115.0748056 | H47: 114.1960153 | I47: 111.6773643 | J47: 116.2961068 | K47: 115.8313428 | L47: 112.2753293 | M47: 115.6020569 | N47: 117.2836017 | O47: 112.6660785 | P47: 113.5910589 | Q47: 119.0374578 | R47: 121.0439819 | S47: 122.8987429 | T47: 118.9802839 | U47: 119.2719016 | V47: 119.5425113 | W47: 117.9492849 | X47: 117.0560208 | Y47: 112.0784574 | Z47: 115.1258454 | AA47: 117.7781081 | AB47: 115.3937745 | AC47: 123.7975259 | AD47: 128.8292156 | AE47: 128.4330591 | AF47: 130.7648088 | AG47: 131.2111326 | AH47: 132.3711447 | AI47: 133.6316518 | AJ47: 135.0911842 | AK47: 136.4405221 | AL47: 137.6176714 | AM47: 138.71704 | AN47: 139.5466568 | AO47: 140.2613889 | AP47: 140.9740725 | AQ47: 141.6653017 | AR47: 142.0518736 | AS47: 142.1220389 | AT47: 142.1775861 | AU47: 142.233332 | AV47: 142.2817739 | AW47: 142.3273263 | AX47: 142.388673 | AY47: 142.4469011 | AZ47: 142.511896 | BC47: 128.8292156 | BD47: 142.388673 | BE47: 13.55945741 | BF47: 0.501618088
A48: Personal services | B48: Thousands | C48: 238 | D48: 42 | E48: 19.58793501 | F48: 19.77806937 | G48: 20.36376671 | H48: 20.88967601 | I48: 21.72646256 | J48: 20.16429508 | K48: 21.66336739 | L48: 20.29487637 | M48: 24.6690371 | N48: 27.52382581 | O48: 25.79710155 | P48: 27.13469893 | Q48: 29.53076387 | R48: 29.76104059 | S48: 27.19742283 | T48: 24.9030745 | U48: 24.94711192 | V48: 27.34211708 | W48: 23.88232557 | X48: 22.75602597 | Y48: 19.4736606 | Z48: 17.93026525 | AA48: 18.78671546 | AB48: 20.73009894 | AC48: 21.69969042 | AD48: 20.60868133 | AE48: 20.3586516 | AF48: 20.39442582 | AG48: 20.40338205 | AH48: 20.46821736 | AI48: 20.59089649 | AJ48: 20.69904106 | AK48: 20.80516756 | AL48: 20.90047975 | AM48: 20.98682026 | AN48: 21.0487541 | AO48: 21.09407236 | AP48: 21.13364842 | AQ48: 21.17010347 | AR48: 21.20209524 | AS48: 21.22501671 | AT48: 21.2445449 | AU48: 21.26364234 | AV48: 21.28214559 | AW48: 21.30090823 | AX48: 21.3182781 | AY48: 21.33539545 | AZ48: 21.35236159 | BC48: 20.60868133 | BD48: 21.3182781 | BE48: 0.7095967749 | BF48: 0.1694054338
A49: Total business, financial and professional services | B49: Thousands | D49: 43 | E49: =SUM(E50:E53) -> 155.2333369 | F49: =SUM(F50:F53) -> 155.5062426 | G49: 156.7283078 | H49: 159.3571254 | I49: 163.620342 | J49: 168.8662346 | K49: 173.2790099 | L49: 170.2852759 | M49: 182.0749348 | N49: 186.8884925 | O49: 186.2488107 | P49: 192.2754833 | Q49: 213.6752923 | R49: 220.939006 | S49: 217.0307415 | T49: 217.1393111 | U49: 226.4169687 | V49: 236.3674134 | W49: 232.8580085 | X49: 240.8609948 | Y49: 242.0031343 | Z49: 245.9795213 | AA49: 261.153599 | AB49: 263.5029823 | AC49: 267.5892682 | AD49: 276.2640085 | AE49: 289.2294353 | AF49: 294.4885219 | AG49: 297.2438969 | AH49: 300.790599 | AI49: 304.8648001 | AJ49: 309.3115825 | AK49: 313.4441807 | AL49: 317.004062 | AM49: 320.0111276 | AN49: 322.4109144 | AO49: 324.6719478 | AP49: 326.9958259 | AQ49: 329.3163213 | AR49: 332.1333442 | AS49: 334.8779425 | AT49: 337.3827915 | AU49: 339.8652324 | AV49: 342.3360349 | AW49: 344.7717608 | AX49: 347.1689907 | AY49: =SUM(AY50:AY53) -> 349.5367885 | AZ49: 351.8636388 | BC49: 276.2640085 | BD49: 347.1689907 | BE49: =IFERROR(BD49-BC49,"-") -> 70.90498224 | BF49: =IFERROR(((BD49/BC49)^(1/($BD$7-$BC$7))-1)*100,"-") -> 1.148822383
A50: Business services | B50: Thousands | C50: 239 | D50: 44 | E50: 53.92958314 | F50: 54.75686764 | G50: 56.17659944 | H50: 56.94512099 | I50: 59.2652828 | J50: 61.08667724 | K50: 64.54129884 | L50: 63.12011236 | M50: 64.12235322 | N50: 63.40458561 | O50: 61.56204336 | P50: 66.21089374 | Q50: 71.49096288 | R50: 70.76773493 | S50: 69.53799766 | T50: 66.16475424 | U50: 68.09572188 | V50: 74.98134157 | W50: 79.69913746 | X50: 82.04914545 | Y50: 83.04864379 | Z50: 79.11268961 | AA50: 79.72156513 | AB50: 89.36822603 | AC50: 92.61431248 | AD50: 96.84646171 | AE50: 97.20035865 | AF50: 99.57187295 | AG50: 100.8337366 | AH50: 102.3910985 | AI50: 104.0114539 | AJ50: 105.7643533 | AK50: 107.49928 | AL50: 109.0263093 | AM50: 110.2919975 | AN50: 111.2885989 | AO50: 112.2459805 | AP50: 113.2597542 | AQ50: 114.2781535 | AR50: 115.5501968 | AS50: 116.7457684 | AT50: 117.8003245 | AU50: 118.84445 | AV50: 119.8823575 | AW50: 120.9059444 | AX50: 121.9126196 | AY50: 122.9080122 | AZ50: 123.8877403 | BC50: 96.84646171 | BD50: 121.9126196 | BE50: 25.0661579 | BF50: 1.157536702
A51: Employment activities | B51: Thousands | C51: 240 | D51: 45 | E51: 20.58976782 | F51: 20.88783895 | G51: 21.39411991 | H51: 22.68319879 | I51: 24.37493456 | J51: 25.74274609 | K51: 27.6654968 | L51: 26.59546671 | M51: 31.86538788 | N51: 32.51862824 | O51: 32.20189876 | P51: 29.43614515 | Q51: 38.15490079 | R51: 39.87846459 | S51: 35.84252143 | T51: 36.497021 | U51: 39.15271404 | V51: 38.86627561 | W51: 30.98973207 | X51: 32.7428624 | Y51: 29.42056816 | Z51: 37.36004488 | AA51: 38.49006293 | AB51: 34.63496324 | AC51: 38.05664873 | AD51: 36.8601292 | AE51: 38.88467949 | AF51: 39.78812382 | AG51: 40.27732482 | AH51: 40.88946506 | AI51: 41.51463779 | AJ51: 42.20087321 | AK51: 42.87913327 | AL51: 43.46368536 | AM51: 43.9291133 | AN51: 44.27676965 | AO51: 44.61042157 | AP51: 44.9708565 | AQ51: 45.3332592 | AR51: 45.81319029 | AS51: 46.2599156 | AT51: 46.64156588 | AU51: 47.01737066 | AV51: 47.39004098 | AW51: 47.75453525 | AX51: 48.11156293 | AY51: 48.46440067 | AZ51: 48.80949725 | BC51: 36.8601292 | BD51: 48.11156293 | BE51: 11.25143373 | BF51: 1.340870531
A52: Financial services | B52: Thousands | C52: 241 | D52: 46 | E52: 41.05991607 | F52: 39.07774642 | G52: 36.99283046 | H52: 38.19641566 | I52: 38.0325848 | J52: 37.95493218 | K52: 35.68558344 | L52: 37.34775926 | M52: 40.71787146 | N52: 41.983345 | O52: 41.14462508 | P52: 44.09832805 | Q52: 42.51472804 | R52: 44.73394244 | S52: 45.16561449 | T52: 45.41137463 | U52: 44.78193967 | V52: 48.01115917 | W52: 46.14591044 | X52: 45.08754069 | Y52: 46.57948913 | Z52: 45.72260294 | AA52: 45.88502207 | AB52: 40.55752259 | AC52: 38.98308791 | AD52: 40.74175454 | AE52: 42.66421013 | AF52: 42.67922492 | AG52: 42.11384797 | AH52: 41.63021132 | AI52: 41.32263615 | AJ52: 41.36231641 | AK52: 41.41958372 | AL52: 41.41010407 | AM52: 41.3768939 | AN52: 41.28297835 | AO52: 41.17219675 | AP52: 41.06324188 | AQ52: 40.95548698 | AR52: 40.83662657 | AS52: 40.70726145 | AT52: 40.57537139 | AU52: 40.45067429 | AV52: 40.32811634 | AW52: 40.20737239 | AX52: 40.08849244 | AY52: 39.97064463 | AZ52: 39.85492376 | BC52: 40.74175454 | BD52: 40.08849244 | BE52: -0.6532621 | BF52: -0.08078812421
A53: Professional services | B53: Thousands | C53: 242 | D53: 47 | E53: 39.65406989 | F53: 40.78378962 | G53: 42.16475802 | H53: 41.53238995 | I53: 41.94753987 | J53: 44.0818791 | K53: 45.38663083 | L53: 43.22193759 | M53: 45.36932226 | N53: 48.98193367 | O53: 51.34024351 | P53: 52.53011641 | Q53: 61.51470059 | R53: 65.55886403 | S53: 66.48460795 | T53: 69.06616126 | U53: 74.38659316 | V53: 74.50863703 | W53: 76.02322855 | X53: 80.98144621 | Y53: 82.95443316 | Z53: 83.78418384 | AA53: 97.05694889 | AB53: 98.94227042 | AC53: 97.93521906 | AD53: 101.815663 | AE53: 110.480187 | AF53: 112.4493002 | AG53: 114.0189875 | AH53: 115.8798242 | AI53: 118.0160723 | AJ53: 119.9840395 | AK53: 121.6461837 | AL53: 123.1039632 | AM53: 124.4131229 | AN53: 125.5625674 | AO53: 126.643349 | AP53: 127.7019732 | AQ53: 128.7494216 | AR53: 129.9333306 | AS53: 131.164997 | AT53: 132.3655297 | AU53: 133.5527375 | AV53: 134.73552 | AW53: 135.9039088 | AX53: 137.0563157 | AY53: 138.1937309 | AZ53: 139.3114775 | BC53: =IF($BD$4>$BD$5,"Invalid dates",IFERROR(HLOOKUP(BC$7,$E$7:$AZ$804,$D53,FALSE),"-")) -> 101.815663 | BD53: 137.0563157 | BE53: 35.2406527 | BF53: 1.497237726
A54: Total creative and digital industries | B54: Thousands | D54: 48 | E54: =SUM(E55:E56) -> 47.59699541 | F54: =SUM(F55:F56) -> 46.92700345 | G54: 47.29627894 | H54: 48.38708406 | I54: 49.7093408 | J54: 49.23818953 | K54: 51.54326747 | L54: 50.33669232 | M54: 52.67005534 | N54: 57.63744781 | O54: 59.46849238 | P54: 59.73554224 | Q54: 65.04273533 | R54: 64.95950178 | S54: 60.82590238 | T54: 65.42489836 | U54: 63.49236488 | V54: 57.74131145 | W54: 57.9386059 | X54: 49.06328362 | Y54: 58.50367715 | Z54: 56.87663481 | AA54: 56.5877014 | AB54: 60.50465483 | AC54: 69.66233781 | AD54: 70.47760281 | AE54: 71.4180991 | AF54: 72.83271772 | AG54: 73.61870568 | AH54: 74.63931447 | AI54: 75.83364913 | AJ54: 76.8114453 | AK54: 77.55273944 | AL54: 78.13881956 | AM54: 78.61508334 | AN54: 78.97362998 | AO54: 79.27669643 | AP54: 79.56249439 | AQ54: 79.84138298 | AR54: 80.14214314 | AS54: 80.41963383 | AT54: 80.67357903 | AU54: 80.95136494 | AV54: 81.21912258 | AW54: 81.49699202 | AX54: 81.77322213 | AY54: =SUM(AY55:AY56) -> 82.04854151 | AZ54: 82.32087733 | BC54: 70.47760281 | BD54: 81.77322213 | BE54: =IFERROR(BD54-BC54,"-") -> 11.29561932 | BF54: =IFERROR(((BD54/BC54)^(1/($BD$7-$BC$7))-1)*100,"-") -> 0.7460434575
A55: Creative industries | B55: Thousands | C55: 243 | D55: 49 | E55: 26.8046008 | F55: 26.34659711 | G55: 26.62203047 | H55: 27.16607984 | I55: 28.00093066 | J55: 29.38804431 | K55: 30.03101589 | L55: 28.18729436 | M55: 28.18720277 | N55: 29.43103996 | O55: 29.54337362 | P55: 29.29619125 | Q55: 30.87505366 | R55: 30.75900533 | S55: 29.59212368 | T55: 31.19378538 | U55: 31.37007727 | V55: 29.13578056 | W55: 29.00438878 | X55: 24.76243357 | Y55: 27.75162179 | Z55: 28.61790719 | AA55: 28.69627053 | AB55: 30.88649852 | AC55: 31.60898626 | AD55: 35.92212951 | AE55: 36.79532959 | AF55: 37.77166452 | AG55: 38.26096715 | AH55: 38.80384725 | AI55: 39.41210024 | AJ55: 39.92542115 | AK55: 40.32894257 | AL55: 40.65364951 | AM55: 40.92189809 | AN55: 41.12954744 | AO55: 41.30816072 | AP55: 41.4774198 | AQ55: 41.64150592 | AR55: 41.83234866 | AS55: 42.02231913 | AT55: 42.19995388 | AU55: 42.40176242 | AV55: 42.57900046 | AW55: 42.75469132 | AX55: 42.93049707 | AY55: 43.1073633 | AZ55: 43.28197464 | BC55: 35.92212951 | BD55: 42.93049707 | BE55: 7.008367567 | BF55: 0.8951271878
A56: Digital industries | B56: Thousands | C56: 244 | D56: 50 | E56: 20.79239461 | F56: 20.58040633 | G56: 20.67424847 | H56: 21.22100421 | I56: 21.70841014 | J56: 19.85014522 | K56: 21.51225159 | L56: 22.14939796 | M56: 24.48285257 | N56: 28.20640785 | O56: 29.92511876 | P56: 30.43935099 | Q56: 34.16768168 | R56: 34.20049645 | S56: 31.2337787 | T56: 34.23111298 | U56: 32.12228761 | V56: 28.60553089 | W56: 28.93421712 | X56: 24.30085005 | Y56: 30.75205536 | Z56: 28.25872762 | AA56: 27.89143088 | AB56: 29.61815632 | AC56: 38.05335155 | AD56: 34.5554733 | AE56: 34.62276951 | AF56: 35.06105319 | AG56: 35.35773853 | AH56: 35.83546722 | AI56: 36.42154889 | AJ56: 36.88602415 | AK56: 37.22379686 | AL56: 37.48517005 | AM56: 37.69318524 | AN56: 37.84408254 | AO56: 37.96853571 | AP56: 38.08507459 | AQ56: 38.19987706 | AR56: 38.30979448 | AS56: 38.3973147 | AT56: 38.47362514 | AU56: 38.54960253 | AV56: 38.64012212 | AW56: 38.7423007 | AX56: 38.84272506 | AY56: 38.94117821 | AZ56: 39.03890269 | BC56: 34.5554733 | BD56: 38.84272506 | BE56: 4.287251753 | BF56: 0.5864873797
A57: Total hospitality, tourism and sport | B57: Thousands | D57: 51 | E57: =SUM(E58:E59) -> 81.34500011 | F57: =SUM(F58:F59) -> 79.45123709 | G57: 77.64811452 | H57: 75.17072075 | I57: 78.16814151 | J57: 78.36485438 | K57: 85.71948288 | L57: 81.92816731 | M57: 87.48612466 | N57: 87.44640792 | O57: 90.43886278 | P57: 96.62817916 | Q57: 100.4764931 | R57: 92.25991085 | S57: 99.83844178 | T57: 94.60793372 | U57: 95.283224 | V57: 91.79937459 | W57: 96.8917157 | X57: 94.7291046 | Y57: 95.22134872 | Z57: 98.26652647 | AA57: 90.59993609 | AB57: 102.8456729 | AC57: 107.0255987 | AD57: 111.2673727 | AE57: 113.7710684 | AF57: 115.8408053 | AG57: 116.795961 | AH57: 118.361265 | AI57: 120.1673721 | AJ57: 121.7837744 | AK57: 123.2710085 | AL57: 124.6104099 | AM57: 125.8239653 | AN57: 126.8679021 | AO57: 127.8264542 | AP57: 128.754932 | AQ57: 129.6673501 | AR57: 130.5674716 | AS57: 131.3507603 | AT57: 131.9757643 | AU57: 132.5924187 | AV57: 133.1859329 | AW57: 133.7883498 | AX57: 134.3926307 | AY57: =SUM(AY58:AY59) -> 135.0011752 | AZ57: 135.6062386 | BC57: 111.2673727 | BD57: 134.3926307 | BE57: =IFERROR(BD57-BC57,"-") -> 23.12525796 | BF57: =IFERROR(((BD57/BC57)^(1/($BD$7-$BC$7))-1)*100,"-") -> 0.9486187702
A58: Sport | B58: Thousands | C58: 245 | D58: 52 | E58: 9.484716205 | F58: 9.590964056 | G58: 9.843096416 | H58: 9.150992842 | I58: 8.696892713 | J58: 9.09121612 | K58: 8.936337426 | L58: 8.30427911 | M58: 9.449169835 | N58: 9.517719122 | O58: 9.674250375 | P58: 9.68017247 | Q58: 11.13013152 | R58: 11.24488549 | S58: 11.60084253 | T58: 10.84880403 | U58: 11.24957037 | V58: 13.27871247 | W58: 18.70709039 | X58: 17.63999 | Y58: 14.50346453 | Z58: 15.16148734 | AA58: 14.58993336 | AB58: 19.27275902 | AC58: 18.67015131 | AD58: 17.3263973 | AE58: 18.23317141 | AF58: 18.49648421 | AG58: 18.73708718 | AH58: 19.03331019 | AI58: 19.38217567 | AJ58: 19.71946856 | AK58: 20.05919844 | AL58: 20.39322489 | AM58: 20.72366575 | AN58: 21.03450517 | AO58: 21.33326532 | AP58: 21.62780291 | AQ58: 21.92337856 | AR58: 22.22968175 | AS58: 22.53590644 | AT58: 22.84132723 | AU58: 23.15084387 | AV58: 23.46160888 | AW58: 23.7768295 | AX58: 24.09473208 | AY58: 24.41706365 | AZ58: 24.74156386 | BC58: 17.3263973 | BD58: 24.09473208 | BE58: 6.768334774 | BF58: 1.662478073
A59: Hospitality and tourism | B59: Thousands | C59: 246 | D59: 53 | E59: 71.8602839 | F59: 69.86027304 | G59: 67.8050181 | H59: 66.01972791 | I59: 69.47124879 | J59: 69.27363826 | K59: 76.78314545 | L59: 73.6238882 | M59: 78.03695483 | N59: 77.9286888 | O59: 80.76461241 | P59: 86.94800669 | Q59: 89.34636155 | R59: 81.01502535 | S59: 88.23759925 | T59: 83.75912969 | U59: 84.03365363 | V59: 78.52066213 | W59: 78.18462531 | X59: 77.08911461 | Y59: 80.71788418 | Z59: 83.10503913 | AA59: 76.01000273 | AB59: 83.57291393 | AC59: 88.35544734 | AD59: 93.94097543 | AE59: 95.53789695 | AF59: 97.3443211 | AG59: 98.05887384 | AH59: 99.32795484 | AI59: 100.7851964 | AJ59: 102.0643058 | AK59: 103.21181 | AL59: 104.217185 | AM59: 105.1002995 | AN59: 105.8333969 | AO59: 106.4931889 | AP59: 107.1271291 | AQ59: 107.7439716 | AR59: 108.3377898 | AS59: 108.8148539 | AT59: 109.1344371 | AU59: 109.4415749 | AV59: 109.724324 | AW59: 110.0115203 | AX59: 110.2978986 | AY59: 110.5841116 | AZ59: 110.8646748 | BC59: 93.94097543 | BD59: 110.2978986 | BE59: 16.35692319 | BF59: 0.8058204483
A60: Science and R&D | B60: Thousands | C60: 247 | D60: 54 | E60: 5.007168777 | F60: 5.403483843 | G60: 5.926546532 | H60: 5.882489156 | I60: 6.071291306 | J60: 7.112632852 | K60: 8.452847099 | L60: 6.363153651 | M60: 7.137113588 | N60: 7.291966404 | O60: 7.653446911 | P60: 7.974439743 | Q60: 8.935769145 | R60: 9.567518921 | S60: 9.339160311 | T60: =IF(T$8="","",IF(ISNA(INDIRECT("'"&reg&"'!"&T$8&$C60))=TRUE,"",INDIRECT("'"&reg&"'!"&T$8&$C60))) -> 9.534140611 | U60: 9.397014456 | V60: 9.913763248 | W60: 8.33784679 | X60: 9.884167208 | Y60: 7.479847329 | Z60: 12.09338613 | AA60: 12.42002716 | AB60: 13.32472159 | AC60: 11.1622619 | AD60: 13.2622652 | AE60: 12.71646503 | AF60: 12.62466848 | AG60: 12.62250949 | AH60: 12.7220317 | AI60: 12.88359643 | AJ60: 13.04270765 | AK60: 13.17529793 | AL60: 13.29169754 | AM60: 13.39622134 | AN60: 13.48626237 | AO60: 13.5709666 | AP60: 13.65567668 | AQ60: 13.74134541 | AR60: 13.84729002 | AS60: 13.96261883 | AT60: 14.07609733 | AU60: 14.1891776 | AV60: 14.30228971 | AW60: 14.41449978 | AX60: 14.52531528 | AY60: 14.63522905 | AZ60: 14.74357631 | BC60: 13.2622652 | BD60: 14.52531528 | BE60: 1.263050085 | BF60: 0.4558870635
A61: Total public administration, health and social care, and education | B61: Thousands | D61: 55 | E61: =SUM(E62:E64) -> 254.1807602 | F61: =SUM(F62:F64) -> 253.203243 | G61: 249.3950107 | H61: 253.2375749 | I61: 256.8376069 | J61: 256.507621 | K61: 258.2025947 | L61: 241.7617912 | M61: 262.5262813 | N61: 271.31094 | O61: 278.0287158 | P61: 274.5345548 | Q61: 272.3814525 | R61: 285.0388496 | S61: 289.0405287 | T61: 292.7090696 | U61: 294.2835737 | V61: 292.9863506 | W61: 301.375446 | X61: 302.0748645 | Y61: 298.5853398 | Z61: 300.6725847 | AA61: 297.7550155 | AB61: 306.3947754 | AC61: 305.7651909 | AD61: 317.0053337 | AE61: 317.3507806 | AF61: 320.8247078 | AG61: 319.608457 | AH61: 318.8857776 | AI61: 319.2037942 | AJ61: 320.531487 | AK61: 321.7918109 | AL61: 323.0541433 | AM61: 324.1510167 | AN61: 325.1466437 | AO61: 325.9916685 | AP61: 326.7749341 | AQ61: 327.5532628 | AR61: 328.1463018 | AS61: 328.5658012 | AT61: 329.009066 | AU61: 329.4845028 | AV61: 329.9837984 | AW61: 330.5348457 | AX61: 331.1181872 | AY61: =SUM(AY62:AY64) -> 331.7350784 | AZ61: 332.3743586 | BC61: 317.0053337 | BD61: 331.1181872 | BE61: =IFERROR(BD61-BC61,"-") -> 14.11285347 | BF61: =IFERROR(((BD61/BC61)^(1/($BD$7-$BC$7))-1)*100,"-") -> 0.2180211878
A62: Education | B62: Thousands | C62: 248 | D62: 56 | E62: =IF(E$8="","",IF(ISNA(INDIRECT("'"&reg&"'!"&E$8&$C62))=TRUE,"",INDIRECT("'"&reg&"'!"&E$8&$C62))) -> 90.04710872 | F62: 89.13997394 | G62: 88.45041326 | H62: 86.58964628 | I62: 84.29792141 | J62: 86.11487701 | K62: 83.65637098 | L62: 83.6420918 | M62: 89.58837295 | N62: 98.56305931 | O62: 97.88136237 | P62: 93.99759051 | Q62: 94.02960077 | R62: 101.1118411 | S62: 98.51703195 | T62: 99.06104966 | U62: 98.42291885 | V62: 97.39599128 | W62: 100.4870471 | X62: 96.50479643 | Y62: 100.1228677 | Z62: 99.88627275 | AA62: 100.5933407 | AB62: 103.9280302 | AC62: 102.9898642 | AD62: 109.666974 | AE62: 107.4552563 | AF62: 109.0712192 | AG62: 108.9097905 | AH62: 108.7244218 | AI62: 108.5100675 | AJ62: 108.6671497 | AK62: 108.7610336 | AL62: 108.65453 | AM62: 108.5655249 | AN62: 108.6250685 | AO62: 108.6533018 | AP62: 108.661782 | AQ62: 108.668055 | AR62: 108.633913 | AS62: 108.5668762 | AT62: 108.4983748 | AU62: 108.4424685 | AV62: 108.3931629 | AW62: 108.3569089 | AX62: 108.3251999 | AY62: 108.3007514 | AZ62: 108.2805731 | BC62: 109.666974 | BD62: 108.3251999 | BE62: -1.341774102 | BF62: -0.06153331825
A63: Health and social care | B63: Thousands | C63: 249 | D63: 57 | E63: 108.0857615 | F63: 107.3331348 | G63: 104.9140942 | H63: 110.5363253 | I63: 116.2416015 | J63: 117.3234207 | K63: 120.0894504 | L63: 106.7902934 | M63: 113.557138 | N63: 114.2029236 | O63: 124.7487579 | P63: 124.8018492 | Q63: 123.0293947 | R63: 127.5266121 | S63: 127.8601858 | T63: 133.357572 | U63: 134.9435699 | V63: 138.3678908 | W63: 140.1532331 | X63: 147.2763478 | Y63: 147.2486749 | Z63: 151.2703563 | AA63: 148.0465134 | AB63: 154.281423 | AC63: 154.94893 | AD63: 159.5248099 | AE63: 161.690589 | AF63: 163.1534623 | AG63: 162.7276249 | AH63: 162.7586869 | AI63: 163.6611781 | AJ63: 165.0886422 | AK63: 166.5150192 | AL63: 168.0902872 | AM63: 169.5270588 | AN63: 170.7681588 | AO63: 171.9178275 | AP63: 173.0351903 | AQ63: 174.14895 | AR63: 175.1114363 | AS63: 175.9317871 | AT63: 176.778577 | AU63: 177.6385536 | AV63: 178.5118337 | AW63: 179.4182264 | AX63: 180.3484117 | AY63: 181.3010106 | AZ63: 182.268774 | BC63: 159.5248099 | BD63: 180.3484117 | BE63: 20.82360181 | BF63: 0.6153412057
A64: Public administration | B64: Thousands | C64: 250 | D64: 58 | E64: 56.04788998 | F64: 56.73013425 | G64: 56.03050324 | H64: 56.11160336 | I64: 56.29808401 | J64: 53.0693233 | K64: 54.4567733 | L64: 51.32940601 | M64: 59.38077041 | N64: 58.54495705 | O64: 55.39859546 | P64: 55.73511508 | Q64: 55.3224571 | R64: 56.40039628 | S64: 62.66331099 | T64: 60.29044794 | U64: 60.91708497 | V64: 57.22246856 | W64: 60.7351658 | X64: 58.29372031 | Y64: 51.21379719 | Z64: 49.51595566 | AA64: 49.11516136 | AB64: 48.18532214 | AC64: 47.82639663 | AD64: 47.81354987 | AE64: 48.20493523 | AF64: 48.60002625 | AG64: 47.97104161 | AH64: 47.40266894 | AI64: 47.0325485 | AJ64: 46.77569512 | AK64: 46.51575807 | AL64: 46.30932599 | AM64: 46.058433 | AN64: 45.75341641 | AO64: 45.42053923 | AP64: 45.07796181 | AQ64: 44.73625779 | AR64: 44.4009525 | AS64: 44.06713791 | AT64: 43.73211419 | AU64: 43.40348059 | AV64: 43.07880179 | AW64: 42.75971044 | AX64: 42.44457563 | AY64: 42.13331644 | AZ64: 41.82501146 | BC64: 47.81354987 | BD64: 42.44457563 | BE64: -5.368974235 | BF64: -0.5937798542
A65: Total | B65: Thousands | C65: 251 | D65: 59 | E65: 1118.83695 | F65: 1100.32104 | G65: 1089.90945 | H65: 1090.01536 | I65: 1094.26142 | J65: 1109.80217 | K65: 1124.94481 | L65: 1089.06757 | M65: 1136.13151 | N65: 1154.65953 | O65: 1153.89294 | P65: 1154.48313 | Q65: 1183.46818 | R65: 1202.14877 | S65: 1193.70701 | T65: 1186.14316 | U65: 1201.31205 | V65: 1194.90738 | W65: 1182.22776 | X65: 1162.55055 | Y65: 1158.91266 | Z65: 1168.21187 | AA65: 1185.33066 | AB65: 1199.73988 | AC65: 1228.65967 | AD65: 1267.75477 | AE65: 1292.82311 | AF65: 1311.8118 | AG65: 1314.81311 | AH65: 1322.27216 | AI65: 1332.61398 | AJ65: 1344.08458 | AK65: 1354.19981 | AL65: 1362.57258 | AM65: 1369.52944 | AN65: 1374.65932 | AO65: 1379.00492 | AP65: 1383.23576 | AQ65: 1387.42615 | AR65: 1391.57563 | AS65: 1394.83642 | AT65: 1397.64063 | AU65: 1400.49522 | AV65: 1403.33867 | AW65: 1406.23274 | AX65: 1409.18067 | AY65: 1412.16882 | AZ65: 1415.15768 | BC65: 1267.75477 | BD65: 1409.18067 | BE65: 141.4259 | BF65: 0.5302057024
A67: Total employment by broad sector
A68: Agriculture | B68: Thousands | C68: 31 | D68: 62 | E68: =IF(E$8="","",IF(ISNA(INDIRECT("'"&reg&"'!"&E$8&$C68))=TRUE,"",INDIRECT("'"&reg&"'!"&E$8&$C68))) -> 2.662116 | F68: 2.650125 | G68: 2.706568 | H68: 2.505793 | I68: 2.466185 | J68: 2.533987 | K68: 2.583865 | L68: 2.530552 | M68: 2.332735 | N68: 2.066345 | O68: 1.859125 | P68: 1.758287 | Q68: 2.03486 | R68: 2.00117 | S68: 1.908897 | T68: 2.622145 | U68: =IF(U$8="","",IF(ISNA(INDIRECT("'"&reg&"'!"&U$8&$C68))=TRUE,"",INDIRECT("'"&reg&"'!"&U$8&$C68))) -> 3.04138 | V68: 3.308577 | W68: 3.134399 | X68: 3.446406 | Y68: 3.323113 | Z68: 3.080002 | AA68: 3.10064 | AB68: 3.442843 | AC68: 3.344313 | AD68: 3.369157 | AE68: 3.370172 | AF68: 3.298247 | AG68: 3.263462 | AH68: 3.236809 | AI68: 3.218643 | AJ68: 3.208419 | AK68: 3.196498 | AL68: 3.180186 | AM68: 3.162916 | AN68: 3.141683 | AO68: 3.120415 | AP68: 3.101935 | AQ68: 3.084786 | AR68: 3.069552 | AS68: 3.048656 | AT68: 3.022818 | AU68: 2.99644 | AV68: 2.969635 | AW68: =IF(AW$8="","",IF(ISNA(INDIRECT("'"&reg&"'!"&AW$8&$C68))=TRUE,"",INDIRECT("'"&reg&"'!"&AW$8&$C68))) -> 2.942369 | AX68: 2.914577 | AY68: 2.886459 | AZ68: 2.858029 | BC68: =IF($BD$4>$BD$5,"Invalid dates",IFERROR(HLOOKUP(BC$7,$E$7:$AZ$804,$D68,FALSE),"-")) -> 3.369157 | BD68: 2.914577 | BE68: =IFERROR(BD68-BC68,"-") -> -0.45458 | BF68: =IFERROR(((BD68/BC68)^(1/($BD$7-$BC$7))-1)*100,"-") -> -0.7220697931
A69: Mining and quarrying | B69: Thousands | C69: 32 | D69: 63 | E69: 2.088661 | F69: 1.353391 | G69: 0.2472872 | H69: 0.2708786 | I69: 0.3216349 | J69: 0.300919 | K69: 0.1592138 | L69: 0.1467335 | M69: 0.1588312 | N69: 0.2318325 | O69: 0.2134485 | P69: 0.2365435 | Q69: 0.1488681 | R69: 0.2259108 | S69: 0.172681 | T69: 0.2440593 | U69: 0.2636922 | V69: 0.1909505 | W69: 0.1891198 | X69: 0.1676327 | Y69: 0.1793813 | Z69: 0.1949527 | AA69: 0.1807564 | AB69: 0.283972 | AC69: 0.2891826 | AD69: 0.2039442 | AE69: 0.1882627 | AF69: 0.191827 | AG69: 0.1909237 | AH69: 0.1839529 | AI69: 0.1749805 | AJ69: 0.1664952 | AK69: 0.1581738 | AL69: 0.1500868 | AM69: 0.1438876 | AN69: 0.1377924 | AO69: 0.1318973 | AP69: 0.1262391 | AQ69: 0.1208164 | AR69: 0.115631 | AS69: 0.1106009 | AT69: 0.1057906 | AU69: =IF(AU$8="","",IF(ISNA(INDIRECT("'"&reg&"'!"&AU$8&$C69))=TRUE,"",INDIRECT("'"&reg&"'!"&AU$8&$C69))) -> 0.1012016 | AV69: 0.09681712 | AW69: 0.09262277 | AX69: 0.08861284 | AY69: 0.08477928 | AZ69: 0.0811148 | BC69: 0.2039442 | BD69: 0.08861284 | BE69: -0.11533136 | BF69: -4.082187687
A70: Manufacturing | B70: Thousands | C70: 33 | D70: 64 | E70: 234.5124 | F70: 221.0359 | G70: 213.4585 | H70: 214.1044 | I70: 213.9788 | J70: 215.2157 | K70: 211.2657 | L70: 201.5044 | M70: 195.6169 | N70: 194.3773 | O70: 175.5621 | P70: 161.515 | Q70: 152.7592 | R70: 148.3741 | S70: 132.6837 | T70: 132.5023 | U70: 128.8646 | V70: 118.8211 | W70: 118.3087 | X70: 105.2173 | Y70: 116.0207 | Z70: 102.3015 | AA70: 109.8896 | AB70: 110.7382 | AC70: 106.209 | AD70: 111.1499 | AE70: 112.9343 | AF70: 113.5777 | AG70: 111.6884 | AH70: 109.9642 | AI70: 108.666 | AJ70: 107.4042 | AK70: 106.0234 | AL70: 104.4443 | AM70: 102.7579 | AN70: 100.9284 | AO70: 99.06156 | AP70: 97.20752 | AQ70: 95.37678 | AR70: 93.61474 | AS70: 91.86584 | AT70: 90.12665 | AU70: 88.41425 | AV70: 86.727 | AW70: 85.06496 | AX70: 83.44949 | AY70: 81.84164 | AZ70: 80.26151 | BC70: 111.1499 | BD70: 83.44949 | BE70: -27.70041 | BF70: -1.422969717
A71: Electricity, gas, & steam | B71: Thousands | C71: 34 | D71: 65 | E71: =IF(E$8="","",IF(ISNA(INDIRECT("'"&reg&"'!"&E$8&$C71))=TRUE,"",INDIRECT("'"&reg&"'!"&E$8&$C71))) -> 8.550243 | F71: 6.754748 | G71: 5.019002 | H71: 5.096372 | I71: 5.113967 | J71: 4.888411 | K71: 3.821658 | L71: 3.726349 | M71: 3.45698 | N71: 3.697236 | O71: =IF(O$8="","",IF(ISNA(INDIRECT("'"&reg&"'!"&O$8&$C71))=TRUE,"",INDIRECT("'"&reg&"'!"&O$8&$C71))) -> 4.374098 | P71: 2.020605 | Q71: 2.038013 | R71: 1.448738 | S71: 1.006213 | T71: 1.231416 | U71: 1.184256 | V71: 0.9489117 | W71: 6.071419 | X71: 7.390588 | Y71: =IF(Y$8="","",IF(ISNA(INDIRECT("'"&reg&"'!"&Y$8&$C71))=TRUE,"",INDIRECT("'"&reg&"'!"&Y$8&$C71))) -> 7.748661 | Z71: 7.517838 | AA71: 8.06396 | AB71: 5.00583 | AC71: 6.625925 | AD71: 7.461478 | AE71: 7.646014 | AF71: 7.649694 | AG71: 7.564157 | AH71: 7.491715 | AI71: =IF(AI$8="","",IF(ISNA(INDIRECT("'"&reg&"'!"&AI$8&$C71))=TRUE,"",INDIRECT("'"&reg&"'!"&AI$8&$C71))) -> 7.432897 | AJ71: 7.388411 | AK71: 7.335806 | AL71: 7.271646 | AM71: 7.200337 | AN71: 7.122011 | AO71: 7.041588 | AP71: 6.919979 | AQ71: 6.837887 | AR71: 6.756573 | AS71: =IF(AS$8="","",IF(ISNA(INDIRECT("'"&reg&"'!"&AS$8&$C71))=TRUE,"",INDIRECT("'"&reg&"'!"&AS$8&$C71))) -> 6.674955 | AT71: 6.593869 | AU71: 6.514451 | AV71: 6.436306 | AW71: 6.359559 | AX71: 6.283983 | AY71: 6.209463 | AZ71: 6.136109 | BC71: 7.461478 | BD71: 6.283983 | BE71: -1.177495 | BF71: -0.8550708096
A72: Water supply; sewerage, waste management | B72: Thousands | C72: 35 | D72: 66 | E72: 3.834158 | F72: 3.532631 | G72: 3.362548 | H72: 2.945248 | I72: 2.629829 | J72: 3.004938 | K72: 4.423877 | L72: 3.76542 | M72: 4.909271 | N72: 5.241483 | O72: 6.949905 | P72: 5.356129 | Q72: 4.321978 | R72: 5.268939 | S72: 5.044005 | T72: 5.341116 | U72: 4.885327 | V72: 5.764282 | W72: 5.469469 | X72: 6.343047 | Y72: 5.48739 | Z72: 5.995924 | AA72: 7.475799 | AB72: 7.800836 | AC72: 7.768772 | AD72: 9.018438 | AE72: 9.172755 | AF72: 9.159255 | AG72: 9.02736 | AH72: 8.929561 | AI72: 8.868582 | AJ72: 8.816669 | AK72: 8.758013 | AL72: 8.690648 | AM72: 8.612618 | AN72: 8.522142 | AO72: 8.426502 | AP72: 8.330092 | AQ72: 8.23378 | AR72: 8.137061 | AS72: 8.03797 | AT72: 7.937964 | AU72: 7.839032 | AV72: 7.740759 | AW72: 7.643114 | AX72: 7.546272 | AY72: 7.449379 | AZ72: 7.353426 | BC72: 9.018438 | BD72: 7.546272 | BE72: -1.472166 | BF72: -0.8871289919
A73: Construction | B73: Thousands | C73: 36 | D73: 67 | E73: 93.98133 | F73: 90.40697 | G73: 89.59594 | H73: 81.83935 | I73: 75.99239 | J73: 78.11328 | K73: 74.44193 | L73: 82.36098 | M73: 78.92101 | N73: 69.67937 | O73: 81.03849 | P73: 83.71124 | Q73: 87.96747 | R73: 99.29577 | S73: 99.45124 | T73: 99.5229 | U73: 105.0239 | V73: 108.3039 | W73: 96.81135 | X73: 87.67743 | Y73: 82.17648 | Z73: 83.47733 | AA73: 81.91589 | AB73: 80.77436 | AC73: 79.05692 | AD73: 79.82634 | AE73: 81.07815 | AF73: 81.93843 | AG73: 82.89465 | AH73: 84.46651 | AI73: 85.99902 | AJ73: 87.33981 | AK73: 88.50688 | AL73: 89.41304 | AM73: 90.17314 | AN73: 90.80915 | AO73: 91.38537 | AP73: 91.94346 | AQ73: 92.48942 | AR73: 93.026 | AS73: 93.55861 | AT73: 94.07413 | AU73: 94.59689 | AV73: 95.12142 | AW73: 95.64314 | AX73: 96.16812 | AY73: 96.69567 | AZ73: 97.22778 | BC73: 79.82634 | BD73: 96.16812 | BE73: 16.34178 | BF73: 0.9355712848
A74: Wholesale and retail trade | B74: Thousands | C74: 37 | D74: 68 | E74: 213.3806 | F74: 215.9107 | G74: 220.3009 | H74: 217.3943 | I74: 213.3953 | J74: 222.3804 | K74: 224.6453 | L74: 221.1398 | M74: 224.1691 | N74: 224.8933 | O74: 217.7105 | P74: 216.7745 | Q74: 221.7987 | R74: 225.284 | S74: 229.5959 | T74: 219.4771 | U74: 222.1147 | V74: 216.1284 | W74: 210.5263 | X74: 209.3501 | Y74: 204.327 | Z74: 212.7724 | AA74: 214.162 | AB74: 206.9404 | AC74: 217.8764 | AD74: 215.2914 | AE74: 213.3781 | AF74: 215.9033 | AG74: 216.4518 | AH74: 218.2064 | AI74: 220.1742 | AJ74: 222.4776 | AK74: 224.6152 | AL74: 226.4739 | AM74: 228.2577 | AN74: 229.6014 | AO74: 230.7511 | AP74: 231.8997 | AQ74: 233.0019 | AR74: 233.6084 | AS74: 233.7217 | AT74: 233.8132 | AU74: 233.9013 | AV74: 233.9784 | AW74: 234.0573 | AX74: 234.1553 | AY74: 234.2539 | AZ74: 234.3855 | BC74: 215.2914 | BD74: 234.1553 | BE74: 18.8639 | BF74: 0.4208436257
A75: Transportation and storage | B75: Thousands | C75: 38 | D75: 69 | E75: 62.80523 | F75: 61.70836 | G75: 61.29752 | H75: 61.22886 | I75: 61.48852 | J75: 62.54684 | K75: 59.56156 | L75: 57.50199 | M75: 64.01994 | N75: 65.01122 | O75: 66.53761 | P75: 72.11723 | Q75: 71.10654 | R75: 69.92203 | S75: 70.17844 | T75: 69.89864 | U75: 70.43758 | V75: 74.17462 | W75: 66.42778 | X75: 67.45645 | Y75: 64.24441 | Z75: 68.0539 | AA75: 71.76192 | AB75: 68.76034 | AC75: 71.42569 | AD75: 78.56876 | AE75: 84.52876 | AF75: 84.87592 | AG75: 84.57771 | AH75: 84.65161 | AI75: 85.03827 | AJ75: 85.46156 | AK75: 85.79295 | AL75: 85.97289 | AM75: 86.03465 | AN75: 85.96303 | AO75: 85.82521 | AP75: 85.66577 | AQ75: 85.49396 | AR75: 85.30698 | AS75: 85.07687 | AT75: 84.82563 | AU75: 84.5731 | AV75: 84.31551 | AW75: 84.05199 | AX75: 83.78976 | AY75: 83.55813 | AZ75: 83.29216 | BC75: 78.56876 | BD75: 83.78976 | BE75: 5.221 | BF75: 0.3222011524
A76: Accommodation and food | B76: Thousands | C76: 39 | D76: 70 | E76: 63.9881 | F76: 61.70126 | G76: 59.3584 | H76: 57.67184 | I76: 61.78772 | J76: 61.01188 | K76: 67.71635 | L76: 64.66586 | M76: 67.20995 | N76: 66.28317 | O76: 69.01749 | P76: 74.23138 | Q76: 76.52914 | R76: 67.62577 | S76: 76.48003 | T76: 73.28152 | U76: 73.43622 | V76: 70.86517 | W76: 72.99313 | X76: 72.73058 | Y76: 75.08881 | Z76: 77.56127 | AA76: 71.06098 | AB76: 81.3563 | AC76: 84.12712 | AD76: 89.56755 | AE76: 90.66229 | AF76: 91.91151 | AG76: 92.52844 | AH76: 93.71936 | AI76: 95.11993 | AJ76: 96.32585 | AK76: 97.39414 | AL76: 98.32744 | AM76: 99.15304 | AN76: 99.84363 | AO76: 100.4613 | AP76: 101.0489 | AQ76: 101.6194 | AR76: 102.1416 | AS76: 102.5502 | AT76: 102.7996 | AU76: 103.0148 | AV76: 103.2248 | AW76: 103.4407 | AX76: 103.6574 | AY76: 103.8756 | AZ76: 104.0895 | BC76: 89.56755 | BD76: 103.6574 | BE76: 14.08985 | BF76: 0.7331652982
A77: Information and communication | B77: Thousands | C77: 40 | D77: 71 | E77: 28.71558 | F77: 28.90652 | G77: 29.67243 | H77: 30.62705 | I77: 31.78181 | J77: 29.43429 | K77: 31.04295 | L77: 32.33812 | M77: 35.43092 | N77: 39.43664 | O77: 41.62645 | P77: 42.76544 | Q77: 47.28212 | R77: 46.74323 | S77: 43.99061 | T77: 47.64455 | U77: 45.25289 | V77: 39.91982 | W77: 40.49606 | X77: 35.82463 | Y77: 42.17688 | Z77: 42.89903 | AA77: 40.60353 | AB77: 44.48846 | AC77: 54.18969 | AD77: 52.47202 | AE77: 51.9884 | AF77: 52.37656 | AG77: 52.78636 | AH77: 53.46883 | AI77: 54.32307 | AJ77: 54.99691 | AK77: 55.48772 | AL77: 55.86427 | AM77: 56.16188 | AN77: 56.37362 | AO77: 56.54533 | AP77: 56.70509 | AQ77: 56.86124 | AR77: 57.00992 | AS77: 57.12884 | AT77: 57.22908 | AU77: 57.34408 | AV77: 57.46053 | AW77: 57.5892 | AX77: 57.71775 | AY77: 57.84624 | AZ77: 57.97327 | BC77: 52.47202 | BD77: 57.71775 | BE77: 5.24573 | BF77: 0.4775600842
A78: Financial services | B78: Thousands | C78: 41 | D78: 72 | E78: 44.85617 | F78: 42.77792 | G78: 40.6864 | H78: 41.71698 | I78: 41.55791 | J78: 41.51374 | K78: 38.91365 | L78: 40.60133 | M78: 44.23426 | N78: 45.3812 | O78: 44.49276 | P78: 47.78138 | Q78: 46.2952 | R78: 48.8498 | S78: 49.23979 | T78: 49.54592 | U78: 48.86025 | V78: 52.57397 | W78: 50.76256 | X78: 49.89083 | Y78: 51.36143 | Z78: 50.7084 | AA78: 51.05206 | AB78: 45.58602 | AC78: 43.3526 | AD78: 45.19282 | AE78: 47.11273 | AF78: 46.88635 | AG78: 46.24776 | AH78: 45.70179 | AI78: 45.35982 | AJ78: 45.40154 | AK78: 45.46488 | AL78: 45.45506 | AM78: 45.41998 | AN78: 45.318 | AO78: 45.19716 | AP78: 45.07831 | AQ78: 44.96069 | AR78: 44.83085 | AS78: 44.69257 | AT78: 44.5517 | AU78: 44.4187 | AV78: 44.28809 | AW78: 44.15945 | AX78: 44.03279 | AY78: 43.90743 | AZ78: 43.78433 | BC78: 45.19282 | BD78: 44.03279 | BE78: -1.16003 | BF78: -0.129933718
A79: Real estate | B79: Thousands | C79: 42 | D79: 73 | E79: 11.84391 | F79: 12.21062 | G79: 12.64474 | H79: 12.90984 | I79: 13.64828 | J79: 12.89004 | K79: 13.5659 | L79: 12.37822 | M79: 11.89089 | N79: 13.21024 | O79: 14.45464 | P79: 15.42106 | Q79: 18.39012 | R79: 19.48306 | S79: 19.21763 | T79: 19.88429 | U79: 22.00226 | V79: 22.66914 | W79: 24.89537 | X79: 21.35563 | Y79: 22.15489 | Z79: 21.65069 | AA79: 29.09921 | AB79: 27.17142 | AC79: 27.39419 | AD79: 28.86767 | AE79: 31.03197 | AF79: 31.12355 | AG79: 31.30848 | AH79: 31.57728 | AI79: 31.93664 | AJ79: 32.27193 | AK79: 32.5756 | AL79: 32.83674 | AM79: 33.06882 | AN79: 33.26949 | AO79: 33.45951 | AP79: 33.64348 | AQ79: 33.82718 | AR79: 34.01017 | AS79: 34.18406 | AT79: 34.34782 | AU79: 34.50891 | AV79: 34.66957 | AW79: 34.82772 | AX79: 34.98233 | AY79: 35.13599 | AZ79: 35.28524 | BC79: 28.86767 | BD79: 34.98233 | BE79: 6.11466 | BF79: 0.9652325742
A80: Professional services | B80: Thousands | C80: 43 | D80: 74 | E80: 54.95959 | F80: 57.42724 | G80: 60.979 | H80: 59.76896 | I80: 61.10521 | J80: 69.08473 | K80: 71.93812 | L80: 62.69819 | M80: 66.0718 | N80: 69.5114 | O80: 72.47417 | P80: 73.85026 | Q80: 83.8312 | R80: 89.48803 | S80: 87.25044 | T80: 93.37079 | U80: 98.95085 | V80: 99.97563 | W80: 98.79066 | X80: 108.1665 | Y80: 107.1689 | Z80: 114.135 | AA80: 123.5963 | AB80: 130.2248 | AC80: 125.3365 | AD80: 133.3388 | AE80: 141.1283 | AF80: 143.2152 | AG80: 145.4348 | AH80: 148.0406 | AI80: 151.0195 | AJ80: 153.7596 | AK80: 156.0494 | AL80: 158.0582 | AM80: 159.863 | AN80: 161.4445 | AO80: 162.9243 | AP80: 164.3754 | AQ80: 165.808 | AR80: 167.471 | AS80: 169.2422 | AT80: 170.9773 | AU80: 172.6949 | AV80: 174.4063 | AW80: 176.0981 | AX80: 177.768 | AY80: 179.4183 | AZ80: 181.0431 | BC80: 133.3388 | BD80: 177.768 | BE80: 44.4292 | BF80: 1.448318308
A81: Administrative and support | B81: Thousands | C81: 44 | D81: 75 | E81: 78.58136 | F81: 80.20973 | G81: 82.78871 | H81: 83.92372 | I81: 87.98135 | J81: 93.00217 | K81: 98.48611 | L81: 96.28353 | M81: 101.885 | N81: 98.79678 | O81: 99.19189 | P81: 102.1002 | Q81: 115.8183 | R81: 117.0343 | S81: 111.3347 | T81: 108.6308 | U81: 113.7304 | V81: 119.3821 | W81: 116.7546 | X81: 119.6193 | Y81: 116.65 | Z81: 124.0599 | AA81: 123.1216 | AB81: 127.0154 | AC81: 138.8238 | AD81: 140.1243 | AE81: 142.5115 | AF81: 145.3638 | AG81: 147.201 | AH81: 149.4846 | AI81: 151.8412 | AJ81: 154.4405 | AK81: 157.0185 | AL81: 159.2556 | AM81: 161.061 | AN81: 162.437 | AO81: 163.7644 | AP81: 165.1936 | AQ81: 166.6318 | AR81: 168.5046 | AS81: 170.2691 | AT81: 171.7982 | AU81: 173.3076 | AV81: 174.8072 | AW81: 176.2803 | AX81: 177.7261 | AY81: 179.1544 | AZ81: 180.5558 | BC81: 140.1243 | BD81: 177.7261 | BE81: 37.6018 | BF81: 1.195660121
A82: Public administration and defence | B82: Thousands | C82: 45 | D82: 76 | E82: 61.76184 | F82: 62.61372 | G82: 62.10651 | H82: 61.68071 | I82: 61.85739 | J82: 58.74726 | K82: 59.83404 | L82: 56.27673 | M82: 65.05922 | N82: 63.66618 | O82: 60.48723 | P82: 61.04714 | Q82: 60.83328 | R82: 62.28478 | S82: 68.996 | T82: 66.31893 | U82: 67.20897 | V82: 63.38238 | W82: 67.55698 | X82: 65.26152 | Y82: 57.0883 | Z82: 55.52061 | AA82: 55.26058 | AB82: 54.68718 | AC82: 53.72574 | AD82: 53.52316 | AE82: 53.71523 | AF82: 53.84691 | AG82: 53.12591 | AH82: 52.4763 | AI82: 52.0591 | AJ82: 51.77032 | AK82: 51.48103 | AL82: 51.25103 | AM82: 50.97279 | AN82: 50.6344 | AO82: 50.26479 | AP82: 49.88462 | AQ82: 49.5053 | AR82: 49.13319 | AS82: 48.76604 | AT82: 48.39776 | AU82: 48.03643 | AV82: 47.67962 | AW82: 47.3289 | AX82: 46.98241 | AY82: 46.6404 | AZ82: 46.30166 | BC82: 53.52316 | BD82: 46.98241 | BE82: -6.54075 | BF82: -0.6495869082
A83: Education | B83: Thousands | C83: 46 | D83: 77 | E83: 99.24866 | F83: 98.52872 | G83: 98.3176 | H83: 95.60265 | I83: 93.21955 | J83: 95.64765 | K83: 92.24944 | L83: 92.01686 | M83: 98.38677 | N83: 107.4529 | O83: 106.9286 | P83: 102.9604 | Q83: 103.5791 | R83: 111.8766 | S83: 108.5411 | T83: 109.4015 | U83: 108.8646 | V83: 108.1285 | W83: 111.8276 | X83: 108.1051 | Y83: 111.8046 | Z83: 112.3794 | AA83: 113.3505 | AB83: 118.1121 | AC83: 115.8491 | AD83: 122.9281 | AE83: 119.8985 | AF83: 121.0014 | AG83: 120.7656 | AH83: 120.5118 | AI83: 120.2552 | AJ83: 120.4172 | AK83: 120.5159 | AL83: 120.3929 | AM83: 120.2914 | AN83: 120.3539 | AO83: 120.3807 | AP83: 120.3859 | AQ83: 120.3883 | AR83: 120.3463 | AS83: 120.2755 | AT83: 120.2035 | AU83: 120.1453 | AV83: 120.0947 | AW83: 120.0585 | AX83: 120.027 | AY83: 120.0041 | AZ83: 119.9859 | BC83: 122.9281 | BD83: 120.027 | BE83: -2.9011 | BF83: -0.1193432999
A84: Human health and social work | B84: Thousands | C84: 47 | D84: 78 | E84: 119.8147 | F84: 119.2131 | G84: 117.075 | H84: 122.468 | I84: 128.9613 | J84: 130.2472 | K84: 132.6186 | L84: 117.6746 | M84: 125.2626 | N84: 124.9779 | O84: 136.7018 | P84: 137.0268 | Q84: 135.7761 | R84: 141.453 | S84: 141.4053 | T84: 147.9109 | U84: 149.7291 | V84: 154.1217 | W84: 156.5255 | X84: 165.6298 | Y84: 164.9223 | Z84: 170.5928 | AA84: 167.2338 | AB84: 175.9693 | AC84: 174.9706 | AD84: 179.361 | AE84: 180.9347 | AF84: 181.4906 | AG84: 180.9272 | AH84: 180.8851 | AI84: 181.856 | AJ84: 183.4207 | AK84: 184.9941 | AL84: 186.733 | AM84: 188.3212 | AN84: 189.6908 | AO84: 190.9572 | AP84: 192.188 | AQ84: 193.4139 | AR84: 194.4721 | AS84: 195.3865 | AT84: 196.331 | AU84: 197.2898 | AV84: 198.2639 | AW84: 199.2746 | AX84: 200.3111 | AY84: 201.3734 | AZ84: 202.4523 | BC84: 179.361 | BD84: 200.3111 | BE84: 20.9501 | BF84: 0.5538839128
A85: Arts, entertainment and recreation | B85: Thousands | C85: 48 | D85: 79 | E85: 21.64789 | F85: 21.94501 | G85: 22.65307 | H85: 20.82807 | I85: 19.81719 | J85: 21.25223 | K85: 20.88444 | L85: 19.35516 | M85: 22.01487 | N85: 22.17817 | O85: 22.44089 | P85: 22.87207 | Q85: 26.25699 | R85: 26.4804 | S85: 27.34928 | T85: 26.14645 | U85: 27.10692 | V85: 26.31485 | W85: 31.72953 | X85: 32.15027 | Y85: 27.51684 | Z85: 27.76575 | AA85: 28.96344 | AB85: 34.07883 | AC85: 34.06058 | AD85: 32.00896 | AE85: 32.93122 | AF85: 33.17933 | AG85: 33.5509 | AH85: 34.02475 | AI85: 34.59635 | AJ85: 35.14748 | AK85: 35.70293 | AL85: 36.24617 | AM85: 36.78148 | AN85: 37.28098 | AO85: 37.75708 | AP85: 38.22494 | AQ85: 38.69104 | AR85: 39.17356 | AS85: 39.65631 | AT85: 40.13607 | AU85: 40.65628 | AV85: 41.14618 | AW85: 41.64256 | AX85: 42.14245 | AY85: 42.64847 | AZ85: 43.15721 | BC85: 32.00896 | BD85: 42.14245 | BE85: 10.13349 | BF85: 1.384697761
A86: Other services | B86: Thousands | C86: 49 | D86: 80 | E86: 31.94003 | F86: 32.04796 | G86: 32.8634 | H86: 33.73961 | I86: 35.35962 | J86: 32.54979 | K86: 34.8822 | L86: 32.54712 | M86: 39.60353 | N86: 44.65012 | O86: 41.07349 | P86: 43.30526 | Q86: 47.81247 | R86: 48.60415 | S86: 43.90369 | T86: 40.31059 | U86: 40.27971 | V86: 44.38518 | W86: 38.48382 | X86: 38.91078 | Y86: 35.95161 | Z86: 33.77528 | AA86: 36.70933 | AB86: 42.52044 | AC86: 38.97585 | AD86: 39.36222 | AE86: 38.74221 | AF86: 38.68473 | AG86: 38.76872 | AH86: 38.96391 | AI86: 39.27987 | AJ86: 39.57063 | AK86: 39.86023 | AL86: 40.12899 | AM86: 40.38195 | AN86: 40.5881 | AO86: 40.76182 | AP86: 40.92341 | AQ86: 41.07937 | AR86: 41.22524 | AS86: 41.35627 | AT86: 41.48067 | AU86: 41.60513 | AV86: 41.72816 | AW86: 41.85172 | AX86: 41.97245 | AY86: 42.09313 | AZ86: 42.21304 | BC86: 39.36222 | BD86: 41.97245 | BE86: 2.61023 | BF86: 0.3215507571
A87: Total | B87: Thousands | C87: 50 | D87: 81 | E87: 1239.173 | F87: 1220.935 | G87: 1215.133 | H87: 1206.323 | I87: 1212.464 | J87: 1234.365 | K87: 1243.035 | L87: =IF(L$8="","",IF(ISNA(INDIRECT("'"&reg&"'!"&L$8&$C87))=TRUE,"",INDIRECT("'"&reg&"'!"&L$8&$C87))) -> 1199.512 | M87: 1250.634 | N87: 1260.743 | O87: 1263.135 | P87: 1266.851 | Q87: 1304.579 | R87: 1331.744 | S87: 1317.75 | T87: 1313.286 | U87: 1331.238 | V87: 1329.359 | W87: 1317.754 | X87: 1304.694 | Y87: 1295.392 | Z87: 1314.442 | AA87: 1336.602 | AB87: 1364.957 | AC87: 1383.402 | AD87: 1421.636 | AE87: 1442.954 | AF87: 1455.674 | AG87: 1458.304 | AH87: 1465.985 | AI87: 1477.219 | AJ87: 1489.786 | AK87: 1500.932 | AL87: 1510.146 | AM87: 1517.82 | AN87: 1523.46 | AO87: 1528.217 | AP87: 1532.847 | AQ87: 1537.426 | AR87: 1541.953 | AS87: 1545.603 | AT87: 1548.753 | AU87: 1551.958 | AV87: 1555.155 | AW87: 1558.406 | AX87: 1561.716 | AY87: 1565.077 | AZ87: 1568.437 | BC87: 1421.636 | BD87: 1561.716 | BE87: 140.08 | BF87: 0.4709901662
A89: Total employment by detailed sector
A90: Agriculture | B90: Thousands | C90: 91 | D90: 84 | E90: =IF(E$8="","",IF(ISNA(INDIRECT("'"&reg&"'!"&E$8&$C90))=TRUE,"",INDIRECT("'"&reg&"'!"&E$8&$C90))) -> 2.662116 | F90: 2.650125 | G90: 2.706568 | H90: 2.505793 | I90: 2.466185 | J90: 2.533987 | K90: 2.583865 | L90: 2.530552 | M90: 2.332735 | N90: 2.066345 | O90: 1.859125 | P90: 1.758287 | Q90: 2.03486 | R90: 2.00117 | S90: 1.908897 | T90: 2.622145 | U90: 3.04138 | V90: 3.308577 | W90: 3.134399 | X90: 3.446406 | Y90: 3.323113 | Z90: 3.080002 | AA90: 3.10064 | AB90: 3.442843 | AC90: 3.344313 | AD90: 3.369157 | AE90: 3.370172 | AF90: 3.298247 | AG90: 3.263462 | AH90: 3.236809 | AI90: 3.218643 | AJ90: 3.208419 | AK90: 3.196498 | AL90: 3.180186 | AM90: 3.162916 | AN90: 3.141683 | AO90: 3.120415 | AP90: 3.101935 | AQ90: 3.084786 | AR90: 3.069552 | AS90: 3.048656 | AT90: 3.022818 | AU90: 2.99644 | AV90: 2.969635 | AW90: 2.942369 | AX90: 2.914577 | AY90: =IF(AY$8="","",IF(ISNA(INDIRECT("'"&reg&"'!"&AY$8&$C90))=TRUE,"",INDIRECT("'"&reg&"'!"&AY$8&$C90))) -> 2.886459 | AZ90: 2.858029 | BC90: =IF($BD$4>$BD$5,"Invalid dates",IFERROR(HLOOKUP(BC$7,$E$7:$AZ$804,$D90,FALSE),"-")) -> 3.369157 | BD90: 2.914577 | BE90: =IFERROR(BD90-BC90,"-") -> -0.45458 | BF90: =IFERROR(((BD90/BC90)^(1/($BD$7-$BC$7))-1)*100,"-") -> -0.7220697931
A91: Mining and Quarrying | B91: Thousands | C91: 92 | D91: 85 | E91: 2.088661 | F91: 1.353391 | G91: 0.2472872 | H91: 0.2708786 | I91: 0.3216349 | J91: 0.300919 | K91: 0.1592138 | L91: 0.1467335 | M91: 0.1588312 | N91: 0.2318325 | O91: 0.2134485 | P91: 0.2365435 | Q91: 0.1488681 | R91: 0.2259108 | S91: 0.172681 | T91: 0.2440593 | U91: 0.2636922 | V91: 0.1909505 | W91: 0.1891198 | X91: 0.1676327 | Y91: 0.1793813 | Z91: 0.1949527 | AA91: 0.1807564 | AB91: 0.283972 | AC91: 0.2891826 | AD91: 0.2039442 | AE91: 0.1882627 | AF91: 0.191827 | AG91: 0.1909237 | AH91: 0.1839529 | AI91: 0.1749805 | AJ91: 0.1664952 | AK91: 0.1581738 | AL91: 0.1500868 | AM91: 0.1438876 | AN91: 0.1377924 | AO91: 0.1318973 | AP91: 0.1262391 | AQ91: 0.1208164 | AR91: 0.115631 | AS91: 0.1106009 | AT91: 0.1057906 | AU91: 0.1012016 | AV91: 0.09681712 | AW91: 0.09262277 | AX91: 0.08861284 | AY91: 0.08477928 | AZ91: 0.0811148 | BC91: 0.2039442 | BD91: 0.08861284 | BE91: -0.11533136 | BF91: -4.082187687
A92: Food, beverages and tobacco products | B92: Thousands | C92: 93 | D92: 86 | E92: 27.80466 | F92: 26.29828 | G92: 25.65727 | H92: 25.05965 | I92: 24.40211 | J92: 24.72723 | K92: 25.10633 | L92: 25.51996 | M92: 27.09338 | N92: 28.72444 | O92: 27.24493 | P92: 26.8197 | Q92: 25.67395 | R92: 25.66109 | S92: 22.92956 | T92: 23.72788 | U92: 21.69794 | V92: 20.59791 | W92: 20.21322 | X92: 20.66328 | Y92: 20.91578 | Z92: 19.35602 | AA92: 20.47764 | AB92: 20.22092 | AC92: 21.87998 | AD92: 22.92614 | AE92: 22.93423 | AF92: 23.21022 | AG92: 22.98505 | AH92: 22.78839 | AI92: 22.66168 | AJ92: 22.5373 | AK92: 22.3848 | AL92: 22.18556 | AM92: 21.95391 | AN92: 21.68932 | AO92: 21.41174 | AP92: 21.13114 | AQ92: 20.84988 | AR92: 20.57806 | AS92: 20.30334 | AT92: 20.02573 | AU92: 19.74922 | AV92: 19.47368 | AW92: 19.19907 | AX92: 18.94596 | AY92: 18.67488 | AZ92: 18.40601 | BC92: 22.92614 | BD92: 18.94596 | BE92: -3.98018 | BF92: -0.9489043584
A93: Textiles, leather and clothing | B93: Thousands | C93: 94 | D93: 87 | E93: 32.31615 | F93: 30.50467 | G93: 29.6731 | H93: 30.53213 | I93: 31.44559 | J93: 30.36294 | K93: 29.63227 | L93: 26.13635 | M93: 23.76792 | N93: 23.25411 | O93: 18.89234 | P93: 16.5724 | Q93: 13.99893 | R93: 13.50871 | S93: 11.80155 | T93: 12.43285 | U93: 10.92101 | V93: 9.530531 | W93: 9.218053 | X93: 8.911409 | Y93: 9.116816 | Z93: 8.669602 | AA93: 12.94256 | AB93: 9.781316 | AC93: 9.200941 | AD93: 8.536774 | AE93: 8.174445 | AF93: 8.196039 | AG93: 8.020204 | AH93: 7.857882 | AI93: 7.723814 | AJ93: 7.592598 | AK93: 7.454284 | AL93: 7.303176 | AM93: 7.148989 | AN93: 6.987252 | AO93: 6.824139 | AP93: 6.663301 | AQ93: 6.506209 | AR93: 6.355091 | AS93: 6.206442 | AT93: 6.059443 | AU93: 5.91574 | AV93: 5.775126 | AW93: 5.637341 | AX93: 5.502447 | AY93: 5.37059 | AZ93: 5.24163 | BC93: 8.536774 | BD93: 5.502447 | BE93: -3.034327 | BF93: -2.172015922
A94: Wood products, paper products printing | B94: Thousands | C94: 95 | D94: 88 | E94: 25.07914 | F94: 22.65321 | G94: 21.17843 | H94: 22.05929 | I94: 22.76627 | J94: 23.1268 | K94: 21.34549 | L94: 20.15781 | M94: 19.55584 | N94: 19.02902 | O94: 17.58536 | P94: 15.84733 | Q94: 15.20548 | R94: 15.51767 | S94: 13.27015 | T94: 14.45339 | U94: 14.07929 | V94: 12.92126 | W94: 12.34043 | X94: 10.52444 | Y94: 14.25114 | Z94: 10.18825 | AA94: 11.05478 | AB94: 10.23755 | AC94: 10.59337 | AD94: 14.9047 | AE94: 15.24313 | AF94: 15.33009 | AG94: 15.06944 | AH94: 14.83232 | AI94: 14.64815 | AJ94: 14.46938 | AK94: 14.27544 | AL94: 14.05539 | AM94: 13.81851 | AN94: 13.56478 | AO94: 13.30614 | AP94: 13.04995 | AQ94: 12.79714 | AR94: 12.55384 | AS94: 12.31198 | AT94: 12.07141 | AU94: 11.8354 | AV94: 11.60324 | AW94: 11.37498 | AX94: 11.15086 | AY94: 10.93096 | AZ94: 10.71508 | BC94: 14.9047 | BD94: 11.15086 | BE94: -3.75384 | BF94: -1.440326482
A95: Coke, chemicals, pharmaceuticals | B95: Thousands | C95: 96 | D95: 89 | E95: 15.26108 | F95: 14.04594 | G95: 13.23499 | H95: 13.08132 | I95: 12.89549 | J95: 11.79016 | K95: 11.10861 | L95: 12.41171 | M95: 12.51943 | N95: 13.57894 | O95: 11.40882 | P95: 11.63979 | Q95: 11.56642 | R95: 10.52459 | S95: 9.173691 | T95: 9.645375 | U95: 9.552719 | V95: 8.478541 | W95: 9.65293 | X95: 9.013433 | Y95: 10.17474 | Z95: 8.852205 | AA95: 9.358005 | AB95: 9.316589 | AC95: 9.001626 | AD95: =IF(AD$8="","",IF(ISNA(INDIRECT("'"&reg&"'!"&AD$8&$C95))=TRUE,"",INDIRECT("'"&reg&"'!"&AD$8&$C95))) -> 8.926038 | AE95: 9.258358 | AF95: 9.292038 | AG95: 9.128623 | AH95: 8.979424 | AI95: 8.862782 | AJ95: 8.748848 | AK95: 8.626095 | AL95: 8.487466 | AM95: 8.338773 | AN95: 8.180058 | AO95: 8.018603 | AP95: 7.858541 | AQ95: 7.700768 | AR95: 7.548928 | AS95: 7.398673 | AT95: 7.249369 | AU95: 7.10297 | AV95: 6.959008 | AW95: 6.81743 | AX95: 6.678364 | AY95: 6.541996 | AZ95: 6.408176 | BC95: 8.926038 | BD95: 6.678364 | BE95: -2.247674 | BF95: -1.440028839
A96: Rubber, plastic other non-metallic goods | B96: Thousands | C96: 97 | D96: 90 | E96: =IF(E$8="","",IF(ISNA(INDIRECT("'"&reg&"'!"&E$8&$C96))=TRUE,"",INDIRECT("'"&reg&"'!"&E$8&$C96))) -> 20.63553 | F96: 19.53155 | G96: 18.95803 | H96: 20.1397 | I96: 21.22037 | J96: 19.2878 | K96: 21.38159 | L96: 18.90718 | M96: 18.62238 | N96: 17.8785 | O96: 16.0864 | P96: 16.93903 | Q96: 17.08167 | R96: 17.35817 | S96: 15.41801 | T96: 15.18182 | U96: 15.11098 | V96: 14.98239 | W96: 12.24921 | X96: 11.41974 | Y96: 11.76232 | Z96: 9.700804 | AA96: 11.53668 | AB96: 14.76958 | AC96: 12.77286 | AD96: 10.58429 | AE96: 10.53909 | AF96: 10.59479 | AG96: 10.41601 | AH96: 10.253 | AI96: 10.12684 | AJ96: 10.00381 | AK96: 9.870305 | AL96: 9.718611 | AM96: 9.555248 | AN96: 9.380252 | AO96: 9.201826 | AP96: 9.024769 | AQ96: 8.85016 | AR96: 8.682118 | AS96: 8.517824 | AT96: 8.35425 | AU96: 8.193068 | AV96: 8.034184 | AW96: 7.877779 | AX96: 7.723939 | AY96: 7.572951 | AZ96: 7.424619 | BC96: 10.58429 | BD96: 7.723939 | BE96: -2.860351 | BF96: -1.562889909
A97: Metals and fabricated metal goods | B97: Thousands | C97: 98 | D97: 91 | E97: 28.83455 | F97: 26.71972 | G97: 25.40247 | H97: 25.72114 | I97: 25.97814 | J97: 27.25059 | K97: 26.7432 | L97: 23.87784 | M97: 23.80874 | N97: 22.94627 | O97: 19.00177 | P97: 19.68291 | Q97: 19.29275 | R97: 17.3199 | S97: 16.13249 | T97: 15.99315 | U97: 14.98842 | V97: 14.2003 | W97: 15.47187 | X97: 13.05851 | Y97: 15.30624 | Z97: 13.68583 | AA97: 11.00846 | AB97: 14.76711 | AC97: 13.01776 | AD97: 14.91487 | AE97: 15.56834 | AF97: 15.59706 | AG97: 15.28616 | AH97: 15.00107 | AI97: 14.77152 | AJ97: 14.54776 | AK97: 14.31034 | AL97: 14.04792 | AM97: 13.78591 | AN97: 13.49376 | AO97: 13.1982 | AP97: 12.90641 | AQ97: 12.61944 | AR97: 12.34389 | AS97: 12.07181 | AT97: 11.80246 | AU97: 11.53888 | AV97: 11.28032 | AW97: 11.02668 | AX97: 10.77808 | AY97: 10.53558 | AZ97: 10.29814 | BC97: 14.91487 | BD97: 10.77808 | BE97: -4.13679 | BF97: -1.61110195
A98: Computers and electronic goods | B98: Thousands | C98: 99 | D98: 92 | E98: 22.8821 | F98: 20.71274 | G98: 19.00069 | H98: 19.58838 | I98: 20.0135 | J98: 19.53079 | K98: 20.45805 | L98: 19.80207 | M98: 17.70597 | N98: 18.39706 | O98: 17.11736 | P98: 13.69083 | Q98: 13.37555 | R98: 12.29678 | S98: 11.61119 | T98: 11.25687 | U98: 12.14439 | V98: 11.51642 | W98: 8.614191 | X98: 7.787116 | Y98: 10.17533 | Z98: 7.844307 | AA98: 7.414447 | AB98: 7.441541 | AC98: 9.518754 | AD98: 8.367718 | AE98: 8.482103 | AF98: 8.487376 | AG98: 8.304881 | AH98: 8.136502 | AI98: 7.998482 | AJ98: 7.869291 | AK98: 7.727902 | AL98: 7.57311 | AM98: 7.410416 | AN98: 7.239992 | AO98: 7.069726 | AP98: 6.901884 | AQ98: 6.737229 | AR98: 6.579013 | AS98: 6.422301 | AT98: 6.270152 | AU98: 6.11884 | AV98: 5.970688 | AW98: 5.825694 | AX98: 5.683836 | AY98: 5.545887 | AZ98: 5.41105 | BC98: 8.367718 | BD98: 5.683836 | BE98: -2.683882 | BF98: -1.915196778
A99: Machinery, motor vehicles and other transport | B99: Thousands | C99: 100 | D99: 93 | E99: 42.35885 | F99: 41.46507 | G99: 41.1102 | H99: 37.96555 | I99: 34.62314 | J99: 39.69542 | K99: 35.53481 | L99: 36.13752 | M99: 33.47399 | N99: 33.36377 | O99: 30.9092 | P99: 24.91175 | Q99: 23.14402 | R99: 22.47919 | S99: 20.50986 | T99: 16.08599 | U99: 17.00599 | V99: 14.41657 | W99: 14.92504 | X99: 11.36066 | Y99: 14.08509 | Z99: 10.2502 | AA99: 12.8757 | AB99: 11.82674 | AC99: 11.73114 | AD99: 13.05868 | AE99: 13.57506 | AF99: 13.60897 | AG99: 13.34662 | AH99: 13.10079 | AI99: 12.94489 | AJ99: 12.793 | AK99: 12.62783 | AL99: 12.43913 | AM99: 12.23574 | AN99: 12.01708 | AO99: 11.79376 | AP99: 11.57231 | AQ99: 11.35371 | AR99: 11.14335 | AS99: 10.93467 | AT99: 10.72675 | AU99: 10.52268 | AV99: 10.32132 | AW99: 10.12298 | AX99: 9.927748 | AY99: 9.733283 | AZ99: 9.542251 | BC99: 13.05868 | BD99: 9.927748 | BE99: -3.130932 | BF99: -1.361246996
A100: Furniture, other manufacturing & repair and instalation of machinery | B100: Thousands | C100: 101 | D100: 94 | E100: 19.34029 | F100: 19.10474 | G100: 19.24332 | H100: 19.95731 | I100: 20.6342 | J100: 19.44398 | K100: 19.95533 | L100: 18.55398 | M100: 19.06923 | N100: 17.20527 | O100: 17.31594 | P100: 15.4112 | Q100: 13.4204 | R100: 13.70798 | S100: 11.83717 | T100: 13.725 | U100: 13.36383 | V100: 12.17714 | W100: 15.62378 | X100: 12.47871 | Y100: 10.23325 | Z100: 13.75425 | AA100: 13.22133 | AB100: 12.37688 | AC100: 8.492575 | AD100: 8.930711 | AE100: 9.159535 | AF100: 9.261115 | AG100: 9.131454 | AH100: 9.014792 | AI100: 8.927811 | AJ100: 8.84216 | AK100: 8.746421 | AL100: 8.633961 | AM100: 8.510413 | AN100: 8.375886 | AO100: 8.237418 | AP100: 8.099232 | AQ100: 7.962237 | AR100: 7.830453 | AS100: 7.698804 | AT100: 7.567085 | AU100: 7.437446 | AV100: 7.30943 | AW100: 7.183015 | AX100: 7.058255 | AY100: 6.93552 | AZ100: 6.81455 | BC100: 8.930711 | BD100: 7.058255 | BE100: -1.872456 | BF100: -1.169597194
A101: Electricity, gas, steam and air conditioning | B101: Thousands | C101: 102 | D101: 95 | E101: 8.550243 | F101: 6.754748 | G101: 5.019002 | H101: 5.096372 | I101: 5.113967 | J101: 4.888411 | K101: 3.821658 | L101: 3.726349 | M101: 3.45698 | N101: 3.697236 | O101: 4.374098 | P101: 2.020605 | Q101: 2.038013 | R101: 1.448738 | S101: 1.006213 | T101: 1.231416 | U101: 1.184256 | V101: 0.9489117 | W101: 6.071419 | X101: 7.390588 | Y101: 7.748661 | Z101: 7.517838 | AA101: 8.06396 | AB101: 5.00583 | AC101: 6.625925 | AD101: =IF(AD$8="","",IF(ISNA(INDIRECT("'"&reg&"'!"&AD$8&$C101))=TRUE,"",INDIRECT("'"&reg&"'!"&AD$8&$C101))) -> 7.461478 | AE101: 7.646014 | AF101: 7.649694 | AG101: 7.564157 | AH101: 7.491715 | AI101: 7.432897 | AJ101: 7.388411 | AK101: 7.335806 | AL101: 7.271646 | AM101: 7.200337 | AN101: 7.122011 | AO101: 7.041588 | AP101: 6.919979 | AQ101: 6.837887 | AR101: 6.756573 | AS101: 6.674955 | AT101: 6.593869 | AU101: 6.514451 | AV101: 6.436306 | AW101: 6.359559 | AX101: 6.283983 | AY101: 6.209463 | AZ101: 6.136109 | BC101: 7.461478 | BD101: 6.283983 | BE101: -1.177495 | BF101: -0.8550708096
A102: Water supply, sewerage and other remediation activities | B102: Thousands | C102: 103 | D102: 96 | E102: =IF(E$8="","",IF(ISNA(INDIRECT("'"&reg&"'!"&E$8&$C102))=TRUE,"",INDIRECT("'"&reg&"'!"&E$8&$C102))) -> 3.834158 | F102: 3.532631 | G102: 3.362548 | H102: 2.945248 | I102: 2.629829 | J102: 3.004938 | K102: 4.423877 | L102: 3.76542 | M102: 4.909271 | N102: 5.241483 | O102: 6.949905 | P102: 5.356129 | Q102: 4.321978 | R102: 5.268939 | S102: 5.044005 | T102: 5.341116 | U102: 4.885327 | V102: 5.764282 | W102: 5.469469 | X102: 6.343047 | Y102: 5.48739 | Z102: 5.995924 | AA102: 7.475799 | AB102: 7.800836 | AC102: 7.768772 | AD102: 9.018438 | AE102: 9.172755 | AF102: 9.159255 | AG102: 9.02736 | AH102: 8.929561 | AI102: 8.868582 | AJ102: 8.816669 | AK102: 8.758013 | AL102: 8.690648 | AM102: 8.612618 | AN102: 8.522142 | AO102: 8.426502 | AP102: 8.330092 | AQ102: 8.23378 | AR102: 8.137061 | AS102: 8.03797 | AT102: 7.937964 | AU102: 7.839032 | AV102: 7.740759 | AW102: 7.643114 | AX102: 7.546272 | AY102: 7.449379 | AZ102: 7.353426 | BC102: 9.018438 | BD102: 7.546272 | BE102: -1.472166 | BF102: -0.8871289919
A103: Buildings construction, engineering & specialised construction activities | B103: Thousands | C103: 104 | D103: 97 | E103: 93.98133 | F103: 90.40697 | G103: 89.59594 | H103: 81.83935 | I103: 75.99239 | J103: 78.11328 | K103: 74.44193 | L103: 82.36098 | M103: 78.92101 | N103: 69.67937 | O103: 81.03849 | P103: 83.71124 | Q103: 87.96747 | R103: 99.29577 | S103: 99.45124 | T103: 99.5229 | U103: 105.0239 | V103: 108.3039 | W103: 96.81135 | X103: 87.67743 | Y103: 82.17648 | Z103: 83.47733 | AA103: 81.91589 | AB103: 80.77436 | AC103: 79.05692 | AD103: 79.82634 | AE103: 81.07815 | AF103: 81.93843 | AG103: 82.89465 | AH103: 84.46651 | AI103: 85.99902 | AJ103: 87.33981 | AK103: 88.50688 | AL103: 89.41304 | AM103: 90.17314 | AN103: 90.80915 | AO103: 91.38537 | AP103: 91.94346 | AQ103: 92.48942 | AR103: 93.026 | AS103: 93.55861 | AT103: 94.07413 | AU103: 94.59689 | AV103: 95.12142 | AW103: 95.64314 | AX103: 96.16812 | AY103: 96.69567 | AZ103: 97.22778 | BC103: 79.82634 | BD103: 96.16812 | BE103: 16.34178 | BF103: 0.9355712848
A104: Wholesale and motor vehicles trade | B104: Thousands | C104: 105 | D104: 98 | E104: 89.79341 | F104: 90.29369 | G104: 91.61053 | H104: 90.6208 | I104: 89.23069 | J104: 92.40165 | K104: 96.11316 | L104: 97.06694 | M104: 96.41626 | N104: 96.40131 | O104: 93.878 | P104: 91.61551 | Q104: 90.06471 | R104: 90.58636 | S104: 93.23534 | T104: 87.07247 | U104: 89.35272 | V104: 82.46093 | W104: 78.58025 | X104: 77.39772 | Y104: 78.54316 | Z104: 82.68085 | AA104: 80.98483 | AB104: 75.20058 | AC104: 78.03513 | AD104: 70.45742 | AE104: 69.65184 | AF104: 70.44329 | AG104: 70.57285 | AH104: 71.10405 | AI104: 71.70096 | AJ104: 72.40434 | AK104: 73.05576 | AL104: 73.6198 | AM104: 74.19263 | AN104: 74.62572 | AO104: 74.99355 | AP104: 75.36275 | AQ104: 75.70953 | AR104: 75.89954 | AS104: 75.93573 | AT104: 75.96613 | AU104: 75.99262 | AV104: 76.01629 | AW104: 76.0448 | AX104: 76.07536 | AY104: 76.10926 | AZ104: 76.16906 | BC104: 70.45742 | BD104: 76.07536 | BE104: 5.61794 | BF104: 0.3843159683
A105: Retailing | B105: Thousands | C105: 106 | D105: 99 | E105: 123.5872 | F105: 125.617 | G105: 128.6904 | H105: 126.7735 | I105: 124.1646 | J105: 129.9787 | K105: 128.5322 | L105: 124.0728 | M105: 127.7528 | N105: 128.492 | O105: 123.8325 | P105: 125.159 | Q105: 131.734 | R105: 134.6977 | S105: 136.3605 | T105: 132.4046 | U105: 132.762 | V105: 133.6675 | W105: 131.9461 | X105: 131.9523 | Y105: 125.7838 | Z105: 130.0916 | AA105: 133.1772 | AB105: 131.7399 | AC105: 139.8413 | AD105: 144.834 | AE105: 143.7263 | AF105: 145.46 | AG105: 145.8789 | AH105: 147.1024 | AI105: 148.4732 | AJ105: 150.0733 | AK105: 151.5594 | AL105: 152.8541 | AM105: 154.065 | AN105: 154.9757 | AO105: 155.7576 | AP105: 156.5369 | AQ105: 157.2924 | AR105: 157.7089 | AS105: 157.786 | AT105: 157.8471 | AU105: 157.9087 | AV105: 157.9621 | AW105: 158.0125 | AX105: 158.08 | AY105: 158.1447 | AZ105: 158.2164 | BC105: 144.834 | BD105: 158.08 | BE105: 13.246 | BF105: 0.4385235878
A106: Land transport and transport via pipelines | B106: Thousands | C106: 107 | D106: 100 | E106: 34.16537 | F106: 32.2926 | G106: 30.87738 | H106: 30.80765 | I106: 31.03289 | J106: 32.20783 | K106: 29.29616 | L106: 28.06039 | M106: 29.69158 | N106: 30.20613 | O106: 30.52232 | P106: 31.85701 | Q106: 31.53366 | R106: 32.66716 | S106: 30.94676 | T106: 31.21442 | U106: 29.93955 | V106: 30.44356 | W106: 27.61412 | X106: 29.46179 | Y106: 27.74634 | Z106: 29.88756 | AA106: 26.58577 | AB106: 28.10136 | AC106: 29.56452 | AD106: 32.58639 | AE106: 34.65635 | AF106: 34.75698 | AG106: 34.52979 | AH106: 34.47083 | AI106: 34.54205 | AJ106: 34.6256 | AK106: 34.66821 | AL106: 34.64781 | AM106: 34.57925 | AN106: 34.45704 | AO106: 34.31018 | AP106: 34.15617 | AQ106: 33.99907 | AR106: 33.83783 | AS106: 33.66026 | AT106: 33.47328 | AU106: 33.28658 | AV106: 33.09821 | AW106: 32.90815 | AX106: 32.71699 | AY106: 32.55877 | AZ106: 32.36762 | BC106: 32.58639 | BD106: 32.71699 | BE106: 0.1306 | BF106: 0.02000099143
A107: Water and air transport | B107: Thousands | C107: 108 | D107: 101 | E107: 4.189956 | F107: 4.92828 | G107: 5.740467 | H107: 5.107099 | I107: 4.688701 | J107: 5.722634 | K107: 4.937346 | L107: 5.384278 | M107: 6.622504 | N107: 6.943811 | O107: 6.779115 | P107: 7.123953 | Q107: 7.339194 | R107: 7.246687 | S107: 7.053631 | T107: 6.963616 | U107: 6.748234 | V107: 7.082456 | W107: 4.572042 | X107: 5.522452 | Y107: 4.905477 | Z107: 4.816922 | AA107: 5.714015 | AB107: 5.474121 | AC107: 5.768158 | AD107: =IF(AD$8="","",IF(ISNA(INDIRECT("'"&reg&"'!"&AD$8&$C107))=TRUE,"",INDIRECT("'"&reg&"'!"&AD$8&$C107))) -> 6.37064 | AE107: 6.535387 | AF107: 6.55074 | AG107: 6.516035 | AH107: 6.513074 | AI107: 6.535388 | AJ107: 6.560444 | AK107: 6.577977 | AL107: 6.583647 | AM107: 6.580214 | AN107: 6.566554 | AO107: 6.548121 | AP107: 6.52826 | AQ107: 6.507751 | AR107: 6.486331 | AS107: 6.461895 | AT107: 6.435571 | AU107: 6.409205 | AV107: 6.382391 | AW107: 6.355075 | AX107: 6.327444 | AY107: 6.299505 | AZ107: 6.271436 | BC107: 6.37064 | BD107: 6.327444 | BE107: -0.043196 | BF107: -0.03401207635
A108: Warehousing and support activities | B108: Thousands | C108: 109 | D108: 102 | E108: =IF(E$8="","",IF(ISNA(INDIRECT("'"&reg&"'!"&E$8&$C108))=TRUE,"",INDIRECT("'"&reg&"'!"&E$8&$C108))) -> 12.79784 | F108: 12.72492 | G108: 12.65679 | H108: 12.96368 | I108: 13.16678 | J108: 12.811 | K108: 13.60091 | L108: 11.93681 | M108: 14.08331 | N108: 14.06207 | O108: 14.91797 | P108: 17.7591 | Q108: 17.36218 | R108: 17.29807 | S108: 18.50533 | T108: 18.34358 | U108: 20.2648 | V108: 23.08489 | W108: 22.14527 | X108: 20.69206 | Y108: 19.5983 | Z108: 21.23192 | AA108: 23.32848 | AB108: 21.10528 | AC108: 24.15119 | AD108: 27.78782 | AE108: 31.29374 | AF108: 31.52701 | AG108: 31.57572 | AH108: 31.73661 | AI108: 32.01016 | AJ108: 32.2956 | AK108: 32.54819 | AL108: 32.74585 | AM108: 32.89991 | AN108: 33.00364 | AO108: 33.08104 | AP108: 33.1489 | AQ108: 33.20937 | AR108: 33.2627 | AS108: 33.29729 | AT108: 33.3213 | AU108: 33.34462 | AV108: 33.36554 | AW108: 33.38197 | AX108: 33.40154 | AY108: 33.41903 | AZ108: 33.4355 | BC108: 27.78782 | BD108: 33.40154 | BE108: 5.61372 | BF108: 0.9242662602
A109: Postal and courier activities | B109: Thousands | C109: 110 | D109: 103 | E109: 11.65206 | F109: 11.76256 | G109: 12.02288 | H109: 12.35043 | I109: 12.60014 | J109: 11.80537 | K109: 11.72714 | L109: 12.12051 | M109: 13.62255 | N109: 13.7992 | O109: 14.3182 | P109: 15.37717 | Q109: 14.87152 | R109: 12.7101 | S109: 13.67272 | T109: 13.37703 | U109: 13.48501 | V109: 13.56371 | W109: 12.09635 | X109: 11.78015 | Y109: 11.9943 | Z109: 12.1175 | AA109: 16.13366 | AB109: 14.07958 | AC109: 11.94181 | AD109: 11.8239 | AE109: 12.04328 | AF109: 12.04119 | AG109: 11.95616 | AH109: 11.9311 | AI109: 11.95067 | AJ109: 11.97991 | AK109: 11.99857 | AL109: 11.99557 | AM109: 11.97527 | AN109: 11.93579 | AO109: 11.88586 | AP109: 11.83245 | AQ109: 11.77776 | AR109: 11.72012 | AS109: 11.65742 | AT109: 11.59548 | AU109: 11.53269 | AV109: 11.46936 | AW109: 11.40681 | AX109: 11.3438 | AY109: 11.28083 | AZ109: 11.2176 | BC109: 11.8239 | BD109: 11.3438 | BE109: -0.4801 | BF109: -0.2070432074
A110: Accommodation | B110: Thousands | C110: 111 | D110: 104 | E110: 9.789809 | F110: 9.403743 | G110: 9.057602 | H110: 8.78695 | I110: 9.392634 | J110: 9.245786 | K110: 10.0921 | L110: 9.988119 | M110: 10.56664 | N110: 10.38924 | O110: 10.77111 | P110: 11.13435 | Q110: 11.46897 | R110: 9.882974 | S110: 11.32479 | T110: 10.7735 | U110: 11.16026 | V110: 11.3313 | W110: 11.01862 | X110: 11.08975 | Y110: 13.63964 | Z110: 12.62259 | AA110: 13.0622 | AB110: 13.84496 | AC110: 13.81635 | AD110: 14.86701 | AE110: 14.60955 | AF110: 14.76271 | AG110: 14.86252 | AH110: 15.05442 | AI110: 15.27998 | AJ110: 15.47446 | AK110: 15.64597 | AL110: 15.79431 | AM110: 15.92486 | AN110: 16.03212 | AO110: 16.12873 | AP110: 16.22241 | AQ110: 16.31519 | AR110: 16.40211 | AS110: 16.47087 | AT110: 16.51362 | AU110: 16.55125 | AV110: 16.58819 | AW110: 16.62491 | AX110: 16.66175 | AY110: 16.69832 | AZ110: 16.73367 | BC110: =IF($BD$4>$BD$5,"Invalid dates",IFERROR(HLOOKUP(BC$7,$E$7:$AZ$804,$D110,FALSE),"-")) -> 14.86701 | BD110: 16.66175 | BE110: 1.79474 | BF110: 0.5714818073
A111: Food and beverage service activities | B111: Thousands | C111: 112 | D111: 105 | E111: 54.19829 | F111: 52.29752 | G111: 50.3008 | H111: 48.88489 | I111: 52.39508 | J111: 51.76609 | K111: 57.62425 | L111: 54.67774 | M111: 56.64331 | N111: 55.89393 | O111: 58.24638 | P111: 63.09703 | Q111: 65.06017 | R111: 57.74279 | S111: 65.15524 | T111: 62.50803 | U111: 62.27597 | V111: 59.53388 | W111: 61.97451 | X111: 61.64082 | Y111: 61.44917 | Z111: 64.93868 | AA111: 57.99878 | AB111: 67.51134 | AC111: 70.31077 | AD111: 74.70055 | AE111: 76.05275 | AF111: 77.1488 | AG111: 77.66592 | AH111: 78.66494 | AI111: 79.83996 | AJ111: 80.85139 | AK111: 81.74817 | AL111: 82.53313 | AM111: 83.22818 | AN111: 83.8115 | AO111: 84.33253 | AP111: 84.82645 | AQ111: 85.30425 | AR111: 85.73944 | AS111: 86.07936 | AT111: 86.28601 | AU111: 86.46356 | AV111: 86.63658 | AW111: 86.8158 | AX111: 86.99564 | AY111: 87.17726 | AZ111: 87.35579 | BC111: 74.70055 | BD111: 86.99564 | BE111: 12.29509 | BF111: 0.7647622197
A112: Publishing, motion picture and broadcasting activities | B112: Thousands | C112: 113 | D112: 106 | E112: 5.820639 | F112: 6.20306 | G112: 6.765352 | H112: 7.365537 | I112: 8.032398 | J112: 7.538142 | K112: 7.446899 | L112: 8.114376 | M112: 8.588344 | N112: 8.775903 | O112: 8.973362 | P112: 9.450116 | Q112: 9.72256 | R112: 9.025262 | S112: 9.630329 | T112: 9.81485 | U112: 9.714578 | V112: 8.205304 | W112: 8.397022 | X112: 8.684277 | Y112: 7.968441 | Z112: 11.24737 | AA112: 9.359045 | AB112: 11.0693 | AC112: 11.62635 | AD112: 13.96255 | AE112: 13.57803 | AF112: 13.69139 | AG112: 13.78991 | AH112: 13.95925 | AI112: 14.17173 | AJ112: 14.33575 | AK112: 14.45427 | AL112: 14.54268 | AM112: 14.61021 | AN112: 14.65508 | AO112: 14.6894 | AP112: 14.72049 | AQ112: 14.75 | AR112: 14.77747 | AS112: 14.79685 | AT112: 14.80972 | AU112: 14.83772 | AV112: 14.85106 | AW112: 14.86378 | AX112: 14.87838 | AY112: 14.89489 | AZ112: 14.9108 | BC112: 13.96255 | BD112: 14.87838 | BE112: 0.91583 | BF112: 0.3181570842
A113: Telecommunications | B113: Thousands | C113: 114 | D113: 107 | E113: 6.435208 | F113: 6.608155 | G113: 6.939794 | H113: 7.477753 | I113: 7.991527 | J113: 7.594203 | K113: 7.734215 | L113: 7.546578 | M113: 7.891108 | N113: 9.022799 | O113: 9.826035 | P113: 11.07904 | Q113: 11.17366 | R113: 9.19216 | S113: 9.663918 | T113: 9.799461 | U113: 8.914571 | V113: 9.147732 | W113: 10.71224 | X113: 9.503048 | Y113: 12.49377 | Z113: 10.34688 | AA113: 8.617318 | AB113: 9.814265 | AC113: 14.55047 | AD113: =IF(AD$8="","",IF(ISNA(INDIRECT("'"&reg&"'!"&AD$8&$C113))=TRUE,"",INDIRECT("'"&reg&"'!"&AD$8&$C113))) -> 12.58903 | AE113: 12.18386 | AF113: 12.17753 | AG113: 12.18861 | AH113: 12.26132 | AI113: 12.3722 | AJ113: 12.44046 | AK113: 12.46516 | AL113: 12.46327 | AM113: 12.44312 | AN113: 12.40351 | AO113: 12.35486 | AP113: 12.30339 | AQ113: 12.25062 | AR113: 12.19605 | AS113: 12.13526 | AT113: 12.07096 | AU113: 12.00651 | AV113: 11.94131 | AW113: 11.87572 | AX113: 11.8095 | AY113: 11.74267 | AZ113: 11.67557 | BC113: 12.58903 | BD113: 11.8095 | BE113: -0.77953 | BF113: -0.3190973363
A114: Computer programming and information services activities | B114: Thousands | C114: 115 | D114: 108 | E114: =IF(E$8="","",IF(ISNA(INDIRECT("'"&reg&"'!"&E$8&$C114))=TRUE,"",INDIRECT("'"&reg&"'!"&E$8&$C114))) -> 16.45973 | F114: 16.09531 | G114: 15.96729 | H114: 15.78376 | I114: 15.75789 | J114: 14.30194 | K114: 15.86184 | L114: 16.67716 | M114: 18.95148 | N114: 21.63794 | O114: 22.82705 | P114: 22.23628 | Q114: 26.38591 | R114: 28.52581 | S114: 24.69637 | T114: 28.03024 | U114: 26.62374 | V114: 22.56678 | W114: 21.3868 | X114: 17.63731 | Y114: 21.71467 | Z114: 21.30478 | AA114: 22.62716 | AB114: 23.6049 | AC114: 28.01287 | AD114: 25.92044 | AE114: 26.22651 | AF114: 26.50764 | AG114: 26.80784 | AH114: 27.24827 | AI114: 27.77914 | AJ114: 28.2207 | AK114: 28.56828 | AL114: 28.85833 | AM114: 29.10856 | AN114: 29.31503 | AO114: 29.50106 | AP114: 29.68121 | AQ114: 29.86062 | AR114: 30.03639 | AS114: 30.19673 | AT114: 30.34839 | AU114: 30.49985 | AV114: 30.66815 | AW114: 30.8497 | AX114: 31.02987 | AY114: 31.20868 | AZ114: 31.3869 | BC114: 25.92044 | BD114: 31.02987 | BE114: 5.10943 | BF114: 0.9036507031
A115: Financial service activities | B115: Thousands | C115: 116 | D115: 109 | E115: 26.35752 | F115: 24.88072 | G115: 23.36444 | H115: 23.96319 | I115: 23.80857 | J115: 23.10209 | K115: 21.92737 | L115: 21.80042 | M115: 23.37333 | N115: 24.40689 | O115: 24.22018 | P115: 26.3478 | Q115: 25.01676 | R115: 27.34929 | S115: 26.10884 | T115: 26.61752 | U115: 25.8312 | V115: 27.39607 | W115: 24.19725 | X115: 23.76619 | Y115: 25.32977 | Z115: 21.54073 | AA115: 23.34941 | AB115: 23.6962 | AC115: 21.13919 | AD115: 20.59899 | AE115: 20.68984 | AF115: 20.49564 | AG115: 20.12829 | AH115: 19.80366 | AI115: 19.56943 | AJ115: 19.51353 | AK115: 19.4668 | AL115: 19.38874 | AM115: 19.29163 | AN115: 19.17382 | AO115: 19.04842 | AP115: 18.92146 | AQ115: 18.79525 | AR115: 18.66434 | AS115: 18.52986 | AT115: 18.39479 | AU115: 18.26242 | AV115: 18.13152 | AW115: 18.00188 | AX115: 17.87352 | AY115: 17.74614 | AZ115: 17.62011 | BC115: 20.59899 | BD115: 17.87352 | BE115: -2.72547 | BF115: -0.7070970092
A116: Insurance, reinsurance and pension funds | B116: Thousands | C116: 117 | D116: 110 | E116: 7.24386 | F116: 7.028463 | G116: 6.825882 | H116: 7.276089 | I116: 7.662782 | J116: 9.600378 | K116: 7.918449 | L116: 9.877044 | M116: 10.82445 | N116: 10.88797 | O116: 9.438853 | P116: 9.860499 | Q116: 10.08284 | R116: 9.661033 | S116: 9.880871 | T116: 10.01676 | U116: 10.14979 | V116: 10.02489 | W116: 6.353004 | X116: 6.223539 | Y116: 6.066662 | Z116: 6.300765 | AA116: 6.311555 | AB116: 6.736671 | AC116: 5.717243 | AD116: 5.741705 | AE116: 6.093357 | AF116: 6.049916 | AG116: 5.953477 | AH116: 5.869055 | AI116: 5.811024 | AJ116: 5.799494 | AK116: 5.790667 | AL116: 5.772488 | AM116: 5.748569 | AN116: 5.718423 | AO116: 5.685959 | AP116: 5.659715 | AQ116: 5.627413 | AR116: 5.593651 | AS116: 5.558158 | AT116: 5.522427 | AU116: 5.489014 | AV116: 5.455971 | AW116: 5.423226 | AX116: 5.390793 | AY116: 5.358575 | AZ116: 5.326692 | BC116: 5.741705 | BD116: 5.390793 | BE116: -0.350912 | BF116: -0.314821924
A117: Activities auxiliary to financial services | B117: Thousands | C117: 118 | D117: 111 | E117: 11.25479 | F117: 10.86874 | G117: 10.49607 | H117: 10.4777 | I117: 10.08656 | J117: 8.811274 | K117: 9.067833 | L117: 8.923866 | M117: 10.03648 | N117: 10.08633 | O117: 10.83372 | P117: 11.57308 | Q117: 11.1956 | R117: 11.83948 | S117: 13.25008 | T117: 12.91164 | U117: 12.87926 | V117: 15.15301 | W117: 20.21231 | X117: 19.9011 | Y117: 19.965 | Z117: 22.86691 | AA117: 21.39109 | AB117: 15.15315 | AC117: 16.49616 | AD117: 18.85212 | AE117: 20.32953 | AF117: 20.34079 | AG117: 20.16599 | AH117: 20.02908 | AI117: 19.97936 | AJ117: 20.08851 | AK117: 20.20741 | AL117: 20.29384 | AM117: 20.37978 | AN117: 20.42576 | AO117: 20.46278 | AP117: 20.49714 | AQ117: 20.53803 | AR117: 20.57286 | AS117: 20.60456 | AT117: 20.63449 | AU117: 20.66727 | AV117: 20.70061 | AW117: 20.73435 | AX117: 20.76848 | AY117: 20.80272 | AZ117: 20.83752 | BC117: 18.85212 | BD117: 20.76848 | BE117: 1.91636 | BF117: 0.4852288323
A118: Real estate activities | B118: Thousands | C118: 119 | D118: 112 | E118: 11.84391 | F118: 12.21062 | G118: 12.64474 | H118: 12.90984 | I118: 13.64828 | J118: 12.89004 | K118: 13.5659 | L118: 12.37822 | M118: 11.89089 | N118: 13.21024 | O118: 14.45464 | P118: 15.42106 | Q118: 18.39012 | R118: 19.48306 | S118: 19.21763 | T118: 19.88429 | U118: 22.00226 | V118: 22.66914 | W118: 24.89537 | X118: 21.35563 | Y118: 22.15489 | Z118: 21.65069 | AA118: 29.09921 | AB118: 27.17142 | AC118: 27.39419 | AD118: 28.86767 | AE118: 31.03197 | AF118: 31.12355 | AG118: 31.30848 | AH118: 31.57728 | AI118: 31.93664 | AJ118: 32.27193 | AK118: 32.5756 | AL118: 32.83674 | AM118: 33.06882 | AN118: 33.26949 | AO118: 33.45951 | AP118: 33.64348 | AQ118: 33.82718 | AR118: 34.01017 | AS118: 34.18406 | AT118: 34.34782 | AU118: 34.50891 | AV118: 34.66957 | AW118: 34.82772 | AX118: 34.98233 | AY118: 35.13599 | AZ118: 35.28524 | BC118: 28.86767 | BD118: 34.98233 | BE118: 6.11466 | BF118: 0.9652325742
A119: Legal and accounting activities | B119: Thousands | C119: 120 | D119: 113 | E119: 21.60207 | F119: 22.01031 | G119: 22.64971 | H119: 21.68608 | I119: 21.43223 | J119: 23.55168 | K119: 23.53222 | L119: 23.31114 | M119: 25.20474 | N119: 26.52271 | O119: 27.30773 | P119: 26.80379 | Q119: 30.52383 | R119: 32.28596 | S119: 32.89954 | T119: 34.28097 | U119: 36.8707 | V119: 34.0415 | W119: 32.73582 | X119: 39.0096 | Y119: 37.89817 | Z119: 39.17072 | AA119: 44.96254 | AB119: 44.24515 | AC119: 44.87785 | AD119: =IF(AD$8="","",IF(ISNA(INDIRECT("'"&reg&"'!"&AD$8&$C119))=TRUE,"",INDIRECT("'"&reg&"'!"&AD$8&$C119))) -> 44.8296 | AE119: 47.99404 | AF119: 48.65594 | AG119: 49.34922 | AH119: 50.16815 | AI119: 51.11188 | AJ119: 51.97124 | AK119: 52.66222 | AL119: 53.25371 | AM119: 53.77208 | AN119: 54.21202 | AO119: 54.61438 | AP119: 55.00471 | AQ119: 55.38661 | AR119: 55.84399 | AS119: 56.33716 | AT119: 56.81729 | AU119: 57.28928 | AV119: 57.75687 | AW119: 58.21523 | AX119: 58.66428 | AY119: 59.10614 | AZ119: 59.53812 | BC119: 44.8296 | BD119: 58.66428 | BE119: 13.83468 | BF119: 1.353895209
A120: Activities of head offices | B120: Thousands | C120: 121 | D120: 114 | E120: =IF(E$8="","",IF(ISNA(INDIRECT("'"&reg&"'!"&E$8&$C120))=TRUE,"",INDIRECT("'"&reg&"'!"&E$8&$C120))) -> 10.09619 | F120: 10.62072 | G120: 11.25787 | H120: 11.00387 | I120: 11.06944 | J120: 12.21878 | K120: 12.61456 | L120: 11.49545 | M120: 12.41145 | N120: 13.37452 | O120: 13.99917 | P120: 15.02442 | Q120: 18.4178 | R120: 20.24683 | S120: 20.71696 | T120: 21.60541 | U120: 22.8845 | V120: 25.4052 | W120: 26.42021 | X120: 29.77299 | Y120: 31.87367 | Z120: 32.67013 | AA120: 34.16966 | AB120: 39.79755 | AC120: 36.93781 | AD120: 39.5439 | AE120: 43.33945 | AF120: 44.08878 | AG120: 44.88823 | AH120: 45.80531 | AI120: 46.83954 | AJ120: 47.80378 | AK120: 48.63853 | AL120: 49.39065 | AM120: 50.0839 | AN120: 50.71078 | AO120: 51.30939 | AP120: 51.90181 | AQ120: 52.49043 | AR120: 53.15405 | AS120: 53.85306 | AT120: 54.54175 | AU120: 55.22704 | AV120: 55.91279 | AW120: 56.59481 | AX120: 57.27222 | AY120: 57.94235 | AZ120: 58.60516 | BC120: 39.5439 | BD120: 57.27222 | BE120: 17.72832 | BF120: 1.869277489
A121: Architectural and engineering activities | B121: Thousands | C121: 122 | D121: 115 | E121: 11.69531 | F121: 12.85831 | G121: 14.57668 | H121: 15.11605 | I121: 16.62007 | J121: 19.29441 | K121: 18.71664 | L121: 14.06559 | M121: 14.06477 | N121: 14.26121 | O121: 15.16984 | P121: 15.60916 | Q121: 16.06024 | R121: 16.86482 | S121: 14.26707 | T121: 17.40929 | U121: 19.29957 | V121: 20.30176 | W121: 20.71022 | X121: 22.47423 | Y121: 19.96347 | Z121: 19.85615 | AA121: 22.35492 | AB121: 22.37519 | AC121: 22.58767 | AD121: 24.24755 | AE121: 25.02745 | AF121: 25.36947 | AG121: 25.77447 | AH121: 26.25828 | AI121: 26.81289 | AJ121: 27.32811 | AK121: 27.76825 | AL121: 28.15903 | AM121: 28.5138 | AN121: 28.82866 | AO121: 29.12515 | AP121: 29.41655 | AQ121: 29.70451 | AR121: 30.0348 | AS121: 30.38534 | AT121: 30.73067 | AU121: 31.07403 | AV121: 31.41726 | AW121: 31.75758 | AX121: 32.09466 | AY121: 32.42997 | AZ121: 32.76175 | BC121: 24.24755 | BD121: 32.09466 | BE121: 7.84711 | BF121: 1.41174268
A122: Scientific research and development | B122: Thousands | C122: 123 | D122: 116 | E122: 0.3838844 | F122: 0.5565561 | G122: 0.7508126 | H122: 0.6151984 | I122: 0.4843524 | J122: 0.7296172 | K122: 1.86676 | L122: 0.8847825 | M122: 1.465812 | N122: 1.240036 | O122: 1.219109 | P122: 1.431998 | Q122: 1.739262 | R122: 2.004196 | S122: 1.864578 | T122: 1.429969 | U122: 1.020391 | V122: 1.89288 | W122: 1.164944 | X122: 1.177474 | Y122: 1.859053 | Z122: 1.465091 | AA122: 1.134741 | AB122: 1.245658 | AC122: 0.9953336 | AD122: 2.005849 | AE122: 2.152865 | AF122: 2.16745 | AG122: 2.180242 | AH122: 2.202695 | AI122: 2.23157 | AJ122: 2.256959 | AK122: 2.275345 | AL122: 2.28896 | AM122: 2.299114 | AN122: 2.305681 | AO122: 2.310537 | AP122: 2.314834 | AQ122: 2.318849 | AR122: 2.325843 | AS122: 2.334368 | AT122: 2.342222 | AU122: 2.349585 | AV122: 2.356544 | AW122: 2.363019 | AX122: 2.368883 | AY122: 2.374258 | AZ122: 2.379034 | BC122: 2.005849 | BD122: 2.368883 | BE122: 0.363034 | BF122: 0.8352243149
A123: Advertising and market research | B123: Thousands | C123: 124 | D123: 117 | E123: 4.689534 | F123: 4.626512 | G123: 4.588091 | H123: 4.216181 | I123: 4.0251 | J123: 4.843823 | K123: 5.99029 | L123: 5.124979 | M123: 4.850977 | N123: 5.558932 | O123: 5.730112 | P123: 5.853597 | Q123: 6.492715 | R123: 6.783404 | S123: 6.175059 | T123: 6.587591 | U123: 6.763527 | V123: 7.069628 | W123: 8.91515 | X123: 6.170769 | Y123: 7.841918 | Z123: 6.841142 | AA123: 6.320328 | AB123: 6.926039 | AC123: 7.663505 | AD123: 8.220013 | AE123: 8.174402 | AF123: 8.255614 | AG123: 8.334748 | AH123: 8.429401 | AI123: 8.541243 | AJ123: 8.636322 | AK123: 8.705938 | AL123: 8.759646 | AM123: 8.801558 | AN123: 8.831318 | AO123: 8.855628 | AP123: 8.87821 | AQ123: 8.899365 | AR123: 8.931989 | AS123: 8.968925 | AT123: 9.002516 | AU123: 9.034255 | AV123: 9.064899 | AW123: 9.094164 | AX123: 9.121563 | AY123: 9.147576 | AZ123: 9.171802 | BC123: 8.220013 | BD123: 9.121563 | BE123: 0.90155 | BF123: 0.5217030577
A124: Other professional, scientific | B124: Thousands | C124: 125 | D124: 118 | E124: 5.455629 | F124: 5.708889 | G124: 6.089453 | H124: 6.042883 | I124: 6.353909 | J124: 7.120583 | K124: 7.98361 | L124: 6.731812 | M124: 6.90134 | N124: 7.393733 | O124: 7.824587 | P124: 7.844615 | Q124: 9.294607 | R124: 9.951027 | S124: 9.960215 | T124: 10.63338 | U124: 10.66739 | V124: 9.978889 | W124: 6.840754 | X124: 7.128258 | Y124: 6.966728 | Z124: 13.02398 | AA124: 13.07086 | AB124: 14.46008 | AC124: 10.72811 | AD124: 12.51491 | AE124: 12.28197 | AF124: 12.49373 | AG124: 12.68948 | AH124: 12.91677 | AI124: 13.17453 | AJ124: 13.41052 | AK124: 13.6083 | AL124: 13.78144 | AM124: 13.93685 | AN124: 14.07292 | AO124: 14.20015 | AP124: 14.3247 | AQ124: 14.44817 | AR124: 14.59183 | AS124: 14.74449 | AT124: 14.89406 | AU124: 15.04214 | AV124: 15.18965 | AW124: 15.33551 | AX124: 15.47944 | AY124: 15.62211 | AZ124: 15.76277 | BC124: 12.51491 | BD124: 15.47944 | BE124: 2.96453 | BF124: 1.068629279
A125: Veterinary activities | B125: Thousands | C125: 126 | D125: 119 | E125: 1.036979 | F125: 1.045939 | G125: 1.066374 | H125: 1.088683 | I125: 1.12011 | J125: 1.325837 | K125: 1.234042 | L125: 1.084435 | M125: 1.172716 | N125: 1.160263 | O125: 1.223626 | P125: 1.282678 | Q125: 1.302739 | R125: 1.351801 | S125: 1.367027 | T125: 1.424178 | U125: 1.444766 | V125: 1.285776 | W125: 2.003562 | X125: 2.43314 | Y125: 0.7659212 | Z125: 1.107775 | AA125: 1.583279 | AB125: 1.175169 | AC125: 1.546183 | AD125: =IF(AD$8="","",IF(ISNA(INDIRECT("'"&reg&"'!"&AD$8&$C125))=TRUE,"",INDIRECT("'"&reg&"'!"&AD$8&$C125))) -> 1.976945 | AE125: 2.158133 | AF125: 2.184232 | AG125: 2.218393 | AH125: 2.260022 | AI125: 2.307888 | AJ125: 2.352629 | AK125: 2.390838 | AL125: 2.424811 | AM125: 2.455671 | AN125: 2.483153 | AO125: 2.509049 | AP125: 2.534608 | AQ125: 2.560034 | AR125: 2.588486 | AS125: 2.618827 | AT125: 2.648779 | AU125: 2.678559 | AV125: 2.708313 | AW125: 2.737798 | AX125: 2.76693 | AY125: 2.79588 | AZ125: 2.824498 | BC125: 1.976945 | BD125: 2.76693 | BE125: 0.789985 | BF125: 1.695135486
... 150 more rows

Sheet Comparison
B1: Back to Contents
C3: =Area1.&" versus "&Area2. -> Greater Manchester versus Manchester
C6: Geography 1 | I6: FORECAST YEARS | K6: START YEAR | L6: 2016
K7: END YEAR | L7: 2036
C8: Geography 2
D14: Units | E14: =L6 -> 2016 | G14: Difference | H14: =L7 -> 2036 | J14: Difference | K14: ="Change "&L6&"-"&L7 -> Change 2016-2036 | M14: Difference | N14: ="Growth "&L6&"-"&L7 -> Growth 2016-2036 | P14: Difference (pp)
E15: =Area1. -> Greater Manchester | F15: =Area2. -> Manchester | H15: =Area1. -> Greater Manchester | I15: =Area2. -> Manchester | K15: =Area1. -> Greater Manchester | L15: =Area2. -> Manchester | N15: =Area1. -> Greater Manchester | O15: =Area2. -> Manchester
C16: Demography
C17: Total population | D17: (000s) | E17: =compare_data!C5 -> 2781.046 | F17: =compare_data!H5 -> 541.3837 | G17: =compare_data!K5 -> 2239.6623 | H17: =compare_data!D5 -> 2970.83 | I17: =compare_data!I5 -> 651.7128 | J17: =compare_data!L5 -> 2319.1172 | K17: =compare_data!N5 -> 189.784 | L17: =compare_data!O5 -> 110.3291 | M17: =compare_data!P5 -> 79.4549 | N17: =compare_data!R5 -> 0.3306166308 | O17: =compare_data!S5 -> 0.9316920008 | P17: =compare_data!T5 -> -0.6010753701
C18: Population aged 0-15 | D18: (000s) | E18: =compare_data!C6 -> 564.7825 | F18: =compare_data!H6 -> 108.79 | G18: =compare_data!K6 -> 455.9925 | H18: =compare_data!D6 -> 584.7892 | I18: =compare_data!I6 -> 130.6303 | J18: =compare_data!L6 -> 454.1589 | K18: =compare_data!N6 -> 20.0067 | L18: =compare_data!O6 -> 21.8403 | M18: =compare_data!P6 -> -1.8336 | N18: =compare_data!R6 -> 0.174205257 | O18: =compare_data!S6 -> 0.9189555941 | P18: =compare_data!T6 -> -0.744750337
C19: Population aged 16-64 | D19: (000s) | E19: =compare_data!C7 -> 1779.546 | F19: =compare_data!H7 -> 382.299 | G19: =compare_data!K7 -> 1397.247 | H19: =compare_data!D7 -> 1778.569 | I19: =compare_data!I7 -> 440.2248 | J19: =compare_data!L7 -> 1338.3442 | K19: =compare_data!N7 -> -0.977 | L19: =compare_data!O7 -> 57.9258 | M19: =compare_data!P7 -> -58.9028 | N19: =compare_data!R7 -> -0.002745798298 | O19: =compare_data!S7 -> 0.7079062968 | P19: =compare_data!T7 -> -0.7106520951
C20: Population aged 65+ | D20: (000s) | E20: =compare_data!C8 -> 436.7174 | F20: =compare_data!H8 -> 50.29471 | G20: =compare_data!K8 -> 386.42269 | H20: =compare_data!D8 -> 607.4715 | I20: =compare_data!I8 -> 80.85779 | J20: =compare_data!L8 -> 526.61371 | K20: =compare_data!N8 -> 170.7541 | L20: =compare_data!O8 -> 30.56308 | M20: =compare_data!P8 -> 140.19102 | N20: =compare_data!R8 -> 1.663784038 | O20: =compare_data!S8 -> 2.402362896 | P20: =compare_data!T8 -> -0.7385788573
C21: Total migration (Anuual average) | D21: (000s) | E21: =compare_data!C9 -> 13.89 | F21: =compare_data!H9 -> 6.939 | G21: =compare_data!K9 -> 6.951 | H21: =compare_data!D9 -> -2.913278 | I21: =compare_data!I9 -> -0.1122363 | J21: =compare_data!L9 -> -2.8010417 | K21: =compare_data!N9 -> -16.803278 | L21: =compare_data!O9 -> -7.0512363 | M21: =compare_data!P9 -> -9.7520417 | N21: =compare_data!R9 -> - | O21: =compare_data!S9 -> - | P21: =compare_data!T9 -> -
C22: Labour market
C23: Total employees | D23: (000s) | E23: =compare_data!C13 -> 1267.755 | F23: =compare_data!H13 -> 372.662 | G23: =compare_data!K13 -> 895.093 | H23: =compare_data!D13 -> 1409.181 | I23: =compare_data!I13 -> 452.0204 | J23: =compare_data!L13 -> 957.1606 | K23: =compare_data!N13 -> 141.426 | L23: =compare_data!O13 -> 79.3584 | M23: =compare_data!P13 -> 62.0676 | N23: =compare_data!R13 -> 0.5302059676 | O23: =compare_data!S13 -> 0.9699511729 | P23: =compare_data!T13 -> -0.4397452053
C24: Self employed | D24: (000s) | E24: =compare_data!C14 -> 153.7949 | F24: =compare_data!H14 -> 33.06269 | G24: =compare_data!K14 -> 120.73221 | H24: =compare_data!D14 -> 152.4492 | I24: =compare_data!I14 -> 35.70342 | J24: =compare_data!L14 -> 116.74578 | K24: =compare_data!N14 -> -1.3457 | L24: =compare_data!O14 -> 2.64073 | M24: =compare_data!P14 -> -3.98643 | N24: =compare_data!R14 -> -0.04393270064 | O24: =compare_data!S14 -> 0.3849441452 | P24: =compare_data!T14 -> -0.4288768458
C25: Total employment (jobs) | D25: (000s) | E25: =compare_data!C15 -> 1421.636 | F25: =compare_data!H15 -> 405.7706 | G25: =compare_data!K15 -> 1015.8654 | H25: =compare_data!D15 -> 1561.716 | I25: =compare_data!I15 -> 487.7697 | J25: =compare_data!L15 -> 1073.9463 | K25: =compare_data!N15 -> 140.08 | L25: =compare_data!O15 -> 81.9991 | M25: =compare_data!P15 -> 58.0809 | N25: =compare_data!R15 -> 0.4709901662 | O25: =compare_data!S15 -> 0.924524533 | P25: =compare_data!T15 -> -0.4535343668
C26: Total employment (people) | D26: (000s) | E26: =compare_data!C16 -> 1366.792 | F26: =compare_data!H16 -> 385.6917 | G26: =compare_data!K16 -> 981.1003 | H26: =compare_data!D16 -> 1504.513 | I26: =compare_data!I16 -> 463.4402 | J26: =compare_data!L16 -> 1041.0728 | K26: =compare_data!N16 -> 137.721 | L26: =compare_data!O16 -> 77.7485 | M26: =compare_data!P16 -> 59.9725 | N26: =compare_data!R16 -> 0.4811682627 | O26: =compare_data!S16 -> 0.9224234058 | P26: =compare_data!T16 -> -0.4412551432
C27: Residence employment | D27: (000s) | E27: =compare_data!C17 -> 1321.727 | F27: =compare_data!H17 -> 248.185 | G27: =compare_data!K17 -> 1073.542 | H27: =compare_data!D17 -> 1487.106 | I27: =compare_data!I17 -> 289.81 | J27: =compare_data!L17 -> 1197.296 | K27: =compare_data!N17 -> 165.379 | L27: =compare_data!O17 -> 41.625 | M27: =compare_data!P17 -> 123.754 | N27: =compare_data!R17 -> 0.5912044288 | O27: =compare_data!S17 -> 0.7782683865 | P27: =compare_data!T17 -> -0.1870639577
C28: APS Residence employment rate (16-64) | D28: % | E28: =compare_data!C18 -> 70.5 | F28: =compare_data!H18 -> 63.4 | G28: =IFERROR(ROUND(compare_data!K18,1)&compare_data!$Q$4,"-") -> 7.1 pp | H28: =compare_data!D18 -> 75.25725 | I28: =compare_data!I18 -> 64.54446 | J28: =IFERROR(ROUND(compare_data!L18,1)&compare_data!$Q$4,"-") -> 10.7 pp | K28: =IFERROR(ROUND(compare_data!N18,1)&compare_data!$Q$4,"-") -> 4.8 pp | L28: =IFERROR(ROUND(compare_data!O18,1)&compare_data!$Q$4,"-") -> 1.1 pp | M28: =IFERROR(ROUND(compare_data!P18,1)&compare_data!$Q$4,"-") -> 3.6 pp | N28: =compare_data!R18 -> 0.3270312576 | O28: =compare_data!S18 -> 0.08949215648 | P28: =compare_data!T18 -> 0.2375391012
C29: Net commuting | D29: (000s) | E29: =compare_data!C20 -> 45.06567 | F29: =compare_data!H20 -> 137.5067 | G29: =compare_data!K20 -> -92.44103 | H29: =compare_data!D20 -> 17.4071 | I29: =compare_data!I20 -> 173.6303 | J29: =compare_data!L20 -> -156.2232 | K29: =compare_data!N20 -> -27.65857 | L29: =compare_data!O20 -> 36.1236 | M29: =compare_data!P20 -> -63.78217 | N29: =compare_data!R20 -> -4.644877239 | O29: =compare_data!S20 -> 1.173105958 | P29: =compare_data!T20 -> -5.817983197
C30: Unemployment level | D30: (000s) | E30: =compare_data!C21 -> 46.13013 | F30: =compare_data!H21 -> 10.48314 | G30: =compare_data!K21 -> 35.64699 | H30: =compare_data!D21 -> 42.86162 | I30: =compare_data!I21 -> 10.87754 | J30: =compare_data!L21 -> 31.98408 | K30: =compare_data!N21 -> -3.26851 | L30: =compare_data!O21 -> 0.3944 | M30: =compare_data!P21 -> -3.66291 | N30: =compare_data!R21 -> -0.3667733816 | O30: =compare_data!S21 -> 0.1848299032 | P30: =compare_data!T21 -> -0.5516032848
C31: Unemployment rate (16-64) | D31: % | E31: =compare_data!C22 -> 2.592241504 | F31: =compare_data!H22 -> 2.742131159 | G31: =IFERROR(ROUND(compare_data!K22,1)&compare_data!$Q$4,"-") -> -0.1 pp | H31: =compare_data!D22 -> 2.409893572 | I31: =compare_data!I22 -> 2.470905774 | J31: =IFERROR(ROUND(compare_data!L22,1)&compare_data!$Q$4,"-") -> -0.1 pp | K31: =IFERROR(ROUND(compare_data!N22,1)&compare_data!$Q$4,"-") -> -0.2 pp | L31: =IFERROR(ROUND(compare_data!O22,1)&compare_data!$Q$4,"-") -> -0.3 pp | M31: =IFERROR(ROUND(compare_data!P22,1)&compare_data!$Q$4,"-") -> 0.1 pp | N31: =compare_data!R22 -> -0.3640375791 | O31: =compare_data!S22 -> -0.5193995316 | P31: =compare_data!T22 -> 0.1553619526
C32: Output
C33: Total GVA | D33: £2015m | E33: =compare_data!C25 -> 62654.55 | F33: =compare_data!H25 -> 17930.61 | G33: =compare_data!K25 -> 44723.94 | H33: =compare_data!D25 -> 88444.47 | I33: =compare_data!I25 -> 26874.87 | J33: =compare_data!L25 -> 61569.6 | K33: =compare_data!N25 -> 25789.92 | L33: =compare_data!O25 -> 8944.26 | M33: =compare_data!P25 -> 16845.66 | N33: =compare_data!R25 -> 1.738634276 | O33: =compare_data!S25 -> 2.044021452 | P33: =compare_data!T25 -> -0.3053871752
C34: Relative productivity (UK = 100) | D34: Index | E34: =compare_data!C26 -> 89.85218458 | F34: =compare_data!H26 -> 90.09048509 | G34: =compare_data!K26 -> -0.2383005152 | H34: =compare_data!D26 -> 88.62389845 | I34: =compare_data!I26 -> 86.22114374 | J34: =compare_data!L26 -> 2.402754704 | K34: =compare_data!N26 -> -1.228286129 | L34: =compare_data!O26 -> -3.869341348 | M34: =compare_data!P26 -> 2.641055219 | N34: =compare_data!R26 -> -0.06879817878 | O34: =compare_data!S26 -> -0.2192548872 | P34: =compare_data!T26 -> 0.1504567084
C35: Source: Oxford Economics

Sheet Key variables
A1: Data by variable | B1: Back to contents
BC3: FORECAST YEARS
BC5: START YEAR | BD5: 2016
BC6: END YEAR | BD6: 2036
A8: =IF(ISNA(Var_out&" ["&var&"]")=TRUE,"",Cat_out & ": "&Var_out) -> Summary statistics: GVA | E8: 1991 | F8: 1992 | G8: 1993 | H8: 1994 | I8: 1995 | J8: 1996 | K8: 1997 | L8: 1998 | M8: 1999 | N8: 2000 | O8: 2001 | P8: 2002 | Q8: 2003 | R8: 2004 | S8: 2005 | T8: 2006 | U8: 2007 | V8: 2008 | W8: 2009 | X8: 2010 | Y8: 2011 | Z8: 2012 | AA8: 2013 | AB8: 2014 | AC8: 2015 | AD8: 2016 | AE8: 2017 | AF8: 2018 | AG8: 2019 | AH8: 2020 | AI8: 2021 | AJ8: 2022 | AK8: 2023 | AL8: 2024 | AM8: 2025 | AN8: 2026 | AO8: 2027 | AP8: 2028 | AQ8: 2029 | AR8: 2030 | AS8: 2031 | AT8: 2032 | AU8: 2033 | AV8: 2034 | AW8: 2035 | AX8: 2036 | AY8: 2037 | AZ8: 2038 | BC8: =BD5 -> 2016 | BD8: =BD6 -> 2036 | BE8: Change | BF8: Growth (%/year)
E9: =IF(E8="","",VLOOKUP(E8,col,Measure_var,FALSE)) -> c | F9: d | G9: e | H9: f | I9: g | J9: h | K9: i | L9: j | M9: k | N9: l | O9: =IF(O8="","",VLOOKUP(O8,col,Measure_var,FALSE)) -> m | P9: n | Q9: o | R9: p | S9: q | T9: r | U9: s | V9: t | W9: u | X9: v | Y9: w | Z9: x | AA9: y | AB9: z | AC9: aa | AD9: ab | AE9: ac | AF9: ad | AG9: ae | AH9: af | AI9: ag | AJ9: ah | AK9: ai | AL9: aj | AM9: ak | AN9: al | AO9: am | AP9: an | AQ9: ao | AR9: ap | AS9: aq | AT9: =IF(AT8="","",VLOOKUP(AT8,col,Measure_var,FALSE)) -> ar | AU9: as | AV9: at | AW9: au | AX9: av | AY9: =IF(AY8="","",VLOOKUP(AY8,col,Measure_var,FALSE)) -> aw | AZ9: ax
D10: Row number
A11: Bolton | B11: =IFERROR(Codes!$AH$2,"Loading") -> £2015m | C11: Bolton | D11: 4 | E11: =IF(E$9="","",IF(ISNA(INDIRECT("'"&$C11&"'!"&E$9&Var_row))=TRUE,"",INDIRECT("'"&$C11&"'!"&E$9&Var_row))) -> 3383.5 | F11: 3433.003 | G11: 3515.078 | H11: 3647.634 | I11: 3728.821 | J11: 3770.855 | K11: 3794.728 | L11: 3930.369 | M11: 4030.901 | N11: 3978.337 | O11: =IF(O$9="","",IF(ISNA(INDIRECT("'"&$C11&"'!"&O$9&Var_row))=TRUE,"",INDIRECT("'"&$C11&"'!"&O$9&Var_row))) -> 4042.364 | P11: 4154.704 | Q11: 4279.852 | R11: 4313.343 | S11: 4534.447 | T11: 4683.744 | U11: 4757.313 | V11: 4776.01 | W11: 4570.636 | X11: 4542.095 | Y11: =IF(Y$9="","",IF(ISNA(INDIRECT("'"&$C11&"'!"&Y$9&Var_row))=TRUE,"",INDIRECT("'"&$C11&"'!"&Y$9&Var_row))) -> 4519.173 | Z11: 4572.378 | AA11: 4629.15 | AB11: 4572.101 | AC11: 4670.777 | AD11: 4818.79 | AE11: 4952.288 | AF11: 5036.67 | AG11: 5112.155 | AH11: 5208.756 | AI11: =IF(AI$9="","",IF(ISNA(INDIRECT("'"&$C11&"'!"&AI$9&Var_row))=TRUE,"",INDIRECT("'"&$C11&"'!"&AI$9&Var_row))) -> 5317.647 | AJ11: 5431.01 | AK11: 5540.456 | AL11: 5643.81 | AM11: 5741.909 | AN11: 5835.178 | AO11: 5925.76 | AP11: 6015.112 | AQ11: 6104.905 | AR11: 6194.366 | AS11: =IF(AS$9="","",IF(ISNA(INDIRECT("'"&$C11&"'!"&AS$9&Var_row))=TRUE,"",INDIRECT("'"&$C11&"'!"&AS$9&Var_row))) -> 6281.001 | AT11: 6366.087 | AU11: 6450.594 | AV11: 6534.82 | AW11: 6619.502 | AX11: 6704.58 | AY11: 6789.865 | AZ11: 6874.778 | BC11: =IF($BD$5>$BD$6,"Invalid dates",IFERROR(HLOOKUP(BC$8,$E$8:$AZ$128,$D11,FALSE),"-")) -> 4818.79 | BD11: =IF($BD$5>$BD$6,"Invalid dates",IFERROR(HLOOKUP(BD$8,$E$8:$AZ$128,$D11,FALSE),"-")) -> 6704.58 | BE11: =IF(Var_out=Codes!$W$6,IFERROR(ROUND(BD11-BC11,1),"-")&" pp",IFERROR(ROUND(BD11-BC11,1),"-")) -> 1885.8 | BF11: =IFERROR(((BD11/BC11)^(1/($BD$8-$BC$8))-1)*100,"-") -> 1.665050061
A12: Bury | B12: =IFERROR(Codes!$AH$2,"Loading") -> £2015m | C12: Bury | D12: 5 | E12: 2384.024 | F12: 2353.804 | G12: 2371.726 | H12: 2495.043 | I12: 2595.555 | J12: 2544.21 | K12: 2606.422 | L12: 2615.735 | M12: 2685.266 | N12: 2719.67 | O12: 2772.862 | P12: 2850.392 | Q12: 3023.963 | R12: 2979.157 | S12: 3159.343 | T12: 3245.604 | U12: 3296.349 | V12: 3221.063 | W12: 3113.769 | X12: 3173.719 | Y12: 3173.208 | Z12: 3206.874 | AA12: 3272.228 | AB12: 3221.503 | AC12: 3397.714 | AD12: 3557.069 | AE12: 3647.798 | AF12: 3697.667 | AG12: 3751.266 | AH12: 3822.381 | AI12: 3902.184 | AJ12: 3985.8 | AK12: 4066.794 | AL12: 4143.621 | AM12: 4216.67 | AN12: 4286.27 | AO12: 4354.36 | AP12: 4422.479 | AQ12: 4490.04 | AR12: 4557.108 | AS12: 4621.198 | AT12: 4683.51 | AU12: 4745.593 | AV12: 4807.558 | AW12: 4869.323 | AX12: 4930.89 | AY12: 4992.351 | AZ12: 5053.806 | BC12: =IF($BD$5>$BD$6,"Invalid dates",IFERROR(HLOOKUP(BC$8,$E$8:$AZ$128,$D12,FALSE),"-")) -> 3557.069 | BD12: 4930.89 | BE12: =IF(Var_out=Codes!$W$6,IFERROR(ROUND(BD12-BC12,1),"-")&" pp",IFERROR(ROUND(BD12-BC12,1),"-")) -> 1373.8 | BF12: =IFERROR(((BD12/BC12)^(1/($BD$8-$BC$8))-1)*100,"-") -> 1.646317929
A13: Manchester | B13: =IFERROR(Codes!$AH$2,"Loading") -> £2015m | C13: Manchester | D13: 6 | E13: 9755.115 | F13: 9497.789 | G13: 9601.825 | H13: 9803.133 | I13: 9822.973 | J13: 9797.929 | K13: 10234.42 | L13: 10399.02 | M13: 10824.98 | N13: 11052.3 | O13: 11836.34 | P13: 12350.24 | Q13: 12547.69 | R13: 13220.29 | S13: 13831.35 | T13: 14608.95 | U13: 15049.05 | V13: 14890.57 | W13: 14776.6 | X13: 15027.37 | Y13: 14807.93 | Z13: 15396.28 | AA13: 16239.63 | AB13: 16510.13 | AC13: 17247.32 | AD13: 17930.61 | AE13: 18582.26 | AF13: 18979.6 | AG13: 19337.27 | AH13: 19768.28 | AI13: 20251.18 | AJ13: 20763.52 | AK13: 21263.98 | AL13: 21743.98 | AM13: 22204.53 | AN13: 22647.22 | AO13: 23081.63 | AP13: 23514.99 | AQ13: 23949.16 | AR13: 24380.99 | AS13: 24802.53 | AT13: 25217.46 | AU13: 25632.51 | AV13: 26046.58 | AW13: 26460.82 | AX13: 26874.87 | AY13: 27289.51 | AZ13: 27704.55 | BC13: 17930.61 | BD13: 26874.87 | BE13: =IF(Var_out=Codes!$W$6,IFERROR(ROUND(BD13-BC13,1),"-")&" pp",IFERROR(ROUND(BD13-BC13,1),"-")) -> 8944.3 | BF13: 2.044021452
A14: Oldham | B14: =IFERROR(Codes!$AH$2,"Loading") -> £2015m | C14: Oldham | D14: 7 | E14: 2668.907 | F14: 2814.008 | G14: 2981.322 | H14: 3080.802 | I14: 3137.438 | J14: 3116.372 | K14: 3172.917 | L14: 3178.315 | M14: 3243.523 | N14: 3188.452 | O14: 3230.582 | P14: 3274.226 | Q14: 3371.86 | R14: 3389.121 | S14: 3544.286 | T14: 3671.82 | U14: 3713.657 | V14: 3674.607 | W14: 3460.344 | X14: 3512.641 | Y14: 3559.92 | Z14: 3600.164 | AA14: 3673.952 | AB14: 3569.786 | AC14: 3874.049 | AD14: 3970.651 | AE14: 4044.695 | AF14: 4092.905 | AG14: 4138.877 | AH14: 4202.645 | AI14: 4276.423 | AJ14: 4354.205 | AK14: 4429.201 | AL14: 4499.471 | AM14: 4565.64 | AN14: 4628.022 | AO14: 4687.767 | AP14: 4745.921 | AQ14: 4804.074 | AR14: 4861.407 | AS14: 4916.175 | AT14: 4970.064 | AU14: 5023.233 | AV14: 5075.816 | AW14: 5127.882 | AX14: 5179.595 | AY14: 5231.104 | AZ14: 5283.17 | BC14: 3970.651 | BD14: 5179.595 | BE14: =IF(Var_out=Codes!$W$6,IFERROR(ROUND(BD14-BC14,1),"-")&" pp",IFERROR(ROUND(BD14-BC14,1),"-")) -> 1208.9 | BF14: 1.337854278
A15: Rochdale | B15: =IFERROR(Codes!$AH$2,"Loading") -> £2015m | C15: Rochdale | D15: 8 | E15: 2514.855 | F15: 2569.777 | G15: 2678.034 | H15: 2733.703 | I15: 2750.637 | J15: 2823.627 | K15: 2842.354 | L15: 2870.301 | M15: 2958.851 | N15: 2945.922 | O15: 2980.468 | P15: 3043.156 | Q15: 3134.594 | R15: 3161.597 | S15: 3309.841 | T15: 3399.575 | U15: 3494.945 | V15: 3409.024 | W15: 3254.618 | X15: 3246.906 | Y15: 3199.129 | Z15: 3316.151 | AA15: 3296.464 | AB15: 3399.24 | AC15: 3428.927 | AD15: 3505.318 | AE15: 3561.28 | AF15: 3596.696 | AG15: 3635.953 | AH15: 3691.455 | AI15: 3755.303 | AJ15: 3822.081 | AK15: 3886.164 | AL15: 3945.499 | AM15: 4000.776 | AN15: 4051.705 | AO15: 4100.455 | AP15: 4148.8 | AQ15: 4196.194 | AR15: 4242.73 | AS15: 4287.032 | AT15: 4329.67 | AU15: 4371.857 | AV15: 4412.908 | AW15: 4453.058 | AX15: 4492.625 | AY15: 4531.808 | AZ15: 4570.647 | BC15: 3505.318 | BD15: 4492.625 | BE15: =IF(Var_out=Codes!$W$6,IFERROR(ROUND(BD15-BC15,1),"-")&" pp",IFERROR(ROUND(BD15-BC15,1),"-")) -> 987.3 | BF15: 1.248509204
A16: Salford | B16: =IFERROR(Codes!$AH$2,"Loading") -> £2015m | C16: Salford | D16: 9 | E16: 3500.917 | F16: 3570.672 | G16: 3777.645 | H16: 3915.947 | I16: 4002.621 | J16: 4017.603 | K16: 4230.63 | L16: 4216.319 | M16: 4355.769 | N16: 4439.592 | O16: 4647.777 | P16: 4757.98 | Q16: 4846.502 | R16: 5145.523 | S16: 5297.905 | T16: 5507.3 | U16: 5667.594 | V16: 5699.158 | W16: 5595.073 | X16: 5591.334 | Y16: 5524.778 | Z16: 5675.234 | AA16: 5892.661 | AB16: 5858.057 | AC16: 6091.52 | AD16: 6181.296 | AE16: 6325.896 | AF16: 6455.885 | AG16: 6580.074 | AH16: 6736.043 | AI16: 6908.974 | AJ16: 7090.08 | AK16: 7267.215 | AL16: 7437.392 | AM16: 7601.333 | AN16: 7759.441 | AO16: 7915.173 | AP16: 8070.226 | AQ16: 8226.991 | AR16: 8383.803 | AS16: 8537.23 | AT16: 8688.256 | AU16: 8840.309 | AV16: 8993.064 | AW16: 9146.471 | AX16: 9301.648 | AY16: 9458.529 | AZ16: 9615.934 | BC16: 6181.296 | BD16: 9301.648 | BE16: =IF(Var_out=Codes!$W$6,IFERROR(ROUND(BD16-BC16,1),"-")&" pp",IFERROR(ROUND(BD16-BC16,1),"-")) -> 3120.4 | BF16: 2.064336813
A17: Stockport | B17: =IFERROR(Codes!$AH$2,"Loading") -> £2015m | C17: Stockport | D17: 10 | E17: 4541.78 | F17: 4644.333 | G17: 4808.282 | H17: 4960.167 | I17: 5062.285 | J17: 5068.697 | K17: 5164.111 | L17: 5165.023 | M17: 5372.284 | N17: 5555.17 | O17: 5755.124 | P17: 5918.434 | Q17: 6003.256 | R17: 6237.173 | S17: 6387.628 | T17: 6566.667 | U17: 6778.861 | V17: 6770.446 | W17: 6710.249 | X17: 6805.376 | Y17: 6638.028 | Z17: 6656.93 | AA17: 6469.548 | AB17: 6156.868 | AC17: 6225.577 | AD17: 6324.17 | AE17: 6422.542 | AF17: 6508.718 | AG17: 6603.589 | AH17: 6729.597 | AI17: 6874.267 | AJ17: 7027.976 | AK17: 7177.783 | AL17: 7320.357 | AM17: 7456.464 | AN17: 7586.556 | AO17: 7713.587 | AP17: 7838.851 | AQ17: 7965.179 | AR17: 8091.678 | AS17: 8215.716 | AT17: 8337.79 | AU17: 8460.018 | AV17: 8582.466 | AW17: 8704.2 | AX17: 8825.595 | AY17: 8947.093 | AZ17: 9068.896 | BC17: 6324.17 | BD17: 8825.595 | BE17: =IF(Var_out=Codes!$W$6,IFERROR(ROUND(BD17-BC17,1),"-")&" pp",IFERROR(ROUND(BD17-BC17,1),"-")) -> 2501.4 | BF17: 1.680347767
A18: Tameside | B18: =IFERROR(Codes!$AH$2,"Loading") -> £2015m | C18: Tameside | D18: 11 | E18: 2961.305 | F18: 2956.671 | G18: 3015.982 | H18: 3066.389 | I18: 3063.917 | J18: 3129.053 | K18: 3264.514 | L18: 3172.46 | M18: 3278.76 | N18: 3382.258 | O18: 3414.921 | P18: 3495.656 | Q18: 3497.957 | R18: 3617.681 | S18: 3739.871 | T18: 3791.175 | U18: 3895.509 | V18: 3899.151 | W18: 3753.55 | X18: 3678.23 | Y18: 3581.858 | Z18: 3572.067 | AA18: 3559.273 | AB18: 3393.652 | AC18: 3378.937 | AD18: 3374.906 | AE18: 3412.963 | AF18: 3440.691 | AG18: 3470.32 | AH18: 3514.457 | AI18: 3566.568 | AJ18: 3621.708 | AK18: 3673.762 | AL18: 3721.337 | AM18: 3764.722 | AN18: 3804.504 | AO18: 3842.496 | AP18: 3879.344 | AQ18: 3915.927 | AR18: 3951.697 | AS18: 3984.959 | AT18: 4016.582 | AU18: 4047.034 | AV18: 4076.578 | AW18: 4105.322 | AX18: 4133.478 | AY18: 4160.477 | AZ18: 4187.366 | BC18: 3374.906 | BD18: 4133.478 | BE18: =IF(Var_out=Codes!$W$6,IFERROR(ROUND(BD18-BC18,1),"-")&" pp",IFERROR(ROUND(BD18-BC18,1),"-")) -> 758.6 | BF18: 1.018914496
A19: Trafford | B19: =IFERROR(Codes!$AH$2,"Loading") -> £2015m | C19: Trafford | D19: 12 | E19: 4563.175 | F19: 4631.869 | G19: 4793.752 | H19: 4921.837 | I19: 5000.19 | J19: 5247.779 | K19: 5292.632 | L19: 5436.172 | M19: 5699.474 | N19: 5857.815 | O19: 6112.416 | P19: 6283.029 | Q19: 6427.931 | R19: 6596.96 | S19: 6775.988 | T19: 6971.71 | U19: 7164.487 | V19: 7169.233 | W19: 7016.085 | X19: 7187.577 | Y19: 7147.009 | Z19: 7171.774 | AA19: 7472.161 | AB19: 7548.508 | AC19: 7889.398 | AD19: 7981.1 | AE19: 8149.092 | AF19: 8309.13 | AG19: 8457.162 | AH19: 8646.23 | AI19: 8856.831 | AJ19: 9074.635 | AK19: 9285.102 | AL19: 9484.774 | AM19: 9674.968 | AN19: 9856.158 | AO19: 10033.95 | AP19: 10210.29 | AQ19: 10388.57 | AR19: 10567.72 | AS19: 10743.75 | AT19: 10917.36 | AU19: 11091.23 | AV19: 11264.49 | AW19: 11437.82 | AX19: 11611.04 | AY19: 11784.57 | AZ19: 11957.45 | BC19: 7981.1 | BD19: 11611.04 | BE19: =IF(Var_out=Codes!$W$6,IFERROR(ROUND(BD19-BC19,1),"-")&" pp",IFERROR(ROUND(BD19-BC19,1),"-")) -> 3629.9 | BF19: 1.892077778
A20: Wigan | B20: =IFERROR(Codes!$AH$2,"Loading") -> £2015m | C20: Wigan | D20: 13 | E20: 3532.771 | F20: 3610.496 | G20: 3757.372 | H20: 3873.621 | I20: 3950.638 | J20: 3984.253 | K20: 3948.252 | L20: 3945.784 | M20: 4022.602 | N20: 4021.313 | O20: 4089.761 | P20: 4212.705 | Q20: 4403.183 | R20: 4397.477 | S20: 4626.523 | T20: 4756.168 | U20: 4826.76 | V20: 4801.552 | W20: 4544.624 | X20: 4664.923 | Y20: 4509.126 | Z20: 4593.556 | AA20: 4664.911 | AB20: 4705.699 | AC20: 4902.944 | AD20: 5010.636 | AE20: 5084.553 | AF20: 5130.777 | AG20: 5186.281 | AH20: 5265.369 | AI20: 5356.248 | AJ20: 5450.557 | AK20: 5540.803 | AL20: 5624.757 | AM20: 5702.372 | AN20: 5773.981 | AO20: 5842.023 | AP20: 5908.974 | AQ20: 5975.586 | AR20: 6041.184 | AS20: 6103.073 | AT20: 6162.602 | AU20: 6220.855 | AV20: 6278.211 | AW20: 6334.708 | AX20: 6390.154 | AY20: 6444.809 | AZ20: 6498.838 | BC20: 5010.636 | BD20: 6390.154 | BE20: =IF(Var_out=Codes!$W$6,IFERROR(ROUND(BD20-BC20,1),"-")&" pp",IFERROR(ROUND(BD20-BC20,1),"-")) -> 1379.5 | BF20: 1.22340064
A21: Greater Manchester | B21: =IFERROR(Codes!$AH$2,"Loading") -> £2015m | C21: Greater Manchester | D21: 14 | E21: =IF(E$9="","",IF(ISNA(INDIRECT("'"&$C21&"'!"&E$9&Var_row))=TRUE,"",INDIRECT("'"&$C21&"'!"&E$9&Var_row))) -> 39806.34 | F21: 40082.43 | G21: 41301.02 | H21: 42498.28 | I21: 43115.07 | J21: 43500.38 | K21: 44550.98 | L21: 44929.5 | M21: 46472.41 | N21: 47140.83 | O21: =IF(O$9="","",IF(ISNA(INDIRECT("'"&$C21&"'!"&O$9&Var_row))=TRUE,"",INDIRECT("'"&$C21&"'!"&O$9&Var_row))) -> 48882.62 | P21: 50340.52 | Q21: 51536.79 | R21: 53058.32 | S21: 55207.18 | T21: 57202.71 | U21: 58644.52 | V21: 58310.81 | W21: 56795.55 | X21: 57430.17 | Y21: =IF(Y$9="","",IF(ISNA(INDIRECT("'"&$C21&"'!"&Y$9&Var_row))=TRUE,"",INDIRECT("'"&$C21&"'!"&Y$9&Var_row))) -> 56660.16 | Z21: 57761.4 | AA21: 59169.98 | AB21: 58935.54 | AC21: 61107.17 | AD21: 62654.55 | AE21: 64183.38 | AF21: 65248.74 | AG21: 66272.95 | AH21: 67585.21 | AI21: =IF(AI$9="","",IF(ISNA(INDIRECT("'"&$C21&"'!"&AI$9&Var_row))=TRUE,"",INDIRECT("'"&$C21&"'!"&AI$9&Var_row))) -> 69065.62 | AJ21: 70621.58 | AK21: 72131.26 | AL21: 73565 | AM21: 74929.38 | AN21: 76229.04 | AO21: 77497.2 | AP21: 78755 | AQ21: 80016.63 | AR21: 81272.69 | AS21: =IF(AS$9="","",IF(ISNA(INDIRECT("'"&$C21&"'!"&AS$9&Var_row))=TRUE,"",INDIRECT("'"&$C21&"'!"&AS$9&Var_row))) -> 82492.67 | AT21: 83689.37 | AU21: 84883.23 | AV21: 86072.48 | AW21: 87259.12 | AX21: 88444.47 | AY21: 89630.12 | AZ21: 90815.44 | BC21: 62654.55 | BD21: 88444.47 | BE21: =IF(Var_out=Codes!$W$6,IFERROR(ROUND(BD21-BC21,1),"-")&" pp",IFERROR(ROUND(BD21-BC21,1),"-")) -> 25789.9 | BF21: 1.738634276
A22: Liverpool LEP | B22: =IFERROR(Codes!$AH$2,"Loading") -> £2015m | C22: Liverpool LEP | D22: 15 | E22: 20473.54 | F22: 20322.35 | G22: 20516.38 | H22: 20825.93 | I22: 20886.95 | J22: 20807.31 | K22: 21316.33 | L22: 22132.06 | M22: 23366.95 | N22: 23705.09 | O22: 24794.38 | P22: 25754.59 | Q22: 27338.15 | R22: 27687.9 | S22: 28260.79 | T22: 29888.11 | U22: 29317.22 | V22: 29411.2 | W22: 29978.78 | X22: 29765.14 | Y22: 29287.7 | Z22: 28702.57 | AA22: 28315.24 | AB22: 29567.8 | AC22: 30376.62 | AD22: 30281.79 | AE22: 30856.69 | AF22: 31261.29 | AG22: 31640.21 | AH22: 32156.19 | AI22: 32756.86 | AJ22: 33392.81 | AK22: 34008.9 | AL22: 34591.84 | AM22: 35143.18 | AN22: 35665.38 | AO22: 36173.92 | AP22: 36680.84 | AQ22: 37186.67 | AR22: 37689.37 | AS22: 38171.89 | AT22: 38642.16 | AU22: 39109.3 | AV22: 39572.35 | AW22: 40031.34 | AX22: 40488.3 | AY22: 40943.66 | AZ22: 41397.7 | BC22: 30281.79 | BD22: 40488.3 | BE22: =IF(Var_out=Codes!$W$6,IFERROR(ROUND(BD22-BC22,1),"-")&" pp",IFERROR(ROUND(BD22-BC22,1),"-")) -> 10206.5 | BF22: 1.462930099
A23: Cheshire and Warrington LEP | B23: =IFERROR(Codes!$AH$2,"Loading") -> £2015m | C23: Cheshire and Warrington LEP | D23: 16 | E23: 16729.16 | F23: 16718.05 | G23: 16904.64 | H23: 17315.23 | I23: 17547 | J23: 17802.68 | K23: 18281.19 | L23: 18553.99 | M23: 19572.42 | N23: 19645.2 | O23: 21945.82 | P23: 22497.49 | Q23: 22639.06 | R23: 23684.47 | S23: 25010.96 | T23: 25808.27 | U23: 26669.4 | V23: 25101.45 | W23: 24687.21 | X23: 25189.1 | Y23: 25249.27 | Z23: 25776.47 | AA23: 26442.43 | AB23: 27562.13 | AC23: 27638.73 | AD23: 28669.14 | AE23: 29363.54 | AF23: 29839.68 | AG23: 30240.43 | AH23: 30779.95 | AI23: 31403.38 | AJ23: 32059.78 | AK23: 32690.55 | AL23: 33276.86 | AM23: 33825.07 | AN23: 34336.51 | AO23: 34832.5 | AP23: 35323.72 | AQ23: 35814.39 | AR23: 36303.3 | AS23: 36773.57 | AT23: 37228.01 | AU23: 37677.07 | AV23: 38121.36 | AW23: 38558.61 | AX23: 38991.45 | AY23: 39419.16 | AZ23: 39843.28 | BC23: 28669.14 | BD23: 38991.45 | BE23: =IF(Var_out=Codes!$W$6,IFERROR(ROUND(BD23-BC23,1),"-")&" pp",IFERROR(ROUND(BD23-BC23,1),"-")) -> 10322.3 | BF23: 1.549487517
A24: Lancashire LEP | B24: =IFERROR(Codes!$AH$2,"Loading") -> £2015m | C24: Lancashire LEP | D24: 17 | E24: 20214.39 | F24: 20184.88 | G24: 20640.45 | H24: 21342.61 | I24: 21870.28 | J24: 21981.45 | K24: 22388.55 | L24: 23092.37 | M24: 23829.27 | N24: 23839.52 | O24: 24148.19 | P24: 25180.52 | Q24: 26405.48 | R24: 27483.69 | S24: 28078.33 | T24: 28333.97 | U24: 29443.17 | V24: 28461.5 | W24: 26618.53 | X24: 27603.81 | Y24: 27826.47 | Z24: 28216.47 | AA24: 28293.95 | AB24: 29056.72 | AC24: 30155.45 | AD24: 30035.78 | AE24: 30529.5 | AF24: 30929.01 | AG24: 31267.08 | AH24: 31734.13 | AI24: 32276.77 | AJ24: 32844.39 | AK24: 33386.45 | AL24: 33888.13 | AM24: 34353.14 | AN24: 34785.04 | AO24: 35199.72 | AP24: 35606.35 | AQ24: 36010.12 | AR24: 36407.65 | AS24: 36781.07 | AT24: 37138.55 | AU24: 37489.6 | AV24: 37834.44 | AW24: 38171.7 | AX24: 38504 | AY24: 38830.09 | AZ24: 39151.49 | BC24: 30035.78 | BD24: 38504 | BE24: =IF(Var_out=Codes!$W$6,IFERROR(ROUND(BD24-BC24,1),"-")&" pp",IFERROR(ROUND(BD24-BC24,1),"-")) -> 8468.2 | BF24: 1.249607122
A25: Cumbria LEP | B25: =IFERROR(Codes!$AH$2,"Loading") -> £2015m | C25: Cumbria LEP | D25: 18 | E25: 7440.162 | F25: 7705.797 | G25: 7970.808 | H25: 8096.947 | I25: 8129.298 | J25: 8170.875 | K25: 8320.551 | L25: 8498.279 | M25: 8731.764 | N25: 8737.959 | O25: 8596.889 | P25: 8935.67 | Q25: 9742.222 | R25: 9779.307 | S25: 9980.548 | T25: 10620.55 | U25: 10578.89 | V25: 10771.94 | W25: 10366.64 | X25: 10895.37 | Y25: 10655.89 | Z25: 10837.97 | AA25: 10940.8 | AB25: 11222.5 | AC25: 11604.04 | AD25: 11581.25 | AE25: 11758.02 | AF25: 11871.47 | AG25: 11977.61 | AH25: 12134.71 | AI25: 12321.56 | AJ25: 12515.45 | AK25: 12698.31 | AL25: 12863.36 | AM25: 13014.92 | AN25: 13152.3 | AO25: 13281.86 | AP25: 13407.38 | AQ25: 13531.4 | AR25: 13652.7 | AS25: 13764.88 | AT25: 13869.7 | AU25: 13971.5 | AV25: 14068.95 | AW25: 14163.5 | AX25: 14255.44 | AY25: 14344.77 | AZ25: 14431.11 | BC25: 11581.25 | BD25: 14255.44 | BE25: =IF(Var_out=Codes!$W$6,IFERROR(ROUND(BD25-BC25,1),"-")&" pp",IFERROR(ROUND(BD25-BC25,1),"-")) -> 2674.2 | BF25: 1.044169684
A26: North West | B26: =IFERROR(Codes!$AH$2,"Loading") -> £2015m | C26: North West | D26: 19 | E26: 104663.6 | F26: 105013.5 | G26: 107333.3 | H26: 110079 | I26: 111548.6 | J26: 112262.7 | K26: 114857.6 | L26: 117206.2 | M26: 121972.8 | N26: 123068.6 | O26: 128367.9 | P26: 132708.8 | Q26: 137661.7 | R26: 141693.7 | S26: 146537.8 | T26: 151853.6 | U26: 154653.2 | V26: 152056.9 | W26: 148446.7 | X26: 150883.6 | Y26: 149679.5 | Z26: 151294.9 | AA26: 153162.4 | AB26: 156344.7 | AC26: 160882 | AD26: 163222.5 | AE26: 166691.1 | AF26: 169150.2 | AG26: 171398.3 | AH26: 174390.2 | AI26: 177824.2 | AJ26: 181434 | AK26: 184915.5 | AL26: 188185.2 | AM26: 191265.7 | AN26: 194168.3 | AO26: 196985.2 | AP26: 199773.3 | AQ26: 202559.2 | AR26: 205325.7 | AS26: 207984.1 | AT26: 210567.8 | AU26: 213130.7 | AV26: 215669.6 | AW26: 218184.3 | AX26: 220683.7 | AY26: 223167.8 | AZ26: 225639 | BC26: 163222.5 | BD26: 220683.7 | BE26: =IF(Var_out=Codes!$W$6,IFERROR(ROUND(BD26-BC26,1),"-")&" pp",IFERROR(ROUND(BD26-BC26,1),"-")) -> 57461.2 | BF26: 1.519509688
A27: UK | B27: =IFERROR(Codes!$AH$2,"Loading") -> £2015m | C27: UK | D27: 20 | E27: 997667.7 | F27: 1001002 | G27: 1024196 | H27: 1057128 | I27: 1078236 | J27: 1102394 | K27: 1145005 | L27: 1179118 | M27: 1218478 | N27: 1266481 | O27: 1298328 | P27: 1327336 | Q27: 1376053 | R27: 1409840 | S27: 1462263 | T27: 1503094 | U27: 1539240 | V27: 1537126 | W27: 1471714 | X27: 1501299 | Y27: 1525952 | Z27: 1548160 | AA27: 1572396 | AB27: 1628548 | AC27: 1667914 | AD27: 1696524 | AE27: 1727810 | AF27: 1751102 | AG27: 1778830 | AH27: 1814528 | AI27: 1855154 | AJ27: 1897920 | AK27: 1939189 | AL27: 1978170 | AM27: 2015086 | AN27: 2050256 | AO27: 2084619 | AP27: 2119035 | AQ27: 2153490 | AR27: 2187961 | AS27: 2221533 | AT27: 2254485 | AU27: 2287331 | AV27: 2320052 | AW27: 2352636 | AX27: 2385108 | AY27: 2417549 | AZ27: 2449999 | BC27: 1696524 | BD27: 2385108 | BE27: =IF(Var_out=Codes!$W$6,IFERROR(ROUND(BD27-BC27,1),"-")&" pp",IFERROR(ROUND(BD27-BC27,1),"-")) -> 688584 | BF27: 1.717903893
A28: Birmingham | B28: =IFERROR(Codes!$AH$2,"Loading") -> £2015m | C28: Birmingham | D28: 21 | E28: 17061.6307 | F28: 17002.28373 | G28: 17318.03074 | H28: 17972.93797 | I28: 18253.3044 | J28: 18153.46525 | K28: 18907.47925 | L28: 19127.27978 | M28: 19678.39273 | N28: 19937.21939 | O28: 20793.40216 | P28: 20613.02566 | Q28: 21420.52471 | R28: 21785.53996 | S28: 22012.30297 | T28: 22017.86503 | U28: 22849.35521 | V28: 22736.4882 | W28: 21703.67313 | X28: 22326.76559 | Y28: 22798.18793 | Z28: 22714.55271 | AA28: 23022.20398 | AB28: 23932.87779 | AC28: 24666.6422 | AD28: 25253.51685 | AE28: 26088.11062 | AF28: 26660.42566 | AG28: 27167.71269 | AH28: 27757.32175 | AI28: 28394.18469 | AJ28: 29067.0627 | AK28: 29725.72619 | AL28: 30357.3274 | AM28: 30962.6368 | AN28: 31538.92211 | AO28: 32105.60521 | AP28: 32675.61872 | AQ28: 33248.21279 | AR28: 33823.68031 | AS28: 34386.48557 | AT28: 34941.31221 | AU28: 35497.77893 | AV28: 36057.207 | AW28: 36618.04709 | AX28: 37180.38916 | AY28: 37743.26001 | AZ28: 38308.57872 | BC28: 25253.51685 | BD28: 37180.38916 | BE28: =IF(Var_out=Codes!$W$6,IFERROR(ROUND(BD28-BC28,1),"-")&" pp",IFERROR(ROUND(BD28-BC28,1),"-")) -> 11926.9 | BF28: 1.952904603
A29: Bristol | B29: =IFERROR(Codes!$AH$2,"Loading") -> £2015m | C29: Bristol | D29: 22 | E29: 8904.565833 | F29: 8945.654599 | G29: 9148.979387 | H29: 9383.895055 | I29: 9542.756261 | J29: 9600.787763 | K29: 10060.2403 | L29: 9979.542621 | M29: 10458.32769 | N29: 10545.85605 | O29: 10975.38077 | P29: 11279.25938 | Q29: 10975.53862 | R29: 11109.90292 | S29: 11320.84272 | T29: 11619.90716 | U29: 11979.06079 | V29: 11973.22665 | W29: 11804.09081 | X29: 12511.7657 | Y29: 12103.58559 | Z29: 12609.40006 | AA29: 12746.24236 | AB29: 13608.07671 | AC29: 13673.32611 | AD29: 14100.89611 | AE29: 14379.81254 | AF29: 14632.13744 | AG29: 14902.80134 | AH29: 15220.46833 | AI29: 15572.4433 | AJ29: 15948.416 | AK29: 16317.24019 | AL29: 16671.17737 | AM29: 17011.68413 | AN29: 17342.08042 | AO29: 17669.419 | AP29: 18000.2737 | AQ29: 18332.71749 | AR29: 18666.96891 | AS29: 18994.40945 | AT29: 19317.27715 | AU29: 19640.17873 | AV29: 19963.88255 | AW29: 20289.03066 | AX29: 20615.39541 | AY29: 20942.94505 | AZ29: 21272.42651 | BC29: 14100.89611 | BD29: 20615.39541 | BE29: =IF(Var_out=Codes!$W$6,IFERROR(ROUND(BD29-BC29,1),"-")&" pp",IFERROR(ROUND(BD29-BC29,1),"-")) -> 6514.5 | BF29: 1.917144652
A30: Cardiff | B30: =IFERROR(Codes!$AH$2,"Loading") -> £2015m | C30: Cardiff | D30: 23 | E30: 5869.007761 | F30: 6018.108729 | G30: 6286.767962 | H30: 6456.950173 | I30: 6801.006961 | J30: 6582.179485 | K30: 6313.191968 | L30: 6301.692981 | M30: 6805.269348 | N30: 7354.694998 | O30: 7550.400184 | P30: 7769.745084 | Q30: 8130.160681 | R30: 8158.607568 | S30: 8404.705629 | T30: 8525.659936 | U30: 9129.818067 | V30: 8719.253564 | W30: 8552.706304 | X30: 8436.954993 | Y30: 8895.702867 | Z30: 8895.206689 | AA30: =IF(AA$9="","",IF(ISNA(INDIRECT("'"&$C30&"'!"&AA$9&Var_row))=TRUE,"",INDIRECT("'"&$C30&"'!"&AA$9&Var_row))) -> 8989.916016 | AB30: 8940.922761 | AC30: 9394.001922 | AD30: 9842.845532 | AE30: 9968.694697 | AF30: 10118.22437 | AG30: 10290.63059 | AH30: 10526.38351 | AI30: 10769.38166 | AJ30: 11024.25523 | AK30: 11274.41346 | AL30: 11514.92291 | AM30: 11745.1761 | AN30: 11966.18745 | AO30: 12182.61121 | AP30: 12399.36602 | AQ30: 12616.27661 | AR30: 12833.83623 | AS30: 13046.69003 | AT30: 13256.16493 | AU30: 13465.153 | AV30: 13673.94821 | AW30: 13882.26538 | AX30: 14090.17933 | AY30: 14298.14217 | AZ30: 14506.42194 | BC30: 9842.845532 | BD30: 14090.17933 | BE30: =IF(Var_out=Codes!$W$6,IFERROR(ROUND(BD30-BC30,1),"-")&" pp",IFERROR(ROUND(BD30-BC30,1),"-")) -> 4247.3 | BF30: 1.80984882
A31: Glasgow | B31: =IFERROR(Codes!$AH$2,"Loading") -> £2015m | C31: Glasgow | D31: 24 | E31: =IF(E$9="","",IF(ISNA(INDIRECT("'"&$C31&"'!"&E$9&Var_row))=TRUE,"",INDIRECT("'"&$C31&"'!"&E$9&Var_row))) -> 13384.55363 | F31: 13273.69377 | G31: 13349.03244 | H31: 13764.64508 | I31: 13997.71111 | J31: 13731.35978 | K31: 14806.70371 | L31: 14472.28442 | M31: 14529.73644 | N31: 15030.62235 | O31: =IF(O$9="","",IF(ISNA(INDIRECT("'"&$C31&"'!"&O$9&Var_row))=TRUE,"",INDIRECT("'"&$C31&"'!"&O$9&Var_row))) -> 15970.90619 | P31: 15818.21424 | Q31: 16502.85097 | R31: 17055.81511 | S31: 18146.76781 | T31: 18094.53548 | U31: 17958.2398 | V31: 18713.91129 | W31: 18208.74447 | X31: 17842.21111 | Y31: =IF(Y$9="","",IF(ISNA(INDIRECT("'"&$C31&"'!"&Y$9&Var_row))=TRUE,"",INDIRECT("'"&$C31&"'!"&Y$9&Var_row))) -> 18120.9559 | Z31: 18349.3192 | AA31: 18740.97459 | AB31: 19772.41026 | AC31: 19684.85128 | AD31: 20054.30711 | AE31: 20379.33027 | AF31: 20762.20242 | AG31: 21130.9798 | AH31: 21574.33392 | AI31: =IF(AI$9="","",IF(ISNA(INDIRECT("'"&$C31&"'!"&AI$9&Var_row))=TRUE,"",INDIRECT("'"&$C31&"'!"&AI$9&Var_row))) -> 22066.57595 | AJ31: 22589.14495 | AK31: 23097.38631 | AL31: 23584.42524 | AM31: 24049.11417 | AN31: 24494.76305 | AO31: 24932.89499 | AP31: 25374.42524 | AQ31: 25819.05242 | AR31: 26267.69922 | AS31: =IF(AS$9="","",IF(ISNA(INDIRECT("'"&$C31&"'!"&AS$9&Var_row))=TRUE,"",INDIRECT("'"&$C31&"'!"&AS$9&Var_row))) -> 26708.22606 | AT31: 27143.88468 | AU31: 27581.27083 | AV31: 28020.76597 | AW31: 28461.11325 | AX31: 28902.31811 | AY31: 29345.8637 | AZ31: 29792.2788 | BC31: 20054.30711 | BD31: 28902.31811 | BE31: =IF(Var_out=Codes!$W$6,IFERROR(ROUND(BD31-BC31,1),"-")&" pp",IFERROR(ROUND(BD31-BC31,1),"-")) -> 8848 | BF31: 1.8441882
A32: Leeds | B32: =IFERROR(Codes!$AH$2,"Loading") -> £2015m | C32: Leeds | D32: 25 | E32: 12613.18912 | F32: 12715.52307 | G32: 13008.38401 | H32: 13687.69064 | I32: 14369.40283 | J32: 14631.67983 | K32: 15168.60675 | L32: 15418.62906 | M32: 16261.4078 | N32: 16588.98014 | O32: 17300.10551 | P32: 17983.18814 | Q32: 18625.12853 | R32: 19430.91918 | S32: 20258.6265 | T32: 20658.99765 | U32: 21020.14533 | V32: 20791.58834 | W32: 19729.62019 | X32: 19556.5473 | Y32: 20284.58339 | Z32: 19853.63155 | AA32: 20049.9483 | AB32: 20485.10609 | AC32: 21481.53596 | AD32: 21592.93655 | AE32: 21930.38345 | AF32: 22277.20808 | AG32: 22603.79014 | AH32: 23035.62281 | AI32: 23529.66962 | AJ32: 24055.67612 | AK32: 24566.39992 | AL32: 25049.73338 | AM32: 25506.3973 | AN32: 25946.1531 | AO32: 26377.0006 | AP32: 26808.28039 | AQ32: 27239.66608 | AR32: 27672.46972 | AS32: 28095.00104 | AT32: 28510.41021 | AU32: 28924.70297 | AV32: 29338.86349 | AW32: 29752.62653 | AX32: 30165.70893 | AY32: 30578.71269 | AZ32: 30992.3983 | BC32: 21592.93655 | BD32: 30165.70893 | BE32: =IF(Var_out=Codes!$W$6,IFERROR(ROUND(BD32-BC32,1),"-")&" pp",IFERROR(ROUND(BD32-BC32,1),"-")) -> 8572.8 | BF32: 1.685748874
A33: Liverpool | B33: =IFERROR(Codes!$AH$2,"Loading") -> £2015m | C33: Liverpool | D33: 26 | E33: 7370.56 | F33: 7463.024 | G33: 7654.05 | H33: 7664.694 | I33: 7580.186 | J33: 7426.939 | K33: 7525.897 | L33: 7891.628 | M33: 8399.107 | N33: 8532.37 | O33: 8712.573 | P33: 9090.417 | Q33: 9827.467 | R33: 9772.035 | S33: 10112.73 | T33: 11097.32 | U33: 10819.01 | V33: 10888.31 | W33: 11865.85 | X33: 11417.21 | Y33: 10874.66 | Z33: 10759.09 | AA33: 10606.27 | AB33: 11084.32 | AC33: 11264.27 | AD33: 11157.15 | AE33: 11414.78 | AF33: 11576.16 | AG33: 11722.52 | AH33: 11917.87 | AI33: 12143.94 | AJ33: 12386.19 | AK33: 12623.22 | AL33: 12850.36 | AM33: 13066.49 | AN33: 13272.86 | AO33: 13474.76 | AP33: 13676.44 | AQ33: 13878.19 | AR33: 14079.06 | AS33: 14273.71 | AT33: 14464.39 | AU33: 14655.39 | AV33: 14845.3 | AW33: 15034.37 | AX33: 15222.94 | AY33: 15412.11 | AZ33: 15601.33 | BC33: 11157.15 | BD33: 15222.94 | BE33: =IF(Var_out=Codes!$W$6,IFERROR(ROUND(BD33-BC33,1),"-")&" pp",IFERROR(ROUND(BD33-BC33,1),"-")) -> 4065.8 | BF33: 1.565746101
A34: Newcastle | B34: =IFERROR(Codes!$AH$2,"Loading") -> £2015m | C34: Newcastle | D34: 27 | E34: 5350.612842 | F34: 5384.456613 | G34: 5458.085277 | H34: 5503.967701 | I34: 5559.857428 | J34: 5534.346613 | K34: 5628.613336 | L34: 5579.922519 | M34: 5674.912297 | N34: 5733.502336 | O34: 6077.350118 | P34: 6382.8282 | Q34: 6562.492054 | R34: 7103.118911 | S34: 7433.142201 | T34: 7706.560395 | U34: 7583.0336 | V34: 7591.484654 | W34: 7062.282853 | X34: 7140.350029 | Y34: 7616.578369 | Z34: 7721.115276 | AA34: 7396.90245 | AB34: 7355.663351 | AC34: 7644.000243 | AD34: 7666.532876 | AE34: 7872.582857 | AF34: 8052.270108 | AG34: 8172.179742 | AH34: 8317.23943 | AI34: 8479.175226 | AJ34: 8648.673427 | AK34: 8811.408011 | AL34: 8964.528943 | AM34: 9107.799103 | AN34: 9242.47483 | AO34: 9372.713111 | AP34: 9501.961042 | AQ34: 9627.905637 | AR34: 9754.351596 | AS34: 9876.52409 | AT34: 9993.369477 | AU34: 10109.32034 | AV34: 10224.72268 | AW34: 10336.97726 | AX34: 10449.04272 | AY34: 10560.19943 | AZ34: 10669.71027 | BC34: 7666.532876 | BD34: 10449.04272 | BE34: =IF(Var_out=Codes!$W$6,IFERROR(ROUND(BD34-BC34,1),"-")&" pp",IFERROR(ROUND(BD34-BC34,1),"-")) -> 2782.5 | BF34: 1.560276625
A35: Nottingham | B35: =IFERROR(Codes!$AH$2,"Loading") -> £2015m | C35: Nottingham | D35: 28 | E35: 6329.233627 | F35: 6459.29622 | G35: 6671.95412 | H35: 6765.85209 | I35: 6873.052493 | J35: 6945.407051 | K35: 7243.055743 | L35: 7171.338231 | M35: 6814.490218 | N35: 6939.648595 | O35: 7069.011929 | P35: 7124.522056 | Q35: 7159.605278 | R35: 7761.550851 | S35: 7998.462316 | T35: 7649.218435 | U35: 7789.003468 | V35: 7920.24033 | W35: 7894.859241 | X35: 7986.469714 | Y35: 8011.850538 | Z35: 8044.868691 | AA35: 7925.534383 | AB35: 8374.896227 | AC35: 8536.381887 | AD35: 8757.518586 | AE35: 8968.266979 | AF35: 9164.874739 | AG35: 9344.959374 | AH35: 9565.58511 | AI35: 9804.58383 | AJ35: 10051.27321 | AK35: 10289.68814 | AL35: 10516.9101 | AM35: 10730.70483 | AN35: 10932.34596 | AO35: 11127.36558 | AP35: 11322.36146 | AQ35: 11516.70017 | AR35: 11710.82597 | AS35: 11899.75683 | AT35: 12085.86747 | AU35: 12271.61975 | AV35: 12458.64262 | AW35: 12646.26933 | AX35: 12834.15056 | AY35: 13022.28626 | AZ35: 13211.62583 | BC35: 8757.518586 | BD35: 12834.15056 | BE35: =IF(Var_out=Codes!$W$6,IFERROR(ROUND(BD35-BC35,1),"-")&" pp",IFERROR(ROUND(BD35-BC35,1),"-")) -> 4076.6 | BF35: 1.929361353
A36: Sheffield | B36: =IFERROR(Codes!$AH$2,"Loading") -> £2015m | C36: Sheffield | D36: 29 | E36: 7875.587691 | F36: 7842.479735 | G36: 7919.515716 | H36: 8099.88744 | I36: 8166.737761 | J36: 8088.130652 | K36: 8444.559227 | L36: 8764.573857 | M36: 8581.795484 | N36: 8843.842119 | O36: 9549.943919 | P36: 10075.47419 | Q36: 10067.97523 | R36: 10405.12882 | S36: 10514.73364 | T36: 10719.61219 | U36: 11356.65207 | V36: 10789.50979 | W36: 10474.66604 | X36: 10531.67136 | Y36: 10703.23615 | Z36: 10974.8461 | AA36: 11050.72434 | AB36: 11057.20704 | AC36: 11281.66141 | AD36: 11238.01303 | AE36: 11479.53126 | AF36: 11649.73675 | AG36: 11797.70112 | AH36: 11992.74417 | AI36: 12217.44477 | AJ36: 12456.77289 | AK36: 12689.35035 | AL36: 12909.58738 | AM36: 13117.41459 | AN36: 13319.32833 | AO36: 13517.5952 | AP36: 13716.31055 | AQ36: 13914.36503 | AR36: 14111.20506 | AS36: 14301.31159 | AT36: 14487.00251 | AU36: 14671.59669 | AV36: 14856.41262 | AW36: 15040.88655 | AX36: 15224.32716 | AY36: 15407.91705 | AZ36: 15592.04445 | BC36: 11238.01303 | BD36: 15224.32716 | BE36: =IF(Var_out=Codes!$W$6,IFERROR(ROUND(BD36-BC36,1),"-")&" pp",IFERROR(ROUND(BD36-BC36,1),"-")) -> 3986.3 | BF36: 1.529542409
A37: Northern Powerhouse region | B37: =IFERROR(Codes!$AH$2,"Loading") -> £2015m | C37: Northern Powerhouse region | D37: 30 | E37: 213256.32 | F37: 214258.56 | G37: 218385.79 | H37: 224084.71 | I37: 227863.2 | J37: 230186.52 | K37: 235688.02 | L37: 239897.88 | M37: 247292.25 | N37: 251685.91 | O37: 261144.02 | P37: 271770.86 | Q37: 282046.46 | R37: 293007.48 | S37: 300878.53 | T37: 309625.39 | U37: 315378.21 | V37: 309259.54 | W37: 299144.14 | X37: 301402.05 | Y37: 303155.06 | Z37: 304129 | AA37: 306152.05 | AB37: 312729.69 | AC37: 320856.48 | AD37: 322935.95 | AE37: 328317.41 | AF37: 332574.71 | AG37: 336594.62 | AH37: 342135.55 | AI37: 348563.26 | AJ37: 355341.9 | AK37: 361870.1 | AL37: 367982.2 | AM37: 373695.24 | AN37: 379071.42 | AO37: 384278.57 | AP37: 389442.02 | AQ37: 394577.39 | AR37: 399664.11 | AS37: 404531.85 | AT37: 409247.54 | AU37: 413915.91 | AV37: 418535.48 | AW37: 423102.2 | AX37: 427625.65 | AY37: 432114.51 | AZ37: 436575.77 | BC37: 322935.95 | BD37: 427625.65 | BE37: =IF(Var_out=Codes!$W$6,IFERROR(ROUND(BD37-BC37,1),"-")&" pp",IFERROR(ROUND(BD37-BC37,1),"-")) -> 104689.7 | BF37: 1.413872741
A38: Greater London | B38: =IFERROR(Codes!$AH$2,"Loading") -> £2015m | C38: Greater London | D38: 31 | E38: 185234.3 | F38: 183073.8 | G38: 187263.3 | H38: 192934.3 | I38: 195136.1 | J38: 202858.5 | K38: 214423.7 | L38: 233583.4 | M38: 245550.6 | N38: 263621.2 | O38: 268602.2 | P38: 270941.8 | Q38: 282866 | R38: 289048.4 | S38: 307713.9 | T38: 317819.5 | U38: 339000.2 | V38: 341289.9 | W38: 321664 | X38: 329509.8 | Y38: 340617.4 | Z38: 353102.4 | AA38: 360735.9 | AB38: 380864.5 | AC38: 388705.4 | AD38: 400997.3 | AE38: 409264.8 | AF38: 416221.7 | AG38: 425184.3 | AH38: 436021.4 | AI38: 448386.3 | AJ38: 461695.6 | AK38: 474693.7 | AL38: 487148 | AM38: 499105.2 | AN38: 510640 | AO38: 522020.9 | AP38: 533515.9 | AQ38: 545151.2 | AR38: 556942.2 | AS38: 568678.4 | AT38: 580394 | AU38: 592192.4 | AV38: 604008.1 | AW38: 615873.8 | AX38: 627794.2 | AY38: 639796.2 | AZ38: 651890.9 | BC38: 400997.3 | BD38: 627794.2 | BE38: =IF(Var_out=Codes!$W$6,IFERROR(ROUND(BD38-BC38,1),"-")&" pp",IFERROR(ROUND(BD38-BC38,1),"-")) -> 226796.9 | BF38: 2.266594134
A39: UK Excluding London | B39: =IFERROR(Codes!$AH$2,"Loading") -> £2015m | C39: UK excluding London | I39: =I27-I38 -> 883099.9 | J39: =J27-J38 -> 899535.5 | K39: 930581.3 | L39: 945534.6 | M39: 972927.4 | N39: 1002859.8 | O39: 1029725.8 | P39: 1056394.2 | Q39: 1093187 | R39: 1120791.6 | S39: 1154549.1 | T39: 1185274.5 | U39: 1200239.8 | V39: 1195836.1 | W39: 1150050 | X39: 1171789.2 | Y39: 1185334.6 | Z39: 1195057.6 | AA39: 1211660.1 | AB39: 1247683.5 | AC39: 1279208.6 | AD39: 1295526.7 | AE39: 1318545.2 | AF39: 1334880.3 | AG39: 1353645.7 | AH39: 1378506.6 | AI39: 1406767.7 | AJ39: 1436224.4 | AK39: 1464495.3 | AL39: 1491022 | AM39: 1515980.8 | AN39: 1539616 | AO39: 1562598.1 | AP39: 1585519.1 | AQ39: 1608338.8 | AR39: 1631018.8 | AS39: 1652854.6 | AT39: 1674091 | AU39: 1695138.6 | AV39: 1716043.9 | AW39: 1736762.2 | AX39: 1757313.8 | AY39: 1777752.8 | AZ39: 1798108.1 | BC39: - | BD39: - | BE39: =IF(Var_out=Codes!$W$6,IFERROR(ROUND(BD39-BC39,1),"-")&" pp",IFERROR(ROUND(BD39-BC39,1),"-")) -> - | BF39: =IFERROR(((BD39/BC39)^(1/($BD$8-$BC$8))-1)*100,"-") -> -

Sheet Area profile
B1: Back to Contents
C2: =city&" Profile" -> Greater Manchester Profile
B5: =city&": Employment Outlook" -> Greater Manchester: Employment Outlook | H5: =city&": Key Indicators" -> Greater Manchester: Key Indicators
K6: =chart_data!$D$1 -> 2017 | L6: =chart_data!E1 -> 2037 | M6: Change | N6: GM
H7: Population (000s) | K7: =chart_data!D3 -> 2795.491 | L7: =chart_data!E3 -> 2976.751 | M7: =ROUND(((L7-K7)/K7)*100,1)&" (%)" -> 6.5 (%) | N7: =chart_data!J3 -> 6.5 (%)
H8: Employees total (000s) | K8: =chart_data!D4 -> 1292.823 | L8: =chart_data!E4 -> 1412.169 | M8: =ROUND(((L8-K8)/K8)*100,1)&" (%)" -> 9.2 (%) | N8: =chart_data!J4 -> 9.2 (%)
H9: Self-employed total (000s) | K9: =chart_data!D5 -> 150.0444 | L9: =chart_data!E5 -> 152.8219 | M9: 1.9 (%) | N9: =chart_data!J5 -> 1.9 (%)
H10: Employment total (000s) | K10: =chart_data!D6 -> 1442.954 | L10: =chart_data!E6 -> 1565.077 | M10: 8.5 (%) | N10: =chart_data!J6 -> 8.5 (%)
H11: Unemployment level (000s) | K11: =chart_data!D7 -> 48.25979 | L11: =chart_data!E7 -> 42.53999 | M11: =ROUND(L11-K11,1)&" (000s)" -> -5.7 (000s) | N11: =chart_data!J7 -> -5.7 (000s)
H12: Residence based employment (000s) | K12: =chart_data!D8 -> 1357.479 | L12: =chart_data!E8 -> 1492.254 | M12: =ROUND(L12-K12,1)&" (000s)" -> 134.8 (000s) | N12: =chart_data!J8 -> 134.8 (000s)
H13: APS residence based employment rate (%) | K13: =chart_data!D9 -> 72 | L13: =chart_data!E9 -> 75.71149 | M13: =IFERROR(ROUND(L13-K13,1)&" (pp)","-") -> 3.7 (pp) | N13: =chart_data!J9 -> 3.7 (pp)
H14: Net commuting (000s) | K14: =chart_data!D10 -> 29.20801 | L14: =chart_data!E10 -> 15.46094 | M14: =IFERROR(ROUND(L14-K14,1)&" (000s)","-") -> -13.7 (000s) | N14: =chart_data!J10 -> -13.7 (000s)
H15: GVA total (£m, 2015) | K15: =chart_data!D11 -> 64183.38 | L15: =chart_data!E11 -> 89630.12 | M15: =ROUND((((L15/K15)^(1/($L$6-$K$6))-1)*100),1)&" (% pa)" -> 1.7 (% pa) | N15: =chart_data!J11 -> 1.7 (% pa)
H16: Source: GMFM
B21: =city&": GVA outlook (% pa)" -> Greater Manchester: GVA outlook (% pa) | H21: =city&": Unemployment" -> Greater Manchester: Unemployment
C22: =city -> Greater Manchester | D22: GM | E22: pp diff
B23: =chart_data!A21 -> 2009 | C23: =chart_data!G21 -> -2.598591925 | D23: =chart_data!H21 -> -2.598591925 | E23: =chart_data!I21 -> 0
B24: =chart_data!A22 -> 2010 | C24: =chart_data!G22 -> 1.117376273 | D24: =chart_data!H22 -> 1.117376273 | E24: =chart_data!I22 -> 0
B25: =chart_data!A23 -> 2011 | C25: =chart_data!G23 -> -1.340776111 | D25: =chart_data!H23 -> -1.340776111 | E25: =chart_data!I23 -> 0
B26: =chart_data!A24 -> 2012 | C26: =chart_data!G24 -> 1.943587876 | D26: =chart_data!H24 -> 1.943587876 | E26: =chart_data!I24 -> 0
B27: =chart_data!A25 -> 2013 | C27: =chart_data!G25 -> 2.438618178 | D27: =chart_data!H25 -> 2.438618178 | E27: =chart_data!I25 -> 0
B28: =chart_data!A26 -> 2014 | C28: =chart_data!G26 -> -0.3962144317 | D28: =chart_data!H26 -> -0.3962144317 | E28: =chart_data!I26 -> 0
B29: =chart_data!A27 -> 2015 | C29: =chart_data!G27 -> 3.684754564 | D29: =chart_data!H27 -> 3.684754564 | E29: =chart_data!I27 -> 0
B30: =chart_data!A28 -> 2016 | C30: =chart_data!G28 -> 2.53223967 | D30: =chart_data!H28 -> 2.53223967 | E30: =chart_data!I28 -> 0
B31: =chart_data!A29 -> 2017 | C31: =chart_data!G29 -> 2.440094135 | D31: =chart_data!H29 -> 2.440094135 | E31: =chart_data!I29 -> 0
B32: 2017-2037 | C32: =chart_data!G30 -> 1.683753625 | D32: =chart_data!H30 -> 1.683753625 | E32: =chart_data!I30 -> 0
B33: Source: GMFM
H36: =city&": Change in employment (000s)" -> Greater Manchester: Change in employment (000s)
K37: =chart_data!H45 -> 1997-2007 | L37: =chart_data!I45 -> 2007-2017 | M37: =chart_data!J45 -> 2017-2037
H38: Agriculture | K38: =chart_data!H47 -> 0.457515 | L38: =chart_data!I47 -> 0.328792 | M38: =chart_data!J47 -> -0.483713
H39: Mining and quarrying | K39: =chart_data!H48 -> 0.1044784 | L39: =chart_data!I48 -> -0.0754295 | M39: =chart_data!J48 -> -0.10348342
H40: Manufacturing | K40: =chart_data!H49 -> -82.4011 | L40: =chart_data!I49 -> -15.9303 | M40: =chart_data!J49 -> -31.09266
B41: =city&": Net migration and natural increase" -> Greater Manchester: Net migration and natural increase | H41: Electricity, gas, & steam | K41: =chart_data!H50 -> -2.637402 | L41: =chart_data!I50 -> 6.461758 | M41: =chart_data!J50 -> -1.436551
H42: Water supply; sewerage, waste management | K42: =chart_data!H51 -> 0.46145 | L42: =chart_data!I51 -> 4.287428 | M42: =chart_data!J51 -> -1.723376
H43: Construction | K43: =chart_data!H52 -> 30.58197 | L43: =chart_data!I52 -> -23.94575 | M43: =chart_data!J52 -> 15.61752
H44: Wholesale and retail trade | K44: =chart_data!H53 -> -2.5306 | L44: =chart_data!I53 -> -8.7366 | M44: =chart_data!J53 -> 20.8758
H45: Transportation and storage | K45: =chart_data!H54 -> 10.87602 | L45: =chart_data!I54 -> 14.09118 | M45: =chart_data!J54 -> -0.97063
H46: Accommodation and food | K46: =chart_data!H55 -> 5.71987 | L46: =chart_data!I55 -> 17.22607 | M46: =chart_data!J55 -> 13.21331
H47: Information and communication | K47: =chart_data!H56 -> 14.20994 | L47: =chart_data!I56 -> 6.73551 | M47: =chart_data!J56 -> 5.85784
H48: Financial services | K48: =chart_data!H57 -> 9.9466 | L48: =chart_data!I57 -> -1.74752 | M48: =chart_data!J57 -> -3.2053
H49: Real estate | K49: =chart_data!H58 -> 8.43636 | L49: =chart_data!I58 -> 9.02971 | M49: =chart_data!J58 -> 4.10402
H50: Professional services | K50: =chart_data!H59 -> 27.01273 | L50: =chart_data!I59 -> 42.17745 | M50: =chart_data!J59 -> 38.29
H51: Administrative and support | K51: =chart_data!H60 -> 15.24429 | L51: =chart_data!I60 -> 28.7811 | M51: =chart_data!J60 -> 36.6429
H52: Public administration and defence | K52: =chart_data!H61 -> 7.37493 | L52: =chart_data!I61 -> -13.49374 | M52: =chart_data!J61 -> -7.07483
H53: Education | K53: =chart_data!H62 -> 16.61516 | L53: =chart_data!I62 -> 11.0339 | M53: =chart_data!J62 -> 0.1056
H54: Human health and social work | K54: =chart_data!H63 -> 17.1105 | L54: =chart_data!I63 -> 31.2056 | M54: =chart_data!J63 -> 20.4387
H55: Arts, entertainment and recreation | K55: =chart_data!H64 -> 6.22248 | L55: =chart_data!I64 -> 5.8243 | M55: =chart_data!J64 -> 9.71725
H56: Other services | K56: =chart_data!H65 -> 5.39751 | L56: =chart_data!I65 -> -1.5375 | M56: =chart_data!J65 -> 3.35092
H57: Total | K57: =chart_data!H66 -> 88.203 | L57: =chart_data!I66 -> 111.716 | M57: =chart_data!J66 -> 122.123
H58: Source: GMFM
B62: =city&": Key indicators" -> Greater Manchester: Key indicators
C63: =chart_data!D71 -> 2014 | D63: =chart_data!E71 -> 2015 | E63: =chart_data!F71 -> 2016 | F63: =chart_data!G71 -> 2017 | G63: =chart_data!H71 -> 2018 | H63: =chart_data!I71 -> 2019 | I63: =chart_data!J71 -> 2020 | J63: =chart_data!K71 -> 2021 | K63: =chart_data!L71 -> 2022 | L63: =chart_data!M71 -> 2027 | M63: =chart_data!N71 -> 2032 | N63: =chart_data!O71 -> 2037
B64: Demography
B65: Total population | C65: =chart_data!D73 -> 2730.325 | D65: =chart_data!E73 -> 2754.219 | E65: =chart_data!F73 -> 2781.046 | F65: =chart_data!G73 -> 2795.491 | G65: =chart_data!H73 -> 2809.994 | H65: =chart_data!I73 -> 2824.02 | I65: =chart_data!J73 -> 2836.559 | J65: =chart_data!K73 -> 2847.778 | K65: =chart_data!L73 -> 2858.561 | L65: =chart_data!M73 -> 2909.076 | M65: =chart_data!N73 -> 2946.241 | N65: =chart_data!O73 -> 2976.751
B66: Working age population: 16-64 | C66: =chart_data!D74 -> 1755.904 | D66: =chart_data!E74 -> 1766.57 | E66: =chart_data!F74 -> 1779.546 | F66: =chart_data!G74 -> 1782.509 | G66: =chart_data!H74 -> 1784.251 | H66: =chart_data!I74 -> 1786.199 | I66: =chart_data!J74 -> 1788.332 | J66: =chart_data!K74 -> 1789.61 | K66: =chart_data!L74 -> 1791.207 | L66: =chart_data!M74 -> 1797.784 | M66: =chart_data!N74 -> 1789.494 | N66: =chart_data!O74 -> 1776.614
B67: Population: 15-74 | C67: =chart_data!D75 -> 2024.865 | D67: =chart_data!E75 -> 2039.033 | E67: =chart_data!F75 -> 2055.418 | F67: =chart_data!G75 -> 2057.249 | G67: =chart_data!H75 -> 2057.983 | H67: =chart_data!I75 -> 2057.932 | I67: =chart_data!J75 -> 2058.767 | J67: =chart_data!K75 -> 2062.664 | K67: =chart_data!L75 -> 2060.198 | L67: =chart_data!M75 -> 2096.623 | M67: =chart_data!N75 -> 2153.733 | N67: =chart_data!O75 -> 2150.636
B68: Total migration | C68: =chart_data!D76 -> 2.824 | D68: =chart_data!E76 -> 12.229 | E68: =chart_data!F76 -> 13.89 | F68: =chart_data!G76 -> 3.324517 | G68: =chart_data!H76 -> 2.040695 | H68: =chart_data!I76 -> 1.513883 | I68: =chart_data!J76 -> 0.1296623 | J68: =chart_data!K76 -> -1.03967 | K68: =chart_data!L76 -> -1.148186 | L68: =chart_data!M76 -> -1.741085 | M68: =chart_data!N76 -> -2.626814 | N68: =chart_data!O76 -> -2.993964
B69: Domestic migration | C69: =chart_data!D77 -> -4.746 | D69: =chart_data!E77 -> -1.519 | E69: =chart_data!F77 -> -1.449 | F69: =chart_data!G77 -> -6.138947 | G69: =chart_data!H77 -> -6.758893 | H69: =chart_data!I77 -> -7.353974 | I69: =chart_data!J77 -> -7.226591 | J69: =chart_data!K77 -> -7.259574 | K69: =chart_data!L77 -> -7.37444 | L69: =chart_data!M77 -> -8.353395 | M69: =chart_data!N77 -> -9.459461 | N69: =chart_data!O77 -> -9.980582
B70: International migration | C70: =chart_data!D78 -> 7.37 | D70: =chart_data!E78 -> 13.481 | E70: =chart_data!F78 -> 15.058 | F70: =chart_data!G78 -> 9.463462 | G70: =chart_data!H78 -> 8.79958 | H70: =chart_data!I78 -> 8.867844 | I70: =chart_data!J78 -> 7.356232 | J70: =chart_data!K78 -> 6.219906 | K70: =chart_data!L78 -> 6.226254 | L70: =chart_data!M78 -> 6.612312 | M70: =chart_data!N78 -> 6.832646 | N70: =chart_data!O78 -> 6.986622
B71: Labour market
B72: Total employees | C72: =chart_data!D80 -> 1199.74 | D72: =chart_data!E80 -> 1228.66 | E72: =chart_data!F80 -> 1267.755 | F72: =chart_data!G80 -> 1292.823 | G72: =chart_data!H80 -> 1311.812 | H72: =chart_data!I80 -> 1314.813 | I72: =chart_data!J80 -> 1322.272 | J72: =chart_data!K80 -> 1332.614 | K72: =chart_data!L80 -> 1344.084 | L72: =chart_data!M80 -> 1379.005 | M72: =chart_data!N80 -> 1397.641 | N72: =chart_data!O80 -> 1412.169
B73: Self employed | C73: =chart_data!D81 -> 165.1485 | D73: =chart_data!E81 -> 154.6804 | E73: =chart_data!F81 -> 153.7949 | F73: =chart_data!G81 -> 150.0444 | G73: =chart_data!H81 -> 143.7765 | H73: =chart_data!I81 -> 143.4049 | I73: =chart_data!J81 -> 143.6271 | J73: =chart_data!K81 -> 144.5193 | K73: =chart_data!L81 -> 145.6152 | L73: =chart_data!M81 -> 149.1262 | M73: =chart_data!N81 -> 151.0262 | N73: =chart_data!O81 -> 152.8219
B74: Total employment (jobs) | C74: =chart_data!D82 -> 1364.957 | D74: =chart_data!E82 -> 1383.402 | E74: =chart_data!F82 -> 1421.636 | F74: =chart_data!G82 -> 1442.954 | G74: =chart_data!H82 -> 1455.674 | H74: =chart_data!I82 -> 1458.304 | I74: =chart_data!J82 -> 1465.985 | J74: =chart_data!K82 -> 1477.219 | K74: =chart_data!L82 -> 1489.786 | L74: =chart_data!M82 -> 1528.217 | M74: =chart_data!N82 -> 1548.753 | N74: =chart_data!O82 -> 1565.077
B75: Total employment (people) | C75: =chart_data!D83 -> 1307.628 | D75: =chart_data!E83 -> 1328.86 | E75: =chart_data!F83 -> 1366.792 | F75: =chart_data!G83 -> 1386.687 | G75: =chart_data!H83 -> 1403.198 | H75: =chart_data!I83 -> 1406.715 | I75: =chart_data!J83 -> 1414.816 | J75: =chart_data!K83 -> 1425.774 | K75: =chart_data!L83 -> 1437.789 | L75: =chart_data!M83 -> 1472.965 | M75: =chart_data!N83 -> 1492.178 | N75: =chart_data!O83 -> 1507.715
B76: Residence employment | C76: =chart_data!D84 -> 1270.399 | D76: =chart_data!E84 -> 1307.898 | E76: =chart_data!F84 -> 1321.727 | F76: =chart_data!G84 -> 1357.479 | G76: =chart_data!H84 -> 1365.013 | H76: =chart_data!I84 -> 1368.735 | I76: =chart_data!J84 -> 1378.981 | J76: =chart_data!K84 -> 1392.02 | K76: =chart_data!L84 -> 1404.936 | L76: =chart_data!M84 -> 1441.989 | M76: =chart_data!N84 -> 1466.999 | N76: =chart_data!O84 -> 1492.254
B77: APS Residence employment rate (16-64) | C77: =chart_data!D85 -> 69 | D77: =chart_data!E85 -> 70.2 | E77: =chart_data!F85 -> 70.5 | F77: =chart_data!G85 -> 72 | G77: =chart_data!H85 -> 72.37376 | H77: =chart_data!I85 -> 72.5729 | I77: =chart_data!J85 -> 73.08651 | J77: =chart_data!K85 -> 73.63817 | K77: =chart_data!L85 -> 74.41041 | L77: =chart_data!M85 -> 75.04606 | M77: =chart_data!N85 -> 74.32314 | N77: =chart_data!O85 -> 75.71149
B78: Residence employment rate (15-74) | C78: =chart_data!D86 -> 62.73993575 | D78: =chart_data!E86 -> 64.14305212 | E78: =chart_data!F86 -> 64.30453562 | F78: =chart_data!G86 -> 65.98515785 | G78: =chart_data!H86 -> 66.32771019 | H78: =chart_data!I86 -> 66.51021511 | I78: =chart_data!J86 -> 66.98091625 | J78: =chart_data!K86 -> 67.48651259 | K78: =chart_data!L86 -> 68.19422211 | L78: =chart_data!M86 -> 68.77674241 | M78: =chart_data!N86 -> 68.11424629 | N78: =chart_data!O86 -> 69.38663726
B79: Net commuting | C79: =chart_data!D87 -> 37.229 | D79: =chart_data!E87 -> 20.96252 | E79: =chart_data!F87 -> 45.06567 | F79: =chart_data!G87 -> 29.20801 | G79: =chart_data!H87 -> 38.18542 | H79: =chart_data!I87 -> 37.97986 | I79: =chart_data!J87 -> 35.83557 | J79: =chart_data!K87 -> 33.75415 | K79: =chart_data!L87 -> 32.85303 | L79: =chart_data!M87 -> 30.97607 | M79: =chart_data!N87 -> 25.17896 | N79: =chart_data!O87 -> 15.46094
B80: Unemployment level | C80: =chart_data!D88 -> 54.8781 | D80: =chart_data!E88 -> 44.47566 | E80: =chart_data!F88 -> 46.13013 | F80: =chart_data!G88 -> 48.25979 | G80: =chart_data!H88 -> 52.97137 | H80: =chart_data!I88 -> 53.26945 | I80: =chart_data!J88 -> 51.43454 | J80: =chart_data!K88 -> 49.35381 | K80: =chart_data!L88 -> 47.46165 | L80: =chart_data!M88 -> 45.41154 | M80: =chart_data!N88 -> 44.08358 | N80: =chart_data!O88 -> 42.53999
B81: Unemployment rate (16-64) | C81: =chart_data!D89 -> 3.125347399 | D81: =chart_data!E89 -> 2.517627946 | E81: =chart_data!F89 -> 2.592241504 | F81: =chart_data!G89 -> 2.707407929 | G81: =chart_data!H89 -> 2.968829498 | H81: =chart_data!I89 -> 2.98227969 | I81: =chart_data!J89 -> 2.876118081 | J81: =chart_data!K89 -> 2.75779695 | K81: =chart_data!L89 -> 2.649702128 | L81: =chart_data!M89 -> 2.525973087 | M81: =chart_data!N89 -> 2.463466209 | N81: =chart_data!O89 -> 2.394441899
B82: Unemployment rate (15-74) | C82: =chart_data!D90 -> 2.71021031 | D82: =chart_data!E90 -> 2.18121335 | E82: =chart_data!F90 -> 2.244318674 | F82: =chart_data!G90 -> 2.345840975 | G82: =chart_data!H90 -> 2.573945946 | H82: =chart_data!I90 -> 2.588494178 | I82: =chart_data!J90 -> 2.498317682 | J82: =chart_data!K90 -> 2.392721742 | K82: =chart_data!L90 -> 2.303742165 | L82: =chart_data!M90 -> 2.165937319 | M82: =chart_data!N90 -> 2.046845175 | N82: =chart_data!O90 -> 1.97801906
B83: Output
B84: Total GVA (£2015m) | C84: =chart_data!D92 -> 58935.54 | D84: =chart_data!E92 -> 61107.17 | E84: =chart_data!F92 -> 62654.55 | F84: =chart_data!G92 -> 64183.38 | G84: =chart_data!H92 -> 65248.74 | H84: =chart_data!I92 -> 66272.95 | I84: =chart_data!J92 -> 67585.21 | J84: =chart_data!K92 -> 69065.62 | K84: =chart_data!L92 -> 70621.58 | L84: =chart_data!M92 -> 77497.2 | M84: =chart_data!N92 -> 83689.37 | N84: =chart_data!O92 -> 89630.12
B85: Relative productivity | C85: =chart_data!D93 -> 100 | D85: =chart_data!E93 -> 100 | E85: =chart_data!F93 -> 100 | F85: =chart_data!G93 -> 100 | G85: =chart_data!H93 -> 100 | H85: =chart_data!I93 -> 100 | I85: =chart_data!J93 -> 100 | J85: =chart_data!K93 -> 100 | K85: =chart_data!L93 -> 100 | L85: =chart_data!M93 -> 100 | M85: =chart_data!N93 -> 100 | N85: =chart_data!O93 -> 100
B86: Source: Oxford Economics
B89: =city&": Key indicators - Annual percentage change (%)*" -> Greater Manchester: Key indicators - Annual percentage change (%)*
C90: =chart_data!D99 -> 2014 | D90: =chart_data!E99 -> 2015 | E90: =chart_data!F99 -> 2016 | F90: =chart_data!G99 -> 2017 | G90: =chart_data!H99 -> 2018 | H90: =chart_data!I99 -> 2019 | I90: =chart_data!J99 -> 2020 | J90: =chart_data!K99 -> 2021 | K90: =chart_data!L99 -> 2022 | L90: =chart_data!M99 -> 2022-2027 | M90: =chart_data!N99 -> 2027-2032 | N90: =chart_data!O99 -> 2032-2037
L91: (Avg pa) | M91: (Avg pa) | N91: (Avg pa)
B92: Demography
B93: Total population | C93: =chart_data!D100 -> 0.6098886643 | D93: =chart_data!E100 -> 0.8751339126 | E93: =chart_data!F100 -> 0.9740329291 | F93: =chart_data!G100 -> 0.5194088843 | G93: =chart_data!H100 -> 0.5187997386 | H93: =chart_data!I100 -> 0.4991469733 | I93: =chart_data!J100 -> 0.4440124362 | J93: =chart_data!K100 -> 0.3955144243 | K93: =chart_data!L100 -> 0.3786460883 | L93: =chart_data!M100 -> 0.3509574913 | M93: =chart_data!N100 -> 0.2542148904 | N93: =chart_data!O100 -> 0.2062587564
B94: Working age population: 16-64 | C94: =chart_data!D101 -> 0.1328143935 | D94: =chart_data!E101 -> 0.6074363974 | E94: =chart_data!F101 -> 0.7345307573 | F94: =chart_data!G101 -> 0.1665031418 | G94: =chart_data!H101 -> 0.0977274168 | H94: =chart_data!I101 -> 0.1091774644 | I94: =chart_data!J101 -> 0.1194155858 | J94: =chart_data!K101 -> 0.07146324061 | K94: =chart_data!L101 -> 0.08923731986 | L94: =chart_data!M101 -> 0.07332889373 | M94: =chart_data!N101 -> -0.09239522979 | N94: =chart_data!O101 -> -0.1443675453
B95: Population: 15-74 | C95: =chart_data!D102 -> 0.368189936 | D95: =chart_data!E102 -> 0.6997009677 | E95: =chart_data!F102 -> 0.8035671811 | F95: =chart_data!G102 -> 0.08908163692 | G95: =chart_data!H102 -> 0.03567871463 | H95: =chart_data!I102 -> -0.002478154581 | I95: =chart_data!J102 -> 0.04057471287 | J95: =chart_data!K102 -> 0.1892880545 | K95: =chart_data!L102 -> -0.11955413 | L95: =chart_data!M102 -> 0.3511322386 | M95: =chart_data!N102 -> 0.5389402963 | N95: =chart_data!O102 -> -0.02877592435
B96: Total migration | C96: =chart_data!D103 -> -395.3974895 | D96: =chart_data!E103 -> 333.0382436 | E96: =chart_data!F103 -> 13.5824679 | F96: =chart_data!G103 -> -76.06539237 | G96: =chart_data!H103 -> -38.61679757 | H96: =chart_data!I103 -> -25.81532272 | I96: =chart_data!J103 -> -91.43511751 | J96: =chart_data!K103 -> -901.829059 | K96: =chart_data!L103 -> 10.43754268 | L96: =chart_data!M103 -> 8.682981863 | M96: =chart_data!N103 -> 8.5730079 | N96: =chart_data!O103 -> 2.651062833
B97: Domestic migration | C97: =chart_data!D104 -> -19.62742077 | D97: =chart_data!E104 -> -67.99410029 | E97: =chart_data!F104 -> -4.608294931 | F97: =chart_data!G104 -> 323.6678399 | G97: =chart_data!H104 -> 10.09857228 | H97: =chart_data!I104 -> 8.804415161 | I97: =chart_data!J104 -> -1.732165493 | J97: =chart_data!K104 -> 0.4564116054 | K97: =chart_data!L104 -> 1.582269152 | L97: =chart_data!M104 -> 2.524295645 | M97: =chart_data!N104 -> 2.518129726 | N97: =chart_data!O104 -> 1.078292124
B98: International migration | C98: =chart_data!D105 -> 53.3180778 | D98: =chart_data!E105 -> 82.91723202 | E98: =chart_data!F105 -> 11.69794526 | F98: =chart_data!G105 -> -37.15326073 | G98: =chart_data!H105 -> -7.015212826 | H98: =chart_data!I105 -> 0.7757642978 | I98: =chart_data!J105 -> -17.04599224 | J98: =chart_data!K105 -> -15.44712021 | K98: =chart_data!L105 -> 0.1020594202 | L98: =chart_data!M105 -> 1.210437165 | M98: =chart_data!N105 -> 0.6577264076 | N98: =chart_data!O105 -> 0.4466981466
B99: Labour market
B100: Total employees | C100: =chart_data!D107 -> 1.301072082 | D100: =chart_data!E107 -> 2.41052228 | E100: =chart_data!F107 -> 3.181921768 | F100: =chart_data!G107 -> 1.977353668 | G100: =chart_data!H107 -> 1.46880122 | H100: =chart_data!I107 -> 0.2287675368 | I100: =chart_data!J107 -> 0.5673050084 | J100: =chart_data!K107 -> 0.782138622 | K100: =chart_data!L107 -> 0.8607143554 | L100: =chart_data!M107 -> 0.5143077344 | M100: =chart_data!N107 -> 0.2688325241 | N100: =chart_data!O107 -> 0.2070341179
B101: Self employed | C101: =chart_data!D108 -> 8.500355758 | D101: =chart_data!E108 -> -6.338598292 | E101: =chart_data!F108 -> -0.5724707203 | F101: =chart_data!G108 -> -2.438637432 | G101: =chart_data!H108 -> -4.1773635 | H101: =chart_data!I108 -> -0.2584567019 | I101: =chart_data!J108 -> 0.154945891 | J101: =chart_data!K108 -> 0.6211919617 | K101: =chart_data!L108 -> 0.758307022 | L101: =chart_data!M108 -> 0.4776451331 | M101: =chart_data!N108 -> 0.2535289298 | N101: =chart_data!O108 -> 0.2366768259
B102: Total employment (jobs) | C102: =chart_data!D109 -> 2.121424328 | D102: =chart_data!E109 -> 1.35132462 | E102: =chart_data!F109 -> 2.763766425 | F102: =chart_data!G109 -> 1.499539967 | G102: =chart_data!H109 -> 0.8815249828 | H102: =chart_data!I109 -> 0.1806723209 | I102: =chart_data!J109 -> 0.5267077372 | J102: =chart_data!K109 -> 0.7663107058 | K102: =chart_data!L109 -> 0.8507201708 | L102: =chart_data!M109 -> 0.5106837848 | M102: =chart_data!N109 -> 0.2673245694 | N102: =chart_data!O109 -> 0.2099186825
B103: Total employment (people) | C103: =chart_data!D110 -> 1.991983396 | D103: =chart_data!E110 -> 1.623703377 | E103: =chart_data!F110 -> 2.85447677 | F103: =chart_data!G110 -> 1.455598218 | G103: =chart_data!H110 -> 1.190679656 | H103: =chart_data!I110 -> 0.2506417483 | I103: =chart_data!J110 -> 0.5758806866 | J103: =chart_data!K110 -> 0.7745176758 | K103: =chart_data!L110 -> 0.8427001755 | L103: =chart_data!M110 -> 0.4845875301 | M103: =chart_data!N110 -> 0.2595246126 | N103: =chart_data!O110 -> 0.2073839851
B104: Residence employment | C104: =chart_data!D111 -> 2.677837524 | D104: =chart_data!E111 -> 2.951749805 | E104: =chart_data!F111 -> 1.05734545 | F104: =chart_data!G111 -> 2.704945878 | G104: =chart_data!H111 -> 0.5549993775 | H104: =chart_data!I111 -> 0.2726713958 | I104: =chart_data!J111 -> 0.7485744136 | J104: =chart_data!K111 -> 0.9455532745 | K104: =chart_data!L111 -> 0.9278602319 | L104: =chart_data!M111 -> 0.5219908576 | M104: =chart_data!N111 -> 0.3445001817 | N104: =chart_data!O111 -> 0.3419615807
B105: APS Residence employment rate (16-64) | C105: =chart_data!D112 -> 2.222222222 | D105: =chart_data!E112 -> 1.739130435 | E105: =chart_data!F112 -> 0.4273504274 | F105: =chart_data!G112 -> 2.127659574 | G105: =chart_data!H112 -> 0.5191111111 | H105: =chart_data!I112 -> 0.2751549733 | I105: =chart_data!J112 -> 0.7077159656 | J105: =chart_data!K112 -> 0.7548041355 | K105: =chart_data!L112 -> 1.048695262 | L105: =chart_data!M112 -> 0.1702689324 | M105: =chart_data!N112 -> -0.1934070276 | N105: =chart_data!O112 -> 0.3708376865
B106: Residence employment rate (15-74) | C106: =chart_data!D113 -> 0 | D106: =chart_data!E113 -> 0 | E106: =chart_data!F113 -> 0 | F106: =chart_data!G113 -> 0 | G106: =chart_data!H113 -> 0 | H106: =chart_data!I113 -> 0 | I106: =chart_data!J113 -> 0 | J106: =chart_data!K113 -> 0 | K106: =chart_data!L113 -> 0 | L106: =chart_data!M113 -> 0 | M106: =chart_data!N113 -> 0 | N106: =chart_data!O113 -> 0
B107: Net commuting | C107: =chart_data!D114 -> -16.94037886 | D107: =chart_data!E114 -> -43.693035 | E107: =chart_data!F114 -> 114.9821205 | F107: =chart_data!G114 -> -35.18789358 | G107: =chart_data!H114 -> 30.73612341 | H107: =chart_data!I114 -> -0.538320647 | I107: =chart_data!J114 -> -5.645860727 | J107: =chart_data!K114 -> -5.808251411 | K107: =chart_data!L114 -> -2.669656916 | L107: =chart_data!M114 -> -1.169685507 | M107: =chart_data!N114 -> -4.059430042 | N107: =chart_data!O114 -> -9.293246906
B108: Unemployment level | C108: =chart_data!D115 -> -29.53707155 | D108: =chart_data!E115 -> -18.95553964 | E108: =chart_data!F115 -> 3.719944797 | F108: =chart_data!G115 -> 4.616635592 | G108: =chart_data!H115 -> 9.762951724 | H108: =chart_data!I115 -> 0.5627190688 | I108: =chart_data!J115 -> -3.444582214 | J108: =chart_data!K115 -> -4.045394398 | K108: =chart_data!L115 -> -3.833868145 | L108: =chart_data!M115 -> -0.8792271666 | M108: =chart_data!N115 -> -0.5918194136 | N108: =chart_data!O115 -> -0.7103212643
B109: Unemployment rate (16-64) | C109: =chart_data!D116 -> -29.63053233 | D109: =chart_data!E116 -> -19.44486088 | E109: =chart_data!F116 -> 2.963645154 | F109: =chart_data!G116 -> 4.442735156 | G109: =chart_data!H116 -> 9.655787955 | H109: =chart_data!I116 -> 0.4530469792 | I109: =chart_data!J116 -> -3.559746907 | J109: =chart_data!K116 -> -4.1139177 | K109: =chart_data!L116 -> -3.919607712 | L109: =chart_data!M116 -> -0.9518580733 | M109: =chart_data!N116 -> -0.4998860547 | N109: =chart_data!O116 -> -0.5667719537
B110: Unemployment rate (15-74) | C110: =chart_data!D117 -> -29.79555724 | D110: =chart_data!E117 -> -19.5186683 | E110: =chart_data!F117 -> 2.893129377 | F110: =chart_data!G117 -> 4.523524325 | G110: =chart_data!H117 -> 9.723803682 | H110: =chart_data!I117 -> 0.5652112302 | I110: =chart_data!J117 -> -3.483743408 | J110: =chart_data!K117 -> -4.226681849 | K110: =chart_data!L117 -> -3.718759946 | L110: =chart_data!M117 -> -1.226054333 | M110: =chart_data!N117 -> -1.124698258 | N110: =chart_data!O117 -> -0.6817415174
B111: Output
B112: Total GVA (£2015m) | C112: =chart_data!D119 -> -0.3962144317 | D112: =chart_data!E119 -> 3.684754564 | E112: =chart_data!F119 -> 2.53223967 | F112: =chart_data!G119 -> 2.440094135 | G112: =chart_data!H119 -> 1.659868957 | H112: =chart_data!I119 -> 1.56970081 | I112: =chart_data!J119 -> 1.98008388 | J112: =chart_data!K119 -> 2.19043486 | K112: =chart_data!L119 -> 2.252871979 | L112: =chart_data!M119 -> 1.87549135 | M112: =chart_data!N119 -> 1.549282072 | N112: =chart_data!O119 -> 1.381038556
B113: Relative productivity | C113: =chart_data!D120 -> 0 | D113: =chart_data!E120 -> 0 | E113: =chart_data!F120 -> 0 | F113: =chart_data!G120 -> 0 | G113: =chart_data!H120 -> 0 | H113: =chart_data!I120 -> 0 | I113: =chart_data!J120 -> 0 | J113: =chart_data!K120 -> 0 | K113: =chart_data!L120 -> 0 | L113: =chart_data!M120 -> 0 | M113: =chart_data!N120 -> 0 | N113: =chart_data!O120 -> 0
B114: Source: Oxford Economics
B115: *Unless otherwise stated
B119: =city&": Total employment by sector (000s)" -> Greater Manchester: Total employment by sector (000s)
C120: =chart_data!D136 -> 2014 | D120: =chart_data!E136 -> 2015 | E120: =chart_data!F136 -> 2016 | F120: =chart_data!G136 -> 2017 | G120: =chart_data!H136 -> 2018 | H120: =chart_data!I136 -> 2019 | I120: =chart_data!J136 -> 2020 | J120: =chart_data!K136 -> 2021 | K120: =chart_data!L136 -> 2022 | L120: =chart_data!M136 -> 2027 | M120: =chart_data!N136 -> 2032 | N120: =chart_data!O136 -> 2037
B121: Agriculture, forestry & fishing | C121: =chart_data!D138 -> 3.442843 | D121: =chart_data!E138 -> 3.344313 | E121: =chart_data!F138 -> 3.369157 | F121: =chart_data!G138 -> 3.370172 | G121: =chart_data!H138 -> 3.298247 | H121: =chart_data!I138 -> 3.263462 | I121: =chart_data!J138 -> 3.236809 | J121: =chart_data!K138 -> 3.218643 | K121: =chart_data!L138 -> 3.208419 | L121: =chart_data!M138 -> 3.120415 | M121: =chart_data!N138 -> 3.022818 | N121: =chart_data!O138 -> 2.886459
B122: Mining & quarrying | C122: =chart_data!D139 -> 0.283972 | D122: =chart_data!E139 -> 0.2891826 | E122: =chart_data!F139 -> 0.2039442 | F122: =chart_data!G139 -> 0.1882627 | G122: =chart_data!H139 -> 0.191827 | H122: =chart_data!I139 -> 0.1909237 | I122: =chart_data!J139 -> 0.1839529 | J122: =chart_data!K139 -> 0.1749805 | K122: =chart_data!L139 -> 0.1664952 | L122: =chart_data!M139 -> 0.1318973 | M122: =chart_data!N139 -> 0.1057906 | N122: =chart_data!O139 -> 0.08477928
B123: Manufacturing, of which: | C123: =chart_data!D140 -> 110.7382 | D123: =chart_data!E140 -> 106.209 | E123: =chart_data!F140 -> 111.1499 | F123: =chart_data!G140 -> 112.9343 | G123: =chart_data!H140 -> 113.5777 | H123: =chart_data!I140 -> 111.6884 | I123: =chart_data!J140 -> 109.9642 | J123: =chart_data!K140 -> 108.666 | K123: =chart_data!L140 -> 107.4042 | L123: =chart_data!M140 -> 99.06156 | M123: =chart_data!N140 -> 90.12665 | N123: =chart_data!O140 -> 81.84164
B124: Food products, beverages & tobacco | C124: =chart_data!D141 -> 20.22092 | D124: =chart_data!E141 -> 21.87998 | E124: =chart_data!F141 -> 22.92614 | F124: =chart_data!G141 -> 22.93423 | G124: =chart_data!H141 -> 23.21022 | H124: =chart_data!I141 -> 22.98505 | I124: =chart_data!J141 -> 22.78839 | J124: =chart_data!K141 -> 22.66168 | K124: =chart_data!L141 -> 22.5373 | L124: =chart_data!M141 -> 21.41174 | M124: =chart_data!N141 -> 20.02573 | N124: =chart_data!O141 -> 18.67488
B125: Textiles, wearing apparel & leather products | C125: =chart_data!D142 -> 9.781316 | D125: =chart_data!E142 -> 9.200941 | E125: =chart_data!F142 -> 8.536774 | F125: =chart_data!G142 -> 8.174445 | G125: =chart_data!H142 -> 8.196039 | H125: =chart_data!I142 -> 8.020204 | I125: =chart_data!J142 -> 7.857882 | J125: =chart_data!K142 -> 7.723814 | K125: =chart_data!L142 -> 7.592598 | L125: =chart_data!M142 -> 6.824139 | M125: =chart_data!N142 -> 6.059443 | N125: =chart_data!O142 -> 5.37059
B126: Wood, paper products & printing | C126: =chart_data!D143 -> 10.23755 | D126: =chart_data!E143 -> 10.59337 | E126: =chart_data!F143 -> 14.9047 | F126: =chart_data!G143 -> 15.24313 | G126: =chart_data!H143 -> 15.33009 | H126: =chart_data!I143 -> 15.06944 | I126: =chart_data!J143 -> 14.83232 | J126: =chart_data!K143 -> 14.64815 | K126: =chart_data!L143 -> 14.46938 | L126: =chart_data!M143 -> 13.30614 | M126: =chart_data!N143 -> 12.07141 | N126: =chart_data!O143 -> 10.93096
B127: Refined Petroleum, Chemical & Pharmaceuticals | C127: =chart_data!D144 -> 9.316589 | D127: =chart_data!E144 -> 9.001626 | E127: =chart_data!F144 -> 8.926038 | F127: =chart_data!G144 -> 9.258358 | G127: =chart_data!H144 -> 9.292038 | H127: =chart_data!I144 -> 9.128623 | I127: =chart_data!J144 -> 8.979424 | J127: =chart_data!K144 -> 8.862782 | K127: =chart_data!L144 -> 8.748848 | L127: =chart_data!M144 -> 8.018603 | M127: =chart_data!N144 -> 7.249369 | N127: =chart_data!O144 -> 6.541996
B128: Rubber, plastic & other non-metallic mineral products | C128: =chart_data!D145 -> 14.76958 | D128: =chart_data!E145 -> 12.77286 | E128: =chart_data!F145 -> 10.58429 | F128: =chart_data!G145 -> 10.53909 | G128: =chart_data!H145 -> 10.59479 | H128: =chart_data!I145 -> 10.41601 | I128: =chart_data!J145 -> 10.253 | J128: =chart_data!K145 -> 10.12684 | K128: =chart_data!L145 -> 10.00381 | L128: =chart_data!M145 -> 9.201826 | M128: =chart_data!N145 -> 8.35425 | N128: =chart_data!O145 -> 7.572951
B129: Basic metals & metal products | C129: =chart_data!D146 -> 14.76711 | D129: =chart_data!E146 -> 13.01776 | E129: =chart_data!F146 -> 14.91487 | F129: =chart_data!G146 -> 15.56834 | G129: =chart_data!H146 -> 15.59706 | H129: =chart_data!I146 -> 15.28616 | I129: =chart_data!J146 -> 15.00107 | J129: =chart_data!K146 -> 14.77152 | K129: =chart_data!L146 -> 14.54776 | L129: =chart_data!M146 -> 13.1982 | M129: =chart_data!N146 -> 11.80246 | N129: =chart_data!O146 -> 10.53558
B130: Computer, electronics & electricial equipment | C130: =chart_data!D147 -> 7.441541 | D130: =chart_data!E147 -> 9.518754 | E130: =chart_data!F147 -> 8.367718 | F130: =chart_data!G147 -> 8.482103 | G130: =chart_data!H147 -> 8.487376 | H130: =chart_data!I147 -> 8.304881 | I130: =chart_data!J147 -> 8.136502 | J130: =chart_data!K147 -> 7.998482 | K130: =chart_data!L147 -> 7.869291 | L130: =chart_data!M147 -> 7.069726 | M130: =chart_data!N147 -> 6.270152 | N130: =chart_data!O147 -> 5.545887
B131: Machinery & transport equipment | C131: =chart_data!D148 -> 11.82674 | D131: =chart_data!E148 -> 11.73114 | E131: =chart_data!F148 -> 13.05868 | F131: =chart_data!G148 -> 13.57506 | G131: =chart_data!H148 -> 13.60897 | H131: =chart_data!I148 -> 13.34662 | I131: =chart_data!J148 -> 13.10079 | J131: =chart_data!K148 -> 12.94489 | K131: =chart_data!L148 -> 12.793 | L131: =chart_data!M148 -> 11.79376 | M131: =chart_data!N148 -> 10.72675 | N131: =chart_data!O148 -> 9.733283
B132: Other Manufacturing & repair | C132: =chart_data!D149 -> 12.37688 | D132: =chart_data!E149 -> 8.492575 | E132: =chart_data!F149 -> 8.930711 | F132: =chart_data!G149 -> 9.159535 | G132: =chart_data!H149 -> 9.261115 | H132: =chart_data!I149 -> 9.131454 | I132: =chart_data!J149 -> 9.014792 | J132: =chart_data!K149 -> 8.927811 | K132: =chart_data!L149 -> 8.84216 | L132: =chart_data!M149 -> 8.237418 | M132: =chart_data!N149 -> 7.567085 | N132: =chart_data!O149 -> 6.93552
B133: Electricity, gas, steam & air conditioning supply | C133: =chart_data!D150 -> 5.00583 | D133: =chart_data!E150 -> 6.625925 | E133: =chart_data!F150 -> 7.461478 | F133: =chart_data!G150 -> 7.646014 | G133: =chart_data!H150 -> 7.649694 | H133: =chart_data!I150 -> 7.564157 | I133: =chart_data!J150 -> 7.491715 | J133: =chart_data!K150 -> 7.432897 | K133: =chart_data!L150 -> 7.388411 | L133: =chart_data!M150 -> 7.041588 | M133: =chart_data!N150 -> 6.593869 | N133: =chart_data!O150 -> 6.209463
B134: Water supply; sewerage, waste management | C134: =chart_data!D151 -> 7.800836 | D134: =chart_data!E151 -> 7.768772 | E134: =chart_data!F151 -> 9.018438 | F134: =chart_data!G151 -> 9.172755 | G134: =chart_data!H151 -> 9.159255 | H134: =chart_data!I151 -> 9.02736 | I134: =chart_data!J151 -> 8.929561 | J134: =chart_data!K151 -> 8.868582 | K134: =chart_data!L151 -> 8.816669 | L134: =chart_data!M151 -> 8.426502 | M134: =chart_data!N151 -> 7.937964 | N134: =chart_data!O151 -> 7.449379
B135: Construction | C135: =chart_data!D152 -> 80.77436 | D135: =chart_data!E152 -> 79.05692 | E135: =chart_data!F152 -> 79.82634 | F135: =chart_data!G152 -> 81.07815 | G135: =chart_data!H152 -> 81.93843 | H135: =chart_data!I152 -> 82.89465 | I135: =chart_data!J152 -> 84.46651 | J135: =chart_data!K152 -> 85.99902 | K135: =chart_data!L152 -> 87.33981 | L135: =chart_data!M152 -> 91.38537 | M135: =chart_data!N152 -> 94.07413 | N135: =chart_data!O152 -> 96.69567
B136: Wholesale & retail trade | C136: =chart_data!D153 -> 206.9404 | D136: =chart_data!E153 -> 217.8764 | E136: =chart_data!F153 -> 215.2914 | F136: =chart_data!G153 -> 213.3781 | G136: =chart_data!H153 -> 215.9033 | H136: =chart_data!I153 -> 216.4518 | I136: =chart_data!J153 -> 218.2064 | J136: =chart_data!K153 -> 220.1742 | K136: =chart_data!L153 -> 222.4776 | L136: =chart_data!M153 -> 230.7511 | M136: =chart_data!N153 -> 233.8132 | N136: =chart_data!O153 -> 234.2539
B137: Transportation & storage | C137: =chart_data!D154 -> 68.76034 | D137: =chart_data!E154 -> 71.42569 | E137: =chart_data!F154 -> 78.56876 | F137: =chart_data!G154 -> 84.52876 | G137: =chart_data!H154 -> 84.87592 | H137: =chart_data!I154 -> 84.57771 | I137: =chart_data!J154 -> 84.65161 | J137: =chart_data!K154 -> 85.03827 | K137: =chart_data!L154 -> 85.46156 | L137: =chart_data!M154 -> 85.82521 | M137: =chart_data!N154 -> 84.82563 | N137: =chart_data!O154 -> 83.55813
B138: Accommodation & food service activities | C138: =chart_data!D155 -> 81.3563 | D138: =chart_data!E155 -> 84.12712 | E138: =chart_data!F155 -> 89.56755 | F138: =chart_data!G155 -> 90.66229 | G138: =chart_data!H155 -> 91.91151 | H138: =chart_data!I155 -> 92.52844 | I138: =chart_data!J155 -> 93.71936 | J138: =chart_data!K155 -> 95.11993 | K138: =chart_data!L155 -> 96.32585 | L138: =chart_data!M155 -> 100.4613 | M138: =chart_data!N155 -> 102.7996 | N138: =chart_data!O155 -> 103.8756
B139: Information & communication | C139: =chart_data!D156 -> 44.48846 | D139: =chart_data!E156 -> 54.18969 | E139: =chart_data!F156 -> 52.47202 | F139: =chart_data!G156 -> 51.9884 | G139: =chart_data!H156 -> 52.37656 | H139: =chart_data!I156 -> 52.78636 | I139: =chart_data!J156 -> 53.46883 | J139: =chart_data!K156 -> 54.32307 | K139: =chart_data!L156 -> 54.99691 | L139: =chart_data!M156 -> 56.54533 | M139: =chart_data!N156 -> 57.22908 | N139: =chart_data!O156 -> 57.84624
B140: Financial & insurance activities | C140: =chart_data!D157 -> 45.58602 | D140: =chart_data!E157 -> 43.3526 | E140: =chart_data!F157 -> 45.19282 | F140: =chart_data!G157 -> 47.11273 | G140: =chart_data!H157 -> 46.88635 | H140: =chart_data!I157 -> 46.24776 | I140: =chart_data!J157 -> 45.70179 | J140: =chart_data!K157 -> 45.35982 | K140: =chart_data!L157 -> 45.40154 | L140: =chart_data!M157 -> 45.19716 | M140: =chart_data!N157 -> 44.5517 | N140: =chart_data!O157 -> 43.90743
B141: Real estate activities | C141: =chart_data!D158 -> 27.17142 | D141: =chart_data!E158 -> 27.39419 | E141: =chart_data!F158 -> 28.86767 | F141: =chart_data!G158 -> 31.03197 | G141: =chart_data!H158 -> 31.12355 | H141: =chart_data!I158 -> 31.30848 | I141: =chart_data!J158 -> 31.57728 | J141: =chart_data!K158 -> 31.93664 | K141: =chart_data!L158 -> 32.27193 | L141: =chart_data!M158 -> 33.45951 | M141: =chart_data!N158 -> 34.34782 | N141: =chart_data!O158 -> 35.13599
B142: Professional, scientific & technical activities | C142: =chart_data!D159 -> 130.2248 | D142: =chart_data!E159 -> 125.3365 | E142: =chart_data!F159 -> 133.3388 | F142: =chart_data!G159 -> 141.1283 | G142: =chart_data!H159 -> 143.2152 | H142: =chart_data!I159 -> 145.4348 | I142: =chart_data!J159 -> 148.0406 | J142: =chart_data!K159 -> 151.0195 | K142: =chart_data!L159 -> 153.7596 | L142: =chart_data!M159 -> 162.9243 | M142: =chart_data!N159 -> 170.9773 | N142: =chart_data!O159 -> 179.4183
B143: Administrative & support service activities | C143: =chart_data!D160 -> 127.0154 | D143: =chart_data!E160 -> 138.8238 | E143: =chart_data!F160 -> 140.1243 | F143: =chart_data!G160 -> 142.5115 | G143: =chart_data!H160 -> 145.3638 | H143: =chart_data!I160 -> 147.201 | I143: =chart_data!J160 -> 149.4846 | J143: =chart_data!K160 -> 151.8412 | K143: =chart_data!L160 -> 154.4405 | L143: =chart_data!M160 -> 163.7644 | M143: =chart_data!N160 -> 171.7982 | N143: =chart_data!O160 -> 179.1544
B144: Public administration & defence | C144: =chart_data!D161 -> 54.68718 | D144: =chart_data!E161 -> 53.72574 | E144: =chart_data!F161 -> 53.52316 | F144: =chart_data!G161 -> 53.71523 | G144: =chart_data!H161 -> 53.84691 | H144: =chart_data!I161 -> 53.12591 | I144: =chart_data!J161 -> 52.4763 | J144: =chart_data!K161 -> 52.0591 | K144: =chart_data!L161 -> 51.77032 | L144: =chart_data!M161 -> 50.26479 | M144: =chart_data!N161 -> 48.39776 | N144: =chart_data!O161 -> 46.6404
B145: Education | C145: =chart_data!D162 -> 118.1121 | D145: =chart_data!E162 -> 115.8491 | E145: =chart_data!F162 -> 122.9281 | F145: =chart_data!G162 -> 119.8985 | G145: =chart_data!H162 -> 121.0014 | H145: =chart_data!I162 -> 120.7656 | I145: =chart_data!J162 -> 120.5118 | J145: =chart_data!K162 -> 120.2552 | K145: =chart_data!L162 -> 120.4172 | L145: =chart_data!M162 -> 120.3807 | M145: =chart_data!N162 -> 120.2035 | N145: =chart_data!O162 -> 120.0041
B146: Human health & social work activities | C146: =chart_data!D163 -> 175.9693 | D146: =chart_data!E163 -> 174.9706 | E146: =chart_data!F163 -> 179.361 | F146: =chart_data!G163 -> 180.9347 | G146: =chart_data!H163 -> 181.4906 | H146: =chart_data!I163 -> 180.9272 | I146: =chart_data!J163 -> 180.8851 | J146: =chart_data!K163 -> 181.856 | K146: =chart_data!L163 -> 183.4207 | L146: =chart_data!M163 -> 190.9572 | M146: =chart_data!N163 -> 196.331 | N146: =chart_data!O163 -> 201.3734
B147: Arts, entertainment & recreation | C147: =chart_data!D164 -> 34.07883 | D147: =chart_data!E164 -> 34.06058 | E147: =chart_data!F164 -> 32.00896 | F147: =chart_data!G164 -> 32.93122 | G147: =chart_data!H164 -> 33.17933 | H147: =chart_data!I164 -> 33.5509 | I147: =chart_data!J164 -> 34.02475 | J147: =chart_data!K164 -> 34.59635 | K147: =chart_data!L164 -> 35.14748 | L147: =chart_data!M164 -> 37.75708 | M147: =chart_data!N164 -> 40.13607 | N147: =chart_data!O164 -> 42.64847
B148: Other service activities | C148: =chart_data!D165 -> 42.52044 | D148: =chart_data!E165 -> 38.97585 | E148: =chart_data!F165 -> 39.36222 | F148: =chart_data!G165 -> 38.74221 | G148: =chart_data!H165 -> 38.68473 | H148: =chart_data!I165 -> 38.76872 | I148: =chart_data!J165 -> 38.96391 | J148: =chart_data!K165 -> 39.27987 | K148: =chart_data!L165 -> 39.57063 | L148: =chart_data!M165 -> 40.76182 | M148: =chart_data!N165 -> 41.48067 | N148: =chart_data!O165 -> 42.09313
B149: Total | C149: =chart_data!D166 -> 1364.957 | D149: =chart_data!E166 -> 1383.402 | E149: =chart_data!F166 -> 1421.636 | F149: =chart_data!G166 -> 1442.954 | G149: =chart_data!H166 -> 1455.674 | H149: =chart_data!I166 -> 1458.304 | I149: =chart_data!J166 -> 1465.985 | J149: =chart_data!K166 -> 1477.219 | K149: =chart_data!L166 -> 1489.786 | L149: =chart_data!M166 -> 1528.217 | M149: =chart_data!N166 -> 1548.753 | N149: =chart_data!O166 -> 1565.077
B150: Source: Oxford Economics
B153: =city&": Total employment by sector - Annual percentage change (%)" -> Greater Manchester: Total employment by sector - Annual percentage change (%)
C154: =chart_data!D169 -> 2014 | D154: =chart_data!E169 -> 2015 | E154: =chart_data!F169 -> 2016 | F154: =chart_data!G169 -> 2017 | G154: =chart_data!H169 -> 2018 | H154: =chart_data!I169 -> 2019 | I154: =chart_data!J169 -> 2020 | J154: =chart_data!K169 -> 2021 | K154: =chart_data!L169 -> 2022 | L154: =chart_data!M169 -> 2022-2027 | M154: =chart_data!N169 -> 2027-2032 | N154: =chart_data!O169 -> 2032-2037
L155: (Avg pa) | M155: (Avg pa) | N155: (Avg pa)
B156: Agriculture, forestry & fishing | C156: =chart_data!D170 -> 11.03652794 | D156: =chart_data!E170 -> -2.861878976 | E156: =chart_data!F170 -> 0.7428730505 | F156: =chart_data!G170 -> 0.03012623039 | G156: =chart_data!H170 -> -2.134164072 | H156: =chart_data!I170 -> -1.054651153 | I156: =chart_data!J170 -> -0.8167093718 | J156: =chart_data!K170 -> -0.5612317563 | K156: =chart_data!L170 -> -0.3176493945 | L156: =chart_data!M170 -> -0.5547015509 | M156: =chart_data!N170 -> -0.633514718 | N156: =chart_data!O170 -> -0.9189321237
B157: Mining & quarrying | C157: =chart_data!D171 -> 57.10204452 | D157: =chart_data!E171 -> 1.834899215 | E157: =chart_data!F171 -> -29.47563235 | F157: =chart_data!G171 -> -7.689113002 | G157: =chart_data!H171 -> 1.893258728 | H157: =chart_data!I171 -> -0.4708930443 | I157: =chart_data!J171 -> -3.651092033 | J157: =chart_data!K171 -> -4.877552895 | K157: =chart_data!L171 -> -4.849283206 | L157: =chart_data!M171 -> -4.551998924 | M157: =chart_data!N171 -> -4.315358296 | N157: =chart_data!O171 -> -4.331596026
B158: Manufacturing, of which: | C158: =chart_data!D172 -> 0.7722295831 | D158: =chart_data!E172 -> -4.090006881 | E158: =chart_data!F172 -> 4.652053969 | F158: =chart_data!G172 -> 1.605399555 | G158: =chart_data!H172 -> 0.5697117705 | H158: =chart_data!I172 -> -1.663442736 | I158: =chart_data!J172 -> -1.543759244 | J158: =chart_data!K172 -> -1.180566039 | K158: =chart_data!L172 -> -1.161172768 | L158: =chart_data!M172 -> -1.604150478 | M158: =chart_data!N172 -> -1.872753349 | N158: =chart_data!O172 -> -1.910116447
B159: Food products, beverages & tobacco | C159: =chart_data!D173 -> -1.25366009 | D159: =chart_data!E173 -> 8.204671202 | E159: =chart_data!F173 -> 4.781357204 | F159: =chart_data!G173 -> 0.03528723108 | G159: =chart_data!H173 -> 1.203397716 | H159: =chart_data!I173 -> -0.9701329845 | I159: =chart_data!J173 -> -0.855599618 | J159: =chart_data!K173 -> -0.5560287497 | K159: =chart_data!L173 -> -0.5488560424 | L159: =chart_data!M173 -> -1.019415271 | M159: =chart_data!N173 -> -1.329511334 | N159: =chart_data!O173 -> -1.387063217
B160: Textiles, wearing apparel & leather products | C160: =chart_data!D174 -> -24.42518327 | D160: =chart_data!E174 -> -5.933506289 | E160: =chart_data!F174 -> -7.218468198 | F160: =chart_data!G174 -> -4.244331641 | G160: =chart_data!H174 -> 0.2641647231 | H160: =chart_data!I174 -> -2.145365585 | I160: =chart_data!J174 -> -2.023913606 | J160: =chart_data!K174 -> -1.706159497 | K160: =chart_data!L174 -> -1.698849817 | L160: =chart_data!M174 -> -2.111541021 | M160: =chart_data!N174 -> -2.348938622 | N160: =chart_data!O174 -> -2.384707745
B161: Wood, paper products & printing | C161: =chart_data!D175 -> -7.392548744 | D161: =chart_data!E175 -> 3.475636261 | E161: =chart_data!F175 -> 40.69838021 | F161: =chart_data!G175 -> 2.270626044 | G161: =chart_data!H175 -> 0.5704865077 | H161: =chart_data!I175 -> -1.700250944 | I161: =chart_data!J175 -> -1.573515671 | J161: =chart_data!K175 -> -1.241680331 | K161: =chart_data!L175 -> -1.220427153 | L161: =chart_data!M175 -> -1.662212421 | M161: =chart_data!N175 -> -1.928869307 | N161: =chart_data!O175 -> -1.965246573
B162: Refined Petroleum, Chemical & Pharmaceuticals | C162: =chart_data!D176 -> -0.4425729629 | D162: =chart_data!E176 -> -3.380668612 | E162: =chart_data!F176 -> -0.8397149582 | F162: =chart_data!G176 -> 3.72304039 | G162: =chart_data!H176 -> 0.3637794088 | H162: =chart_data!I176 -> -1.758656174 | I162: =chart_data!J176 -> -1.634408607 | J162: =chart_data!K176 -> -1.298992007 | K162: =chart_data!L176 -> -1.285533143 | L162: =chart_data!M176 -> -1.728051273 | M162: =chart_data!N176 -> -1.996790447 | N162: =chart_data!O176 -> -2.032502705
B163: Rubber, plastic & other non-metallic mineral products | C163: =chart_data!D177 -> 28.02279339 | D163: =chart_data!E177 -> -13.51913866 | E163: =chart_data!F177 -> -17.13453369 | F163: =chart_data!G177 -> -0.4270480117 | G163: =chart_data!H177 -> 0.5285086284 | H163: =chart_data!I177 -> -1.687433163 | I163: =chart_data!J177 -> -1.564994657 | J163: =chart_data!K177 -> -1.230469131 | K163: =chart_data!L177 -> -1.214890331 | L163: =chart_data!M177 -> -1.657393125 | M163: =chart_data!N177 -> -1.91407544 | N163: =chart_data!O177 -> -1.944595432
B164: Basic metals & metal products | C164: =chart_data!D178 -> 34.14328616 | D164: =chart_data!E178 -> -11.84625834 | E164: =chart_data!F178 -> 14.57324455 | F164: =chart_data!G178 -> 4.381332187 | G164: =chart_data!H178 -> 0.1844769577 | H164: =chart_data!I178 -> -1.993324383 | I164: =chart_data!J178 -> -1.865020384 | J164: =chart_data!K178 -> -1.530224177 | K164: =chart_data!L178 -> -1.514806872 | L164: =chart_data!M178 -> -1.9282973 | M164: =chart_data!N178 -> -2.210648424 | N164: =chart_data!O178 -> -2.245404633
B165: Computer, electronics & electricial equipment | C165: =chart_data!D179 -> 0.3654217233 | D165: =chart_data!E179 -> 27.91374797 | E165: =chart_data!F179 -> -12.09229695 | F165: =chart_data!G179 -> 1.366979623 | G165: =chart_data!H179 -> 0.06216618685 | H165: =chart_data!I179 -> -2.150193417 | I165: =chart_data!J179 -> -2.027470351 | J165: =chart_data!K179 -> -1.696306349 | K165: =chart_data!L179 -> -1.615193983 | L165: =chart_data!M179 -> -2.12012741 | M165: =chart_data!N179 -> -2.371841545 | N165: =chart_data!O179 -> -2.424993369
B166: Machinery & transport equipment | C166: =chart_data!D180 -> -8.146819202 | D166: =chart_data!E180 -> -0.8083377161 | E166: =chart_data!F180 -> 11.31637675 | F166: =chart_data!G180 -> 3.954304723 | G166: =chart_data!H180 -> 0.2497963177 | H166: =chart_data!I180 -> -1.927772638 | I166: =chart_data!J180 -> -1.841889557 | J166: =chart_data!K180 -> -1.190004572 | K166: =chart_data!L180 -> -1.173358754 | L166: =chart_data!M180 -> -1.61339445 | M166: =chart_data!N180 -> -1.878726853 | N166: =chart_data!O180 -> -1.925017709
B167: Other Manufacturing & repair | C167: =chart_data!D181 -> -6.387027629 | D167: =chart_data!E181 -> -31.38355547 | E167: =chart_data!F181 -> 5.159047756 | F167: =chart_data!G181 -> 2.562214811 | G167: =chart_data!H181 -> 1.109008263 | H167: =chart_data!I181 -> -1.4000582 | I167: =chart_data!J181 -> -1.277584052 | J167: =chart_data!K181 -> -0.9648697385 | K167: =chart_data!L181 -> -0.9593729079 | L167: =chart_data!M181 -> -1.406894334 | M167: =chart_data!N181 -> -1.683252785 | N167: =chart_data!O181 -> -1.727934729
B168: Electricity, gas, steam & air conditioning supply | C168: =chart_data!D182 -> -37.9234272 | D168: =chart_data!E182 -> 32.36416339 | E168: =chart_data!F182 -> 12.61036006 | F168: =chart_data!G182 -> 2.473182927 | G168: =chart_data!H182 -> 0.04812965291 | H168: =chart_data!I182 -> -1.118175446 | I168: =chart_data!J182 -> -0.9577009044 | J168: =chart_data!K182 -> -0.7851072818 | K168: =chart_data!L182 -> -0.5985014995 | L168: =chart_data!M182 -> -0.9569711791 | M168: =chart_data!N182 -> -1.305275123 | N168: =chart_data!O182 -> -1.194130176
B169: Water supply; sewerage, waste management | C169: =chart_data!D183 -> 4.347856329 | D169: =chart_data!E183 -> -0.4110328688 | E169: =chart_data!F183 -> 16.08575976 | F169: =chart_data!G183 -> 1.711127803 | G169: =chart_data!H183 -> -0.1471749763 | H169: =chart_data!I183 -> -1.440018866 | I169: =chart_data!J183 -> -1.083362135 | J169: =chart_data!K183 -> -0.682889114 | K169: =chart_data!L183 -> -0.5853585162 | L169: =chart_data!M183 -> -0.9011628672 | M169: =chart_data!N183 -> -1.18739259 | N169: =chart_data!O183 -> -1.262485851
B170: Construction | C170: =chart_data!D184 -> -1.393539153 | D170: =chart_data!E184 -> -2.126219261 | E170: =chart_data!F184 -> 0.9732481356 | F170: =chart_data!G184 -> 1.568166598 | G170: =chart_data!H184 -> 1.061050357 | H170: =chart_data!I184 -> 1.166998196 | I170: =chart_data!J184 -> 1.89621405 | J170: =chart_data!K184 -> 1.814340382 | K170: =chart_data!L184 -> 1.559075906 | L170: =chart_data!M184 -> 0.9096933332 | M170: =chart_data!N184 -> 0.5816387576 | N170: =chart_data!O184 -> 0.5512243876
B171: Wholesale & retail trade | C171: =chart_data!D185 -> -3.372026783 | D171: =chart_data!E185 -> 5.284613348 | E171: =chart_data!F185 -> -1.186452502 | F171: =chart_data!G185 -> -0.8887024749 | G171: =chart_data!H185 -> 1.183439163 | H171: =chart_data!I185 -> 0.2540489191 | I171: =chart_data!J185 -> 0.8106192695 | J171: =chart_data!K185 -> 0.9018067298 | K171: =chart_data!L185 -> 1.046171622 | L171: =chart_data!M185 -> 0.7329372938 | M171: =chart_data!N185 -> 0.264005192 | N171: =chart_data!O185 -> 0.03766837082
B172: Transportation & storage | C172: =chart_data!D186 -> -4.182691879 | D172: =chart_data!E186 -> 3.876289733 | E172: =chart_data!F186 -> 10.00070143 | F172: =chart_data!G186 -> 7.585712184 | G172: =chart_data!H186 -> 0.4107004527 | H172: =chart_data!I186 -> -0.3513481798 | I172: =chart_data!J186 -> 0.08737526708 | J172: =chart_data!K186 -> 0.4567662682 | K172: =chart_data!L186 -> 0.4977641243 | L172: =chart_data!M186 -> 0.08495810851 | M172: =chart_data!N186 -> -0.2340266992 | N172: =chart_data!O186 -> -0.3006507455
B173: Accommodation & food service activities | C173: =chart_data!D187 -> 14.48800734 | D173: =chart_data!E187 -> 3.405784186 | E173: =chart_data!F187 -> 6.466915782 | F173: =chart_data!G187 -> 1.222250692 | G173: =chart_data!H187 -> 1.37788269 | H173: =chart_data!I187 -> 0.6712217001 | I173: =chart_data!J187 -> 1.287085355 | J173: =chart_data!K187 -> 1.494429753 | K173: =chart_data!L187 -> 1.26778899 | L173: =chart_data!M187 -> 0.8442612312 | M173: =chart_data!N187 -> 0.4612381085 | N173: =chart_data!O187 -> 0.2084683411
B174: Information & communication | C174: =chart_data!D188 -> 9.567961209 | D174: =chart_data!E188 -> 21.80617176 | E174: =chart_data!F188 -> -3.169735793 | F174: =chart_data!G188 -> -0.9216721598 | G174: =chart_data!H188 -> 0.746628094 | H174: =chart_data!I188 -> 0.7824110633 | I174: =chart_data!J188 -> 1.292890815 | J174: =chart_data!K188 -> 1.597641093 | K174: =chart_data!L188 -> 1.240430631 | L174: =chart_data!M188 -> 0.5568570274 | M174: =chart_data!N188 -> 0.2406800393 | N174: =chart_data!O188 -> 0.2147561723
B175: Financial & insurance activities | C175: =chart_data!D189 -> -10.70679616 | D175: =chart_data!E189 -> -4.899352916 | E175: =chart_data!F189 -> 4.244774247 | F175: =chart_data!G189 -> 4.24826333 | G175: =chart_data!H189 -> -0.4805070731 | H175: =chart_data!I189 -> -1.361995549 | I175: =chart_data!J189 -> -1.180532852 | J175: =chart_data!K189 -> -0.7482639083 | K175: =chart_data!L189 -> 0.09197567362 | L175: =chart_data!M189 -> -0.09019474349 | M175: =chart_data!N189 -> -0.2872654099 | N175: =chart_data!O189 -> -0.2909112011
B176: Real estate activities | C176: =chart_data!D190 -> -6.624887755 | D176: =chart_data!E190 -> 0.819868818 | E176: =chart_data!F190 -> 5.378804776 | F176: =chart_data!G190 -> 7.49731447 | G176: =chart_data!H190 -> 0.2951150056 | H176: =chart_data!I190 -> 0.5941802911 | I176: =chart_data!J190 -> 0.8585533376 | J176: =chart_data!K190 -> 1.138033421 | K176: =chart_data!L190 -> 1.049859973 | L176: =chart_data!M190 -> 0.7253830278 | M176: =chart_data!N190 -> 0.5254255683 | N176: =chart_data!O190 -> 0.4547791751
B177: Professional, scientific & technical activities | C177: =chart_data!D191 -> 5.363024621 | D177: =chart_data!E191 -> -3.753739687 | E177: =chart_data!F191 -> 6.384652515 | F177: =chart_data!G191 -> 5.841885483 | G177: =chart_data!H191 -> 1.478725387 | H177: =chart_data!I191 -> 1.549835492 | I177: =chart_data!J191 -> 1.791730727 | J177: =chart_data!K191 -> 2.01221827 | K177: =chart_data!L191 -> 1.814401451 | L177: =chart_data!M191 -> 1.164636328 | M177: =chart_data!N191 -> 0.9695726607 | N177: =chart_data!O191 -> 0.9684423845
B178: Administrative & support service activities | C178: =chart_data!D192 -> 3.162564489 | D178: =chart_data!E192 -> 9.296825424 | E178: =chart_data!F192 -> 0.9367990215 | F178: =chart_data!G192 -> 1.703630277 | G178: =chart_data!H192 -> 2.001452514 | H178: =chart_data!I192 -> 1.263863493 | I178: =chart_data!J192 -> 1.551348157 | J178: =chart_data!K192 -> 1.576483464 | K178: =chart_data!L192 -> 1.711854227 | L178: =chart_data!M192 -> 1.179297536 | M178: =chart_data!N192 -> 0.9624363677 | N178: =chart_data!O192 -> 0.8420751073
B179: Public administration & defence | C179: =chart_data!D193 -> -1.037629355 | D179: =chart_data!E193 -> -1.758072002 | E179: =chart_data!F193 -> -0.3770632103 | F179: =chart_data!G193 -> 0.3588539989 | G179: =chart_data!H193 -> 0.2451446266 | H179: =chart_data!I193 -> -1.338981197 | I179: =chart_data!J193 -> -1.222774349 | J179: =chart_data!K193 -> -0.7950255639 | K179: =chart_data!L193 -> -0.5547156981 | L179: =chart_data!M193 -> -0.5885050864 | M179: =chart_data!N193 -> -0.7541677818 | N179: =chart_data!O193 -> -0.7369990108
B180: Education | C180: =chart_data!D194 -> 4.200775471 | D180: =chart_data!E194 -> -1.915976433 | E180: =chart_data!F194 -> 6.11053517 | F180: =chart_data!G194 -> -2.464530079 | G180: =chart_data!H194 -> 0.9198613828 | H180: =chart_data!I194 -> -0.1948737783 | I180: =chart_data!J194 -> -0.2101591844 | J180: =chart_data!K194 -> -0.2129252073 | K180: =chart_data!L194 -> 0.1347135093 | L180: =chart_data!M194 -> -0.00606299204 | M180: =chart_data!N194 -> -0.02945728466 | N180: =chart_data!O194 -> -0.03319910685
B181: Human health & social work activities | C181: =chart_data!D195 -> 5.223525388 | D181: =chart_data!E195 -> -0.5675421792 | E181: =chart_data!F195 -> 2.509221549 | F181: =chart_data!G195 -> 0.8773925212 | G181: =chart_data!H195 -> 0.3072379151 | H181: =chart_data!I195 -> -0.3104293005 | I181: =chart_data!J195 -> -0.02326902754 | J181: =chart_data!K195 -> 0.536749572 | K181: =chart_data!L195 -> 0.8604060355 | L181: =chart_data!M195 -> 0.8085895222 | M181: =chart_data!N195 -> 0.5565971017 | N181: =chart_data!O195 -> 0.5084660378
B182: Arts, entertainment & recreation | C182: =chart_data!D196 -> 17.66154158 | D182: =chart_data!E196 -> -0.05355230799 | E182: =chart_data!F196 -> -6.02344411 | F182: =chart_data!G196 -> 2.881255748 | G182: =chart_data!H196 -> 0.7534187923 | H182: =chart_data!I196 -> 1.119883976 | I182: =chart_data!J196 -> 1.412331711 | J182: =chart_data!K196 -> 1.679953563 | K182: =chart_data!L196 -> 1.593029322 | L182: =chart_data!M196 -> 1.442709729 | M182: =chart_data!N196 -> 1.229545992 | N182: =chart_data!O196 -> 1.221722165
B183: Other service activities | C183: =chart_data!D197 -> 15.83006282 | D183: =chart_data!E197 -> -8.336202542 | E183: =chart_data!F197 -> 0.991306155 | F183: =chart_data!G197 -> -1.575139817 | G183: =chart_data!H197 -> -0.1483653101 | H183: =chart_data!I197 -> 0.2171140913 | I183: =chart_data!J197 -> 0.5034729029 | J183: =chart_data!K197 -> 0.8109042445 | K183: =chart_data!L197 -> 0.7402264824 | L183: =chart_data!M197 -> 0.5949364097 | M183: =chart_data!N197 -> 0.3502454633 | N183: =chart_data!O197 -> 0.2935702536
B184: Total | C184: =chart_data!D198 -> 2.121424328 | D184: =chart_data!E198 -> 1.35132462 | E184: =chart_data!F198 -> 2.763766425 | F184: =chart_data!G198 -> 1.499539967 | G184: =chart_data!H198 -> 0.8815249828 | H184: =chart_data!I198 -> 0.1806723209 | I184: =chart_data!J198 -> 0.5267077372 | J184: =chart_data!K198 -> 0.7663107058 | K184: =chart_data!L198 -> 0.8507201708 | L184: =chart_data!M198 -> 0.5106837848 | M184: =chart_data!N198 -> 0.2673245694 | N184: =chart_data!O198 -> 0.2099186825
B185: Source: Oxford Economics
B186: *Unless otherwise stated

Sheet chart_data (hidden)
D1: 2017 | E1: 2037 | H1: 2017 | I1: 2037 | J1: GM change | M1: Bolton | N1: BOLTON | O1: Greater Manchester | P1: =VLOOKUP(city,M1:N20,2,FALSE) -> GMANCH
A2: Key Indicators | D2: =D1-1989 -> 28 | E2: =E1-1989 -> 48 | H2: =H1-1989 -> 28 | I2: =I1-1989 -> 48 | M2: Bury | N2: BURY
A3: Population (000s) | B3: POPL | C3: =city_code&B3 -> GMANCHPOPL | D3: =IFERROR(VLOOKUP($C3,RAWDATA!$B$3:$AX$10606,chart_data!D$2,FALSE),"-") -> 2795.491 | E3: =IFERROR(VLOOKUP($C3,RAWDATA!$B$3:$AX$10606,chart_data!E$2,FALSE),"-") -> 2976.751 | G3: GMANCHPOPL | H3: =IFERROR(VLOOKUP($G3,RAWDATA!$B$3:$AX$10606,chart_data!H$2,FALSE),"-") -> 2795.491 | I3: =IFERROR(VLOOKUP($G3,RAWDATA!$B$3:$AX$10606,chart_data!I$2,FALSE),"-") -> 2976.751 | J3: =ROUND(((I3-H3)/H3)*100,1)&" (%)" -> 6.5 (%) | M3: Manchester | N3: MHESTER
A4: Employees total (000s) | B4: EETT | C4: GMANCHEETT | D4: =IFERROR(VLOOKUP($C4,RAWDATA!$B$3:$AX$10606,chart_data!D$2,FALSE),"-") -> 1292.823 | E4: =IFERROR(VLOOKUP($C4,RAWDATA!$B$3:$AX$10606,chart_data!E$2,FALSE),"-") -> 1412.169 | G4: GMANCHEETT | H4: =IFERROR(VLOOKUP($G4,RAWDATA!$B$3:$AX$10606,chart_data!H$2,FALSE),"-") -> 1292.823 | I4: =IFERROR(VLOOKUP($G4,RAWDATA!$B$3:$AX$10606,chart_data!I$2,FALSE),"-") -> 1412.169 | J4: =ROUND(((I4-H4)/H4)*100,1)&" (%)" -> 9.2 (%) | M4: Oldham | N4: OLDHAM
A5: Self-employed total (000s) | B5: SETT | C5: GMANCHSETT | D5: =IFERROR(VLOOKUP($C5,RAWDATA!$B$3:$AX$10606,chart_data!D$2,FALSE),"-") -> 150.0444 | E5: =IFERROR(VLOOKUP($C5,RAWDATA!$B$3:$AX$10606,chart_data!E$2,FALSE),"-") -> 152.8219 | G5: GMANCHSETT | H5: =IFERROR(VLOOKUP($G5,RAWDATA!$B$3:$AX$10606,chart_data!H$2,FALSE),"-") -> 150.0444 | I5: =IFERROR(VLOOKUP($G5,RAWDATA!$B$3:$AX$10606,chart_data!I$2,FALSE),"-") -> 152.8219 | J5: 1.9 (%) | M5: Rochdale | N5: RDALE
A6: Employment total (000s) | B6: ETTT | C6: GMANCHETTT | D6: =IFERROR(VLOOKUP($C6,RAWDATA!$B$3:$AX$10606,chart_data!D$2,FALSE),"-") -> 1442.954 | E6: =IFERROR(VLOOKUP($C6,RAWDATA!$B$3:$AX$10606,chart_data!E$2,FALSE),"-") -> 1565.077 | G6: GMANCHETTT | H6: =IFERROR(VLOOKUP($G6,RAWDATA!$B$3:$AX$10606,chart_data!H$2,FALSE),"-") -> 1442.954 | I6: =IFERROR(VLOOKUP($G6,RAWDATA!$B$3:$AX$10606,chart_data!I$2,FALSE),"-") -> 1565.077 | J6: 8.5 (%) | M6: Salford | N6: SALFORD
A7: Unemployment level (000s) | B7: UNMP | C7: GMANCHUNMP | D7: =IFERROR(VLOOKUP($C7,RAWDATA!$B$3:$AX$10606,chart_data!D$2,FALSE),"-") -> 48.25979 | E7: =IFERROR(VLOOKUP($C7,RAWDATA!$B$3:$AX$10606,chart_data!E$2,FALSE),"-") -> 42.53999 | G7: GMANCHUNMP | H7: =IFERROR(VLOOKUP($G7,RAWDATA!$B$3:$AX$10606,chart_data!H$2,FALSE),"-") -> 48.25979 | I7: =IFERROR(VLOOKUP($G7,RAWDATA!$B$3:$AX$10606,chart_data!I$2,FALSE),"-") -> 42.53999 | J7: =ROUND(I7-H7,1)&" (000s)" -> -5.7 (000s) | M7: Stockport | N7: SPORT
A8: Residence based employment (000s) | B8: RET | C8: GMANCHRET | D8: =IFERROR(VLOOKUP($C8,RAWDATA!$B$3:$AX$10606,chart_data!D$2,FALSE),"-") -> 1357.479 | E8: =IFERROR(VLOOKUP($C8,RAWDATA!$B$3:$AX$10606,chart_data!E$2,FALSE),"-") -> 1492.254 | G8: GMANCHRET | H8: =IFERROR(VLOOKUP($G8,RAWDATA!$B$3:$AX$10606,chart_data!H$2,FALSE),"-") -> 1357.479 | I8: =IFERROR(VLOOKUP($G8,RAWDATA!$B$3:$AX$10606,chart_data!I$2,FALSE),"-") -> 1492.254 | J8: =ROUND(I8-H8,1)&" (000s)" -> 134.8 (000s) | M8: Tameside | N8: TSIDE
A9: APS residence based employment rate (%) | B9: RER_APS | C9: GMANCHRER_APS | D9: =IFERROR(VLOOKUP($C9,RAWDATA!$B$3:$AX$10606,chart_data!D$2,FALSE),"-") -> 72 | E9: =IFERROR(VLOOKUP($C9,RAWDATA!$B$3:$AX$10606,chart_data!E$2,FALSE),"-") -> 75.71149 | G9: GMANCHRER_APS | H9: =IFERROR(VLOOKUP($G9,RAWDATA!$B$3:$AX$10606,chart_data!H$2,FALSE),"-") -> 72 | I9: =IFERROR(VLOOKUP($G9,RAWDATA!$B$3:$AX$10606,chart_data!I$2,FALSE),"-") -> 75.71149 | J9: =ROUND(I9-H9,1)&" (pp)" -> 3.7 (pp) | M9: Trafford | N9: TFORD
A10: Net commuting (000s) | B10: NCOM | C10: GMANCHNCOM | D10: =IFERROR(VLOOKUP($C10,RAWDATA!$B$3:$AX$10606,chart_data!D$2,FALSE),"-") -> 29.20801 | E10: =IFERROR(VLOOKUP($C10,RAWDATA!$B$3:$AX$10606,chart_data!E$2,FALSE),"-") -> 15.46094 | G10: GMANCHNCOM | H10: =IFERROR(VLOOKUP($G10,RAWDATA!$B$3:$AX$10606,chart_data!H$2,FALSE),"-") -> 29.20801 | I10: =IFERROR(VLOOKUP($G10,RAWDATA!$B$3:$AX$10606,chart_data!I$2,FALSE),"-") -> 15.46094 | J10: =ROUND(I10-H10,1)&" (000s)" -> -13.7 (000s) | M10: Wigan | N10: WIGAN
A11: GVA total (£m, 2013) | B11: QQTT | C11: GMANCHQQTT | D11: =IFERROR(VLOOKUP($C11,RAWDATA!$B$3:$AX$10606,chart_data!D$2,FALSE),"-") -> 64183.38 | E11: =IFERROR(VLOOKUP($C11,RAWDATA!$B$3:$AX$10606,chart_data!E$2,FALSE),"-") -> 89630.12 | G11: GMANCHQQTT | H11: =IFERROR(VLOOKUP($G11,RAWDATA!$B$3:$AX$10606,chart_data!H$2,FALSE),"-") -> 64183.38 | I11: =IFERROR(VLOOKUP($G11,RAWDATA!$B$3:$AX$10606,chart_data!I$2,FALSE),"-") -> 89630.12 | J11: =ROUND((((I11/H11)^(1/($I$1-$H$1))-1)*100),1)&" (% pa)" -> 1.7 (% pa) | M11: Greater Manchester | N11: GMANCH
A12: Households (000s) | B12: HS | C12: GMANCHHS | D12: =IFERROR(VLOOKUP($C12,RAWDATA!$B$3:$AX$10606,chart_data!D$2,FALSE),"-") -> 1204.684 | E12: =IFERROR(VLOOKUP($C12,RAWDATA!$B$3:$AX$10606,chart_data!E$2,FALSE),"-") -> 1343.635 | G12: GMANCHHS | H12: =IFERROR(VLOOKUP($G12,RAWDATA!$B$3:$AX$10606,chart_data!H$2,FALSE),"-") -> 1204.684 | I12: =IFERROR(VLOOKUP($G12,RAWDATA!$B$3:$AX$10606,chart_data!I$2,FALSE),"-") -> 1343.635 | J12: =ROUND(I12-H12,1)&" (000s)" -> 139 (000s) | M12: Liverpool LEP | N12: LPLEP
M13: Cheshire and Warrington LEP | N13: CWLEP
M14: Lancashire LEP | N14: LNLEP
M15: Cumbria LEP | N15: CUMBRIA
M16: North West | N16: NTH_WEST
M17: UK | N17: UK
A19: GVA outllook | C19: QQTT | D19: GMANCH | G19: =city -> Greater Manchester | H19: GM | I19: pp diff
A20: 2008 | B20: =A20-1989 -> 19 | C20: =city_code&C$19 -> GMANCHQQTT | D20: =$D$19&$C$19 -> GMANCHQQTT | E20: =VLOOKUP($C20,RAWDATA!$B$3:$AX$10606,$B20,FALSE) -> 58310.81 | F20: =VLOOKUP($D20,RAWDATA!$B$3:$AX$10606,$B20,FALSE) -> 58310.81
A21: 2009 | B21: 20 | C21: GMANCHQQTT | D21: =$D$19&$C$19 -> GMANCHQQTT | E21: =VLOOKUP($C21,RAWDATA!$B$3:$AX$10606,$B21,FALSE) -> 56795.55 | F21: =VLOOKUP($D21,RAWDATA!$B$3:$AX$10606,$B21,FALSE) -> 56795.55 | G21: =((E21-E20)/E20)*100 -> -2.598591925 | H21: =((F21-F20)/F20)*100 -> -2.598591925 | I21: =G21-H21 -> 0
A22: 2010 | B22: 21 | C22: GMANCHQQTT | D22: GMANCHQQTT | E22: =VLOOKUP($C22,RAWDATA!$B$3:$AX$10606,$B22,FALSE) -> 57430.17 | F22: =VLOOKUP($D22,RAWDATA!$B$3:$AX$10606,$B22,FALSE) -> 57430.17 | G22: =((E22-E21)/E21)*100 -> 1.117376273 | H22: 1.117376273 | I22: =G22-H22 -> 0
A23: 2011 | B23: 22 | C23: GMANCHQQTT | D23: GMANCHQQTT | E23: =VLOOKUP($C23,RAWDATA!$B$3:$AX$10606,$B23,FALSE) -> 56660.16 | F23: =VLOOKUP($D23,RAWDATA!$B$3:$AX$10606,$B23,FALSE) -> 56660.16 | G23: -1.340776111 | H23: -1.340776111 | I23: 0
A24: 2012 | B24: 23 | C24: GMANCHQQTT | D24: GMANCHQQTT | E24: =VLOOKUP($C24,RAWDATA!$B$3:$AX$10606,$B24,FALSE) -> 57761.4 | F24: =VLOOKUP($D24,RAWDATA!$B$3:$AX$10606,$B24,FALSE) -> 57761.4 | G24: 1.943587876 | H24: 1.943587876 | I24: 0
A25: 2013 | B25: 24 | C25: GMANCHQQTT | D25: GMANCHQQTT | E25: =VLOOKUP($C25,RAWDATA!$B$3:$AX$10606,$B25,FALSE) -> 59169.98 | F25: =VLOOKUP($D25,RAWDATA!$B$3:$AX$10606,$B25,FALSE) -> 59169.98 | G25: 2.438618178 | H25: 2.438618178 | I25: 0
A26: 2014 | B26: 25 | C26: GMANCHQQTT | D26: GMANCHQQTT | E26: =VLOOKUP($C26,RAWDATA!$B$3:$AX$10606,$B26,FALSE) -> 58935.54 | F26: =VLOOKUP($D26,RAWDATA!$B$3:$AX$10606,$B26,FALSE) -> 58935.54 | G26: -0.3962144317 | H26: -0.3962144317 | I26: 0
A27: 2015 | B27: =A27-1989 -> 26 | C27: GMANCHQQTT | D27: GMANCHQQTT | E27: =VLOOKUP($C27,RAWDATA!$B$3:$AX$10606,$B27,FALSE) -> 61107.17 | F27: =VLOOKUP($D27,RAWDATA!$B$3:$AX$10606,$B27,FALSE) -> 61107.17 | G27: 3.684754564 | H27: 3.684754564 | I27: 0
A28: 2016 | B28: 27 | C28: GMANCHQQTT | D28: GMANCHQQTT | E28: =VLOOKUP($C28,RAWDATA!$B$3:$AX$10606,$B28,FALSE) -> 62654.55 | F28: =VLOOKUP($D28,RAWDATA!$B$3:$AX$10606,$B28,FALSE) -> 62654.55 | G28: 2.53223967 | H28: 2.53223967 | I28: 0
A29: 2017 | B29: 28 | C29: GMANCHQQTT | D29: GMANCHQQTT | E29: =VLOOKUP($C29,RAWDATA!$B$3:$AX$10606,$B29,FALSE) -> 64183.38 | F29: =VLOOKUP($D29,RAWDATA!$B$3:$AX$10606,$B29,FALSE) -> 64183.38 | G29: 2.440094135 | H29: 2.440094135 | I29: 0
A30: 2037 | B30: =A30-1989 -> 48 | C30: GMANCHQQTT | D30: GMANCHQQTT | E30: =VLOOKUP($C30,RAWDATA!$B$3:$AX$10606,$B30,FALSE) -> 89630.12 | F30: =VLOOKUP($D30,RAWDATA!$B$3:$AX$10606,$B30,FALSE) -> 89630.12 | G30: =(((E30/E29)^(1/($A$30-$A$29))-1)*100) -> 1.683753625 | H30: =(((F30/F29)^(1/($A$30-$A$29))-1)*100) -> 1.683753625 | I30: 0
A33: Employment Outlook | C33: 1991 | D33: 1992 | E33: 1993 | F33: 1994 | G33: 1995 | H33: 1996 | I33: 1997 | J33: 1998 | K33: 1999 | L33: 2000 | M33: 2001 | N33: 2002 | O33: 2003 | P33: 2004 | Q33: 2005 | R33: 2006 | S33: 2007 | T33: 2008 | U33: 2009 | V33: 2010 | W33: 2011 | X33: 2012 | Y33: 2013 | Z33: 2014 | AA33: 2015 | AB33: 2016 | AC33: 2017 | AD33: 2018 | AE33: 2019 | AF33: 2020 | AG33: 2021 | AH33: 2022 | AI33: 2023 | AJ33: 2024 | AK33: 2025 | AL33: 2026 | AM33: 2027 | AN33: 2028 | AO33: 2029 | AP33: 2030 | AQ33: 2031 | AR33: 2032 | AS33: 2033 | AT33: 2034 | AU33: 2035 | AV33: 2036 | AW33: 2037 | AX33: 2038
A34: ETTT | B34: =city_code&A34 -> GMANCHETTT | C34: =VLOOKUP($B34,RAWDATA!$B:$AX,RAWDATA!C$1,FALSE) -> 1239.173 | D34: =VLOOKUP($B34,RAWDATA!$B:$AX,RAWDATA!D$1,FALSE) -> 1220.935 | E34: =VLOOKUP($B34,RAWDATA!$B:$AX,RAWDATA!E$1,FALSE) -> 1215.133 | F34: =VLOOKUP($B34,RAWDATA!$B:$AX,RAWDATA!F$1,FALSE) -> 1206.323 | G34: =VLOOKUP($B34,RAWDATA!$B:$AX,RAWDATA!G$1,FALSE) -> 1212.464 | H34: =VLOOKUP($B34,RAWDATA!$B:$AX,RAWDATA!H$1,FALSE) -> 1234.365 | I34: =VLOOKUP($B34,RAWDATA!$B:$AX,RAWDATA!I$1,FALSE) -> 1243.035 | J34: =VLOOKUP($B34,RAWDATA!$B:$AX,RAWDATA!J$1,FALSE) -> 1199.512 | K34: =VLOOKUP($B34,RAWDATA!$B:$AX,RAWDATA!K$1,FALSE) -> 1250.634 | L34: =VLOOKUP($B34,RAWDATA!$B:$AX,RAWDATA!L$1,FALSE) -> 1260.743 | M34: =VLOOKUP($B34,RAWDATA!$B:$AX,RAWDATA!M$1,FALSE) -> 1263.135 | N34: =VLOOKUP($B34,RAWDATA!$B:$AX,RAWDATA!N$1,FALSE) -> 1266.851 | O34: =VLOOKUP($B34,RAWDATA!$B:$AX,RAWDATA!O$1,FALSE) -> 1304.579 | P34: =VLOOKUP($B34,RAWDATA!$B:$AX,RAWDATA!P$1,FALSE) -> 1331.744 | Q34: =VLOOKUP($B34,RAWDATA!$B:$AX,RAWDATA!Q$1,FALSE) -> 1317.75 | R34: =VLOOKUP($B34,RAWDATA!$B:$AX,RAWDATA!R$1,FALSE) -> 1313.286 | S34: =VLOOKUP($B34,RAWDATA!$B:$AX,RAWDATA!S$1,FALSE) -> 1331.238 | T34: =VLOOKUP($B34,RAWDATA!$B:$AX,RAWDATA!T$1,FALSE) -> 1329.359 | U34: =VLOOKUP($B34,RAWDATA!$B:$AX,RAWDATA!U$1,FALSE) -> 1317.754 | V34: =VLOOKUP($B34,RAWDATA!$B:$AX,RAWDATA!V$1,FALSE) -> 1304.694 | W34: =VLOOKUP($B34,RAWDATA!$B:$AX,RAWDATA!W$1,FALSE) -> 1295.392 | X34: =VLOOKUP($B34,RAWDATA!$B:$AX,RAWDATA!X$1,FALSE) -> 1314.442 | Y34: =VLOOKUP($B34,RAWDATA!$B:$AX,RAWDATA!Y$1,FALSE) -> 1336.602 | Z34: =VLOOKUP($B34,RAWDATA!$B:$AX,RAWDATA!Z$1,FALSE) -> 1364.957 | AA34: =VLOOKUP($B34,RAWDATA!$B:$AX,RAWDATA!AA$1,FALSE) -> 1383.402 | AB34: =VLOOKUP($B34,RAWDATA!$B:$AX,RAWDATA!AB$1,FALSE) -> 1421.636 | AC34: =VLOOKUP($B34,RAWDATA!$B:$AX,RAWDATA!AC$1,FALSE) -> 1442.954 | AD34: =VLOOKUP($B34,RAWDATA!$B:$AX,RAWDATA!AD$1,FALSE) -> 1455.674 | AE34: =VLOOKUP($B34,RAWDATA!$B:$AX,RAWDATA!AE$1,FALSE) -> 1458.304 | AF34: =VLOOKUP($B34,RAWDATA!$B:$AX,RAWDATA!AF$1,FALSE) -> 1465.985 | AG34: =VLOOKUP($B34,RAWDATA!$B:$AX,RAWDATA!AG$1,FALSE) -> 1477.219 | AH34: =VLOOKUP($B34,RAWDATA!$B:$AX,RAWDATA!AH$1,FALSE) -> 1489.786 | AI34: =VLOOKUP($B34,RAWDATA!$B:$AX,RAWDATA!AI$1,FALSE) -> 1500.932 | AJ34: =VLOOKUP($B34,RAWDATA!$B:$AX,RAWDATA!AJ$1,FALSE) -> 1510.146 | AK34: =VLOOKUP($B34,RAWDATA!$B:$AX,RAWDATA!AK$1,FALSE) -> 1517.82 | AL34: =VLOOKUP($B34,RAWDATA!$B:$AX,RAWDATA!AL$1,FALSE) -> 1523.46 | AM34: =VLOOKUP($B34,RAWDATA!$B:$AX,RAWDATA!AM$1,FALSE) -> 1528.217 | AN34: =VLOOKUP($B34,RAWDATA!$B:$AX,RAWDATA!AN$1,FALSE) -> 1532.847 | AO34: =VLOOKUP($B34,RAWDATA!$B:$AX,RAWDATA!AO$1,FALSE) -> 1537.426 | AP34: =VLOOKUP($B34,RAWDATA!$B:$AX,RAWDATA!AP$1,FALSE) -> 1541.953 | AQ34: =VLOOKUP($B34,RAWDATA!$B:$AX,RAWDATA!AQ$1,FALSE) -> 1545.603 | AR34: =VLOOKUP($B34,RAWDATA!$B:$AX,RAWDATA!AR$1,FALSE) -> 1548.753 | AS34: =VLOOKUP($B34,RAWDATA!$B:$AX,RAWDATA!AS$1,FALSE) -> 1551.958 | AT34: =VLOOKUP($B34,RAWDATA!$B:$AX,RAWDATA!AT$1,FALSE) -> 1555.155 | AU34: =VLOOKUP($B34,RAWDATA!$B:$AX,RAWDATA!AU$1,FALSE) -> 1558.406 | AV34: =VLOOKUP($B34,RAWDATA!$B:$AX,RAWDATA!AV$1,FALSE) -> 1561.716 | AW34: =VLOOKUP($B34,RAWDATA!$B:$AX,RAWDATA!AW$1,FALSE) -> 1565.077 | AX34: =VLOOKUP($B34,RAWDATA!$B:$AX,RAWDATA!AX$1,FALSE) -> 1568.437
A36: Unemployment | C36: January 2014 | D36: February 2014 | E36: March 2014 | F36: April 2014 | G36: May 2014 | H36: June 2014 | I36: July 2014 | J36: August 2014 | K36: September 2014 | L36: October 2014 | M36: November 2014 | N36: December 2014 | O36: January 2015 | P36: February 2015 | Q36: March 2015 | R36: April 2015 | S36: May 2015 | T36: June 2015 | U36: July 2015 | V36: August 2015 | W36: September 2015 | X36: October 2015 | Y36: November 2015 | Z36: December 2015 | AA36: January 2016 | AB36: February 2016 | AC36: March 2016 | AD36: April 2016 | AE36: May 2016 | AF36: June 2016 | AG36: July 2016 | AH36: August 2016 | AI36: September 2016 | AJ36: October 2016 | AK36: November 2016 | AL36: December 2016 | AM36: January 2017 | AN36: February 2017 | AO36: March 2017 | AP36: April 2017 | AQ36: May 2017 | AR36: June 2017 | AS36: July 2017 | AT36: August 2017 | AU36: September 2017 | AV36: October 2017 | AW36: November 2017 | AX36: December 2017 | AY36: January 2018 | AZ36: February 2018 | BA36: March 2018 | BB36: April 2018 | BC36: May 2018
B37: =city_code -> GMANCH | C37: =VLOOKUP($B37,NOMIS!$A$3:$BO$50,NOMIS!O$1,FALSE)/1000 -> 67.05 | D37: =VLOOKUP($B37,NOMIS!$A$3:$BO$50,NOMIS!P$1,FALSE)/1000 -> 66.83 | E37: =VLOOKUP($B37,NOMIS!$A$3:$BO$50,NOMIS!Q$1,FALSE)/1000 -> 63.955 | F37: =VLOOKUP($B37,NOMIS!$A$3:$BO$50,NOMIS!R$1,FALSE)/1000 -> 61.28 | G37: =VLOOKUP($B37,NOMIS!$A$3:$BO$50,NOMIS!S$1,FALSE)/1000 -> 58.48 | H37: =VLOOKUP($B37,NOMIS!$A$3:$BO$50,NOMIS!T$1,FALSE)/1000 -> 54.68 | I37: =VLOOKUP($B37,NOMIS!$A$3:$BO$50,NOMIS!U$1,FALSE)/1000 -> 52.62 | J37: =VLOOKUP($B37,NOMIS!$A$3:$BO$50,NOMIS!V$1,FALSE)/1000 -> 50.915 | K37: =VLOOKUP($B37,NOMIS!$A$3:$BO$50,NOMIS!W$1,FALSE)/1000 -> 49.14 | L37: =VLOOKUP($B37,NOMIS!$A$3:$BO$50,NOMIS!X$1,FALSE)/1000 -> 47.03 | M37: =VLOOKUP($B37,NOMIS!$A$3:$BO$50,NOMIS!Y$1,FALSE)/1000 -> 44.2 | N37: =VLOOKUP($B37,NOMIS!$A$3:$BO$50,NOMIS!Z$1,FALSE)/1000 -> 42.21 | O37: =VLOOKUP($B37,NOMIS!$A$3:$BO$50,NOMIS!AA$1,FALSE)/1000 -> 43.975 | P37: =VLOOKUP($B37,NOMIS!$A$3:$BO$50,NOMIS!AB$1,FALSE)/1000 -> 45.96 | Q37: =VLOOKUP($B37,NOMIS!$A$3:$BO$50,NOMIS!AC$1,FALSE)/1000 -> 45.315 | R37: =VLOOKUP($B37,NOMIS!$A$3:$BO$50,NOMIS!AD$1,FALSE)/1000 -> 45.835 | S37: =VLOOKUP($B37,NOMIS!$A$3:$BO$50,NOMIS!AE$1,FALSE)/1000 -> 45.23 | T37: =VLOOKUP($B37,NOMIS!$A$3:$BO$50,NOMIS!AF$1,FALSE)/1000 -> 43.93 | U37: =VLOOKUP($B37,NOMIS!$A$3:$BO$50,NOMIS!AG$1,FALSE)/1000 -> 44.215 | V37: =VLOOKUP($B37,NOMIS!$A$3:$BO$50,NOMIS!AH$1,FALSE)/1000 -> 44.365 | W37: =VLOOKUP($B37,NOMIS!$A$3:$BO$50,NOMIS!AI$1,FALSE)/1000 -> 44.475 | X37: =VLOOKUP($B37,NOMIS!$A$3:$BO$50,NOMIS!AJ$1,FALSE)/1000 -> 44.765 | Y37: =VLOOKUP($B37,NOMIS!$A$3:$BO$50,NOMIS!AK$1,FALSE)/1000 -> 43.62 | Z37: =VLOOKUP($B37,NOMIS!$A$3:$BO$50,NOMIS!AL$1,FALSE)/1000 -> 43.21 | AA37: =VLOOKUP($B37,NOMIS!$A$3:$BO$50,NOMIS!AM$1,FALSE)/1000 -> 44.685 | AB37: =VLOOKUP($B37,NOMIS!$A$3:$BO$50,NOMIS!AN$1,FALSE)/1000 -> 46.81 | AC37: =VLOOKUP($B37,NOMIS!$A$3:$BO$50,NOMIS!AO$1,FALSE)/1000 -> 47.565 | AD37: =VLOOKUP($B37,NOMIS!$A$3:$BO$50,NOMIS!AP$1,FALSE)/1000 -> 47.345 | AE37: =VLOOKUP($B37,NOMIS!$A$3:$BO$50,NOMIS!AQ$1,FALSE)/1000 -> 47.395 | AF37: =VLOOKUP($B37,NOMIS!$A$3:$BO$50,NOMIS!AR$1,FALSE)/1000 -> 46.33 | AG37: =VLOOKUP($B37,NOMIS!$A$3:$BO$50,NOMIS!AS$1,FALSE)/1000 -> 46.125 | AH37: =VLOOKUP($B37,NOMIS!$A$3:$BO$50,NOMIS!AT$1,FALSE)/1000 -> 46.68 | AI37: =VLOOKUP($B37,NOMIS!$A$3:$BO$50,NOMIS!AU$1,FALSE)/1000 -> 46.635 | AJ37: =VLOOKUP($B37,NOMIS!$A$3:$BO$50,NOMIS!AV$1,FALSE)/1000 -> 45.98 | AK37: =VLOOKUP($B37,NOMIS!$A$3:$BO$50,NOMIS!AW$1,FALSE)/1000 -> 45.055 | AL37: =VLOOKUP($B37,NOMIS!$A$3:$BO$50,NOMIS!AX$1,FALSE)/1000 -> 43.79 | AM37: =VLOOKUP($B37,NOMIS!$A$3:$BO$50,NOMIS!AY$1,FALSE)/1000 -> 44.115 | AN37: =VLOOKUP($B37,NOMIS!$A$3:$BO$50,NOMIS!AZ$1,FALSE)/1000 -> 45.885 | AO37: =VLOOKUP($B37,NOMIS!$A$3:$BO$50,NOMIS!BA$1,FALSE)/1000 -> 47.06 | AP37: =VLOOKUP($B37,NOMIS!$A$3:$BO$50,NOMIS!BB$1,FALSE)/1000 -> 47.725 | AQ37: =VLOOKUP($B37,NOMIS!$A$3:$BO$50,NOMIS!BC$1,FALSE)/1000 -> 47.345 | AR37: =VLOOKUP($B37,NOMIS!$A$3:$BO$50,NOMIS!BD$1,FALSE)/1000 -> 46.78 | AS37: =VLOOKUP($B37,NOMIS!$A$3:$BO$50,NOMIS!BE$1,FALSE)/1000 -> 46.19 | AT37: =VLOOKUP($B37,NOMIS!$A$3:$BO$50,NOMIS!BF$1,FALSE)/1000 -> 46.775 | AU37: =VLOOKUP($B37,NOMIS!$A$3:$BO$50,NOMIS!BG$1,FALSE)/1000 -> 46.86 | AV37: =VLOOKUP($B37,NOMIS!$A$3:$BO$50,NOMIS!BH$1,FALSE)/1000 -> 46.53 | AW37: =VLOOKUP($B37,NOMIS!$A$3:$BO$50,NOMIS!BI$1,FALSE)/1000 -> 45.885 | AX37: =VLOOKUP($B37,NOMIS!$A$3:$BO$50,NOMIS!BJ$1,FALSE)/1000 -> 45.835 | AY37: =VLOOKUP($B37,NOMIS!$A$3:$BO$50,NOMIS!BK$1,FALSE)/1000 -> 47.515 | AZ37: =VLOOKUP($B37,NOMIS!$A$3:$BO$50,NOMIS!BL$1,FALSE)/1000 -> 50.365 | BA37: =VLOOKUP($B37,NOMIS!$A$3:$BO$50,NOMIS!BM$1,FALSE)/1000 -> 51.86 | BB37: =VLOOKUP($B37,NOMIS!$A$3:$BO$50,NOMIS!BN$1,FALSE)/1000 -> 53.655 | BC37: =VLOOKUP($B37,NOMIS!$A$3:$BO$50,NOMIS!BO$1,FALSE)/1000 -> 52.25
A40: Migration | B40: Natural increase | C40: 1991 | D40: 1992 | E40: 1993 | F40: 1994 | G40: 1995 | H40: 1996 | I40: 1997 | J40: 1998 | K40: 1999 | L40: 2000 | M40: 2001 | N40: 2002 | O40: 2003 | P40: 2004 | Q40: 2005 | R40: 2006 | S40: 2007 | T40: 2008 | U40: 2009 | V40: 2010 | W40: 2011 | X40: 2012 | Y40: 2013 | Z40: 2014 | AA40: 2015 | AB40: 2016 | AC40: 2017 | AD40: 2018 | AE40: 2019 | AF40: 2020 | AG40: 2021 | AH40: 2022 | AI40: 2023 | AJ40: 2024 | AK40: 2025 | AL40: 2026 | AM40: 2027 | AN40: 2028 | AO40: 2029 | AP40: 2030 | AQ40: 2031 | AR40: 2032 | AS40: 2033 | AT40: 2034 | AU40: 2035 | AV40: 2036 | AW40: 2037 | AX40: 2038
A41: MIGN | B41: =city_code&A41 -> GMANCHMIGN | C41: =VLOOKUP($B41,RAWDATA!$B:$AX,RAWDATA!C$1,FALSE) -> 0 | D41: =VLOOKUP($B41,RAWDATA!$B:$AX,RAWDATA!D$1,FALSE) -> -10.29425 | E41: =VLOOKUP($B41,RAWDATA!$B:$AX,RAWDATA!E$1,FALSE) -> -6.686037 | F41: =VLOOKUP($B41,RAWDATA!$B:$AX,RAWDATA!F$1,FALSE) -> -10.14652 | G41: =VLOOKUP($B41,RAWDATA!$B:$AX,RAWDATA!G$1,FALSE) -> -9.798145 | H41: =VLOOKUP($B41,RAWDATA!$B:$AX,RAWDATA!H$1,FALSE) -> -11.33462 | I41: =VLOOKUP($B41,RAWDATA!$B:$AX,RAWDATA!I$1,FALSE) -> -13.86129 | J41: =VLOOKUP($B41,RAWDATA!$B:$AX,RAWDATA!J$1,FALSE) -> -3.670264 | K41: =VLOOKUP($B41,RAWDATA!$B:$AX,RAWDATA!K$1,FALSE) -> -8.130278 | L41: =VLOOKUP($B41,RAWDATA!$B:$AX,RAWDATA!L$1,FALSE) -> -2.010614 | M41: =VLOOKUP($B41,RAWDATA!$B:$AX,RAWDATA!M$1,FALSE) -> -2.142993 | N41: =VLOOKUP($B41,RAWDATA!$B:$AX,RAWDATA!N$1,FALSE) -> 4.124 | O41: =VLOOKUP($B41,RAWDATA!$B:$AX,RAWDATA!O$1,FALSE) -> 11.402 | P41: =VLOOKUP($B41,RAWDATA!$B:$AX,RAWDATA!P$1,FALSE) -> 5.7 | Q41: =VLOOKUP($B41,RAWDATA!$B:$AX,RAWDATA!Q$1,FALSE) -> 7.049 | R41: =VLOOKUP($B41,RAWDATA!$B:$AX,RAWDATA!R$1,FALSE) -> 9.147 | S41: =VLOOKUP($B41,RAWDATA!$B:$AX,RAWDATA!S$1,FALSE) -> 6.593 | T41: =VLOOKUP($B41,RAWDATA!$B:$AX,RAWDATA!T$1,FALSE) -> 9.033999 | U41: =VLOOKUP($B41,RAWDATA!$B:$AX,RAWDATA!U$1,FALSE) -> 7.771 | V41: =VLOOKUP($B41,RAWDATA!$B:$AX,RAWDATA!V$1,FALSE) -> 8.02 | W41: =VLOOKUP($B41,RAWDATA!$B:$AX,RAWDATA!W$1,FALSE) -> 9.142 | X41: =VLOOKUP($B41,RAWDATA!$B:$AX,RAWDATA!X$1,FALSE) -> 2.342 | Y41: =VLOOKUP($B41,RAWDATA!$B:$AX,RAWDATA!Y$1,FALSE) -> -0.956 | Z41: =VLOOKUP($B41,RAWDATA!$B:$AX,RAWDATA!Z$1,FALSE) -> 2.824 | AA41: =VLOOKUP($B41,RAWDATA!$B:$AX,RAWDATA!AA$1,FALSE) -> 12.229 | AB41: =VLOOKUP($B41,RAWDATA!$B:$AX,RAWDATA!AB$1,FALSE) -> 13.89 | AC41: =VLOOKUP($B41,RAWDATA!$B:$AX,RAWDATA!AC$1,FALSE) -> 3.324517 | AD41: =VLOOKUP($B41,RAWDATA!$B:$AX,RAWDATA!AD$1,FALSE) -> 2.040695 | AE41: =VLOOKUP($B41,RAWDATA!$B:$AX,RAWDATA!AE$1,FALSE) -> 1.513883 | AF41: =VLOOKUP($B41,RAWDATA!$B:$AX,RAWDATA!AF$1,FALSE) -> 0.1296623 | AG41: =VLOOKUP($B41,RAWDATA!$B:$AX,RAWDATA!AG$1,FALSE) -> -1.03967 | AH41: =VLOOKUP($B41,RAWDATA!$B:$AX,RAWDATA!AH$1,FALSE) -> -1.148186 | AI41: =VLOOKUP($B41,RAWDATA!$B:$AX,RAWDATA!AI$1,FALSE) -> -1.000146 | AJ41: =VLOOKUP($B41,RAWDATA!$B:$AX,RAWDATA!AJ$1,FALSE) -> -1.055518 | AK41: =VLOOKUP($B41,RAWDATA!$B:$AX,RAWDATA!AK$1,FALSE) -> -1.246224 | AL41: =VLOOKUP($B41,RAWDATA!$B:$AX,RAWDATA!AL$1,FALSE) -> -1.482095 | AM41: =VLOOKUP($B41,RAWDATA!$B:$AX,RAWDATA!AM$1,FALSE) -> -1.741085 | AN41: =VLOOKUP($B41,RAWDATA!$B:$AX,RAWDATA!AN$1,FALSE) -> -1.961335 | AO41: =VLOOKUP($B41,RAWDATA!$B:$AX,RAWDATA!AO$1,FALSE) -> -2.228937 | AP41: =VLOOKUP($B41,RAWDATA!$B:$AX,RAWDATA!AP$1,FALSE) -> -2.558731 | AQ41: =VLOOKUP($B41,RAWDATA!$B:$AX,RAWDATA!AQ$1,FALSE) -> -2.591399 | AR41: =VLOOKUP($B41,RAWDATA!$B:$AX,RAWDATA!AR$1,FALSE) -> -2.626814 | AS41: =VLOOKUP($B41,RAWDATA!$B:$AX,RAWDATA!AS$1,FALSE) -> -2.685895 | AT41: =VLOOKUP($B41,RAWDATA!$B:$AX,RAWDATA!AT$1,FALSE) -> -2.762244 | AU41: =VLOOKUP($B41,RAWDATA!$B:$AX,RAWDATA!AU$1,FALSE) -> -2.83603 | AV41: =VLOOKUP($B41,RAWDATA!$B:$AX,RAWDATA!AV$1,FALSE) -> -2.913278 | AW41: =VLOOKUP($B41,RAWDATA!$B:$AX,RAWDATA!AW$1,FALSE) -> -2.993964 | AX41: =VLOOKUP($B41,RAWDATA!$B:$AX,RAWDATA!AX$1,FALSE) -> -3.064615
A42: NATINC | B42: =city_code&A42 -> GMANCHNATINC | C42: =VLOOKUP($B42,RAWDATA!$B:$AX,RAWDATA!C$1,FALSE) -> 0 | D42: =VLOOKUP($B42,RAWDATA!$B:$AX,RAWDATA!D$1,FALSE) -> 7.975551 | E42: =VLOOKUP($B42,RAWDATA!$B:$AX,RAWDATA!E$1,FALSE) -> 6.420885 | F42: =VLOOKUP($B42,RAWDATA!$B:$AX,RAWDATA!F$1,FALSE) -> 4.955749 | G42: =VLOOKUP($B42,RAWDATA!$B:$AX,RAWDATA!G$1,FALSE) -> 3.87138 | H42: =VLOOKUP($B42,RAWDATA!$B:$AX,RAWDATA!H$1,FALSE) -> 2.592071 | I42: =VLOOKUP($B42,RAWDATA!$B:$AX,RAWDATA!I$1,FALSE) -> 4.083902 | J42: =VLOOKUP($B42,RAWDATA!$B:$AX,RAWDATA!J$1,FALSE) -> 3.575877 | K42: =VLOOKUP($B42,RAWDATA!$B:$AX,RAWDATA!K$1,FALSE) -> 2.099282 | L42: =VLOOKUP($B42,RAWDATA!$B:$AX,RAWDATA!L$1,FALSE) -> 2.652287 | M42: =VLOOKUP($B42,RAWDATA!$B:$AX,RAWDATA!M$1,FALSE) -> 2.319412 | N42: =VLOOKUP($B42,RAWDATA!$B:$AX,RAWDATA!N$1,FALSE) -> 3.068829 | O42: =VLOOKUP($B42,RAWDATA!$B:$AX,RAWDATA!O$1,FALSE) -> 3.921685 | P42: =VLOOKUP($B42,RAWDATA!$B:$AX,RAWDATA!P$1,FALSE) -> 5.399827 | Q42: =VLOOKUP($B42,RAWDATA!$B:$AX,RAWDATA!Q$1,FALSE) -> 6.999899 | R42: =VLOOKUP($B42,RAWDATA!$B:$AX,RAWDATA!R$1,FALSE) -> 8.9525 | S42: =VLOOKUP($B42,RAWDATA!$B:$AX,RAWDATA!S$1,FALSE) -> 9.557889 | T42: =VLOOKUP($B42,RAWDATA!$B:$AX,RAWDATA!T$1,FALSE) -> 12.18909 | U42: =VLOOKUP($B42,RAWDATA!$B:$AX,RAWDATA!U$1,FALSE) -> 12.44735 | V42: =VLOOKUP($B42,RAWDATA!$B:$AX,RAWDATA!V$1,FALSE) -> 14.05184 | W42: =VLOOKUP($B42,RAWDATA!$B:$AX,RAWDATA!W$1,FALSE) -> 14.43972 | X42: =VLOOKUP($B42,RAWDATA!$B:$AX,RAWDATA!X$1,FALSE) -> 14.48168 | Y42: =VLOOKUP($B42,RAWDATA!$B:$AX,RAWDATA!Y$1,FALSE) -> 13.15101 | Z42: =VLOOKUP($B42,RAWDATA!$B:$AX,RAWDATA!Z$1,FALSE) -> 13.7276 | AA42: =VLOOKUP($B42,RAWDATA!$B:$AX,RAWDATA!AA$1,FALSE) -> 11.66542 | AB42: =VLOOKUP($B42,RAWDATA!$B:$AX,RAWDATA!AB$1,FALSE) -> 12.93648 | AC42: =VLOOKUP($B42,RAWDATA!$B:$AX,RAWDATA!AC$1,FALSE) -> 11.12067 | AD42: =VLOOKUP($B42,RAWDATA!$B:$AX,RAWDATA!AD$1,FALSE) -> 12.46257 | AE42: =VLOOKUP($B42,RAWDATA!$B:$AX,RAWDATA!AE$1,FALSE) -> 12.51171 | AF42: =VLOOKUP($B42,RAWDATA!$B:$AX,RAWDATA!AF$1,FALSE) -> 12.40917 | AG42: =VLOOKUP($B42,RAWDATA!$B:$AX,RAWDATA!AG$1,FALSE) -> 12.25908 | AH42: =VLOOKUP($B42,RAWDATA!$B:$AX,RAWDATA!AH$1,FALSE) -> 11.93133 | AI42: =VLOOKUP($B42,RAWDATA!$B:$AX,RAWDATA!AI$1,FALSE) -> 11.7568 | AJ42: =VLOOKUP($B42,RAWDATA!$B:$AX,RAWDATA!AJ$1,FALSE) -> 11.79545 | AK42: =VLOOKUP($B42,RAWDATA!$B:$AX,RAWDATA!AK$1,FALSE) -> 11.52798 | AL42: =VLOOKUP($B42,RAWDATA!$B:$AX,RAWDATA!AL$1,FALSE) -> 11.24241 | AM42: =VLOOKUP($B42,RAWDATA!$B:$AX,RAWDATA!AM$1,FALSE) -> 10.71722 | AN42: =VLOOKUP($B42,RAWDATA!$B:$AX,RAWDATA!AN$1,FALSE) -> 10.35043 | AO42: =VLOOKUP($B42,RAWDATA!$B:$AX,RAWDATA!AO$1,FALSE) -> 10.07523 | AP42: =VLOOKUP($B42,RAWDATA!$B:$AX,RAWDATA!AP$1,FALSE) -> 9.794968 | AQ42: =VLOOKUP($B42,RAWDATA!$B:$AX,RAWDATA!AQ$1,FALSE) -> 9.536941 | AR42: =VLOOKUP($B42,RAWDATA!$B:$AX,RAWDATA!AR$1,FALSE) -> 9.374418 | AS42: =VLOOKUP($B42,RAWDATA!$B:$AX,RAWDATA!AS$1,FALSE) -> 9.072019 | AT42: =VLOOKUP($B42,RAWDATA!$B:$AX,RAWDATA!AT$1,FALSE) -> 8.907753 | AU42: =VLOOKUP($B42,RAWDATA!$B:$AX,RAWDATA!AU$1,FALSE) -> 8.966157 | AV42: =VLOOKUP($B42,RAWDATA!$B:$AX,RAWDATA!AV$1,FALSE) -> 8.839929 | AW42: =VLOOKUP($B42,RAWDATA!$B:$AX,RAWDATA!AW$1,FALSE) -> 8.915473 | AX42: =VLOOKUP($B42,RAWDATA!$B:$AX,RAWDATA!AX$1,FALSE) -> 8.866312
A45: Change in employment | C45: 1997 | D45: 2007 | E45: 2017 | F45: 2037 | H45: 1997-2007 | I45: 2007-2017 | J45: 2017-2037
C46: =C45-1989 -> 8 | D46: =D45-1989 -> 18 | E46: =E45-1989 -> 28 | F46: =F45-1989 -> 48
A47: ETAA | B47: =city_code&A47 -> GMANCHETAA | C47: =VLOOKUP($B47,RAWDATA!$B:$AX,C$46,FALSE) -> 2.583865 | D47: =VLOOKUP($B47,RAWDATA!$B:$AX,D$46,FALSE) -> 3.04138 | E47: =VLOOKUP($B47,RAWDATA!$B:$AX,E$46,FALSE) -> 3.370172 | F47: =VLOOKUP($B47,RAWDATA!$B:$AX,F$46,FALSE) -> 2.886459 | H47: =D47-C47 -> 0.457515 | I47: =E47-D47 -> 0.328792 | J47: =F47-E47 -> -0.483713
A48: ETBB | B48: GMANCHETBB | C48: =VLOOKUP($B48,RAWDATA!$B:$AX,C$46,FALSE) -> 0.1592138 | D48: =VLOOKUP($B48,RAWDATA!$B:$AX,D$46,FALSE) -> 0.2636922 | E48: =VLOOKUP($B48,RAWDATA!$B:$AX,E$46,FALSE) -> 0.1882627 | F48: =VLOOKUP($B48,RAWDATA!$B:$AX,F$46,FALSE) -> 0.08477928 | H48: =D48-C48 -> 0.1044784 | I48: =E48-D48 -> -0.0754295 | J48: =F48-E48 -> -0.10348342
A49: ETCC | B49: GMANCHETCC | C49: =VLOOKUP($B49,RAWDATA!$B:$AX,C$46,FALSE) -> 211.2657 | D49: =VLOOKUP($B49,RAWDATA!$B:$AX,D$46,FALSE) -> 128.8646 | E49: =VLOOKUP($B49,RAWDATA!$B:$AX,E$46,FALSE) -> 112.9343 | F49: =VLOOKUP($B49,RAWDATA!$B:$AX,F$46,FALSE) -> 81.84164 | H49: -82.4011 | I49: =E49-D49 -> -15.9303 | J49: -31.09266
A50: ETDD | B50: GMANCHETDD | C50: =VLOOKUP($B50,RAWDATA!$B:$AX,C$46,FALSE) -> 3.821658 | D50: =VLOOKUP($B50,RAWDATA!$B:$AX,D$46,FALSE) -> 1.184256 | E50: =VLOOKUP($B50,RAWDATA!$B:$AX,E$46,FALSE) -> 7.646014 | F50: =VLOOKUP($B50,RAWDATA!$B:$AX,F$46,FALSE) -> 6.209463 | H50: -2.637402 | I50: 6.461758 | J50: -1.436551
A51: ETEE | B51: GMANCHETEE | C51: =VLOOKUP($B51,RAWDATA!$B:$AX,C$46,FALSE) -> 4.423877 | D51: =VLOOKUP($B51,RAWDATA!$B:$AX,D$46,FALSE) -> 4.885327 | E51: =VLOOKUP($B51,RAWDATA!$B:$AX,E$46,FALSE) -> 9.172755 | F51: =VLOOKUP($B51,RAWDATA!$B:$AX,F$46,FALSE) -> 7.449379 | H51: 0.46145 | I51: 4.287428 | J51: -1.723376
A52: ETFF | B52: GMANCHETFF | C52: =VLOOKUP($B52,RAWDATA!$B:$AX,C$46,FALSE) -> 74.44193 | D52: =VLOOKUP($B52,RAWDATA!$B:$AX,D$46,FALSE) -> 105.0239 | E52: =VLOOKUP($B52,RAWDATA!$B:$AX,E$46,FALSE) -> 81.07815 | F52: =VLOOKUP($B52,RAWDATA!$B:$AX,F$46,FALSE) -> 96.69567 | H52: 30.58197 | I52: -23.94575 | J52: 15.61752
A53: ETGG | B53: GMANCHETGG | C53: =VLOOKUP($B53,RAWDATA!$B:$AX,C$46,FALSE) -> 224.6453 | D53: =VLOOKUP($B53,RAWDATA!$B:$AX,D$46,FALSE) -> 222.1147 | E53: =VLOOKUP($B53,RAWDATA!$B:$AX,E$46,FALSE) -> 213.3781 | F53: =VLOOKUP($B53,RAWDATA!$B:$AX,F$46,FALSE) -> 234.2539 | H53: -2.5306 | I53: -8.7366 | J53: 20.8758
A54: ETHH | B54: GMANCHETHH | C54: =VLOOKUP($B54,RAWDATA!$B:$AX,C$46,FALSE) -> 59.56156 | D54: =VLOOKUP($B54,RAWDATA!$B:$AX,D$46,FALSE) -> 70.43758 | E54: =VLOOKUP($B54,RAWDATA!$B:$AX,E$46,FALSE) -> 84.52876 | F54: =VLOOKUP($B54,RAWDATA!$B:$AX,F$46,FALSE) -> 83.55813 | H54: 10.87602 | I54: 14.09118 | J54: -0.97063
A55: ETII | B55: GMANCHETII | C55: =VLOOKUP($B55,RAWDATA!$B:$AX,C$46,FALSE) -> 67.71635 | D55: =VLOOKUP($B55,RAWDATA!$B:$AX,D$46,FALSE) -> 73.43622 | E55: =VLOOKUP($B55,RAWDATA!$B:$AX,E$46,FALSE) -> 90.66229 | F55: =VLOOKUP($B55,RAWDATA!$B:$AX,F$46,FALSE) -> 103.8756 | H55: 5.71987 | I55: 17.22607 | J55: 13.21331
A56: ETJJ | B56: GMANCHETJJ | C56: =VLOOKUP($B56,RAWDATA!$B:$AX,C$46,FALSE) -> 31.04295 | D56: =VLOOKUP($B56,RAWDATA!$B:$AX,D$46,FALSE) -> 45.25289 | E56: =VLOOKUP($B56,RAWDATA!$B:$AX,E$46,FALSE) -> 51.9884 | F56: =VLOOKUP($B56,RAWDATA!$B:$AX,F$46,FALSE) -> 57.84624 | H56: 14.20994 | I56: 6.73551 | J56: 5.85784
A57: ETKK | B57: GMANCHETKK | C57: =VLOOKUP($B57,RAWDATA!$B:$AX,C$46,FALSE) -> 38.91365 | D57: =VLOOKUP($B57,RAWDATA!$B:$AX,D$46,FALSE) -> 48.86025 | E57: =VLOOKUP($B57,RAWDATA!$B:$AX,E$46,FALSE) -> 47.11273 | F57: =VLOOKUP($B57,RAWDATA!$B:$AX,F$46,FALSE) -> 43.90743 | H57: 9.9466 | I57: -1.74752 | J57: -3.2053
A58: ETLL | B58: GMANCHETLL | C58: =VLOOKUP($B58,RAWDATA!$B:$AX,C$46,FALSE) -> 13.5659 | D58: =VLOOKUP($B58,RAWDATA!$B:$AX,D$46,FALSE) -> 22.00226 | E58: =VLOOKUP($B58,RAWDATA!$B:$AX,E$46,FALSE) -> 31.03197 | F58: =VLOOKUP($B58,RAWDATA!$B:$AX,F$46,FALSE) -> 35.13599 | H58: 8.43636 | I58: 9.02971 | J58: 4.10402
A59: ETMM | B59: GMANCHETMM | C59: =VLOOKUP($B59,RAWDATA!$B:$AX,C$46,FALSE) -> 71.93812 | D59: =VLOOKUP($B59,RAWDATA!$B:$AX,D$46,FALSE) -> 98.95085 | E59: =VLOOKUP($B59,RAWDATA!$B:$AX,E$46,FALSE) -> 141.1283 | F59: =VLOOKUP($B59,RAWDATA!$B:$AX,F$46,FALSE) -> 179.4183 | H59: 27.01273 | I59: 42.17745 | J59: 38.29
A60: ETNN | B60: GMANCHETNN | C60: =VLOOKUP($B60,RAWDATA!$B:$AX,C$46,FALSE) -> 98.48611 | D60: =VLOOKUP($B60,RAWDATA!$B:$AX,D$46,FALSE) -> 113.7304 | E60: =VLOOKUP($B60,RAWDATA!$B:$AX,E$46,FALSE) -> 142.5115 | F60: =VLOOKUP($B60,RAWDATA!$B:$AX,F$46,FALSE) -> 179.1544 | H60: 15.24429 | I60: 28.7811 | J60: 36.6429
A61: ETOO | B61: GMANCHETOO | C61: =VLOOKUP($B61,RAWDATA!$B:$AX,C$46,FALSE) -> 59.83404 | D61: =VLOOKUP($B61,RAWDATA!$B:$AX,D$46,FALSE) -> 67.20897 | E61: =VLOOKUP($B61,RAWDATA!$B:$AX,E$46,FALSE) -> 53.71523 | F61: =VLOOKUP($B61,RAWDATA!$B:$AX,F$46,FALSE) -> 46.6404 | H61: 7.37493 | I61: -13.49374 | J61: -7.07483
A62: ETPP | B62: GMANCHETPP | C62: =VLOOKUP($B62,RAWDATA!$B:$AX,C$46,FALSE) -> 92.24944 | D62: =VLOOKUP($B62,RAWDATA!$B:$AX,D$46,FALSE) -> 108.8646 | E62: =VLOOKUP($B62,RAWDATA!$B:$AX,E$46,FALSE) -> 119.8985 | F62: =VLOOKUP($B62,RAWDATA!$B:$AX,F$46,FALSE) -> 120.0041 | H62: 16.61516 | I62: 11.0339 | J62: 0.1056
A63: ETQQ | B63: GMANCHETQQ | C63: =VLOOKUP($B63,RAWDATA!$B:$AX,C$46,FALSE) -> 132.6186 | D63: =VLOOKUP($B63,RAWDATA!$B:$AX,D$46,FALSE) -> 149.7291 | E63: =VLOOKUP($B63,RAWDATA!$B:$AX,E$46,FALSE) -> 180.9347 | F63: =VLOOKUP($B63,RAWDATA!$B:$AX,F$46,FALSE) -> 201.3734 | H63: 17.1105 | I63: 31.2056 | J63: 20.4387
A64: ETRR | B64: GMANCHETRR | C64: =VLOOKUP($B64,RAWDATA!$B:$AX,C$46,FALSE) -> 20.88444 | D64: =VLOOKUP($B64,RAWDATA!$B:$AX,D$46,FALSE) -> 27.10692 | E64: =VLOOKUP($B64,RAWDATA!$B:$AX,E$46,FALSE) -> 32.93122 | F64: =VLOOKUP($B64,RAWDATA!$B:$AX,F$46,FALSE) -> 42.64847 | H64: 6.22248 | I64: 5.8243 | J64: 9.71725
A65: ETSS | B65: GMANCHETSS | C65: =VLOOKUP($B65,RAWDATA!$B:$AX,C$46,FALSE) -> 34.8822 | D65: =VLOOKUP($B65,RAWDATA!$B:$AX,D$46,FALSE) -> 40.27971 | E65: =VLOOKUP($B65,RAWDATA!$B:$AX,E$46,FALSE) -> 38.74221 | F65: =VLOOKUP($B65,RAWDATA!$B:$AX,F$46,FALSE) -> 42.09313 | H65: 5.39751 | I65: -1.5375 | J65: 3.35092
A66: ETTT | B66: GMANCHETTT | C66: =VLOOKUP($B66,RAWDATA!$B:$AX,C$46,FALSE) -> 1243.035 | D66: =VLOOKUP($B66,RAWDATA!$B:$AX,D$46,FALSE) -> 1331.238 | E66: =VLOOKUP($B66,RAWDATA!$B:$AX,E$46,FALSE) -> 1442.954 | F66: =VLOOKUP($B66,RAWDATA!$B:$AX,F$46,FALSE) -> 1565.077 | H66: 88.203 | I66: 111.716 | J66: 122.123
A70: Key indicators
C71: 2013 | D71: 2014 | E71: 2015 | F71: 2016 | G71: 2017 | H71: 2018 | I71: 2019 | J71: 2020 | K71: 2021 | L71: 2022 | M71: 2027 | N71: 2032 | O71: 2037
C72: =C71-1989 -> 24 | D72: =D71-1989 -> 25 | E72: 26 | F72: 27 | G72: 28 | H72: 29 | I72: 30 | J72: 31 | K72: 32 | L72: 33 | M72: 38 | N72: 43 | O72: 48
A73: POPL | B73: =city_code&A73 -> GMANCHPOPL | C73: =IFERROR(VLOOKUP($B73,RAWDATA!$B:$AX,C$72,FALSE),"-") -> 2713.774 | D73: =IFERROR(VLOOKUP($B73,RAWDATA!$B:$AX,D$72,FALSE),"-") -> 2730.325 | E73: =IFERROR(VLOOKUP($B73,RAWDATA!$B:$AX,E$72,FALSE),"-") -> 2754.219 | F73: =IFERROR(VLOOKUP($B73,RAWDATA!$B:$AX,F$72,FALSE),"-") -> 2781.046 | G73: =IFERROR(VLOOKUP($B73,RAWDATA!$B:$AX,G$72,FALSE),"-") -> 2795.491 | H73: =IFERROR(VLOOKUP($B73,RAWDATA!$B:$AX,H$72,FALSE),"-") -> 2809.994 | I73: =IFERROR(VLOOKUP($B73,RAWDATA!$B:$AX,I$72,FALSE),"-") -> 2824.02 | J73: =IFERROR(VLOOKUP($B73,RAWDATA!$B:$AX,J$72,FALSE),"-") -> 2836.559 | K73: =IFERROR(VLOOKUP($B73,RAWDATA!$B:$AX,K$72,FALSE),"-") -> 2847.778 | L73: =IFERROR(VLOOKUP($B73,RAWDATA!$B:$AX,L$72,FALSE),"-") -> 2858.561 | M73: =IFERROR(VLOOKUP($B73,RAWDATA!$B:$AX,M$72,FALSE),"-") -> 2909.076 | N73: =IFERROR(VLOOKUP($B73,RAWDATA!$B:$AX,N$72,FALSE),"-") -> 2946.241 | O73: =IFERROR(VLOOKUP($B73,RAWDATA!$B:$AX,O$72,FALSE),"-") -> 2976.751
A74: POPW | B74: GMANCHPOPW | C74: =IFERROR(VLOOKUP($B74,RAWDATA!$B:$AX,C$72,FALSE),"-") -> 1753.575 | D74: =IFERROR(VLOOKUP($B74,RAWDATA!$B:$AX,D$72,FALSE),"-") -> 1755.904 | E74: =IFERROR(VLOOKUP($B74,RAWDATA!$B:$AX,E$72,FALSE),"-") -> 1766.57 | F74: =IFERROR(VLOOKUP($B74,RAWDATA!$B:$AX,F$72,FALSE),"-") -> 1779.546 | G74: =IFERROR(VLOOKUP($B74,RAWDATA!$B:$AX,G$72,FALSE),"-") -> 1782.509 | H74: =IFERROR(VLOOKUP($B74,RAWDATA!$B:$AX,H$72,FALSE),"-") -> 1784.251 | I74: =IFERROR(VLOOKUP($B74,RAWDATA!$B:$AX,I$72,FALSE),"-") -> 1786.199 | J74: =IFERROR(VLOOKUP($B74,RAWDATA!$B:$AX,J$72,FALSE),"-") -> 1788.332 | K74: =IFERROR(VLOOKUP($B74,RAWDATA!$B:$AX,K$72,FALSE),"-") -> 1789.61 | L74: =IFERROR(VLOOKUP($B74,RAWDATA!$B:$AX,L$72,FALSE),"-") -> 1791.207 | M74: =IFERROR(VLOOKUP($B74,RAWDATA!$B:$AX,M$72,FALSE),"-") -> 1797.784 | N74: =IFERROR(VLOOKUP($B74,RAWDATA!$B:$AX,N$72,FALSE),"-") -> 1789.494 | O74: =IFERROR(VLOOKUP($B74,RAWDATA!$B:$AX,O$72,FALSE),"-") -> 1776.614
A75: POPL15_74 | B75: GMANCHPOPL15_74 | C75: =IFERROR(VLOOKUP($B75,RAWDATA!$B:$AX,C$72,FALSE),"-") -> 2017.437 | D75: =IFERROR(VLOOKUP($B75,RAWDATA!$B:$AX,D$72,FALSE),"-") -> 2024.865 | E75: =IFERROR(VLOOKUP($B75,RAWDATA!$B:$AX,E$72,FALSE),"-") -> 2039.033 | F75: =IFERROR(VLOOKUP($B75,RAWDATA!$B:$AX,F$72,FALSE),"-") -> 2055.418 | G75: =IFERROR(VLOOKUP($B75,RAWDATA!$B:$AX,G$72,FALSE),"-") -> 2057.249 | H75: =IFERROR(VLOOKUP($B75,RAWDATA!$B:$AX,H$72,FALSE),"-") -> 2057.983 | I75: =IFERROR(VLOOKUP($B75,RAWDATA!$B:$AX,I$72,FALSE),"-") -> 2057.932 | J75: =IFERROR(VLOOKUP($B75,RAWDATA!$B:$AX,J$72,FALSE),"-") -> 2058.767 | K75: =IFERROR(VLOOKUP($B75,RAWDATA!$B:$AX,K$72,FALSE),"-") -> 2062.664 | L75: =IFERROR(VLOOKUP($B75,RAWDATA!$B:$AX,L$72,FALSE),"-") -> 2060.198 | M75: =IFERROR(VLOOKUP($B75,RAWDATA!$B:$AX,M$72,FALSE),"-") -> 2096.623 | N75: =IFERROR(VLOOKUP($B75,RAWDATA!$B:$AX,N$72,FALSE),"-") -> 2153.733 | O75: =IFERROR(VLOOKUP($B75,RAWDATA!$B:$AX,O$72,FALSE),"-") -> 2150.636
A76: MIGN | B76: GMANCHMIGN | C76: =IFERROR(VLOOKUP($B76,RAWDATA!$B:$AX,C$72,FALSE),"-") -> -0.956 | D76: =IFERROR(VLOOKUP($B76,RAWDATA!$B:$AX,D$72,FALSE),"-") -> 2.824 | E76: =IFERROR(VLOOKUP($B76,RAWDATA!$B:$AX,E$72,FALSE),"-") -> 12.229 | F76: =IFERROR(VLOOKUP($B76,RAWDATA!$B:$AX,F$72,FALSE),"-") -> 13.89 | G76: =IFERROR(VLOOKUP($B76,RAWDATA!$B:$AX,G$72,FALSE),"-") -> 3.324517 | H76: =IFERROR(VLOOKUP($B76,RAWDATA!$B:$AX,H$72,FALSE),"-") -> 2.040695 | I76: =IFERROR(VLOOKUP($B76,RAWDATA!$B:$AX,I$72,FALSE),"-") -> 1.513883 | J76: =IFERROR(VLOOKUP($B76,RAWDATA!$B:$AX,J$72,FALSE),"-") -> 0.1296623 | K76: =IFERROR(VLOOKUP($B76,RAWDATA!$B:$AX,K$72,FALSE),"-") -> -1.03967 | L76: =IFERROR(VLOOKUP($B76,RAWDATA!$B:$AX,L$72,FALSE),"-") -> -1.148186 | M76: =IFERROR(VLOOKUP($B76,RAWDATA!$B:$AX,M$72,FALSE),"-") -> -1.741085 | N76: =IFERROR(VLOOKUP($B76,RAWDATA!$B:$AX,N$72,FALSE),"-") -> -2.626814 | O76: =IFERROR(VLOOKUP($B76,RAWDATA!$B:$AX,O$72,FALSE),"-") -> -2.993964
A77: MIGDOMN | B77: GMANCHMIGDOMN | C77: =IFERROR(VLOOKUP($B77,RAWDATA!$B:$AX,C$72,FALSE),"-") -> -5.904999 | D77: =IFERROR(VLOOKUP($B77,RAWDATA!$B:$AX,D$72,FALSE),"-") -> -4.746 | E77: =IFERROR(VLOOKUP($B77,RAWDATA!$B:$AX,E$72,FALSE),"-") -> -1.519 | F77: =IFERROR(VLOOKUP($B77,RAWDATA!$B:$AX,F$72,FALSE),"-") -> -1.449 | G77: =IFERROR(VLOOKUP($B77,RAWDATA!$B:$AX,G$72,FALSE),"-") -> -6.138947 | H77: =IFERROR(VLOOKUP($B77,RAWDATA!$B:$AX,H$72,FALSE),"-") -> -6.758893 | I77: =IFERROR(VLOOKUP($B77,RAWDATA!$B:$AX,I$72,FALSE),"-") -> -7.353974 | J77: =IFERROR(VLOOKUP($B77,RAWDATA!$B:$AX,J$72,FALSE),"-") -> -7.226591 | K77: =IFERROR(VLOOKUP($B77,RAWDATA!$B:$AX,K$72,FALSE),"-") -> -7.259574 | L77: =IFERROR(VLOOKUP($B77,RAWDATA!$B:$AX,L$72,FALSE),"-") -> -7.37444 | M77: =IFERROR(VLOOKUP($B77,RAWDATA!$B:$AX,M$72,FALSE),"-") -> -8.353395 | N77: =IFERROR(VLOOKUP($B77,RAWDATA!$B:$AX,N$72,FALSE),"-") -> -9.459461 | O77: =IFERROR(VLOOKUP($B77,RAWDATA!$B:$AX,O$72,FALSE),"-") -> -9.980582
A78: MIGINTN | B78: GMANCHMIGINTN | C78: =IFERROR(VLOOKUP($B78,RAWDATA!$B:$AX,C$72,FALSE),"-") -> 4.807 | D78: =IFERROR(VLOOKUP($B78,RAWDATA!$B:$AX,D$72,FALSE),"-") -> 7.37 | E78: =IFERROR(VLOOKUP($B78,RAWDATA!$B:$AX,E$72,FALSE),"-") -> 13.481 | F78: =IFERROR(VLOOKUP($B78,RAWDATA!$B:$AX,F$72,FALSE),"-") -> 15.058 | G78: =IFERROR(VLOOKUP($B78,RAWDATA!$B:$AX,G$72,FALSE),"-") -> 9.463462 | H78: =IFERROR(VLOOKUP($B78,RAWDATA!$B:$AX,H$72,FALSE),"-") -> 8.79958 | I78: =IFERROR(VLOOKUP($B78,RAWDATA!$B:$AX,I$72,FALSE),"-") -> 8.867844 | J78: =IFERROR(VLOOKUP($B78,RAWDATA!$B:$AX,J$72,FALSE),"-") -> 7.356232 | K78: =IFERROR(VLOOKUP($B78,RAWDATA!$B:$AX,K$72,FALSE),"-") -> 6.219906 | L78: =IFERROR(VLOOKUP($B78,RAWDATA!$B:$AX,L$72,FALSE),"-") -> 6.226254 | M78: =IFERROR(VLOOKUP($B78,RAWDATA!$B:$AX,M$72,FALSE),"-") -> 6.612312 | N78: =IFERROR(VLOOKUP($B78,RAWDATA!$B:$AX,N$72,FALSE),"-") -> 6.832646 | O78: =IFERROR(VLOOKUP($B78,RAWDATA!$B:$AX,O$72,FALSE),"-") -> 6.986622
A80: EETT | B80: =city_code&A80 -> GMANCHEETT | C80: =IFERROR(VLOOKUP($B80,RAWDATA!$B:$AX,C$72,FALSE),"-") -> 1184.331 | D80: =IFERROR(VLOOKUP($B80,RAWDATA!$B:$AX,D$72,FALSE),"-") -> 1199.74 | E80: =IFERROR(VLOOKUP($B80,RAWDATA!$B:$AX,E$72,FALSE),"-") -> 1228.66 | F80: =IFERROR(VLOOKUP($B80,RAWDATA!$B:$AX,F$72,FALSE),"-") -> 1267.755 | G80: =IFERROR(VLOOKUP($B80,RAWDATA!$B:$AX,G$72,FALSE),"-") -> 1292.823 | H80: =IFERROR(VLOOKUP($B80,RAWDATA!$B:$AX,H$72,FALSE),"-") -> 1311.812 | I80: =IFERROR(VLOOKUP($B80,RAWDATA!$B:$AX,I$72,FALSE),"-") -> 1314.813 | J80: =IFERROR(VLOOKUP($B80,RAWDATA!$B:$AX,J$72,FALSE),"-") -> 1322.272 | K80: =IFERROR(VLOOKUP($B80,RAWDATA!$B:$AX,K$72,FALSE),"-") -> 1332.614 | L80: =IFERROR(VLOOKUP($B80,RAWDATA!$B:$AX,L$72,FALSE),"-") -> 1344.084 | M80: =IFERROR(VLOOKUP($B80,RAWDATA!$B:$AX,M$72,FALSE),"-") -> 1379.005 | N80: =IFERROR(VLOOKUP($B80,RAWDATA!$B:$AX,N$72,FALSE),"-") -> 1397.641 | O80: =IFERROR(VLOOKUP($B80,RAWDATA!$B:$AX,O$72,FALSE),"-") -> 1412.169
A81: SETT | B81: GMANCHSETT | C81: =IFERROR(VLOOKUP($B81,RAWDATA!$B:$AX,C$72,FALSE),"-") -> 152.2101 | D81: =IFERROR(VLOOKUP($B81,RAWDATA!$B:$AX,D$72,FALSE),"-") -> 165.1485 | E81: =IFERROR(VLOOKUP($B81,RAWDATA!$B:$AX,E$72,FALSE),"-") -> 154.6804 | F81: =IFERROR(VLOOKUP($B81,RAWDATA!$B:$AX,F$72,FALSE),"-") -> 153.7949 | G81: =IFERROR(VLOOKUP($B81,RAWDATA!$B:$AX,G$72,FALSE),"-") -> 150.0444 | H81: =IFERROR(VLOOKUP($B81,RAWDATA!$B:$AX,H$72,FALSE),"-") -> 143.7765 | I81: =IFERROR(VLOOKUP($B81,RAWDATA!$B:$AX,I$72,FALSE),"-") -> 143.4049 | J81: =IFERROR(VLOOKUP($B81,RAWDATA!$B:$AX,J$72,FALSE),"-") -> 143.6271 | K81: =IFERROR(VLOOKUP($B81,RAWDATA!$B:$AX,K$72,FALSE),"-") -> 144.5193 | L81: =IFERROR(VLOOKUP($B81,RAWDATA!$B:$AX,L$72,FALSE),"-") -> 145.6152 | M81: =IFERROR(VLOOKUP($B81,RAWDATA!$B:$AX,M$72,FALSE),"-") -> 149.1262 | N81: =IFERROR(VLOOKUP($B81,RAWDATA!$B:$AX,N$72,FALSE),"-") -> 151.0262 | O81: =IFERROR(VLOOKUP($B81,RAWDATA!$B:$AX,O$72,FALSE),"-") -> 152.8219
A82: ETTT | B82: GMANCHETTT | C82: =IFERROR(VLOOKUP($B82,RAWDATA!$B:$AX,C$72,FALSE),"-") -> 1336.602 | D82: =IFERROR(VLOOKUP($B82,RAWDATA!$B:$AX,D$72,FALSE),"-") -> 1364.957 | E82: =IFERROR(VLOOKUP($B82,RAWDATA!$B:$AX,E$72,FALSE),"-") -> 1383.402 | F82: =IFERROR(VLOOKUP($B82,RAWDATA!$B:$AX,F$72,FALSE),"-") -> 1421.636 | G82: =IFERROR(VLOOKUP($B82,RAWDATA!$B:$AX,G$72,FALSE),"-") -> 1442.954 | H82: =IFERROR(VLOOKUP($B82,RAWDATA!$B:$AX,H$72,FALSE),"-") -> 1455.674 | I82: =IFERROR(VLOOKUP($B82,RAWDATA!$B:$AX,I$72,FALSE),"-") -> 1458.304 | J82: =IFERROR(VLOOKUP($B82,RAWDATA!$B:$AX,J$72,FALSE),"-") -> 1465.985 | K82: =IFERROR(VLOOKUP($B82,RAWDATA!$B:$AX,K$72,FALSE),"-") -> 1477.219 | L82: =IFERROR(VLOOKUP($B82,RAWDATA!$B:$AX,L$72,FALSE),"-") -> 1489.786 | M82: =IFERROR(VLOOKUP($B82,RAWDATA!$B:$AX,M$72,FALSE),"-") -> 1528.217 | N82: =IFERROR(VLOOKUP($B82,RAWDATA!$B:$AX,N$72,FALSE),"-") -> 1548.753 | O82: =IFERROR(VLOOKUP($B82,RAWDATA!$B:$AX,O$72,FALSE),"-") -> 1565.077
A83: P_ETTT | B83: GMANCHP_ETTT | C83: =IFERROR(VLOOKUP($B83,RAWDATA!$B:$AX,C$72,FALSE),"-") -> 1282.089 | D83: =IFERROR(VLOOKUP($B83,RAWDATA!$B:$AX,D$72,FALSE),"-") -> 1307.628 | E83: =IFERROR(VLOOKUP($B83,RAWDATA!$B:$AX,E$72,FALSE),"-") -> 1328.86 | F83: =IFERROR(VLOOKUP($B83,RAWDATA!$B:$AX,F$72,FALSE),"-") -> 1366.792 | G83: =IFERROR(VLOOKUP($B83,RAWDATA!$B:$AX,G$72,FALSE),"-") -> 1386.687 | H83: =IFERROR(VLOOKUP($B83,RAWDATA!$B:$AX,H$72,FALSE),"-") -> 1403.198 | I83: =IFERROR(VLOOKUP($B83,RAWDATA!$B:$AX,I$72,FALSE),"-") -> 1406.715 | J83: =IFERROR(VLOOKUP($B83,RAWDATA!$B:$AX,J$72,FALSE),"-") -> 1414.816 | K83: =IFERROR(VLOOKUP($B83,RAWDATA!$B:$AX,K$72,FALSE),"-") -> 1425.774 | L83: =IFERROR(VLOOKUP($B83,RAWDATA!$B:$AX,L$72,FALSE),"-") -> 1437.789 | M83: =IFERROR(VLOOKUP($B83,RAWDATA!$B:$AX,M$72,FALSE),"-") -> 1472.965 | N83: =IFERROR(VLOOKUP($B83,RAWDATA!$B:$AX,N$72,FALSE),"-") -> 1492.178 | O83: =IFERROR(VLOOKUP($B83,RAWDATA!$B:$AX,O$72,FALSE),"-") -> 1507.715
A84: RET | B84: GMANCHRET | C84: =IFERROR(VLOOKUP($B84,RAWDATA!$B:$AX,C$72,FALSE),"-") -> 1237.267 | D84: =IFERROR(VLOOKUP($B84,RAWDATA!$B:$AX,D$72,FALSE),"-") -> 1270.399 | E84: =IFERROR(VLOOKUP($B84,RAWDATA!$B:$AX,E$72,FALSE),"-") -> 1307.898 | F84: =IFERROR(VLOOKUP($B84,RAWDATA!$B:$AX,F$72,FALSE),"-") -> 1321.727 | G84: =IFERROR(VLOOKUP($B84,RAWDATA!$B:$AX,G$72,FALSE),"-") -> 1357.479 | H84: =IFERROR(VLOOKUP($B84,RAWDATA!$B:$AX,H$72,FALSE),"-") -> 1365.013 | I84: =IFERROR(VLOOKUP($B84,RAWDATA!$B:$AX,I$72,FALSE),"-") -> 1368.735 | J84: =IFERROR(VLOOKUP($B84,RAWDATA!$B:$AX,J$72,FALSE),"-") -> 1378.981 | K84: =IFERROR(VLOOKUP($B84,RAWDATA!$B:$AX,K$72,FALSE),"-") -> 1392.02 | L84: =IFERROR(VLOOKUP($B84,RAWDATA!$B:$AX,L$72,FALSE),"-") -> 1404.936 | M84: =IFERROR(VLOOKUP($B84,RAWDATA!$B:$AX,M$72,FALSE),"-") -> 1441.989 | N84: =IFERROR(VLOOKUP($B84,RAWDATA!$B:$AX,N$72,FALSE),"-") -> 1466.999 | O84: =IFERROR(VLOOKUP($B84,RAWDATA!$B:$AX,O$72,FALSE),"-") -> 1492.254
A85: RER_APS | B85: GMANCHRER_APS | C85: =IFERROR(VLOOKUP($B85,RAWDATA!$B:$AX,C$72,FALSE),"-") -> 67.5 | D85: =IFERROR(VLOOKUP($B85,RAWDATA!$B:$AX,D$72,FALSE),"-") -> 69 | E85: =IFERROR(VLOOKUP($B85,RAWDATA!$B:$AX,E$72,FALSE),"-") -> 70.2 | F85: =IFERROR(VLOOKUP($B85,RAWDATA!$B:$AX,F$72,FALSE),"-") -> 70.5 | G85: =IFERROR(VLOOKUP($B85,RAWDATA!$B:$AX,G$72,FALSE),"-") -> 72 | H85: =IFERROR(VLOOKUP($B85,RAWDATA!$B:$AX,H$72,FALSE),"-") -> 72.37376 | I85: =IFERROR(VLOOKUP($B85,RAWDATA!$B:$AX,I$72,FALSE),"-") -> 72.5729 | J85: =IFERROR(VLOOKUP($B85,RAWDATA!$B:$AX,J$72,FALSE),"-") -> 73.08651 | K85: =IFERROR(VLOOKUP($B85,RAWDATA!$B:$AX,K$72,FALSE),"-") -> 73.63817 | L85: =IFERROR(VLOOKUP($B85,RAWDATA!$B:$AX,L$72,FALSE),"-") -> 74.41041 | M85: =IFERROR(VLOOKUP($B85,RAWDATA!$B:$AX,M$72,FALSE),"-") -> 75.04606 | N85: =IFERROR(VLOOKUP($B85,RAWDATA!$B:$AX,N$72,FALSE),"-") -> 74.32314 | O85: =IFERROR(VLOOKUP($B85,RAWDATA!$B:$AX,O$72,FALSE),"-") -> 75.71149
A86: RER (15-74) | C86: =IFERROR(((C84/C75)*100),"-") -> 61.32865611 | D86: =IFERROR(((D84/D75)*100),"-") -> 62.73993575 | E86: 64.14305212 | F86: 64.30453562 | G86: 65.98515785 | H86: 66.32771019 | I86: 66.51021511 | J86: 66.98091625 | K86: 67.48651259 | L86: 68.19422211 | M86: 68.77674241 | N86: 68.11424629 | O86: 69.38663726
A87: NCOM | B87: =city_code&A87 -> GMANCHNCOM | C87: =VLOOKUP($B87,RAWDATA!$B:$AX,C$72,FALSE) -> 44.82202 | D87: =VLOOKUP($B87,RAWDATA!$B:$AX,D$72,FALSE) -> 37.229 | E87: =VLOOKUP($B87,RAWDATA!$B:$AX,E$72,FALSE) -> 20.96252 | F87: =VLOOKUP($B87,RAWDATA!$B:$AX,F$72,FALSE) -> 45.06567 | G87: =VLOOKUP($B87,RAWDATA!$B:$AX,G$72,FALSE) -> 29.20801 | H87: =VLOOKUP($B87,RAWDATA!$B:$AX,H$72,FALSE) -> 38.18542 | I87: =VLOOKUP($B87,RAWDATA!$B:$AX,I$72,FALSE) -> 37.97986 | J87: =VLOOKUP($B87,RAWDATA!$B:$AX,J$72,FALSE) -> 35.83557 | K87: =VLOOKUP($B87,RAWDATA!$B:$AX,K$72,FALSE) -> 33.75415 | L87: =VLOOKUP($B87,RAWDATA!$B:$AX,L$72,FALSE) -> 32.85303 | M87: =VLOOKUP($B87,RAWDATA!$B:$AX,M$72,FALSE) -> 30.97607 | N87: =VLOOKUP($B87,RAWDATA!$B:$AX,N$72,FALSE) -> 25.17896 | O87: =VLOOKUP($B87,RAWDATA!$B:$AX,O$72,FALSE) -> 15.46094
A88: UNMP | B88: =city_code&A88 -> GMANCHUNMP | C88: =IFERROR(VLOOKUP($B88,RAWDATA!$B:$AX,C$72,FALSE),"-") -> 77.88223 | D88: =IFERROR(VLOOKUP($B88,RAWDATA!$B:$AX,D$72,FALSE),"-") -> 54.8781 | E88: =IFERROR(VLOOKUP($B88,RAWDATA!$B:$AX,E$72,FALSE),"-") -> 44.47566 | F88: =IFERROR(VLOOKUP($B88,RAWDATA!$B:$AX,F$72,FALSE),"-") -> 46.13013 | G88: =IFERROR(VLOOKUP($B88,RAWDATA!$B:$AX,G$72,FALSE),"-") -> 48.25979 | H88: =IFERROR(VLOOKUP($B88,RAWDATA!$B:$AX,H$72,FALSE),"-") -> 52.97137 | I88: =IFERROR(VLOOKUP($B88,RAWDATA!$B:$AX,I$72,FALSE),"-") -> 53.26945 | J88: =IFERROR(VLOOKUP($B88,RAWDATA!$B:$AX,J$72,FALSE),"-") -> 51.43454 | K88: =IFERROR(VLOOKUP($B88,RAWDATA!$B:$AX,K$72,FALSE),"-") -> 49.35381 | L88: =IFERROR(VLOOKUP($B88,RAWDATA!$B:$AX,L$72,FALSE),"-") -> 47.46165 | M88: =IFERROR(VLOOKUP($B88,RAWDATA!$B:$AX,M$72,FALSE),"-") -> 45.41154 | N88: =IFERROR(VLOOKUP($B88,RAWDATA!$B:$AX,N$72,FALSE),"-") -> 44.08358 | O88: =IFERROR(VLOOKUP($B88,RAWDATA!$B:$AX,O$72,FALSE),"-") -> 42.53999
A89: UP | B89: =city_code&A89 -> GMANCHUP | C89: =IFERROR(((C88/C74)*100),"-") -> 4.441340119 | D89: 3.125347399 | E89: 2.517627946 | F89: 2.592241504 | G89: 2.707407929 | H89: 2.968829498 | I89: 2.98227969 | J89: 2.876118081 | K89: 2.75779695 | L89: 2.649702128 | M89: 2.525973087 | N89: 2.463466209 | O89: =IFERROR(((O88/O74)*100),"-") -> 2.394441899
A90: UP (15-74) | C90: =IFERROR(((C88/C75)*100),"-") -> 3.860454131 | D90: =IFERROR(((D88/D75)*100),"-") -> 2.71021031 | E90: 2.18121335 | F90: 2.244318674 | G90: 2.345840975 | H90: 2.573945946 | I90: 2.588494178 | J90: 2.498317682 | K90: 2.392721742 | L90: 2.303742165 | M90: 2.165937319 | N90: 2.046845175 | O90: 1.97801906
A92: QQTT | B92: =city_code&A92 -> GMANCHQQTT | C92: =IFERROR(VLOOKUP($B92,RAWDATA!$B:$AX,C$72,FALSE),"-") -> 59169.98 | D92: =IFERROR(VLOOKUP($B92,RAWDATA!$B:$AX,D$72,FALSE),"-") -> 58935.54 | E92: =IFERROR(VLOOKUP($B92,RAWDATA!$B:$AX,E$72,FALSE),"-") -> 61107.17 | F92: =IFERROR(VLOOKUP($B92,RAWDATA!$B:$AX,F$72,FALSE),"-") -> 62654.55 | G92: =IFERROR(VLOOKUP($B92,RAWDATA!$B:$AX,G$72,FALSE),"-") -> 64183.38 | H92: =IFERROR(VLOOKUP($B92,RAWDATA!$B:$AX,H$72,FALSE),"-") -> 65248.74 | I92: =IFERROR(VLOOKUP($B92,RAWDATA!$B:$AX,I$72,FALSE),"-") -> 66272.95 | J92: =IFERROR(VLOOKUP($B92,RAWDATA!$B:$AX,J$72,FALSE),"-") -> 67585.21 | K92: =IFERROR(VLOOKUP($B92,RAWDATA!$B:$AX,K$72,FALSE),"-") -> 69065.62 | L92: =IFERROR(VLOOKUP($B92,RAWDATA!$B:$AX,L$72,FALSE),"-") -> 70621.58 | M92: =IFERROR(VLOOKUP($B92,RAWDATA!$B:$AX,M$72,FALSE),"-") -> 77497.2 | N92: =IFERROR(VLOOKUP($B92,RAWDATA!$B:$AX,N$72,FALSE),"-") -> 83689.37 | O92: =IFERROR(VLOOKUP($B92,RAWDATA!$B:$AX,O$72,FALSE),"-") -> 89630.12
A93: Productivity | C93: =C131 -> 100 | D93: =D131 -> 100 | E93: 100 | F93: 100 | G93: 100 | H93: 100 | I93: 100 | J93: 100 | K93: 100 | L93: 100 | M93: 100 | N93: 100 | O93: 100
A95: HHLDS | B95: =city_code&A95 -> GMANCHHHLDS | C95: =IFERROR(VLOOKUP($B95,RAWDATA!$B:$AX,C$72,FALSE),"-") -> 1146.609 | D95: =IFERROR(VLOOKUP($B95,RAWDATA!$B:$AX,D$72,FALSE),"-") -> 1156.346 | E95: =IFERROR(VLOOKUP($B95,RAWDATA!$B:$AX,E$72,FALSE),"-") -> 1167.135 | F95: =IFERROR(VLOOKUP($B95,RAWDATA!$B:$AX,F$72,FALSE),"-") -> 1178.355 | G95: =IFERROR(VLOOKUP($B95,RAWDATA!$B:$AX,G$72,FALSE),"-") -> 1187.521 | H95: =IFERROR(VLOOKUP($B95,RAWDATA!$B:$AX,H$72,FALSE),"-") -> 1196.321 | I95: =IFERROR(VLOOKUP($B95,RAWDATA!$B:$AX,I$72,FALSE),"-") -> 1204.974 | J95: =IFERROR(VLOOKUP($B95,RAWDATA!$B:$AX,J$72,FALSE),"-") -> 1213.061 | K95: =IFERROR(VLOOKUP($B95,RAWDATA!$B:$AX,K$72,FALSE),"-") -> 1220.726 | L95: =IFERROR(VLOOKUP($B95,RAWDATA!$B:$AX,L$72,FALSE),"-") -> 1228.01 | M95: =IFERROR(VLOOKUP($B95,RAWDATA!$B:$AX,M$72,FALSE),"-") -> 1264.029 | N95: =IFERROR(VLOOKUP($B95,RAWDATA!$B:$AX,N$72,FALSE),"-") -> 1296.957 | O95: =IFERROR(VLOOKUP($B95,RAWDATA!$B:$AX,O$72,FALSE),"-") -> 1325.491
A96: HS | B96: =city_code&A96 -> GMANCHHS | C96: =IFERROR(VLOOKUP($B96,RAWDATA!$B:$AX,C$72,FALSE),"-") -> 1179.66 | D96: =IFERROR(VLOOKUP($B96,RAWDATA!$B:$AX,D$72,FALSE),"-") -> 1183.83 | E96: =IFERROR(VLOOKUP($B96,RAWDATA!$B:$AX,E$72,FALSE),"-") -> 1189.25 | F96: =IFERROR(VLOOKUP($B96,RAWDATA!$B:$AX,F$72,FALSE),"-") -> 1195.44 | G96: =IFERROR(VLOOKUP($B96,RAWDATA!$B:$AX,G$72,FALSE),"-") -> 1204.684 | H96: =IFERROR(VLOOKUP($B96,RAWDATA!$B:$AX,H$72,FALSE),"-") -> 1213.565 | I96: =IFERROR(VLOOKUP($B96,RAWDATA!$B:$AX,I$72,FALSE),"-") -> 1222.302 | J96: =IFERROR(VLOOKUP($B96,RAWDATA!$B:$AX,J$72,FALSE),"-") -> 1230.457 | K96: =IFERROR(VLOOKUP($B96,RAWDATA!$B:$AX,K$72,FALSE),"-") -> 1238.182 | L96: =IFERROR(VLOOKUP($B96,RAWDATA!$B:$AX,L$72,FALSE),"-") -> 1245.524 | M96: =IFERROR(VLOOKUP($B96,RAWDATA!$B:$AX,M$72,FALSE),"-") -> 1281.812 | N96: =IFERROR(VLOOKUP($B96,RAWDATA!$B:$AX,N$72,FALSE),"-") -> 1314.966 | O96: =IFERROR(VLOOKUP($B96,RAWDATA!$B:$AX,O$72,FALSE),"-") -> 1343.635
C99: 2013 | D99: 2014 | E99: 2015 | F99: 2016 | G99: 2017 | H99: 2018 | I99: 2019 | J99: 2020 | K99: 2021 | L99: 2022 | M99: 2022-2027 | N99: 2027-2032 | O99: 2032-2037
A100: POPL | B100: =city_code&A100 -> GMANCHPOPL | D100: =IFERROR(((D73-C73)/C73)*100,"-") -> 0.6098886643 | E100: =IFERROR(((E73-D73)/D73)*100,"-") -> 0.8751339126 | F100: 0.9740329291 | G100: 0.5194088843 | H100: 0.5187997386 | I100: 0.4991469733 | J100: 0.4440124362 | K100: 0.3955144243 | L100: 0.3786460883 | M100: =IFERROR(((M73/L73)^(1/(M$71-L$71))-1)*100,"-") -> 0.3509574913 | N100: =IFERROR(((N73/M73)^(1/(N$71-M$71))-1)*100,"-") -> 0.2542148904 | O100: =IFERROR(((O73/N73)^(1/(O$71-N$71))-1)*100,"-") -> 0.2062587564
A101: POPW | B101: GMANCHPOPW | D101: =IFERROR(((D74-C74)/C74)*100,"-") -> 0.1328143935 | E101: 0.6074363974 | F101: 0.7345307573 | G101: 0.1665031418 | H101: 0.0977274168 | I101: 0.1091774644 | J101: 0.1194155858 | K101: 0.07146324061 | L101: 0.08923731986 | M101: =IFERROR(((M74/L74)^(1/(M$71-L$71))-1)*100,"-") -> 0.07332889373 | N101: -0.09239522979 | O101: -0.1443675453
A102: POPL15_74 | B102: GMANCHPOPL15_74 | D102: =IFERROR(((D75-C75)/C75)*100,"-") -> 0.368189936 | E102: 0.6997009677 | F102: 0.8035671811 | G102: 0.08908163692 | H102: 0.03567871463 | I102: -0.002478154581 | J102: 0.04057471287 | K102: 0.1892880545 | L102: -0.11955413 | M102: 0.3511322386 | N102: 0.5389402963 | O102: -0.02877592435
A103: MIGN | B103: GMANCHMIGN | D103: =IFERROR(((D76-C76)/C76)*100,"-") -> -395.3974895 | E103: 333.0382436 | F103: 13.5824679 | G103: -76.06539237 | H103: -38.61679757 | I103: -25.81532272 | J103: -91.43511751 | K103: -901.829059 | L103: 10.43754268 | M103: 8.682981863 | N103: 8.5730079 | O103: 2.651062833
A104: MIGDOMN | B104: GMANCHMIGDOMN | D104: =IFERROR(((D77-C77)/C77)*100,"-") -> -19.62742077 | E104: -67.99410029 | F104: -4.608294931 | G104: 323.6678399 | H104: 10.09857228 | I104: 8.804415161 | J104: -1.732165493 | K104: 0.4564116054 | L104: 1.582269152 | M104: 2.524295645 | N104: 2.518129726 | O104: 1.078292124
A105: MIGINTN | B105: GMANCHMIGINTN | D105: =IFERROR(((D78-C78)/C78)*100,"-") -> 53.3180778 | E105: 82.91723202 | F105: 11.69794526 | G105: -37.15326073 | H105: -7.015212826 | I105: 0.7757642978 | J105: -17.04599224 | K105: -15.44712021 | L105: 0.1020594202 | M105: 1.210437165 | N105: 0.6577264076 | O105: 0.4466981466
A107: EETT | B107: =city_code&A107 -> GMANCHEETT | D107: =IFERROR(((D80-C80)/C80)*100,"-") -> 1.301072082 | E107: 2.41052228 | F107: 3.181921768 | G107: 1.977353668 | H107: 1.46880122 | I107: 0.2287675368 | J107: 0.5673050084 | K107: 0.782138622 | L107: 0.8607143554 | M107: =IFERROR(((M80/L80)^(1/(M$71-L$71))-1)*100,"-") -> 0.5143077344 | N107: 0.2688325241 | O107: 0.2070341179
A108: SETT | B108: GMANCHSETT | D108: =IFERROR(((D81-C81)/C81)*100,"-") -> 8.500355758 | E108: -6.338598292 | F108: -0.5724707203 | G108: -2.438637432 | H108: -4.1773635 | I108: -0.2584567019 | J108: 0.154945891 | K108: 0.6211919617 | L108: 0.758307022 | M108: =IFERROR(((M81/L81)^(1/(M$71-L$71))-1)*100,"-") -> 0.4776451331 | N108: 0.2535289298 | O108: 0.2366768259
A109: ETTT | B109: GMANCHETTT | D109: =IFERROR(((D82-C82)/C82)*100,"-") -> 2.121424328 | E109: 1.35132462 | F109: 2.763766425 | G109: 1.499539967 | H109: 0.8815249828 | I109: 0.1806723209 | J109: 0.5267077372 | K109: 0.7663107058 | L109: 0.8507201708 | M109: =IFERROR(((M82/L82)^(1/(M$71-L$71))-1)*100,"-") -> 0.5106837848 | N109: 0.2673245694 | O109: 0.2099186825
A110: P_ETTT | B110: GMANCHP_ETTT | D110: =IFERROR(((D83-C83)/C83)*100,"-") -> 1.991983396 | E110: 1.623703377 | F110: 2.85447677 | G110: 1.455598218 | H110: 1.190679656 | I110: 0.2506417483 | J110: 0.5758806866 | K110: 0.7745176758 | L110: 0.8427001755 | M110: =IFERROR(((M83/L83)^(1/(M$71-L$71))-1)*100,"-") -> 0.4845875301 | N110: 0.2595246126 | O110: 0.2073839851
A111: RET | B111: GMANCHRET | D111: =IFERROR(((D84-C84)/C84)*100,"-") -> 2.677837524 | E111: 2.951749805 | F111: 1.05734545 | G111: 2.704945878 | H111: 0.5549993775 | I111: 0.2726713958 | J111: 0.7485744136 | K111: 0.9455532745 | L111: 0.9278602319 | M111: =IFERROR(((M84/L84)^(1/(M$71-L$71))-1)*100,"-") -> 0.5219908576 | N111: 0.3445001817 | O111: 0.3419615807
A112: APSRER | B112: GMANCHAPSRER | D112: =IFERROR(((D85-C85)/C85)*100,"-") -> 2.222222222 | E112: =IFERROR(((E85-D85)/D85)*100,"-") -> 1.739130435 | F112: 0.4273504274 | G112: 2.127659574 | H112: 0.5191111111 | I112: 0.2751549733 | J112: 0.7077159656 | K112: 0.7548041355 | L112: 1.048695262 | M112: =IFERROR(((M85/L85)^(1/(M$71-L$71))-1)*100,"-") -> 0.1702689324 | N112: -0.1934070276 | O112: 0.3708376865
A113: RER (15-74)
A114: NCOM | B114: =city_code&A114 -> GMANCHNCOM | D114: =IFERROR(((D87-C87)/C87)*100,"-") -> -16.94037886 | E114: -43.693035 | F114: 114.9821205 | G114: -35.18789358 | H114: 30.73612341 | I114: -0.538320647 | J114: -5.645860727 | K114: -5.808251411 | L114: -2.669656916 | M114: =IFERROR(((M87/L87)^(1/(M$71-L$71))-1)*100,"-") -> -1.169685507 | N114: -4.059430042 | O114: -9.293246906
A115: UNMP | B115: =city_code&A115 -> GMANCHUNMP | D115: =IFERROR(((D88-C88)/C88)*100,"-") -> -29.53707155 | E115: -18.95553964 | F115: 3.719944797 | G115: 4.616635592 | H115: 9.762951724 | I115: 0.5627190688 | J115: -3.444582214 | K115: -4.045394398 | L115: -3.833868145 | M115: =IFERROR(((M88/L88)^(1/(M$71-L$71))-1)*100,"-") -> -0.8792271666 | N115: -0.5918194136 | O115: -0.7103212643
A116: UP | B116: =city_code&A116 -> GMANCHUP | D116: =IFERROR(((D89-C89)/C89)*100,"-") -> -29.63053233 | E116: -19.44486088 | F116: 2.963645154 | G116: 4.442735156 | H116: 9.655787955 | I116: 0.4530469792 | J116: -3.559746907 | K116: -4.1139177 | L116: -3.919607712 | M116: =IFERROR(((M89/L89)^(1/(M$71-L$71))-1)*100,"-") -> -0.9518580733 | N116: -0.4998860547 | O116: -0.5667719537
A117: UP (15-74) | D117: =IFERROR(((D90-C90)/C90)*100,"-") -> -29.79555724 | E117: -19.5186683 | F117: 2.893129377 | G117: 4.523524325 | H117: 9.723803682 | I117: 0.5652112302 | J117: -3.483743408 | K117: -4.226681849 | L117: -3.718759946 | M117: =IFERROR(((M90/L90)^(1/(M$71-L$71))-1)*100,"-") -> -1.226054333 | N117: -1.124698258 | O117: -0.6817415174
A119: QQTT | B119: =city_code&A119 -> GMANCHQQTT | D119: =IFERROR(((D92-C92)/C92)*100,"-") -> -0.3962144317 | E119: 3.684754564 | F119: 2.53223967 | G119: 2.440094135 | H119: 1.659868957 | I119: 1.56970081 | J119: 1.98008388 | K119: 2.19043486 | L119: 2.252871979 | M119: =IFERROR(((M92/L92)^(1/(M$71-L$71))-1)*100,"-") -> 1.87549135 | N119: 1.549282072 | O119: 1.381038556
A120: Productivity | D120: =IFERROR(((D93-C93)/C93)*100,"-") -> 0 | E120: 0 | F120: 0 | G120: 0 | H120: 0 | I120: 0 | J120: 0 | K120: 0 | L120: 0 | M120: =IFERROR(((M93/L93)^(1/(M$71-L$71))-1)*100,"-") -> 0 | N120: 0 | O120: 0
A122: HHLDS | B122: =city_code&A122 -> GMANCHHHLDS | D122: =IFERROR(((D95-C95)/C95)*100,"-") -> 0.8491996836 | E122: 0.9330252364 | F122: 0.961328381 | G122: 0.7778640562 | H122: 0.7410395269 | I122: 0.7233008532 | J122: 0.6711348129 | K122: 0.6318725934 | L122: 0.5966940984 | M122: =IFERROR(((M95/L95)^(1/(M$71-L$71))-1)*100,"-") -> 0.5798600271 | N122: 0.5156552057 | O122: 0.4361926725
A123: HS | B123: =city_code&A123 -> GMANCHHS | D123: =IFERROR(((D96-C96)/C96)*100,"-") -> 0.353491684 | E123: 0.4578360069 | F123: 0.520496111 | G123: 0.773271766 | H123: 0.7372057735 | I123: 0.7199449556 | J123: 0.6671837238 | K123: 0.6278155189 | L123: 0.5929661391 | M123: =IFERROR(((M96/L96)^(1/(M$71-L$71))-1)*100,"-") -> 0.5760201924 | N123: 0.5120285668 | O123: 0.4322880418
A126: Relative Productivity | B126: GMANCH
A127: ETTT | B127: =B$126&A127 -> GMANCHETTT | C127: =VLOOKUP($B127,RAWDATA!$B:$AX,C$72,FALSE) -> 1336.602 | D127: =VLOOKUP($B127,RAWDATA!$B:$AX,D$72,FALSE) -> 1364.957 | E127: =VLOOKUP($B127,RAWDATA!$B:$AX,E$72,FALSE) -> 1383.402 | F127: =VLOOKUP($B127,RAWDATA!$B:$AX,F$72,FALSE) -> 1421.636 | G127: =VLOOKUP($B127,RAWDATA!$B:$AX,G$72,FALSE) -> 1442.954 | H127: =VLOOKUP($B127,RAWDATA!$B:$AX,H$72,FALSE) -> 1455.674 | I127: =VLOOKUP($B127,RAWDATA!$B:$AX,I$72,FALSE) -> 1458.304 | J127: =VLOOKUP($B127,RAWDATA!$B:$AX,J$72,FALSE) -> 1465.985 | K127: =VLOOKUP($B127,RAWDATA!$B:$AX,K$72,FALSE) -> 1477.219 | L127: =VLOOKUP($B127,RAWDATA!$B:$AX,L$72,FALSE) -> 1489.786 | M127: =VLOOKUP($B127,RAWDATA!$B:$AX,M$72,FALSE) -> 1528.217 | N127: =VLOOKUP($B127,RAWDATA!$B:$AX,N$72,FALSE) -> 1548.753 | O127: =VLOOKUP($B127,RAWDATA!$B:$AX,O$72,FALSE) -> 1565.077
A128: QQTT | B128: =B$126&A128 -> GMANCHQQTT | C128: =VLOOKUP($B128,RAWDATA!$B:$AX,C$72,FALSE) -> 59169.98 | D128: =VLOOKUP($B128,RAWDATA!$B:$AX,D$72,FALSE) -> 58935.54 | E128: =VLOOKUP($B128,RAWDATA!$B:$AX,E$72,FALSE) -> 61107.17 | F128: =VLOOKUP($B128,RAWDATA!$B:$AX,F$72,FALSE) -> 62654.55 | G128: =VLOOKUP($B128,RAWDATA!$B:$AX,G$72,FALSE) -> 64183.38 | H128: =VLOOKUP($B128,RAWDATA!$B:$AX,H$72,FALSE) -> 65248.74 | I128: =VLOOKUP($B128,RAWDATA!$B:$AX,I$72,FALSE) -> 66272.95 | J128: =VLOOKUP($B128,RAWDATA!$B:$AX,J$72,FALSE) -> 67585.21 | K128: =VLOOKUP($B128,RAWDATA!$B:$AX,K$72,FALSE) -> 69065.62 | L128: =VLOOKUP($B128,RAWDATA!$B:$AX,L$72,FALSE) -> 70621.58 | M128: =VLOOKUP($B128,RAWDATA!$B:$AX,M$72,FALSE) -> 77497.2 | N128: =VLOOKUP($B128,RAWDATA!$B:$AX,N$72,FALSE) -> 83689.37 | O128: =VLOOKUP($B128,RAWDATA!$B:$AX,O$72,FALSE) -> 89630.12
A129: GM Productivity | C129: =C128/C127 -> 44.26895965 | D129: =D128/D127 -> 43.17757995 | E129: 44.17166521 | F129: 44.07214646 | G129: 44.48054477 | H129: 44.82373114 | I129: 45.44522267 | J129: 46.10225207 | K129: 46.7538124 | L129: 47.40384189 | M129: 50.71086109 | N129: 54.03661526 | O129: 57.26882447
A130: City productivity | C130: =C92/C82 -> 44.26895965 | D130: =D92/D82 -> 43.17757995 | E130: 44.17166521 | F130: 44.07214646 | G130: 44.48054477 | H130: 44.82373114 | I130: 45.44522267 | J130: 46.10225207 | K130: 46.7538124 | L130: 47.40384189 | M130: 50.71086109 | N130: 54.03661526 | O130: 57.26882447
A131: Relative productivity | C131: =(C130/C129)*100 -> 100 | D131: =(D130/D129)*100 -> 100 | E131: 100 | F131: 100 | G131: 100 | H131: 100 | I131: 100 | J131: 100 | K131: 100 | L131: 100 | M131: 100 | N131: 100 | O131: 100
A135: Total employment by sector
C136: 2013 | D136: 2014 | E136: 2015 | F136: 2016 | G136: 2017 | H136: 2018 | I136: 2019 | J136: 2020 | K136: 2021 | L136: 2022 | M136: 2027 | N136: 2032 | O136: 2037 | Q136: check | R136: 2016 | S136: 2037
C137: =C136-1989 -> 24 | D137: =D136-1989 -> 25 | E137: 26 | F137: 27 | G137: 28 | H137: 29 | I137: 30 | J137: 31 | K137: 32 | L137: 33 | M137: 38 | N137: 43 | O137: 48
A138: ETAA | B138: =city_code&A138 -> GMANCHETAA | C138: =VLOOKUP($B138,RAWDATA!$B:$AX,C$137,FALSE) -> 3.10064 | D138: =VLOOKUP($B138,RAWDATA!$B:$AX,D$137,FALSE) -> 3.442843 | E138: =VLOOKUP($B138,RAWDATA!$B:$AX,E$137,FALSE) -> 3.344313 | F138: =VLOOKUP($B138,RAWDATA!$B:$AX,F$137,FALSE) -> 3.369157 | G138: =VLOOKUP($B138,RAWDATA!$B:$AX,G$137,FALSE) -> 3.370172 | H138: =VLOOKUP($B138,RAWDATA!$B:$AX,H$137,FALSE) -> 3.298247 | I138: =VLOOKUP($B138,RAWDATA!$B:$AX,I$137,FALSE) -> 3.263462 | J138: =VLOOKUP($B138,RAWDATA!$B:$AX,J$137,FALSE) -> 3.236809 | K138: =VLOOKUP($B138,RAWDATA!$B:$AX,K$137,FALSE) -> 3.218643 | L138: =VLOOKUP($B138,RAWDATA!$B:$AX,L$137,FALSE) -> 3.208419 | M138: =VLOOKUP($B138,RAWDATA!$B:$AX,M$137,FALSE) -> 3.120415 | N138: =VLOOKUP($B138,RAWDATA!$B:$AX,N$137,FALSE) -> 3.022818 | O138: =VLOOKUP($B138,RAWDATA!$B:$AX,O$137,FALSE) -> 2.886459 | R138: =E138-E47 -> -0.025859 | S138: =O138-F47 -> 0
A139: ETBB | B139: GMANCHETBB | C139: =VLOOKUP($B139,RAWDATA!$B:$AX,C$137,FALSE) -> 0.1807564 | D139: =VLOOKUP($B139,RAWDATA!$B:$AX,D$137,FALSE) -> 0.283972 | E139: =VLOOKUP($B139,RAWDATA!$B:$AX,E$137,FALSE) -> 0.2891826 | F139: =VLOOKUP($B139,RAWDATA!$B:$AX,F$137,FALSE) -> 0.2039442 | G139: =VLOOKUP($B139,RAWDATA!$B:$AX,G$137,FALSE) -> 0.1882627 | H139: =VLOOKUP($B139,RAWDATA!$B:$AX,H$137,FALSE) -> 0.191827 | I139: =VLOOKUP($B139,RAWDATA!$B:$AX,I$137,FALSE) -> 0.1909237 | J139: =VLOOKUP($B139,RAWDATA!$B:$AX,J$137,FALSE) -> 0.1839529 | K139: =VLOOKUP($B139,RAWDATA!$B:$AX,K$137,FALSE) -> 0.1749805 | L139: =VLOOKUP($B139,RAWDATA!$B:$AX,L$137,FALSE) -> 0.1664952 | M139: =VLOOKUP($B139,RAWDATA!$B:$AX,M$137,FALSE) -> 0.1318973 | N139: =VLOOKUP($B139,RAWDATA!$B:$AX,N$137,FALSE) -> 0.1057906 | O139: =VLOOKUP($B139,RAWDATA!$B:$AX,O$137,FALSE) -> 0.08477928 | R139: =E139-E48 -> 0.1009199 | S139: =O139-F48 -> 0
A140: ETCC | B140: GMANCHETCC | C140: =VLOOKUP($B140,RAWDATA!$B:$AX,C$137,FALSE) -> 109.8896 | D140: =VLOOKUP($B140,RAWDATA!$B:$AX,D$137,FALSE) -> 110.7382 | E140: =VLOOKUP($B140,RAWDATA!$B:$AX,E$137,FALSE) -> 106.209 | F140: =VLOOKUP($B140,RAWDATA!$B:$AX,F$137,FALSE) -> 111.1499 | G140: =VLOOKUP($B140,RAWDATA!$B:$AX,G$137,FALSE) -> 112.9343 | H140: =VLOOKUP($B140,RAWDATA!$B:$AX,H$137,FALSE) -> 113.5777 | I140: =VLOOKUP($B140,RAWDATA!$B:$AX,I$137,FALSE) -> 111.6884 | J140: =VLOOKUP($B140,RAWDATA!$B:$AX,J$137,FALSE) -> 109.9642 | K140: =VLOOKUP($B140,RAWDATA!$B:$AX,K$137,FALSE) -> 108.666 | L140: =VLOOKUP($B140,RAWDATA!$B:$AX,L$137,FALSE) -> 107.4042 | M140: =VLOOKUP($B140,RAWDATA!$B:$AX,M$137,FALSE) -> 99.06156 | N140: =VLOOKUP($B140,RAWDATA!$B:$AX,N$137,FALSE) -> 90.12665 | O140: =VLOOKUP($B140,RAWDATA!$B:$AX,O$137,FALSE) -> 81.84164 | R140: -6.7253 | S140: 0
A141: ET10_12 | B141: GMANCHET10_12 | C141: =VLOOKUP($B141,RAWDATA!$B:$AX,C$137,FALSE) -> 20.47764 | D141: =VLOOKUP($B141,RAWDATA!$B:$AX,D$137,FALSE) -> 20.22092 | E141: =VLOOKUP($B141,RAWDATA!$B:$AX,E$137,FALSE) -> 21.87998 | F141: =VLOOKUP($B141,RAWDATA!$B:$AX,F$137,FALSE) -> 22.92614 | G141: =VLOOKUP($B141,RAWDATA!$B:$AX,G$137,FALSE) -> 22.93423 | H141: =VLOOKUP($B141,RAWDATA!$B:$AX,H$137,FALSE) -> 23.21022 | I141: =VLOOKUP($B141,RAWDATA!$B:$AX,I$137,FALSE) -> 22.98505 | J141: =VLOOKUP($B141,RAWDATA!$B:$AX,J$137,FALSE) -> 22.78839 | K141: =VLOOKUP($B141,RAWDATA!$B:$AX,K$137,FALSE) -> 22.66168 | L141: =VLOOKUP($B141,RAWDATA!$B:$AX,L$137,FALSE) -> 22.5373 | M141: =VLOOKUP($B141,RAWDATA!$B:$AX,M$137,FALSE) -> 21.41174 | N141: =VLOOKUP($B141,RAWDATA!$B:$AX,N$137,FALSE) -> 20.02573 | O141: =VLOOKUP($B141,RAWDATA!$B:$AX,O$137,FALSE) -> 18.67488 | R141: - | S141: -
A142: ET13_15 | B142: GMANCHET13_15 | C142: =VLOOKUP($B142,RAWDATA!$B:$AX,C$137,FALSE) -> 12.94256 | D142: =VLOOKUP($B142,RAWDATA!$B:$AX,D$137,FALSE) -> 9.781316 | E142: =VLOOKUP($B142,RAWDATA!$B:$AX,E$137,FALSE) -> 9.200941 | F142: =VLOOKUP($B142,RAWDATA!$B:$AX,F$137,FALSE) -> 8.536774 | G142: =VLOOKUP($B142,RAWDATA!$B:$AX,G$137,FALSE) -> 8.174445 | H142: =VLOOKUP($B142,RAWDATA!$B:$AX,H$137,FALSE) -> 8.196039 | I142: =VLOOKUP($B142,RAWDATA!$B:$AX,I$137,FALSE) -> 8.020204 | J142: =VLOOKUP($B142,RAWDATA!$B:$AX,J$137,FALSE) -> 7.857882 | K142: =VLOOKUP($B142,RAWDATA!$B:$AX,K$137,FALSE) -> 7.723814 | L142: =VLOOKUP($B142,RAWDATA!$B:$AX,L$137,FALSE) -> 7.592598 | M142: =VLOOKUP($B142,RAWDATA!$B:$AX,M$137,FALSE) -> 6.824139 | N142: =VLOOKUP($B142,RAWDATA!$B:$AX,N$137,FALSE) -> 6.059443 | O142: =VLOOKUP($B142,RAWDATA!$B:$AX,O$137,FALSE) -> 5.37059 | R142: - | S142: -
A143: ET16_18 | B143: GMANCHET16_18 | C143: =VLOOKUP($B143,RAWDATA!$B:$AX,C$137,FALSE) -> 11.05478 | D143: =VLOOKUP($B143,RAWDATA!$B:$AX,D$137,FALSE) -> 10.23755 | E143: =VLOOKUP($B143,RAWDATA!$B:$AX,E$137,FALSE) -> 10.59337 | F143: =VLOOKUP($B143,RAWDATA!$B:$AX,F$137,FALSE) -> 14.9047 | G143: =VLOOKUP($B143,RAWDATA!$B:$AX,G$137,FALSE) -> 15.24313 | H143: =VLOOKUP($B143,RAWDATA!$B:$AX,H$137,FALSE) -> 15.33009 | I143: =VLOOKUP($B143,RAWDATA!$B:$AX,I$137,FALSE) -> 15.06944 | J143: =VLOOKUP($B143,RAWDATA!$B:$AX,J$137,FALSE) -> 14.83232 | K143: =VLOOKUP($B143,RAWDATA!$B:$AX,K$137,FALSE) -> 14.64815 | L143: =VLOOKUP($B143,RAWDATA!$B:$AX,L$137,FALSE) -> 14.46938 | M143: =VLOOKUP($B143,RAWDATA!$B:$AX,M$137,FALSE) -> 13.30614 | N143: =VLOOKUP($B143,RAWDATA!$B:$AX,N$137,FALSE) -> 12.07141 | O143: =VLOOKUP($B143,RAWDATA!$B:$AX,O$137,FALSE) -> 10.93096 | R143: - | S143: -
A144: ET19_21 | B144: GMANCHET19_21 | C144: =VLOOKUP($B144,RAWDATA!$B:$AX,C$137,FALSE) -> 9.358005 | D144: =VLOOKUP($B144,RAWDATA!$B:$AX,D$137,FALSE) -> 9.316589 | E144: =VLOOKUP($B144,RAWDATA!$B:$AX,E$137,FALSE) -> 9.001626 | F144: =VLOOKUP($B144,RAWDATA!$B:$AX,F$137,FALSE) -> 8.926038 | G144: =VLOOKUP($B144,RAWDATA!$B:$AX,G$137,FALSE) -> 9.258358 | H144: =VLOOKUP($B144,RAWDATA!$B:$AX,H$137,FALSE) -> 9.292038 | I144: =VLOOKUP($B144,RAWDATA!$B:$AX,I$137,FALSE) -> 9.128623 | J144: =VLOOKUP($B144,RAWDATA!$B:$AX,J$137,FALSE) -> 8.979424 | K144: =VLOOKUP($B144,RAWDATA!$B:$AX,K$137,FALSE) -> 8.862782 | L144: =VLOOKUP($B144,RAWDATA!$B:$AX,L$137,FALSE) -> 8.748848 | M144: =VLOOKUP($B144,RAWDATA!$B:$AX,M$137,FALSE) -> 8.018603 | N144: =VLOOKUP($B144,RAWDATA!$B:$AX,N$137,FALSE) -> 7.249369 | O144: =VLOOKUP($B144,RAWDATA!$B:$AX,O$137,FALSE) -> 6.541996 | R144: - | S144: -
A145: ET22_23 | B145: GMANCHET22_23 | C145: =VLOOKUP($B145,RAWDATA!$B:$AX,C$137,FALSE) -> 11.53668 | D145: =VLOOKUP($B145,RAWDATA!$B:$AX,D$137,FALSE) -> 14.76958 | E145: =VLOOKUP($B145,RAWDATA!$B:$AX,E$137,FALSE) -> 12.77286 | F145: =VLOOKUP($B145,RAWDATA!$B:$AX,F$137,FALSE) -> 10.58429 | G145: =VLOOKUP($B145,RAWDATA!$B:$AX,G$137,FALSE) -> 10.53909 | H145: =VLOOKUP($B145,RAWDATA!$B:$AX,H$137,FALSE) -> 10.59479 | I145: =VLOOKUP($B145,RAWDATA!$B:$AX,I$137,FALSE) -> 10.41601 | J145: =VLOOKUP($B145,RAWDATA!$B:$AX,J$137,FALSE) -> 10.253 | K145: =VLOOKUP($B145,RAWDATA!$B:$AX,K$137,FALSE) -> 10.12684 | L145: =VLOOKUP($B145,RAWDATA!$B:$AX,L$137,FALSE) -> 10.00381 | M145: =VLOOKUP($B145,RAWDATA!$B:$AX,M$137,FALSE) -> 9.201826 | N145: =VLOOKUP($B145,RAWDATA!$B:$AX,N$137,FALSE) -> 8.35425 | O145: =VLOOKUP($B145,RAWDATA!$B:$AX,O$137,FALSE) -> 7.572951 | R145: - | S145: -
A146: ET24_25 | B146: GMANCHET24_25 | C146: =VLOOKUP($B146,RAWDATA!$B:$AX,C$137,FALSE) -> 11.00846 | D146: =VLOOKUP($B146,RAWDATA!$B:$AX,D$137,FALSE) -> 14.76711 | E146: =VLOOKUP($B146,RAWDATA!$B:$AX,E$137,FALSE) -> 13.01776 | F146: =VLOOKUP($B146,RAWDATA!$B:$AX,F$137,FALSE) -> 14.91487 | G146: =VLOOKUP($B146,RAWDATA!$B:$AX,G$137,FALSE) -> 15.56834 | H146: =VLOOKUP($B146,RAWDATA!$B:$AX,H$137,FALSE) -> 15.59706 | I146: =VLOOKUP($B146,RAWDATA!$B:$AX,I$137,FALSE) -> 15.28616 | J146: =VLOOKUP($B146,RAWDATA!$B:$AX,J$137,FALSE) -> 15.00107 | K146: =VLOOKUP($B146,RAWDATA!$B:$AX,K$137,FALSE) -> 14.77152 | L146: =VLOOKUP($B146,RAWDATA!$B:$AX,L$137,FALSE) -> 14.54776 | M146: =VLOOKUP($B146,RAWDATA!$B:$AX,M$137,FALSE) -> 13.1982 | N146: =VLOOKUP($B146,RAWDATA!$B:$AX,N$137,FALSE) -> 11.80246 | O146: =VLOOKUP($B146,RAWDATA!$B:$AX,O$137,FALSE) -> 10.53558 | R146: - | S146: -
A147: ET26_27 | B147: GMANCHET26_27 | C147: =VLOOKUP($B147,RAWDATA!$B:$AX,C$137,FALSE) -> 7.414447 | D147: =VLOOKUP($B147,RAWDATA!$B:$AX,D$137,FALSE) -> 7.441541 | E147: =VLOOKUP($B147,RAWDATA!$B:$AX,E$137,FALSE) -> 9.518754 | F147: =VLOOKUP($B147,RAWDATA!$B:$AX,F$137,FALSE) -> 8.367718 | G147: =VLOOKUP($B147,RAWDATA!$B:$AX,G$137,FALSE) -> 8.482103 | H147: =VLOOKUP($B147,RAWDATA!$B:$AX,H$137,FALSE) -> 8.487376 | I147: =VLOOKUP($B147,RAWDATA!$B:$AX,I$137,FALSE) -> 8.304881 | J147: =VLOOKUP($B147,RAWDATA!$B:$AX,J$137,FALSE) -> 8.136502 | K147: =VLOOKUP($B147,RAWDATA!$B:$AX,K$137,FALSE) -> 7.998482 | L147: =VLOOKUP($B147,RAWDATA!$B:$AX,L$137,FALSE) -> 7.869291 | M147: =VLOOKUP($B147,RAWDATA!$B:$AX,M$137,FALSE) -> 7.069726 | N147: =VLOOKUP($B147,RAWDATA!$B:$AX,N$137,FALSE) -> 6.270152 | O147: =VLOOKUP($B147,RAWDATA!$B:$AX,O$137,FALSE) -> 5.545887 | R147: - | S147: -
A148: ET28_30 | B148: GMANCHET28_30 | C148: =VLOOKUP($B148,RAWDATA!$B:$AX,C$137,FALSE) -> 12.8757 | D148: =VLOOKUP($B148,RAWDATA!$B:$AX,D$137,FALSE) -> 11.82674 | E148: =VLOOKUP($B148,RAWDATA!$B:$AX,E$137,FALSE) -> 11.73114 | F148: =VLOOKUP($B148,RAWDATA!$B:$AX,F$137,FALSE) -> 13.05868 | G148: =VLOOKUP($B148,RAWDATA!$B:$AX,G$137,FALSE) -> 13.57506 | H148: =VLOOKUP($B148,RAWDATA!$B:$AX,H$137,FALSE) -> 13.60897 | I148: =VLOOKUP($B148,RAWDATA!$B:$AX,I$137,FALSE) -> 13.34662 | J148: =VLOOKUP($B148,RAWDATA!$B:$AX,J$137,FALSE) -> 13.10079 | K148: =VLOOKUP($B148,RAWDATA!$B:$AX,K$137,FALSE) -> 12.94489 | L148: =VLOOKUP($B148,RAWDATA!$B:$AX,L$137,FALSE) -> 12.793 | M148: =VLOOKUP($B148,RAWDATA!$B:$AX,M$137,FALSE) -> 11.79376 | N148: =VLOOKUP($B148,RAWDATA!$B:$AX,N$137,FALSE) -> 10.72675 | O148: =VLOOKUP($B148,RAWDATA!$B:$AX,O$137,FALSE) -> 9.733283 | R148: - | S148: -
A149: ET31_33 | B149: GMANCHET31_33 | C149: =VLOOKUP($B149,RAWDATA!$B:$AX,C$137,FALSE) -> 13.22133 | D149: =VLOOKUP($B149,RAWDATA!$B:$AX,D$137,FALSE) -> 12.37688 | E149: =VLOOKUP($B149,RAWDATA!$B:$AX,E$137,FALSE) -> 8.492575 | F149: =VLOOKUP($B149,RAWDATA!$B:$AX,F$137,FALSE) -> 8.930711 | G149: =VLOOKUP($B149,RAWDATA!$B:$AX,G$137,FALSE) -> 9.159535 | H149: =VLOOKUP($B149,RAWDATA!$B:$AX,H$137,FALSE) -> 9.261115 | I149: =VLOOKUP($B149,RAWDATA!$B:$AX,I$137,FALSE) -> 9.131454 | J149: =VLOOKUP($B149,RAWDATA!$B:$AX,J$137,FALSE) -> 9.014792 | K149: =VLOOKUP($B149,RAWDATA!$B:$AX,K$137,FALSE) -> 8.927811 | L149: =VLOOKUP($B149,RAWDATA!$B:$AX,L$137,FALSE) -> 8.84216 | M149: =VLOOKUP($B149,RAWDATA!$B:$AX,M$137,FALSE) -> 8.237418 | N149: =VLOOKUP($B149,RAWDATA!$B:$AX,N$137,FALSE) -> 7.567085 | O149: =VLOOKUP($B149,RAWDATA!$B:$AX,O$137,FALSE) -> 6.93552 | R149: - | S149: -
A150: ETDD | B150: GMANCHETDD | C150: =VLOOKUP($B150,RAWDATA!$B:$AX,C$137,FALSE) -> 8.06396 | D150: =VLOOKUP($B150,RAWDATA!$B:$AX,D$137,FALSE) -> 5.00583 | E150: =VLOOKUP($B150,RAWDATA!$B:$AX,E$137,FALSE) -> 6.625925 | F150: =VLOOKUP($B150,RAWDATA!$B:$AX,F$137,FALSE) -> 7.461478 | G150: =VLOOKUP($B150,RAWDATA!$B:$AX,G$137,FALSE) -> 7.646014 | H150: =VLOOKUP($B150,RAWDATA!$B:$AX,H$137,FALSE) -> 7.649694 | I150: =VLOOKUP($B150,RAWDATA!$B:$AX,I$137,FALSE) -> 7.564157 | J150: =VLOOKUP($B150,RAWDATA!$B:$AX,J$137,FALSE) -> 7.491715 | K150: =VLOOKUP($B150,RAWDATA!$B:$AX,K$137,FALSE) -> 7.432897 | L150: =VLOOKUP($B150,RAWDATA!$B:$AX,L$137,FALSE) -> 7.388411 | M150: =VLOOKUP($B150,RAWDATA!$B:$AX,M$137,FALSE) -> 7.041588 | N150: =VLOOKUP($B150,RAWDATA!$B:$AX,N$137,FALSE) -> 6.593869 | O150: =VLOOKUP($B150,RAWDATA!$B:$AX,O$137,FALSE) -> 6.209463 | R150: =E150-E50 -> -1.020089 | S150: =O150-F50 -> 0
A151: ETEE | B151: GMANCHETEE | C151: =VLOOKUP($B151,RAWDATA!$B:$AX,C$137,FALSE) -> 7.475799 | D151: =VLOOKUP($B151,RAWDATA!$B:$AX,D$137,FALSE) -> 7.800836 | E151: =VLOOKUP($B151,RAWDATA!$B:$AX,E$137,FALSE) -> 7.768772 | F151: =VLOOKUP($B151,RAWDATA!$B:$AX,F$137,FALSE) -> 9.018438 | G151: =VLOOKUP($B151,RAWDATA!$B:$AX,G$137,FALSE) -> 9.172755 | H151: =VLOOKUP($B151,RAWDATA!$B:$AX,H$137,FALSE) -> 9.159255 | I151: =VLOOKUP($B151,RAWDATA!$B:$AX,I$137,FALSE) -> 9.02736 | J151: =VLOOKUP($B151,RAWDATA!$B:$AX,J$137,FALSE) -> 8.929561 | K151: =VLOOKUP($B151,RAWDATA!$B:$AX,K$137,FALSE) -> 8.868582 | L151: =VLOOKUP($B151,RAWDATA!$B:$AX,L$137,FALSE) -> 8.816669 | M151: =VLOOKUP($B151,RAWDATA!$B:$AX,M$137,FALSE) -> 8.426502 | N151: =VLOOKUP($B151,RAWDATA!$B:$AX,N$137,FALSE) -> 7.937964 | O151: =VLOOKUP($B151,RAWDATA!$B:$AX,O$137,FALSE) -> 7.449379 | R151: =E151-E51 -> -1.403983 | S151: =O151-F51 -> 0
A152: ETFF | B152: GMANCHETFF | C152: =VLOOKUP($B152,RAWDATA!$B:$AX,C$137,FALSE) -> 81.91589 | D152: =VLOOKUP($B152,RAWDATA!$B:$AX,D$137,FALSE) -> 80.77436 | E152: =VLOOKUP($B152,RAWDATA!$B:$AX,E$137,FALSE) -> 79.05692 | F152: =VLOOKUP($B152,RAWDATA!$B:$AX,F$137,FALSE) -> 79.82634 | G152: =VLOOKUP($B152,RAWDATA!$B:$AX,G$137,FALSE) -> 81.07815 | H152: =VLOOKUP($B152,RAWDATA!$B:$AX,H$137,FALSE) -> 81.93843 | I152: =VLOOKUP($B152,RAWDATA!$B:$AX,I$137,FALSE) -> 82.89465 | J152: =VLOOKUP($B152,RAWDATA!$B:$AX,J$137,FALSE) -> 84.46651 | K152: =VLOOKUP($B152,RAWDATA!$B:$AX,K$137,FALSE) -> 85.99902 | L152: =VLOOKUP($B152,RAWDATA!$B:$AX,L$137,FALSE) -> 87.33981 | M152: =VLOOKUP($B152,RAWDATA!$B:$AX,M$137,FALSE) -> 91.38537 | N152: =VLOOKUP($B152,RAWDATA!$B:$AX,N$137,FALSE) -> 94.07413 | O152: =VLOOKUP($B152,RAWDATA!$B:$AX,O$137,FALSE) -> 96.69567 | R152: -2.02123 | S152: 0
A153: ETGG | B153: GMANCHETGG | C153: =VLOOKUP($B153,RAWDATA!$B:$AX,C$137,FALSE) -> 214.162 | D153: =VLOOKUP($B153,RAWDATA!$B:$AX,D$137,FALSE) -> 206.9404 | E153: =VLOOKUP($B153,RAWDATA!$B:$AX,E$137,FALSE) -> 217.8764 | F153: =VLOOKUP($B153,RAWDATA!$B:$AX,F$137,FALSE) -> 215.2914 | G153: =VLOOKUP($B153,RAWDATA!$B:$AX,G$137,FALSE) -> 213.3781 | H153: =VLOOKUP($B153,RAWDATA!$B:$AX,H$137,FALSE) -> 215.9033 | I153: =VLOOKUP($B153,RAWDATA!$B:$AX,I$137,FALSE) -> 216.4518 | J153: =VLOOKUP($B153,RAWDATA!$B:$AX,J$137,FALSE) -> 218.2064 | K153: =VLOOKUP($B153,RAWDATA!$B:$AX,K$137,FALSE) -> 220.1742 | L153: =VLOOKUP($B153,RAWDATA!$B:$AX,L$137,FALSE) -> 222.4776 | M153: =VLOOKUP($B153,RAWDATA!$B:$AX,M$137,FALSE) -> 230.7511 | N153: =VLOOKUP($B153,RAWDATA!$B:$AX,N$137,FALSE) -> 233.8132 | O153: =VLOOKUP($B153,RAWDATA!$B:$AX,O$137,FALSE) -> 234.2539 | R153: 4.4983 | S153: 0
A154: ETHH | B154: GMANCHETHH | C154: =VLOOKUP($B154,RAWDATA!$B:$AX,C$137,FALSE) -> 71.76192 | D154: =VLOOKUP($B154,RAWDATA!$B:$AX,D$137,FALSE) -> 68.76034 | E154: =VLOOKUP($B154,RAWDATA!$B:$AX,E$137,FALSE) -> 71.42569 | F154: =VLOOKUP($B154,RAWDATA!$B:$AX,F$137,FALSE) -> 78.56876 | G154: =VLOOKUP($B154,RAWDATA!$B:$AX,G$137,FALSE) -> 84.52876 | H154: =VLOOKUP($B154,RAWDATA!$B:$AX,H$137,FALSE) -> 84.87592 | I154: =VLOOKUP($B154,RAWDATA!$B:$AX,I$137,FALSE) -> 84.57771 | J154: =VLOOKUP($B154,RAWDATA!$B:$AX,J$137,FALSE) -> 84.65161 | K154: =VLOOKUP($B154,RAWDATA!$B:$AX,K$137,FALSE) -> 85.03827 | L154: =VLOOKUP($B154,RAWDATA!$B:$AX,L$137,FALSE) -> 85.46156 | M154: =VLOOKUP($B154,RAWDATA!$B:$AX,M$137,FALSE) -> 85.82521 | N154: =VLOOKUP($B154,RAWDATA!$B:$AX,N$137,FALSE) -> 84.82563 | O154: =VLOOKUP($B154,RAWDATA!$B:$AX,O$137,FALSE) -> 83.55813 | R154: -13.10307 | S154: 0
A155: ETII | B155: GMANCHETII | C155: =VLOOKUP($B155,RAWDATA!$B:$AX,C$137,FALSE) -> 71.06098 | D155: =VLOOKUP($B155,RAWDATA!$B:$AX,D$137,FALSE) -> 81.3563 | E155: =VLOOKUP($B155,RAWDATA!$B:$AX,E$137,FALSE) -> 84.12712 | F155: =VLOOKUP($B155,RAWDATA!$B:$AX,F$137,FALSE) -> 89.56755 | G155: =VLOOKUP($B155,RAWDATA!$B:$AX,G$137,FALSE) -> 90.66229 | H155: =VLOOKUP($B155,RAWDATA!$B:$AX,H$137,FALSE) -> 91.91151 | I155: =VLOOKUP($B155,RAWDATA!$B:$AX,I$137,FALSE) -> 92.52844 | J155: =VLOOKUP($B155,RAWDATA!$B:$AX,J$137,FALSE) -> 93.71936 | K155: =VLOOKUP($B155,RAWDATA!$B:$AX,K$137,FALSE) -> 95.11993 | L155: =VLOOKUP($B155,RAWDATA!$B:$AX,L$137,FALSE) -> 96.32585 | M155: =VLOOKUP($B155,RAWDATA!$B:$AX,M$137,FALSE) -> 100.4613 | N155: =VLOOKUP($B155,RAWDATA!$B:$AX,N$137,FALSE) -> 102.7996 | O155: =VLOOKUP($B155,RAWDATA!$B:$AX,O$137,FALSE) -> 103.8756 | R155: -6.53517 | S155: 0
